Workbook

Sheet Summary Sheet (hidden)
B1: File Name
B3: Brickwork | D3: Notes
B4: 2c FACE BRICKWORK | F4: OG Figures
B5: 2c Face Brickwork | C5: =SUMIF('BWK EXTERNAL'!B4:B301,"FACE BWK",'BWK EXTERNAL'!F4:F301)+SUMIF(PIERS!B:B,"Pier 2c Face",PIERS!I:I)-SUM(C6:C7)-C8-C9 -> 139.281 | D5: Includes Piers and deducts the three rows of calcs below | F5: 2c
B6: 1c Cored Face brick to Heads | C6: =SUMIF('EXT LINTEL LIST'!J4:J101,"FACE BWK",'EXT LINTEL LIST'!L4:L101) -> 0 | F6: 1c
B7: 1c Cored Face Brick Sills | C7: =SUMIF('EXT LINTEL LIST'!M4:M101,"1c Face Modular Solid",'EXT LINTEL LIST'!N4:N101) -> 2.626 | F7: 1c
B8: 2c Finishing Bricks Ext Windows & Door Heads | C8: =SUMIF('EXT LINTEL LIST'!M4:M101,"Finishing Block",'EXT LINTEL LIST'!N4:N101) -> 0.225 | E8: =C8/2 -> 0.1125 | F8: 1c
B9: Zero Course 1c Face Solids and Cored | C9: =SUMIF('EXT LINTEL LIST'!M4:M101,"Sill Brick - Zero Course",'EXT LINTEL LIST'!N4:N101) -> 0 | F9: 1c
B11: Internal Leaf Double Decker | C11: =SUMIF('BWK INTERNAL'!B3:B301,"FACE BWK",'BWK INTERNAL'!F3:F301)+SUMIF('BWK INTERNAL'!B3:B301,"REAR GARAGE FACE BWK",'BWK INTERNAL'!F3:F301)-SUM(C12:C13)-W70 -> 9.521 | F11: 2c
B12: Mod Int Leaf Heads | C12: =SUMIF('INT LINTEL LIST'!J4:J105,"FACE BWK",'INT LINTEL LIST'!L4:L105) -> 0 | F12: 1c
B13: Mod Int Leaf Sills | C13: =SUMIF('INT LINTEL LIST'!M4:M100,"1c Face Modular Solid",'INT LINTEL LIST'!N4:N100) -> 0 | F13: 1c
B15: 1c Face Cored for Walls (Odd course) | C15: =SUMIF('BWK EXTERNAL'!B4:B300,"FACE BWK",'BWK EXTERNAL'!G4:G300)+SUMIF('BWK EXTERNAL'!B4:B300,"FACE BWK",'BWK EXTERNAL'!H4:H300)-SUMIF('EXT LINTEL LIST'!J4:J100,"FACE BWK",'EXT LINTEL LIST'!O4:O100) -> 11.145 | D15: Note: Includes Deduction for above windows at an Odds course | F15: 1c
B16: 1c Face Sill Brick Solids | C16: =SUMIF('EXT LINTEL LIST'!M:M,"1c Face Modular Solid",'EXT LINTEL LIST'!N:N) -> 2.626 | D16: Window sill solids | F16: 1c
B17: 1c Face Head Bricks Solid | C17: =SUMIF('EXT LINTEL LIST'!M:M,"1c Face Modular Solid",'EXT LINTEL LIST'!N:N) -> 2.626 | F17: 1c
B18: Finishing Bricks Int Windows & Door Heads | C18: =SUMIF('EXT LINTEL LIST'!M:M,"Sill Brick - Zero Course",'EXT LINTEL LIST'!N:N)*0.5 -> 0 | F18: 1c
B20: 1c Feature Face | C20: =SUMIF('BWK EXTERNAL'!B4:B300,"1C FACE BWK",'BWK EXTERNAL'!F4:F300) -> 6.712
B21: Internal 2c Face | C21: =SUMIF('BWK INTERNAL'!B3:B300,"FACE BWK",'BWK INTERNAL'!G3:G300)+SUMIF('BWK INTERNAL'!B3:B300,"FACE BWK",'BWK INTERNAL'!H3:H300) -> 2.065 | F21: 1c
B23: HIGHLIGHTER Internal & External Corner Snaps | C23: =SUMIF('HIGHLIGHER LIST'!A4:A300,"CORNER SNAPS",'HIGHLIGHER LIST'!B4:B300)*0.19*0.172 -> 0
B24: Snaps Calculation from Windows | C24: =SUMIF('EXT LINTEL LIST'!J:J,"FACE BWK",'EXT LINTEL LIST'!P:P)/1000*0.37 -> 10.75035 | D24: Calculates window heights and multiple by .2
B25: Piers - Snaps | C25: =SUMIF(PIERS!B:B,"Pier 2c Face",PIERS!I:I) -> 0
B27: VERTICORE / VERTICLAY / RENDERED
B28: External 2c Render Bricks | C28: =SUMIF('BWK EXTERNAL'!B4:B301,"RENDER BWK",'BWK EXTERNAL'!F4:F301)+C33+SUMIF(PIERS!B:B,"Pier 2c Rendered",PIERS!J:J) -> 32.056 | D28: Includes Piers | F28: 2c
B29: 1c Render brick when wall finishes on Odd course | C29: =SUMIF('BWK EXTERNAL'!B4:B300,"RENDER BWK",'BWK EXTERNAL'!G4:G300)+SUMIF('BWK EXTERNAL'!B4:B300,"RENDER BWK",'BWK EXTERNAL'!H4:H300)-SUMIF('EXT LINTEL LIST'!J4:J100,"RENDER BWK",'EXT LINTEL LIST'!O4:O100) -> 2.757 | D29: Note: Includes Deduction for above windows at an Odd course | F29: 1c
B30: 1c Render Brick over Windows | C30: =SUMIF('EXT LINTEL LIST'!J4:J100,"RENDER BWK",'EXT LINTEL LIST'!L4:L100)+C34 -> 0.322 | F30: 1c
B31: 1c Render Brick under Windows | C31: =SUMIF('EXT LINTEL LIST'!M4:M100,"1c Rough Longreach",'EXT LINTEL LIST'!N4:N100)+C35 -> 3.329 | F31: 1c
B33: Internal Leaf Verticore | C33: =SUMIF('BWK INTERNAL'!B3:B301,"RENDER BWK",'BWK INTERNAL'!F3:F301) -> 1.262 | D33: Note: Added to Above Figures | F33: 1c
B34: Int 2c s Windows & Doors Heads | C34: =SUMIF('INT LINTEL LIST'!J4:J102,"RENDER BWK",'INT LINTEL LIST'!L4:L102) -> 0 | D34: Note: Added to Above Figures | F34: 1c
B35: Int Modulars Windows & Doors Sills | C35: =SUMIF('INT LINTEL LIST'!N6:N102,"1c Rough Longreach",'INT LINTEL LIST'!O6:O102) -> 2.904 | D35: Note: Added to Above Figures | F35: 1c
B37: INTERNALS
B38: Internal Leaf | C38: =SUMIF('BWK INTERNAL'!B3:B300,"INT CAV BWK",'BWK INTERNAL'!F3:F300)+C44 -> 86.509 | D38: Internal pertitions and cavity internal leaf + low walls | F38: 2c
B39: Internal Walls | C39: =SUMIF('BWK INTERNAL'!B3:B300,"INT PARTITION",'BWK INTERNAL'!F3:F300) -> 262.128 | F39: 2c
B40: Window Heads Int Leaf | C40: =SUMIF('INT LINTEL LIST'!J4:J100,"INT CAV BWK",'INT LINTEL LIST'!L4:L100)+SUMIF('INT LINTEL LIST'!J4:J100,"INT PARTITION",'INT LINTEL LIST'!L4:L100)+C45 -> 3.177 | D40: Inc Window Heads on 190 rendered internal skins | F40: 1c
B41: Window Sills Int Leaf | C41: =SUMIF('INT LINTEL LIST'!J4:J100,"INT CAV BWK",'INT LINTEL LIST'!M4:M100)+C46 -> 3.051 | D41: Inc Window Sill on 190 rendered internal skins | F41: 1c
B42: Low Walls | C42: =SUMIF('BWK INTERNAL'!B3:B300,"INT CAV BWK",'BWK INTERNAL'!H3:H300)+SUMIF('BWK INTERNAL'!B3:B300,"INT PARTITION",'BWK INTERNAL'!H3:H300) -> 15.767 | F42: 1c
B43: Int Modulars Wall Head odd Course | C43: =SUMIF('BWK INTERNAL'!B3:B300,"INT CAV BWK",'BWK INTERNAL'!G3:G300)+SUMIF('BWK INTERNAL'!B3:B300,"INT PARTITION",'BWK INTERNAL'!G3:G300) -> 8.821 | F43: 1c
B44: Internal Blocks - Second Skin | C44: =SUMIF('BWK EXTERNAL'!B3:B300,"INT PARTITION",'BWK EXTERNAL'!F3:F300)+SUMIF('BWK EXTERNAL'!B3:B300,"INT CAV BWK",'BWK EXTERNAL'!F3:F300) -> 0 | D44: added to the above formulas
B45: Window Heads Ext Leaf | C45: =SUMIF('EXT LINTEL LIST'!J4:J100,"INT CAV BWK",'EXT LINTEL LIST'!L4:L100) -> 0 | D45: added to the above formulas
B46: Window Sills Ext Leaf | C46: =SUMIF('EXT LINTEL LIST'!J4:J100,"INT CAV BWK",'EXT LINTEL LIST'!M4:M100) -> 0 | D46: added to the above formulas
B48: PLASTERING - FINISHES
B49: External Plastering | C49: =SUMIF('FINISH - EXT'!C:C,"RENDER BWK",'FINISH - EXT'!G:G)+SUMIF('FINISH - INT'!C:C,"RENDER BWK",'FINISH - INT'!G:G)+SUMIF(PIERS!B:B,"Pier 2c Rendered",PIERS!J:J)-C50 -> 68.754
B50: External Plaster Deductions | C50: =SUMIF('FINISH - EXT'!H:H,"FACE BWK",'FINISH - EXT'!I:I) -> 0 | D50: Garage Door deduction
B51: Internal Float and Set Cav | C51: =SUMIF('FINISH - INT'!C:C,"INT CAV BWK",'FINISH - INT'!G:G) -> 177.441
B52: Internal Float and Set Paritions | C52: =SUMIF('FINISH - INT'!C:C,"INT PARTITION",'FINISH - INT'!G:G) + SUMIF('FINISH - EXT'!C:C,"INT PARTITION",'FINISH - EXT'!G:G)-C56 -> 610.99968
B53: Plaster Beads | C53: =SUMIF('HIGHLIGHER LIST'!A4:A100,"CORNER BEADS",'HIGHLIGHER LIST'!B4:B100) -> 0
B54: Window Beads 2.4 | C54: =SUMIF('HIGHLIGHER LIST'!A4:A100,"WINDOW BEADS 2.4",'HIGHLIGHER LIST'!B4:B100) -> 21
B55: T-Junctions 28c | C55: =SUMIF('HIGHLIGHER LIST'!A:A,"T-WALL JUNCTION 28c",'HIGHLIGHER LIST'!B:B)*0.09*2.4 -> 0
B56: T-Junctions 30c | C56: =SUMIF('HIGHLIGHER LIST'!A:A,"T-WALL JUNCTION 30c",'HIGHLIGHER LIST'!B:B)*0.09*2.572 -> 2.08332
B57: T-Junctions 31c | C57: =SUMIF('HIGHLIGHER LIST'!A:A,"T-WALL JUNCTION 31c",'HIGHLIGHER LIST'!B:B)*0.09*2.657 -> 0
B59: Concrete
B60: Perimeter for footing | C60: =SUMIF('FOOTING LENGTHS'!A3:A101,"Perimeter Walls",'FOOTING LENGTHS'!B3:B101)+SUMIF('FOOTING LENGTHS'!A3:A101,"Rear Garage Walls",'FOOTING LENGTHS'!B3:B101)/100 -> 65836.19
B61: Garage Walls Lineal | C61: =(SUMIF('FOOTING LENGTHS'!A3:A101,"Garage Walls",'FOOTING LENGTHS'!B3:B101)+SUMIF('FOOTING LENGTHS'!A3:A101,"Garage Wall 190",'FOOTING LENGTHS'!B3:B101)-SUMIF('FOOTING LENGTHS'!A3:A101,"Garage door deduction",'FOOTING LENGTHS'!B3:B101)) -> 14275
B62: Garage Door Deduction | C62: =(SUMIF('FOOTING LENGTHS'!A:A,"Garage Door Deduction",'FOOTING LENGTHS'!B:B))/1000 -> 7.52
B63: House Slab Area | C63: =SUMIF('SLAB AREAS'!A3:A50,"FLOOR PLAN",'SLAB AREAS'!B3:B50) -> 296.601
B64: Garage / Store Slab Area | C64: =SUMIF('SLAB AREAS'!A4:A51,"GARAGE",'SLAB AREAS'!B4:B51)+SUMIF('SLAB AREAS'!A4:A51,"STORE",'SLAB AREAS'!B4:B51)+SUMIF('SLAB AREAS'!A4:A51,"GARAGE / STORE",'SLAB AREAS'!B4:B51) -> 57.855
B65: Alfresco | C65: =SUMIF('SLAB AREAS'!$A$3:$A$51,"ALFRESCO",'SLAB AREAS'!$B$3:$B$51) -> 24
B66: Porch /Verandah | C66: =SUMIF('SLAB AREAS'!$A$3:$A$51,"PORCH",'SLAB AREAS'!$B$3:$B$51)+SUMIF('SLAB AREAS'!$A$3:$A$51,"PORTICO",'SLAB AREAS'!$B$3:$B$51)+SUMIF('SLAB AREAS'!$A$3:$A$51,"VERANDAH",'SLAB AREAS'!$B$3:$B$51) -> 5.157
B68: Lintels | C68: Internal Length | D68: Internal Type | E68: External Length | F68: External Type | G68: Height
B69: ='INT LINTEL LIST'!A4 -> BATH 2 | C69: ='INT LINTEL LIST'!D4 -> 1310 | D69: ='INT LINTEL LIST'!G4 -> 75 x 75 x8.0 EA | E69: ='EXT LINTEL LIST'!D4 -> 1310 | F69: ='EXT LINTEL LIST'!G4 -> 75 x 75 x8.0 EA | G69: ='INT LINTEL LIST'!P4/1000 -> 0.514 | H69: =E69*G69/1000 -> 0.67334 | I69: =G69/0.086 -> 5.976744186
B70: ='INT LINTEL LIST'!A5 -> BED 2 | C70: ='INT LINTEL LIST'!D5 -> 1710 | D70: ='INT LINTEL LIST'!G5 -> 75 x 75 x8.0 EA | E70: ='EXT LINTEL LIST'!D5 -> 1710 | F70: ='EXT LINTEL LIST'!G5 -> 75 x 75 x8.0 EA | G70: ='INT LINTEL LIST'!P5/1000 -> 2.314 | H70: =E70*G70/1000 -> 3.95694 | I70: =G70/0.086 -> 26.90697674
B71: ='INT LINTEL LIST'!A6 -> BED 3 | C71: ='INT LINTEL LIST'!D6 -> 1710 | D71: ='INT LINTEL LIST'!G6 -> 75 x 75 x8.0 EA | E71: ='EXT LINTEL LIST'!D6 -> 1710 | F71: ='EXT LINTEL LIST'!G6 -> 75 x 75 x8.0 EA | G71: ='INT LINTEL LIST'!P6/1000 -> 2.314 | H71: 3.95694 | I71: 26.90697674
B72: ='INT LINTEL LIST'!A7 -> BED 4 | C72: ='INT LINTEL LIST'!D7 -> 2770 | D72: ='INT LINTEL LIST'!G7 -> 125 x 75 x 8.0 UA | E72: ='EXT LINTEL LIST'!D7 -> 2770 | F72: ='EXT LINTEL LIST'!G7 -> 125 x 75 x 8.0 UA | G72: ='INT LINTEL LIST'!P7/1000 -> 2.314 | H72: 6.40978 | I72: 26.90697674
B73: ='INT LINTEL LIST'!A8 -> BED 5 | C73: ='INT LINTEL LIST'!D8 -> 1810 | D73: ='INT LINTEL LIST'!G8 -> 75 x 75 x8.0 EA | E73: ='EXT LINTEL LIST'!D8 -> 1810 | F73: ='EXT LINTEL LIST'!G8 -> 75 x 75 x8.0 EA | G73: ='INT LINTEL LIST'!P8/1000 -> 2.314 | H73: 4.18834 | I73: 26.90697674
B74: ='INT LINTEL LIST'!A9 -> BED 6 | C74: ='INT LINTEL LIST'!D9 -> 1810 | D74: ='INT LINTEL LIST'!G9 -> 75 x 75 x8.0 EA | E74: ='EXT LINTEL LIST'!D9 -> 1810 | F74: ='EXT LINTEL LIST'!G9 -> 75 x 75 x8.0 EA | G74: ='INT LINTEL LIST'!P9/1000 -> 2.314 | H74: 4.18834 | I74: 26.90697674
B75: ='INT LINTEL LIST'!A10 -> ENS 1 | C75: ='INT LINTEL LIST'!D10 -> 1310 | D75: ='INT LINTEL LIST'!G10 -> 75 x 75 x8.0 EA | E75: ='EXT LINTEL LIST'!D10 -> 1310 | F75: ='EXT LINTEL LIST'!G10 -> 75 x 75 x8.0 EA | G75: ='INT LINTEL LIST'!P10/1000 -> 1.457 | H75: 1.90867 | I75: 16.94186047
B76: ='INT LINTEL LIST'!A11 -> ENS 2 | C76: ='INT LINTEL LIST'!D11 -> 910 | D76: ='INT LINTEL LIST'!G11 -> 75 x 75 x8.0 EA | E76: ='EXT LINTEL LIST'!D11 -> 910 | F76: ='EXT LINTEL LIST'!G11 -> 75 x 75 x8.0 EA | G76: ='INT LINTEL LIST'!P11/1000 -> 2.314 | H76: 2.10574 | I76: 26.90697674
B77: ='INT LINTEL LIST'!A12 -> KITCHEN 1 | C77: ='INT LINTEL LIST'!D12 -> 3010 | D77: ='INT LINTEL LIST'!G12 -> 125 x 75 x 8.0 UA | E77: ='EXT LINTEL LIST'!D12 -> 3010 | F77: ='EXT LINTEL LIST'!G12 -> 125 x 75 x 8.0 UA | G77: ='INT LINTEL LIST'!P12/1000 -> 2.143 | H77: 6.45043 | I77: 24.91860465
B78: ='INT LINTEL LIST'!A13 -> L'DRY 1 | C78: ='INT LINTEL LIST'!D13 -> 1510 | D78: ='INT LINTEL LIST'!G13 -> 75 x 75 x8.0 EA | E78: ='EXT LINTEL LIST'!D13 -> 1510 | F78: ='EXT LINTEL LIST'!G13 -> 75 x 75 x8.0 EA | G78: ='INT LINTEL LIST'!P13/1000 -> 2.314 | H78: 3.49414 | I78: 26.90697674
B79: ='INT LINTEL LIST'!A14 -> LIVING / DINING 1 | C79: ='INT LINTEL LIST'!D14 -> 3010 | D79: ='INT LINTEL LIST'!G14 -> 125 x 75 x 8.0 UA | E79: ='EXT LINTEL LIST'!D14 -> 3010 | F79: ='EXT LINTEL LIST'!G14 -> 125 x 75 x 8.0 UA | G79: ='INT LINTEL LIST'!P14/1000 -> 2.143 | H79: 6.45043 | I79: 24.91860465
B80: ='INT LINTEL LIST'!A15 -> LIVING / DINING 1 | C80: ='INT LINTEL LIST'!D15 -> 3110 | D80: ='INT LINTEL LIST'!G15 -> 150 x 90 x 8.0 UA | E80: ='EXT LINTEL LIST'!D15 -> 3110 | F80: ='EXT LINTEL LIST'!G15 -> 150 x 90 x 8.0 UA | G80: ='INT LINTEL LIST'!P15/1000 -> 2.143 | H80: 6.66473 | I80: 24.91860465
B81: ='INT LINTEL LIST'!A16 -> LIVING / DINING 1 | C81: ='INT LINTEL LIST'!D16 -> 3110 | D81: ='INT LINTEL LIST'!G16 -> 150 x 90 x 8.0 UA | E81: ='EXT LINTEL LIST'!D16 -> 3110 | F81: ='EXT LINTEL LIST'!G16 -> 150 x 90 x 8.0 UA | G81: ='INT LINTEL LIST'!P16/1000 -> 2.143 | H81: 6.66473 | I81: 24.91860465
B82: ='INT LINTEL LIST'!A17 -> LIVING 2 | C82: ='INT LINTEL LIST'!D17 -> 3010 | D82: ='INT LINTEL LIST'!G17 -> 125 x 75 x 8.0 UA | E82: ='EXT LINTEL LIST'!D17 -> 3010 | F82: ='EXT LINTEL LIST'!G17 -> 125 x 75 x 8.0 UA | G82: ='INT LINTEL LIST'!P17/1000 -> 2.314 | H82: 6.96514 | I82: 26.90697674
B83: ='INT LINTEL LIST'!A18 -> MAIN BED | C83: ='INT LINTEL LIST'!D18 -> 2410 | D83: ='INT LINTEL LIST'!G18 -> 100 x 75 x 8.0 UA | E83: ='EXT LINTEL LIST'!D18 -> 2410 | F83: ='EXT LINTEL LIST'!G18 -> 100 x 75 x 8.0 UA | G83: ='INT LINTEL LIST'!P18/1000 -> 2.314 | H83: 5.57674 | I83: 26.90697674
B84: ='INT LINTEL LIST'!A19 -> PORCH | C84: ='INT LINTEL LIST'!D19 -> 1270 | D84: ='INT LINTEL LIST'!G19 -> 75 x 75 x8.0 EA | E84: ='EXT LINTEL LIST'!D19 -> 1270 | F84: ='EXT LINTEL LIST'!G19 -> 75 x 75 x8.0 EA | G84: ='INT LINTEL LIST'!P19/1000 -> 2.314 | H84: 2.93878 | I84: 26.90697674
B85: ='INT LINTEL LIST'!A20 -> THEATRE | C85: ='INT LINTEL LIST'!D20 -> 3010 | D85: ='INT LINTEL LIST'!G20 -> 125 x 75 x 8.0 UA | E85: ='EXT LINTEL LIST'!D20 -> 3010 | F85: ='EXT LINTEL LIST'!G20 -> 125 x 75 x 8.0 UA | G85: ='INT LINTEL LIST'!P20/1000 -> 2.314 | H85: 6.96514 | I85: 26.90697674
B86: ='INT LINTEL LIST'!A21 -> 0 | C86: ='INT LINTEL LIST'!D21 -> 0 | D86: ='INT LINTEL LIST'!G21 -> 0 | E86: ='EXT LINTEL LIST'!D21 -> 0 | F86: ='EXT LINTEL LIST'!G21 -> 0 | G86: ='INT LINTEL LIST'!P21/1000 -> 0 | H86: 0 | I86: 0
B87: ='INT LINTEL LIST'!A22 -> 0 | C87: ='INT LINTEL LIST'!D22 -> 0 | D87: ='INT LINTEL LIST'!G22 -> 0 | E87: ='EXT LINTEL LIST'!D22 -> 0 | F87: ='EXT LINTEL LIST'!G22 -> 0 | G87: ='INT LINTEL LIST'!P22/1000 -> 0 | H87: 0 | I87: 0
B88: ='INT LINTEL LIST'!A23 -> 0 | C88: ='INT LINTEL LIST'!D23 -> 0 | D88: ='INT LINTEL LIST'!G23 -> 0 | E88: ='EXT LINTEL LIST'!D23 -> 0 | F88: ='EXT LINTEL LIST'!G23 -> 0 | G88: ='INT LINTEL LIST'!P23/1000 -> 0 | H88: 0 | I88: 0
B89: ='INT LINTEL LIST'!A24 -> 0 | C89: ='INT LINTEL LIST'!D24 -> 0 | D89: ='INT LINTEL LIST'!G24 -> 0 | E89: ='EXT LINTEL LIST'!D24 -> 0 | F89: ='EXT LINTEL LIST'!G24 -> 0 | G89: ='INT LINTEL LIST'!P24/1000 -> 0 | H89: 0 | I89: 0
B90: ='INT LINTEL LIST'!A25 -> 0 | C90: ='INT LINTEL LIST'!D25 -> 0 | D90: ='INT LINTEL LIST'!G25 -> 0 | E90: ='EXT LINTEL LIST'!D25 -> 0 | F90: ='EXT LINTEL LIST'!G25 -> 0 | G90: ='INT LINTEL LIST'!P25/1000 -> 0 | H90: 0 | I90: 0
B93: Cladding | C93: =SUMIF('FINISH - EXT'!C:C,"CLADDING",'FINISH - EXT'!G:G) -> 0
H94: =SUM(H69:H90) -> 79.55835

Sheet SLAB AREAS (hidden)
A1: SLAB AREAS | B1: Column2
A2: Area Name | B2: Area Calculation
A3: ALFRESCO | B3: 24
A4: FLOOR PLAN | B4: 296.601
A5: GARAGE | B5: 57.855
A6: PORCH | B6: 5.157

Sheet FOOTING LENGTHS (hidden)
A1: FOOTING LENGTHS | B1: Column2
A2: Footing Type | B2: Footing Lengths
A3: Garage Door Deduction | B3: 2610
A4: Garage Door Deduction | B4: 4910
A5: Garage Wall 190 | B5: 545
A6: Garage Wall 190 | B6: 600
A7: Garage Wall 190 | B7: 3150
A8: Garage Wall 190 | B8: 5305
A9: Garage Walls | B9: 905
A10: Garage Walls | B10: 1020
A11: Garage Walls | B11: 2570
A12: Garage Walls | B12: 2655
A13: Garage Walls | B13: 5045
A14: Perimeter Walls | B14: 500
A15: Perimeter Walls | B15: 580
A16: Perimeter Walls | B16: 1265
A17: Perimeter Walls | B17: 1300
A18: Perimeter Walls | B18: 1435
A19: Perimeter Walls | B19: 1470
A20: Perimeter Walls | B20: 1900
A21: Perimeter Walls | B21: 3200
A22: Perimeter Walls | B22: 3515
A23: Perimeter Walls | B23: 4245
A24: Perimeter Walls | B24: 7655
A25: Perimeter Walls | B25: 8060
A26: Perimeter Walls | B26: 8305
A27: Perimeter Walls | B27: 10285
A28: Perimeter Walls | B28: 12000
A29: Rear Garage Walls | B29: 5555
A30: Rear Garage Walls | B30: 6564

Sheet PIERS (hidden)
A1: Column1 | B1: Column2 | C1: Column3 | D1: Column4 | E1: Column5 | F1: Column6 | G1: Column7 | H1: Column8 | I1: Column9 | J1: Column10
A3: Preview | B3: Pier Type | C3: Height | D3: Pier Height | E3: Pier Width | F3: Pier Splits | G3: Pier Blocks | H3: Pier Splits SQM | I3: Pier Blocks SQM | J3: Pier Rendered Total Area
B4: Pier 2c Rendered | C4: 2829 | D4: 390 | E4: 490 | F4: 1 | G4: 4 | H4: 0 | I4: 0 | J4: 4.979

Sheet HIGHLIGHER LIST (hidden)
A1: Column1 | B1: Column2
A3: Type | B3: Quantity
A4: T-WALL JUNCTION 30c | B4: 1
A5: T-WALL JUNCTION 30c | B5: 1
A6: T-WALL JUNCTION 30c | B6: 1
A7: T-WALL JUNCTION 30c | B7: 1
A8: T-WALL JUNCTION 30c | B8: 1
A9: T-WALL JUNCTION 30c | B9: 1
A10: T-WALL JUNCTION 30c | B10: 1
A11: T-WALL JUNCTION 30c | B11: 1
A12: T-WALL JUNCTION 30c | B12: 1
B13: 9
A14: WINDOW BEADS 2.4 | B14: 1
A15: WINDOW BEADS 2.4 | B15: 1
A16: WINDOW BEADS 2.4 | B16: 1
A17: WINDOW BEADS 2.4 | B17: 1
A18: WINDOW BEADS 2.4 | B18: 1
A19: WINDOW BEADS 2.4 | B19: 1
A20: WINDOW BEADS 2.4 | B20: 1
A21: WINDOW BEADS 2.4 | B21: 1
A22: WINDOW BEADS 2.4 | B22: 1
A23: WINDOW BEADS 2.4 | B23: 1
A24: WINDOW BEADS 2.4 | B24: 1
A25: WINDOW BEADS 2.4 | B25: 1
A26: WINDOW BEADS 2.4 | B26: 1
A27: WINDOW BEADS 2.4 | B27: 1
A28: WINDOW BEADS 2.4 | B28: 1
A29: WINDOW BEADS 2.4 | B29: 1
A30: WINDOW BEADS 2.4 | B30: 1
A31: WINDOW BEADS 2.4 | B31: 1
A32: WINDOW BEADS 2.4 | B32: 1
A33: WINDOW BEADS 2.4 | B33: 1
A34: WINDOW BEADS 2.4 | B34: 1
B35: 21
B36: 30

Sheet BWK INTERNAL (hidden)
A1: 01 BWK INTERNAL | B1: Column2 | C1: Column3 | D1: Column4 | E1: Column5 | F1: Column6 | G1: Column7 | H1: Column8 | I1: Column9 | J1: Column10
B2: Internal Brick Type | C2: Nominal Width | D2: WALL | E2: WALL Height Int | F2: Area | G2: Top LR Ded | H2: Bot LR Ded | I2: INT Brick Multiplier | J2: Internal Num of Bricks
A3: Ground Floor | B3: FACE BWK | C3: 190 | D3: s90 Footing (1) | E3: 2058 | F3: 4.922 | G3: 0.224 | H3: 0.224 | I3: 18.5 | J3: 91.066
A4: Ground Floor | B4: FACE BWK | C4: 190 | D4: s190 Footing | E4: 2744 | F4: 0.421 | G4: 0.464 | H4: 0.464 | I4: 18.5 | J4: 7.782
A5: Ground Floor | B5: FACE BWK | C5: 190 | D5: s190 Footing | E5: 2744 | F5: 0.814 | G5: 0.267 | H5: 0.267 | I5: 18.5 | J5: 15.058
A6: Ground Floor | B6: FACE BWK | C6: 190 | D6: s190 Footing | E6: 2744 | F6: 1.543 | G6: 0.052 | H6: 0.052 | I6: 18.5 | J6: 28.549
A7: Ground Floor | B7: FACE BWK | C7: 190 | D7: s190 Footing | E7: 3172 | F7: 1.821 | G7: 0 | H7: 0.051 | I7: 18.5 | J7: 33.684
A8: Ground Floor | B8: INT CAV BWK | C8: 230 | D8: c230_Footing | E8: 2572 | F8: 1.2 | G8: 0.043 | H8: 0.043 | I8: 18.5 | J8: 22.2
A9: Ground Floor | B9: INT CAV BWK | C9: 230 | D9: c230_Footing | E9: 2572 | F9: 2.454 | G9: 0.163 | H9: 0.163 | I9: 18.5 | J9: 45.404
A10: Ground Floor | B10: INT CAV BWK | C10: 230 | D10: c230_Footing | E10: 2572 | F10: 3.12 | G10: 0.112 | H10: 0.112 | I10: 18.5 | J10: 57.72
A11: Ground Floor | B11: INT CAV BWK | C11: 230 | D11: c230_Footing | E11: 2572 | F11: 3.312 | G11: 0.119 | H11: 0.119 | I11: 18.5 | J11: 61.272
A12: Ground Floor | B12: INT CAV BWK | C12: 230 | D12: c230_Footing | E12: 2572 | F12: 4.503 | G12: 0.361 | H12: 0.361 | I12: 18.5 | J12: 83.31
A13: Ground Floor | B13: INT CAV BWK | C13: 230 | D13: c230_Footing | E13: 2572 | F13: 10.427 | G13: 1.032 | H13: 1.032 | I13: 18.5 | J13: 192.897
A14: Ground Floor | B14: INT CAV BWK | C14: 230 | D14: c230_Footing | E14: 2572 | F14: 12.931 | G14: 0.713 | H14: 0.713 | I14: 18.5 | J14: 239.221
A15: Ground Floor | B15: INT CAV BWK | C15: 230 | D15: c230_Footing | E15: 2829 | F15: 0.655 | G15: 0 | H15: 0.113 | I15: 18.5 | J15: 12.109
A16: Ground Floor | B16: INT CAV BWK | C16: 230 | D16: c230_Footing | E16: 2829 | F16: 1.426 | G16: 0 | H16: 0.045 | I16: 18.5 | J16: 26.388
A17: Ground Floor | B17: INT CAV BWK | C17: 230 | D17: c230_Footing | E17: 2829 | F17: 3.547 | G17: 0 | H17: 0.312 | I17: 18.5 | J17: 65.625
A18: Ground Floor | B18: INT CAV BWK | C18: 230 | D18: c230_Footing | E18: 2829 | F18: 5.83 | G18: 0 | H18: 0.668 | I18: 18.5 | J18: 107.849
A19: Ground Floor | B19: INT CAV BWK | C19: 230 | D19: c230_Footing | E19: 2829 | F19: 8.778 | G19: 0 | H19: 0.275 | I19: 18.5 | J19: 162.386
A20: Ground Floor | B20: INT CAV BWK | C20: 230 | D20: c230_Footing | E20: 2829 | F20: 10.621 | G20: 0 | H20: 0.894 | I20: 18.5 | J20: 196.483
A21: Ground Floor | B21: INT CAV BWK | C21: 230 | D21: c230_Footing | E21: 2829 | F21: 14.046 | G21: 0 | H21: 0.724 | I21: 18.5 | J21: 259.852
A22: Ground Floor | B22: INT CAV BWK | C22: 230 | D22: c230_Footing | E22: 2944 | F22: 3.659 | G22: 0.114 | H22: 0.114 | I22: 18.5 | J22: 67.692
A23: Ground Floor | B23: INT PARTITION | C23: 90 | D23: s90 Internal | E23: 1050 | F23: 0.571 | G23: 0.056 | H23: 0.056 | I23: 18.5 | J23: 10.558
A24: Ground Floor | B24: INT PARTITION | C24: 90 | D24: s90 Internal | E24: 2572 | F24: 0.446 | G24: 0.133 | H24: 0.133 | I24: 18.5 | J24: 8.258
A25: Ground Floor | B25: INT PARTITION | C25: 90 | D25: s90 Internal | E25: 2572 | F25: 1.44 | G25: 0.052 | H25: 0.052 | I25: 18.5 | J25: 26.64
A26: Ground Floor | B26: INT PARTITION | C26: 90 | D26: s90 Internal | E26: 2572 | F26: 1.44 | G26: 0.052 | H26: 0.052 | I26: 18.5 | J26: 26.64
A27: Ground Floor | B27: INT PARTITION | C27: 90 | D27: s90 Internal | E27: 2572 | F27: 1.44 | G27: 0.052 | H27: 0.052 | I27: 18.5 | J27: 26.64
A28: Ground Floor | B28: INT PARTITION | C28: 90 | D28: s90 Internal | E28: 2572 | F28: 1.517 | G28: 0.142 | H28: 0.142 | I28: 18.5 | J28: 28.057
A29: Ground Floor | B29: INT PARTITION | C29: 90 | D29: s90 Internal | E29: 2572 | F29: 1.656 | G29: 0.059 | H29: 0.059 | I29: 18.5 | J29: 30.636
A30: Ground Floor | B30: INT PARTITION | C30: 90 | D30: s90 Internal | E30: 2572 | F30: 1.896 | G30: 0.068 | H30: 0.068 | I30: 18.5 | J30: 35.076
A31: Ground Floor | B31: INT PARTITION | C31: 90 | D31: s90 Internal | E31: 2572 | F31: 1.992 | G31: 0.071 | H31: 0.071 | I31: 18.5 | J31: 36.852
A32: Ground Floor | B32: INT PARTITION | C32: 90 | D32: s90 Internal | E32: 2572 | F32: 2.016 | G32: 0.072 | H32: 0.072 | I32: 18.5 | J32: 37.296
A33: Ground Floor | B33: INT PARTITION | C33: 90 | D33: s90 Internal | E33: 2572 | F33: 2.016 | G33: 0.072 | H33: 0.072 | I33: 18.5 | J33: 37.296
A34: Ground Floor | B34: INT PARTITION | C34: 90 | D34: s90 Internal | E34: 2572 | F34: 2.423 | G34: 0.15 | H34: 0.15 | I34: 18.5 | J34: 44.826
A35: Ground Floor | B35: INT PARTITION | C35: 90 | D35: s90 Internal | E35: 2572 | F35: 2.759 | G35: 0.162 | H35: 0.162 | I35: 18.5 | J35: 51.042
A36: Ground Floor | B36: INT PARTITION | C36: 90 | D36: s90 Internal | E36: 2572 | F36: 2.975 | G36: 0.169 | H36: 0.169 | I36: 18.5 | J36: 55.029
A37: Ground Floor | B37: INT PARTITION | C37: 90 | D37: s90 Internal | E37: 2572 | F37: 3.216 | G37: 0.115 | H37: 0.115 | I37: 18.5 | J37: 59.496
A38: Ground Floor | B38: INT PARTITION | C38: 90 | D38: s90 Internal | E38: 2572 | F38: 3.768 | G38: 0.135 | H38: 0.135 | I38: 18.5 | J38: 69.708
A39: Ground Floor | B39: INT PARTITION | C39: 90 | D39: s90 Internal | E39: 2572 | F39: 4.56 | G39: 0.163 | H39: 0.163 | I39: 18.5 | J39: 84.36
A40: Ground Floor | B40: INT PARTITION | C40: 90 | D40: s90 Internal | E40: 2572 | F40: 4.727 | G40: 0.232 | H40: 0.232 | I40: 18.5 | J40: 87.45
A41: Ground Floor | B41: INT PARTITION | C41: 90 | D41: s90 Internal | E41: 2572 | F41: 7.752 | G41: 0.278 | H41: 0.278 | I41: 18.5 | J41: 143.412
A42: Ground Floor | B42: INT PARTITION | C42: 90 | D42: s90 Internal | E42: 2572 | F42: 8.044 | G42: 0.359 | H42: 0.359 | I42: 18.5 | J42: 148.811
A43: Ground Floor | B43: INT PARTITION | C43: 90 | D43: s90 Internal | E43: 2572 | F43: 8.044 | G43: 0.359 | H43: 0.359 | I43: 18.5 | J43: 148.811
A44: Ground Floor | B44: INT PARTITION | C44: 90 | D44: s90 Internal | E44: 2572 | F44: 8.736 | G44: 0.313 | H44: 0.313 | I44: 18.5 | J44: 161.616
A45: Ground Floor | B45: INT PARTITION | C45: 90 | D45: s90 Internal | E45: 2572 | F45: 11.496 | G45: 0.412 | H45: 0.412 | I45: 18.5 | J45: 212.676
A46: Ground Floor | B46: INT PARTITION | C46: 90 | D46: s90 Internal | E46: 2572 | F46: 11.784 | G46: 0.422 | H46: 0.422 | I46: 18.5 | J46: 218.004
A47: Ground Floor | B47: INT PARTITION | C47: 90 | D47: s90 Internal | E47: 2572 | F47: 11.832 | G47: 0.424 | H47: 0.424 | I47: 18.5 | J47: 218.892
A48: Ground Floor | B48: INT PARTITION | C48: 90 | D48: s90 Internal | E48: 2572 | F48: 11.864 | G48: 0.566 | H48: 0.566 | I48: 18.5 | J48: 219.478
A49: Ground Floor | B49: INT PARTITION | C49: 90 | D49: s90 Internal | E49: 2572 | F49: 14.352 | G49: 0.514 | H49: 0.514 | I49: 18.5 | J49: 265.512
A50: Ground Floor | B50: INT PARTITION | C50: 90 | D50: s90 Internal | E50: 2572 | F50: 15.672 | G50: 0.562 | H50: 0.562 | I50: 18.5 | J50: 289.932
A51: Ground Floor | B51: INT PARTITION | C51: 90 | D51: s90 Internal | E51: 2829 | F51: 1.108 | G51: 0 | H51: 0.096 | I51: 18.5 | J51: 20.498
A52: Ground Floor | B52: INT PARTITION | C52: 90 | D52: s90 Internal | E52: 2829 | F52: 1.509 | G52: 0 | H52: 0.047 | I52: 18.5 | J52: 27.91
A53: Ground Floor | B53: INT PARTITION | C53: 90 | D53: s90 Internal | E53: 2829 | F53: 1.618 | G53: 0 | H53: 0.051 | I53: 18.5 | J53: 29.94
A54: Ground Floor | B54: INT PARTITION | C54: 90 | D54: s90 Internal | E54: 2829 | F54: 1.865 | G54: 0 | H54: 0.058 | I54: 18.5 | J54: 34.507
A55: Ground Floor | B55: INT PARTITION | C55: 90 | D55: s90 Internal | E55: 2829 | F55: 1.92 | G55: 0 | H55: 0.06 | I55: 18.5 | J55: 35.522
A56: Ground Floor | B56: INT PARTITION | C56: 90 | D56: s90 Internal | E56: 2829 | F56: 2.167 | G56: 0 | H56: 0.068 | I56: 18.5 | J56: 40.089
A57: Ground Floor | B57: INT PARTITION | C57: 90 | D57: s90 Internal | E57: 2829 | F57: 2.99 | G57: 0 | H57: 0.094 | I57: 18.5 | J57: 55.313
A58: Ground Floor | B58: INT PARTITION | C58: 90 | D58: s90 Internal | E58: 2829 | F58: 3.292 | G58: 0 | H58: 0.103 | I58: 18.5 | J58: 60.895
A59: Ground Floor | B59: INT PARTITION | C59: 90 | D59: s90 Internal | E59: 2829 | F59: 4.774 | G59: 0 | H59: 0.161 | I59: 18.5 | J59: 88.327
A60: Ground Floor | B60: INT PARTITION | C60: 90 | D60: s90 Internal | E60: 2829 | F60: 4.883 | G60: 0 | H60: 0.153 | I60: 18.5 | J60: 90.327
A61: Ground Floor | B61: INT PARTITION | C61: 90 | D61: s90 Internal | E61: 2829 | F61: 5.952 | G61: 0 | H61: 0.187 | I61: 18.5 | J61: 110.118
A62: Ground Floor | B62: INT PARTITION | C62: 90 | D62: s90 Internal | E62: 2829 | F62: 7.626 | G62: 0 | H62: 0.239 | I62: 18.5 | J62: 141.072
A63: Ground Floor | B63: INT PARTITION | C63: 90 | D63: s90 Internal | E63: 2829 | F63: 9.156 | G63: 0 | H63: 0.36 | I63: 18.5 | J63: 169.387
A64: Ground Floor | B64: INT PARTITION | C64: 90 | D64: s90 Internal | E64: 2829 | F64: 9.25 | G64: 0 | H64: 0.351 | I64: 18.5 | J64: 171.119
A65: Ground Floor | B65: INT PARTITION | C65: 90 | D65: s90 Internal | E65: 2829 | F65: 9.437 | G65: 0 | H65: 0.43 | I65: 18.5 | J65: 174.582
A66: Ground Floor | B66: INT PARTITION | C66: 90 | D66: s90 Internal | E66: 2829 | F66: 12.536 | G66: 0 | H66: 0.393 | I66: 18.5 | J66: 231.907
A67: Ground Floor | B67: INT PARTITION | C67: 90 | D67: s90 Internal | E67: 2829 | F67: 13.89 | G67: 0 | H67: 0.497 | I67: 18.5 | J67: 256.972
A68: Ground Floor | B68: INT PARTITION | C68: 90 | D68: s90 Internal | E68: 2829 | F68: 17.721 | G68: 0 | H68: 0.567 | I68: 18.5 | J68: 327.845
A69: GF Ceiling | B69: RENDER BWK | C69: 90 | D69: s90 Internal | E69: 292 | F69: 0.331 | G69: 0.237 | H69: 0.237 | I69: 18.5 | J69: 6.127
A70: GF Ceiling | B70: RENDER BWK | C70: 90 | D70: s90 Internal | E70: 292 | F70: 0.931 | G70: 0.667 | H70: 0.667 | I70: 18.5 | J70: 17.228

Sheet INT LINTEL LIST (hidden)
A1: Column1 | B1: Column2 | C1: Column3 | D1: Column4 | E1: Column5 | F1: Column6 | G1: Column7 | H1: Column8 | I1: Column9 | J1: Column10 | K1: Column11 | L1: Column12 | M1: Column13 | N1: Column14 | O1: Column15 | P1: Column16
A3: Related Zone Name | B3: 2D Plan Preview | C3: ID | D3: Window Width | E3: Head | F3: Type | G3: Internal Size | H3: Bearing | I3: Lintel Len. | J3: INT. TYPE | K3: No. OVER | L3: Head LR Area | M3: Sill LR Area | N3: INT WINDOW SILL BRICKS - TYPE | O3: INT SILL BRICKS - AREA | P3: Height
A4: BATH 2 | C4: W09 | D4: 1310 | E4: 2314 | F4: Auto | G4: 75 x 75 x8.0 EA | H4: 200 | I4: 1510 | J4: INT CAV BWK | K4: 0 | L4: 0 | M4: 0 | N4: Rough Block | O4: 0.225 | P4: 514
A5: BED 2 | C5: W04 | D5: 1710 | E5: 2314 | F5: Auto | G5: 75 x 75 x8.0 EA | H5: 200 | I5: 1910 | J5: INT CAV BWK | K5: 2 | L5: 0.397 | M5: 0.147 | N5: 1c Rough Longreach | O5: 0.147 | P5: 2314
A6: BED 3 | C6: W05 | D6: 1710 | E6: 2314 | F6: Auto | G6: 75 x 75 x8.0 EA | H6: 200 | I6: 1910 | J6: INT CAV BWK | K6: 2 | L6: 0.397 | M6: 0.147 | N6: 1c Rough Longreach | O6: 0.147 | P6: 2314
A7: BED 4 | C7: W01 | D7: 2770 | E7: 2314 | F7: Auto | G7: 125 x 75 x 8.0 UA | H7: 300 | I7: 3070 | J7: INT CAV BWK | K7: 0 | L7: 0 | M7: 0.238 | N7: 1c Rough Longreach | O7: 0.238 | P7: 2314
A8: BED 5 | C8: W10 | D8: 1810 | E8: 2314 | F8: Auto | G8: 75 x 75 x8.0 EA | H8: 200 | I8: 2010 | J8: INT CAV BWK | K8: 0 | L8: 0 | M8: 0.156 | N8: 1c Rough Longreach | O8: 0.156 | P8: 2314
A9: BED 6 | C9: W08 | D9: 1810 | E9: 2314 | F9: Auto | G9: 75 x 75 x8.0 EA | H9: 200 | I9: 2010 | J9: INT CAV BWK | K9: 0 | L9: 0 | M9: 0.156 | N9: 1c Rough Longreach | O9: 0.156 | P9: 2314
A10: ENS 1 | C10: W15 | D10: 1310 | E10: 2314 | F10: Auto | G10: 75 x 75 x8.0 EA | H10: 200 | I10: 1510 | J10: INT CAV BWK | K10: 0 | L10: 0 | M10: 0.113 | N10: 1c Rough Longreach | O10: 0.113 | P10: 1457
A11: ENS 2 | C11: W02 | D11: 910 | E11: 2314 | F11: Auto | G11: 75 x 75 x8.0 EA | H11: 200 | I11: 1110 | J11: INT CAV BWK | K11: 2 | L11: 0.26 | M11: 0.078 | N11: 1c Rough Longreach | O11: 0.078 | P11: 2314
A12: KITCHEN 1 | C12: W11 | D12: 3010 | E12: 2143 | F12: Auto | G12: 125 x 75 x 8.0 UA | H12: 300 | I12: 3310 | J12: INT CAV BWK | K12: 0 | L12: 0 | M12: 0.259 | N12: 1c Rough Longreach | O12: 0.259 | P12: 2143
A13: L'DRY 1 | C13: W06 | D13: 1510 | E13: 2314 | F13: Auto | G13: 75 x 75 x8.0 EA | H13: 200 | I13: 1710 | J13: INT CAV BWK | K13: 2 | L13: 0.363 | M13: 0.13 | N13: 1c Rough Longreach | O13: 0.13 | P13: 2314
A14: LIVING / DINING 1 | C14: W12 | D14: 3010 | E14: 2143 | F14: Auto | G14: 125 x 75 x 8.0 UA | H14: 300 | I14: 3310 | J14: INT CAV BWK | K14: 0 | L14: 0 | M14: 0.259 | N14: 1c Rough Longreach | O14: 0.259 | P14: 2143
A15: LIVING / DINING 1 | C15: W14 | D15: 3110 | E15: 2143 | F15: Auto | G15: 150 x 90 x 8.0 UA | H15: 300 | I15: 3410 | J15: INT CAV BWK | K15: 0 | L15: 0 | M15: 0.267 | N15: 1c Rough Longreach | O15: 0.267 | P15: 2143
A16: LIVING / DINING 1 | C16: W13 | D16: 3110 | E16: 2143 | F16: Auto | G16: 150 x 90 x 8.0 UA | H16: 300 | I16: 3410 | J16: INT CAV BWK | K16: 0 | L16: 0 | M16: 0.267 | N16: 1c Rough Longreach | O16: 0.267 | P16: 2143
A17: LIVING 2 | C17: W07 | D17: 3010 | E17: 2314 | F17: Auto | G17: 125 x 75 x 8.0 UA | H17: 300 | I17: 3310 | J17: INT CAV BWK | K17: 2 | L17: 0.621 | M17: 0.259 | N17: 1c Rough Longreach | O17: 0.259 | P17: 2314
A18: MAIN BED | C18: W16 | D18: 2410 | E18: 2314 | F18: Auto | G18: 100 x 75 x 8.0 UA | H18: 270 | I18: 2680 | J18: INT CAV BWK | K18: 2 | L18: 0.518 | M18: 0.207 | N18: 1c Rough Longreach | O18: 0.207 | P18: 2314
A19: PORCH | C19: D14 | D19: 1270 | E19: 2314 | F19: Auto | G19: 75 x 75 x8.0 EA | H19: 200 | I19: 1470 | J19: INT CAV BWK | K19: 0 | L19: 0 | M19: 0.109 | N19: 1c Rough Longreach | O19: 0.109 | P19: 2314
A20: THEATRE | C20: W03 | D20: 3010 | E20: 2314 | F20: Auto | G20: 125 x 75 x 8.0 UA | H20: 300 | I20: 3310 | J20: INT CAV BWK | K20: 2 | L20: 0.621 | M20: 0.259 | N20: 1c Rough Longreach | O20: 0.259 | P20: 2314

Sheet FINISH - EXT (hidden)
A1: 01 PLASTER EXTERNAL | B1: Column2 | C1: Column3 | D1: Column4 | E1: Column5 | F1: Column6 | G1: Column7 | H1: Column8 | I1: Column9 | J1: Column10
B2: Type | C2: External Plaster Type | D2: Width | E2: Profile Name | F2: Ext Skin Ht | G2: Ext Plaster Area | H2: EXTERNAL LINTELS BRICK TYPE | I2: External Plaster Deductions | J2: Net Surface Area on the Outside Face
A3: Ground Floor | B3: Column | C3: Pier 2c Rendered | D3: --- | E3: --- | F3: --- | G3: --- | H3: --- | I3: --- | J3: ---
A4: Ground Floor | B4: Door | C4: --- | D4: --- | E4: --- | F4: 2407 | G4: --- | H4: RENDER BWK | I4: 7.159 | J4: ---
A5: Ground Floor | B5: Door | C5: --- | D5: --- | E5: --- | F5: 2407 | G5: --- | H5: RENDER BWK | I5: 13.468 | J5: ---
A6: Ground Floor | B6: Wall | C6: --- | D6: --- | E6: --- | F6: 2400 | G6: --- | H6: --- | I6: --- | J6: 0
A7: Ground Floor | B7: Wall | C7: --- | D7: --- | E7: --- | F7: 2400 | G7: --- | H7: --- | I7: --- | J7: 0
A8: Ground Floor | B8: Wall | C8: --- | D8: --- | E8: --- | F8: 2572 | G8: --- | H8: --- | I8: --- | J8: 0.137
A9: Ground Floor | B9: Wall | C9: --- | D9: --- | E9: --- | F9: 2572 | G9: --- | H9: --- | I9: --- | J9: 0.327
A10: Ground Floor | B10: Wall | C10: --- | D10: --- | E10: --- | F10: 2572 | G10: --- | H10: --- | I10: --- | J10: 0.327
A11: Ground Floor | B11: Wall | C11: --- | D11: --- | E11: --- | F11: 2915 | G11: --- | H11: --- | I11: --- | J11: 0.849
A12: Ground Floor | B12: Wall | C12: --- | D12: --- | E12: --- | F12: 2915 | G12: --- | H12: --- | I12: --- | J12: 1.104
A13: Ground Floor | B13: Wall | C13: --- | D13: --- | E13: --- | F13: 2915 | G13: --- | H13: --- | I13: --- | J13: 1.307
A14: Ground Floor | B14: Wall | C14: --- | D14: --- | E14: --- | F14: 2915 | G14: --- | H14: --- | I14: --- | J14: 1.443
A15: Ground Floor | B15: Wall | C15: --- | D15: --- | E15: --- | F15: 3425 | G15: --- | H15: --- | I15: --- | J15: 0.445
A16: Ground Floor | B16: Wall | C16: --- | D16: --- | E16: --- | F16: 3425 | G16: --- | H16: --- | I16: --- | J16: 1.452
A17: Ground Floor | B17: Wall | C17: --- | D17: --- | E17: --- | F17: 3425 | G17: --- | H17: --- | I17: --- | J17: 2.914
A18: Ground Floor | B18: Wall | C18: --- | D18: --- | E18: --- | F18: 3425 | G18: --- | H18: --- | I18: --- | J18: 3.288
A19: Ground Floor | B19: Wall | C19: <Undefined> | D19: 90 | E19: s90 Internal | F19: 2572 | G19: <Undefined> | H19: --- | I19: --- | J19: 2.902
A20: Ground Floor | B20: Wall | C20: <Undefined> | D20: 90 | E20: s90 Internal | F20: 2572 | G20: <Undefined> | H20: --- | I20: --- | J20: 9.631
A21: Ground Floor | B21: Wall | C21: FACE BWK | D21: 90 | E21: s90 Footing (1) | F21: 2744 | G21: 0 | H21: --- | I21: --- | J21: 2.641
A22: Ground Floor | B22: Wall | C22: FACE BWK | D22: 90 | E22: s90 Footing (1) | F22: 2744 | G22: 0 | H22: --- | I22: --- | J22: 3.158
A23: Ground Floor | B23: Wall | C23: FACE BWK | D23: 90 | E23: s90 Footing (1) | F23: 2744 | G23: 0 | H23: --- | I23: --- | J23: 7.53
A24: Ground Floor | B24: Wall | C24: FACE BWK | D24: 90 | E24: s90 Footing (1) | F24: 2744 | G24: 0 | H24: --- | I24: --- | J24: 15.005
A25: Ground Floor | B25: Wall | C25: FACE BWK | D25: 90 | E25: s90 Footing (1) | F25: 2914 | G25: 0 | H25: --- | I25: --- | J25: 20.482
A26: Ground Floor | B26: Wall | C26: FACE BWK | D26: 90 | E26: s90 Footing (1) | F26: 3001 | G26: 0 | H26: --- | I26: --- | J26: 16.058
A27: Ground Floor | B27: Wall | C27: FACE BWK | D27: 100 | E27: s90 Footing (1) | F27: 2744 | G27: 0 | H27: --- | I27: --- | J27: 0.796
A28: Ground Floor | B28: Wall | C28: FACE BWK | D28: 100 | E28: s90 Footing (1) | F28: 2744 | G28: 0 | H28: --- | I28: --- | J28: 0.796
A29: Ground Floor | B29: Wall | C29: FACE BWK | D29: 100 | E29: s90 Footing (1) | F29: 2744 | G29: 0 | H29: --- | I29: --- | J29: 0.796
A30: Ground Floor | B30: Wall | C30: FACE BWK | D30: 100 | E30: s90 Footing (1) | F30: 2744 | G30: 0 | H30: --- | I30: --- | J30: 0.796
A31: Ground Floor | B31: Wall | C31: FACE BWK | D31: 100 | E31: s90 Footing (1) | F31: 2744 | G31: 0 | H31: --- | I31: --- | J31: 0.796
A32: Ground Floor | B32: Wall | C32: FACE BWK | D32: 100 | E32: s90 Footing (1) | F32: 2744 | G32: 0 | H32: --- | I32: --- | J32: 0.796
A33: Ground Floor | B33: Wall | C33: FACE BWK | D33: 100 | E33: s90 Footing (1) | F33: 2744 | G33: 0 | H33: --- | I33: --- | J33: 0.796
A34: Ground Floor | B34: Wall | C34: FACE BWK | D34: 100 | E34: s90 Footing (1) | F34: 2744 | G34: 0 | H34: --- | I34: --- | J34: 1.07
A35: Ground Floor | B35: Wall | C35: FACE BWK | D35: 100 | E35: s90 Footing (1) | F35: 2744 | G35: 0 | H35: --- | I35: --- | J35: 1.345
A36: Ground Floor | B36: Wall | C36: FACE BWK | D36: 100 | E36: s90 Footing (1) | F36: 2744 | G36: 0 | H36: --- | I36: --- | J36: 1.893
A37: Ground Floor | B37: Wall | C37: FACE BWK | D37: 190 | E37: s90 Footing (1) | F37: 2058 | G37: 0 | H37: --- | I37: --- | J37: 5.849
A38: Ground Floor | B38: Wall | C38: FACE BWK | D38: 230 | E38: c230_Footing | F38: 2487 | G38: 0 | H38: --- | I38: --- | J38: 1.129
A39: Ground Floor | B39: Wall | C39: FACE BWK | D39: 230 | E39: c230_Footing | F39: 2487 | G39: 0 | H39: --- | I39: --- | J39: 4.134
A40: Ground Floor | B40: Wall | C40: FACE BWK | D40: 230 | E40: c230_Footing | F40: 2487 | G40: 0 | H40: --- | I40: --- | J40: 6.768
A41: Ground Floor | B41: Wall | C41: FACE BWK | D41: 230 | E41: c230_Footing | F41: 2487 | G41: 0 | H41: --- | I41: --- | J41: 16.955
A42: Ground Floor | B42: Wall | C42: FACE BWK | D42: 230 | E42: c230_Footing | F42: 2487 | G42: 0 | H42: --- | I42: --- | J42: 17.081
A43: Ground Floor | B43: Wall | C43: FACE BWK | D43: 230 | E43: c230_Footing | F43: 2744 | G43: 0 | H43: --- | I43: --- | J43: 15.288
A44: Ground Floor | B44: Wall | C44: FACE BWK | D44: 230 | E44: c230_Footing | F44: 2744 | G44: 0 | H44: --- | I44: --- | J44: 17.488
A45: Ground Floor | B45: Wall | C45: FACE BWK | D45: 230 | E45: c230_Footing | F45: 2859 | G45: 0 | H45: --- | I45: --- | J45: 4.71
A46: Ground Floor | B46: Wall | C46: FACE BWK | D46: 230 | E46: c230_Footing | F46: 3001 | G46: 0 | H46: --- | I46: --- | J46: 8.408
A47: Ground Floor | B47: Wall | C47: INT PARTITION | D47: 90 | E47: s90 Internal | F47: 1050 | G47: 0.683 | H47: --- | I47: --- | J47: 0.683
A48: Ground Floor | B48: Wall | C48: INT PARTITION | D48: 90 | E48: s90 Internal | F48: 2572 | G48: 1.312 | H48: --- | I48: --- | J48: 1.312
A49: Ground Floor | B49: Wall | C49: INT PARTITION | D49: 90 | E49: s90 Internal | F49: 2572 | G49: 1.312 | H49: --- | I49: --- | J49: 1.543
A50: Ground Floor | B50: Wall | C50: INT PARTITION | D50: 90 | E50: s90 Internal | F50: 2572 | G50: 1.543 | H50: --- | I50: --- | J50: 1.543
A51: Ground Floor | B51: Wall | C51: INT PARTITION | D51: 90 | E51: s90 Internal | F51: 2572 | G51: 1.543 | H51: --- | I51: --- | J51: 1.543
A52: Ground Floor | B52: Wall | C52: INT PARTITION | D52: 90 | E52: s90 Internal | F52: 2572 | G52: 1.775 | H52: --- | I52: --- | J52: 1.659
A53: Ground Floor | B53: Wall | C53: INT PARTITION | D53: 90 | E53: s90 Internal | F53: 2572 | G53: 1.8 | H53: --- | I53: --- | J53: 1.916
A54: Ground Floor | B54: Wall | C54: INT PARTITION | D54: 90 | E54: s90 Internal | F54: 2572 | G54: 1.929 | H54: --- | I54: --- | J54: 2.045
A55: Ground Floor | B55: Wall | C55: INT PARTITION | D55: 90 | E55: s90 Internal | F55: 2572 | G55: 1.929 | H55: --- | I55: --- | J55: 2.045
A56: Ground Floor | B56: Wall | C56: INT PARTITION | D56: 90 | E56: s90 Internal | F56: 2572 | G56: 3.446 | H56: --- | I56: --- | J56: 3.446
A57: Ground Floor | B57: Wall | C57: INT PARTITION | D57: 90 | E57: s90 Internal | F57: 2572 | G57: 3.807 | H57: --- | I57: --- | J57: 3.807
A58: Ground Floor | B58: Wall | C58: INT PARTITION | D58: 90 | E58: s90 Internal | F58: 2572 | G58: 4.244 | H58: --- | I58: --- | J58: 1.8
A59: Ground Floor | B59: Wall | C59: INT PARTITION | D59: 90 | E59: s90 Internal | F59: 2572 | G59: 4.244 | H59: --- | I59: --- | J59: 2.491
A60: Ground Floor | B60: Wall | C60: INT PARTITION | D60: 90 | E60: s90 Internal | F60: 2572 | G60: 4.45 | H60: --- | I60: --- | J60: 0.944
A61: Ground Floor | B61: Wall | C61: INT PARTITION | D61: 90 | E61: s90 Internal | F61: 2572 | G61: 4.604 | H61: --- | I61: --- | J61: 3.082
A62: Ground Floor | B62: Wall | C62: INT PARTITION | D62: 90 | E62: s90 Internal | F62: 2572 | G62: 4.655 | H62: --- | I62: --- | J62: 4.887
A63: Ground Floor | B63: Wall | C63: INT PARTITION | D63: 90 | E63: s90 Internal | F63: 2572 | G63: 4.835 | H63: --- | I63: --- | J63: 2.85
A64: Ground Floor | B64: Wall | C64: INT PARTITION | D64: 90 | E64: s90 Internal | F64: 2572 | G64: 6.713 | H64: --- | I64: --- | J64: 4.96
A65: Ground Floor | B65: Wall | C65: INT PARTITION | D65: 90 | E65: s90 Internal | F65: 2572 | G65: 7.716 | H65: --- | I65: --- | J65: 7.832
A66: Ground Floor | B66: Wall | C66: INT PARTITION | D66: 90 | E66: s90 Internal | F66: 2572 | G66: 9.594 | H66: --- | I66: --- | J66: 9.478
A67: Ground Floor | B67: Wall | C67: INT PARTITION | D67: 90 | E67: s90 Internal | F67: 2572 | G67: 10.134 | H67: --- | I67: --- | J67: 8.17
A68: Ground Floor | B68: Wall | C68: INT PARTITION | D68: 90 | E68: s90 Internal | F68: 2572 | G68: 10.134 | H68: --- | I68: --- | J68: 8.17
A69: Ground Floor | B69: Wall | C69: INT PARTITION | D69: 90 | E69: s90 Internal | F69: 2572 | G69: 12.088 | H69: --- | I69: --- | J69: 12.088
A70: Ground Floor | B70: Wall | C70: INT PARTITION | D70: 90 | E70: s90 Internal | F70: 2572 | G70: 12.32 | H70: --- | I70: --- | J70: 12.088
A71: Ground Floor | B71: Wall | C71: INT PARTITION | D71: 90 | E71: s90 Internal | F71: 2572 | G71: 12.629 | H71: --- | I71: --- | J71: 12.629
A72: Ground Floor | B72: Wall | C72: INT PARTITION | D72: 90 | E72: s90 Internal | F72: 2572 | G72: 15.381 | H72: --- | I72: --- | J72: 15.381
A73: Ground Floor | B73: Wall | C73: INT PARTITION | D73: 90 | E73: s90 Internal | F73: 2572 | G73: 16.795 | H73: --- | I73: --- | J73: 16.795
A74: Ground Floor | B74: Wall | C74: INT PARTITION | D74: 90 | E74: s90 Internal | F74: 2572 | G74: 16.924 | H74: --- | I74: --- | J74: 12.764
A75: Ground Floor | B75: Wall | C75: INT PARTITION | D75: 90 | E75: s90 Internal | F75: 2829 | G75: 1.556 | H75: --- | I75: --- | J75: 1.556
A76: Ground Floor | B76: Wall | C76: INT PARTITION | D76: 90 | E76: s90 Internal | F76: 2829 | G76: 1.669 | H76: --- | I76: --- | J76: 1.796
A77: Ground Floor | B77: Wall | C77: INT PARTITION | D77: 90 | E77: s90 Internal | F77: 2829 | G77: 1.924 | H77: --- | I77: --- | J77: 1.924
A78: Ground Floor | B78: Wall | C78: INT PARTITION | D78: 90 | E78: s90 Internal | F78: 2829 | G78: 1.98 | H78: --- | I78: --- | J78: 1.98
A79: Ground Floor | B79: Wall | C79: INT PARTITION | D79: 90 | E79: s90 Internal | F79: 2829 | G79: 2.235 | H79: --- | I79: --- | J79: 2.235
A80: Ground Floor | B80: Wall | C80: INT PARTITION | D80: 90 | E80: s90 Internal | F80: 2829 | G80: 2.829 | H80: --- | I80: --- | J80: 2.829
A81: Ground Floor | B81: Wall | C81: INT PARTITION | D81: 90 | E81: s90 Internal | F81: 2829 | G81: 3.168 | H81: --- | I81: --- | J81: 1.204
A82: Ground Floor | B82: Wall | C82: INT PARTITION | D82: 90 | E82: s90 Internal | F82: 2829 | G82: 3.395 | H82: --- | I82: --- | J82: 3.395
A83: Ground Floor | B83: Wall | C83: INT PARTITION | D83: 90 | E83: s90 Internal | F83: 2829 | G83: 5.036 | H83: --- | I83: --- | J83: 4.704
A84: Ground Floor | B84: Wall | C84: INT PARTITION | D84: 90 | E84: s90 Internal | F84: 2829 | G84: 5.036 | H84: --- | I84: --- | J84: 5.036
A85: Ground Floor | B85: Wall | C85: INT PARTITION | D85: 90 | E85: s90 Internal | F85: 2829 | G85: 6.139 | H85: --- | I85: --- | J85: 6.139
A86: Ground Floor | B86: Wall | C86: INT PARTITION | D86: 90 | E86: s90 Internal | F86: 2829 | G86: 7.61 | H86: --- | I86: --- | J86: 7.737
A87: Ground Floor | B87: Wall | C87: INT PARTITION | D87: 90 | E87: s90 Internal | F87: 2829 | G87: 11.288 | H87: --- | I87: --- | J87: 9.369
A88: Ground Floor | B88: Wall | C88: INT PARTITION | D88: 90 | E88: s90 Internal | F88: 2829 | G88: 11.599 | H88: --- | I88: --- | J88: 9.007
A89: Ground Floor | B89: Wall | C89: INT PARTITION | D89: 90 | E89: s90 Internal | F89: 2829 | G89: 13.183 | H89: --- | I89: --- | J89: 12.646
A90: Ground Floor | B90: Wall | C90: INT PARTITION | D90: 90 | E90: s90 Internal | F90: 2829 | G90: 13.89 | H90: --- | I90: --- | J90: 10.277
A91: Ground Floor | B91: Wall | C91: INT PARTITION | D91: 90 | E91: s90 Internal | F91: 2829 | G91: 16.606 | H91: --- | I91: --- | J91: 14.515
A92: Ground Floor | B92: Wall | C92: INT PARTITION | D92: 90 | E92: s90 Internal | F92: 2829 | G92: 17.738 | H92: --- | I92: --- | J92: 17.51
A93: Ground Floor | B93: Wall | C93: RENDER BWK | D93: 190 | E93: s190 Footing | F93: 2744 | G93: 1.646 | H93: --- | I93: --- | J93: 1.459
A94: Ground Floor | B94: Wall | C94: RENDER BWK | D94: 190 | E94: s190 Footing | F94: 2744 | G94: 8.506 | H94: --- | I94: --- | J94: 2.29
A95: Ground Floor | B95: Wall | C95: RENDER BWK | D95: 190 | E95: s190 Footing | F95: 2744 | G95: 14.818 | H95: --- | I95: --- | J95: 2.433
A96: Ground Floor | B96: Wall | C96: RENDER BWK | D96: 190 | E96: s190 Footing | F96: 3172 | G96: 1.871 | H96: --- | I96: --- | J96: 1.721
A97: Ground Floor | B97: Wall | C97: RENDER BWK | D97: 230 | E97: c230_Footing | F97: 2487 | G97: 3.432 | H97: --- | I97: --- | J97: 3.729
A98: Ground Floor | B98: Wall | C98: RENDER BWK | D98: 230 | E98: c230_Footing | F98: 2487 | G98: 4.725 | H98: --- | I98: --- | J98: 3.736
A99: Ground Floor | B99: Wall | C99: RENDER BWK | D99: 230 | E99: c230_Footing | F99: 2744 | G99: 3.595 | H99: --- | I99: --- | J99: 1.428
A100: Ground Floor | B100: Wall | C100: RENDER BWK | D100: 230 | E100: c230_Footing | F100: 3001 | G100: 1.561 | H100: --- | I100: --- | J100: 1.714
A101: Ground Floor | B101: Wall | C101: RENDER BWK | D101: 230 | E101: c230_Footing | F101: 3001 | G101: 9.603 | H101: --- | I101: --- | J101: 10.031
A102: Ground Floor | B102: Wall | C102: RENDER BWK | D102: 230 | E102: c230_Footing | F102: 3001 | G102: 10.894 | H102: --- | I102: --- | J102: 4.889
A103: GF Ceiling | B103: Wall | C103: --- | D103: --- | E103: --- | F103: 543 | G103: --- | H103: --- | I103: --- | J103: 0.583
A104: GF Ceiling | B104: Wall | C104: <Undefined> | D104: 90 | E104: s90 Internal | F104: 292 | G104: <Undefined> | H104: --- | I104: --- | J104: 0.947
A105: GF Ceiling | B105: Wall | C105: <Undefined> | D105: 90 | E105: s90 Internal | F105: 292 | G105: <Undefined> | H105: --- | I105: --- | J105: 2.582

Sheet FINISH - INT (hidden)
A1: 01 FINISH - INTERNAL | B1: Column2 | C1: Column3 | D1: Column4 | E1: Column5 | F1: Column6 | G1: Column7 | H1: Column8 | I1: Column9 | J1: Column10
B2: Type | C2: Internal Plaster Type | D2: Width | E2: Profile Name | F2: Int Skin Ht. | G2: Int Plaster Area | H2: INTERNAL LINTELS BRICK TYPE | I2: Internal Plaster Deductions | J2: Net Surface Area on the Inside Face
A3: Ground Floor | B3: Door | C3: --- | D3: --- | E3: --- | F3: --- | G3: --- | H3: FACE BWK | I3: 7.159 | J3: ---
A4: Ground Floor | B4: Door | C4: --- | D4: --- | E4: --- | F4: --- | G4: --- | H4: FACE BWK | I4: 13.468 | J4: ---
A5: Ground Floor | B5: Wall | C5: --- | D5: --- | E5: --- | F5: --- | G5: --- | H5: NOT CALCULATED | I5: --- | J5: 0
A6: Ground Floor | B6: Wall | C6: --- | D6: --- | E6: --- | F6: --- | G6: --- | H6: NOT CALCULATED | I6: --- | J6: 0
A7: Ground Floor | B7: Wall | C7: --- | D7: --- | E7: --- | F7: --- | G7: --- | H7: NOT CALCULATED | I7: --- | J7: 0.137
A8: Ground Floor | B8: Wall | C8: --- | D8: --- | E8: --- | F8: --- | G8: --- | H8: NOT CALCULATED | I8: --- | J8: 0.327
A9: Ground Floor | B9: Wall | C9: --- | D9: --- | E9: --- | F9: --- | G9: --- | H9: NOT CALCULATED | I9: --- | J9: 0.327
A10: Ground Floor | B10: Wall | C10: --- | D10: --- | E10: --- | F10: --- | G10: --- | H10: NOT CALCULATED | I10: --- | J10: 0.445
A11: Ground Floor | B11: Wall | C11: --- | D11: --- | E11: --- | F11: --- | G11: --- | H11: NOT CALCULATED | I11: --- | J11: 0.849
A12: Ground Floor | B12: Wall | C12: --- | D12: --- | E12: --- | F12: --- | G12: --- | H12: NOT CALCULATED | I12: --- | J12: 1.104
A13: Ground Floor | B13: Wall | C13: --- | D13: --- | E13: --- | F13: --- | G13: --- | H13: NOT CALCULATED | I13: --- | J13: 1.307
A14: Ground Floor | B14: Wall | C14: --- | D14: --- | E14: --- | F14: --- | G14: --- | H14: NOT CALCULATED | I14: --- | J14: 1.443
A15: Ground Floor | B15: Wall | C15: --- | D15: --- | E15: --- | F15: --- | G15: --- | H15: NOT CALCULATED | I15: --- | J15: 1.452
A16: Ground Floor | B16: Wall | C16: --- | D16: --- | E16: --- | F16: --- | G16: --- | H16: NOT CALCULATED | I16: --- | J16: 2.914
A17: Ground Floor | B17: Wall | C17: --- | D17: --- | E17: --- | F17: --- | G17: --- | H17: NOT CALCULATED | I17: --- | J17: 3.288
A18: Ground Floor | B18: Wall | C18: <Undefined> | D18: 90 | E18: s90 Internal | F18: 2572 | G18: <Undefined> | H18: NOT CALCULATED | I18: --- | J18: 2.902
A19: Ground Floor | B19: Wall | C19: <Undefined> | D19: 90 | E19: s90 Internal | F19: 2572 | G19: <Undefined> | H19: NOT CALCULATED | I19: --- | J19: 9.631
A20: Ground Floor | B20: Wall | C20: FACE BWK | D20: 90 | E20: s90 Footing (1) | F20: 2744 | G20: 0 | H20: NOT CALCULATED | I20: --- | J20: 2.367
A21: Ground Floor | B21: Wall | C21: FACE BWK | D21: 90 | E21: s90 Footing (1) | F21: 2744 | G21: 0 | H21: NOT CALCULATED | I21: --- | J21: 2.969
A22: Ground Floor | B22: Wall | C22: FACE BWK | D22: 90 | E22: s90 Footing (1) | F22: 2744 | G22: 0 | H22: NOT CALCULATED | I22: --- | J22: 7.406
A23: Ground Floor | B23: Wall | C23: FACE BWK | D23: 90 | E23: s90 Footing (1) | F23: 2744 | G23: 0 | H23: NOT CALCULATED | I23: --- | J23: 14.881
A24: Ground Floor | B24: Wall | C24: FACE BWK | D24: 90 | E24: s90 Footing (1) | F24: 3001 | G24: 0 | H24: NOT CALCULATED | I24: --- | J24: 15.802
A25: Ground Floor | B25: Wall | C25: FACE BWK | D25: 100 | E25: s90 Footing (1) | F25: 2744 | G25: 0 | H25: NOT CALCULATED | I25: --- | J25: 0.796
A26: Ground Floor | B26: Wall | C26: FACE BWK | D26: 100 | E26: s90 Footing (1) | F26: 2744 | G26: 0 | H26: NOT CALCULATED | I26: --- | J26: 0.796
A27: Ground Floor | B27: Wall | C27: FACE BWK | D27: 100 | E27: s90 Footing (1) | F27: 2744 | G27: 0 | H27: NOT CALCULATED | I27: --- | J27: 0.796
A28: Ground Floor | B28: Wall | C28: FACE BWK | D28: 100 | E28: s90 Footing (1) | F28: 2744 | G28: 0 | H28: NOT CALCULATED | I28: --- | J28: 0.796
A29: Ground Floor | B29: Wall | C29: FACE BWK | D29: 100 | E29: s90 Footing (1) | F29: 2744 | G29: 0 | H29: NOT CALCULATED | I29: --- | J29: 0.796
A30: Ground Floor | B30: Wall | C30: FACE BWK | D30: 100 | E30: s90 Footing (1) | F30: 2744 | G30: 0 | H30: NOT CALCULATED | I30: --- | J30: 0.796
A31: Ground Floor | B31: Wall | C31: FACE BWK | D31: 100 | E31: s90 Footing (1) | F31: 2744 | G31: 0 | H31: NOT CALCULATED | I31: --- | J31: 0.796
A32: Ground Floor | B32: Wall | C32: FACE BWK | D32: 100 | E32: s90 Footing (1) | F32: 2744 | G32: 0 | H32: NOT CALCULATED | I32: --- | J32: 1.07
A33: Ground Floor | B33: Wall | C33: FACE BWK | D33: 100 | E33: s90 Footing (1) | F33: 2744 | G33: 0 | H33: NOT CALCULATED | I33: --- | J33: 1.345
A34: Ground Floor | B34: Wall | C34: FACE BWK | D34: 100 | E34: s90 Footing (1) | F34: 2744 | G34: 0 | H34: NOT CALCULATED | I34: --- | J34: 1.893
A35: Ground Floor | B35: Wall | C35: FACE BWK | D35: 190 | E35: s90 Footing (1) | F35: 2058 | G35: 0 | H35: NOT CALCULATED | I35: --- | J35: 5.905
A36: Ground Floor | B36: Wall | C36: FACE BWK | D36: 190 | E36: s190 Footing | F36: 2744 | G36: 0 | H36: NOT CALCULATED | I36: --- | J36: 1.459
A37: Ground Floor | B37: Wall | C37: FACE BWK | D37: 190 | E37: s190 Footing | F37: 2744 | G37: 0 | H37: NOT CALCULATED | I37: --- | J37: 1.912
A38: Ground Floor | B38: Wall | C38: FACE BWK | D38: 190 | E38: s190 Footing | F38: 2744 | G38: 0 | H38: NOT CALCULATED | I38: --- | J38: 2.167
A39: Ground Floor | B39: Wall | C39: FACE BWK | D39: 190 | E39: s190 Footing | F39: 3172 | G39: 0 | H39: NOT CALCULATED | I39: --- | J39: 1.339
A40: Ground Floor | B40: Wall | C40: INT CAV BWK | D40: 230 | E40: c230_Footing | F40: 2572 | G40: 1.286 | H40: NOT CALCULATED | I40: --- | J40: 1.139
A41: Ground Floor | B41: Wall | C41: INT CAV BWK | D41: 230 | E41: c230_Footing | F41: 2572 | G41: 2.958 | H41: NOT CALCULATED | I41: --- | J41: 3.397
A42: Ground Floor | B42: Wall | C42: INT CAV BWK | D42: 230 | E42: c230_Footing | F42: 2572 | G42: 3.344 | H42: NOT CALCULATED | I42: --- | J42: 4.186
A43: Ground Floor | B43: Wall | C43: INT CAV BWK | D43: 230 | E43: c230_Footing | F43: 2572 | G43: 4.887 | H43: NOT CALCULATED | I43: --- | J43: 3.729
A44: Ground Floor | B44: Wall | C44: INT CAV BWK | D44: 230 | E44: c230_Footing | F44: 2572 | G44: 11.034 | H44: NOT CALCULATED | I44: --- | J44: 7.14
A45: Ground Floor | B45: Wall | C45: INT CAV BWK | D45: 230 | E45: c230_Footing | F45: 2572 | G45: 20.139 | H45: NOT CALCULATED | I45: --- | J45: 16.662
A46: Ground Floor | B46: Wall | C46: INT CAV BWK | D46: 230 | E46: c230_Footing | F46: 2572 | G46: 30.864 | H46: NOT CALCULATED | I46: --- | J46: 17.369
A47: Ground Floor | B47: Wall | C47: INT CAV BWK | D47: 230 | E47: c230_Footing | F47: 2829 | G47: 1.811 | H47: NOT CALCULATED | I47: --- | J47: 1.742
A48: Ground Floor | B48: Wall | C48: INT CAV BWK | D48: 230 | E48: c230_Footing | F48: 2829 | G48: 4.611 | H48: NOT CALCULATED | I48: --- | J48: 2.148
A49: Ground Floor | B49: Wall | C49: INT CAV BWK | D49: 230 | E49: c230_Footing | F49: 2829 | G49: 9.053 | H49: NOT CALCULATED | I49: --- | J49: 10.266
A50: Ground Floor | B50: Wall | C50: INT CAV BWK | D50: 230 | E50: c230_Footing | F50: 2829 | G50: 9.619 | H50: NOT CALCULATED | I50: --- | J50: 4.485
A51: Ground Floor | B51: Wall | C51: INT CAV BWK | D51: 230 | E51: c230_Footing | F51: 2829 | G51: 21.331 | H51: NOT CALCULATED | I51: --- | J51: 8.908
A52: Ground Floor | B52: Wall | C52: INT CAV BWK | D52: 230 | E52: c230_Footing | F52: 2829 | G52: 23.17 | H52: NOT CALCULATED | I52: --- | J52: 17.204
A53: Ground Floor | B53: Wall | C53: INT CAV BWK | D53: 230 | E53: c230_Footing | F53: 2829 | G53: 28.771 | H53: NOT CALCULATED | I53: --- | J53: 15.264
A54: Ground Floor | B54: Wall | C54: INT CAV BWK | D54: 230 | E54: c230_Footing | F54: 2944 | G54: 4.563 | H54: NOT CALCULATED | I54: --- | J54: 5.112
A55: Ground Floor | B55: Wall | C55: INT PARTITION | D55: 90 | E55: s90 Internal | F55: 1050 | G55: 0.683 | H55: NOT CALCULATED | I55: --- | J55: 0.683
A56: Ground Floor | B56: Wall | C56: INT PARTITION | D56: 90 | E56: s90 Internal | F56: 2572 | G56: 1.312 | H56: NOT CALCULATED | I56: --- | J56: 1.312
A57: Ground Floor | B57: Wall | C57: INT PARTITION | D57: 90 | E57: s90 Internal | F57: 2572 | G57: 1.543 | H57: NOT CALCULATED | I57: --- | J57: 1.543
A58: Ground Floor | B58: Wall | C58: INT PARTITION | D58: 90 | E58: s90 Internal | F58: 2572 | G58: 1.543 | H58: NOT CALCULATED | I58: --- | J58: 1.543
A59: Ground Floor | B59: Wall | C59: INT PARTITION | D59: 90 | E59: s90 Internal | F59: 2572 | G59: 1.543 | H59: NOT CALCULATED | I59: --- | J59: 1.543
A60: Ground Floor | B60: Wall | C60: INT PARTITION | D60: 90 | E60: s90 Internal | F60: 2572 | G60: 1.543 | H60: NOT CALCULATED | I60: --- | J60: 1.543
A61: Ground Floor | B61: Wall | C61: INT PARTITION | D61: 90 | E61: s90 Internal | F61: 2572 | G61: 2.032 | H61: NOT CALCULATED | I61: --- | J61: 2.032
A62: Ground Floor | B62: Wall | C62: INT PARTITION | D62: 90 | E62: s90 Internal | F62: 2572 | G62: 2.16 | H62: NOT CALCULATED | I62: --- | J62: 2.16
A63: Ground Floor | B63: Wall | C63: INT PARTITION | D63: 90 | E63: s90 Internal | F63: 2572 | G63: 2.16 | H63: NOT CALCULATED | I63: --- | J63: 2.16
A64: Ground Floor | B64: Wall | C64: INT PARTITION | D64: 90 | E64: s90 Internal | F64: 2572 | G64: 3.446 | H64: NOT CALCULATED | I64: --- | J64: 3.446
A65: Ground Floor | B65: Wall | C65: INT PARTITION | D65: 90 | E65: s90 Internal | F65: 2572 | G65: 3.575 | H65: NOT CALCULATED | I65: --- | J65: 3.691
A66: Ground Floor | B66: Wall | C66: INT PARTITION | D66: 90 | E66: s90 Internal | F66: 2572 | G66: 3.987 | H66: NOT CALCULATED | I66: --- | J66: 0.713
A67: Ground Floor | B67: Wall | C67: INT PARTITION | D67: 90 | E67: s90 Internal | F67: 2572 | G67: 4.244 | H67: NOT CALCULATED | I67: --- | J67: 1.8
A68: Ground Floor | B68: Wall | C68: INT PARTITION | D68: 90 | E68: s90 Internal | F68: 2572 | G68: 4.244 | H68: NOT CALCULATED | I68: --- | J68: 2.491
A69: Ground Floor | B69: Wall | C69: INT PARTITION | D69: 90 | E69: s90 Internal | F69: 2572 | G69: 4.835 | H69: NOT CALCULATED | I69: --- | J69: 2.85
A70: Ground Floor | B70: Wall | C70: INT PARTITION | D70: 90 | E70: s90 Internal | F70: 2572 | G70: 4.835 | H70: NOT CALCULATED | I70: --- | J70: 3.082
A71: Ground Floor | B71: Wall | C71: INT PARTITION | D71: 90 | E71: s90 Internal | F71: 2572 | G71: 4.887 | H71: NOT CALCULATED | I71: --- | J71: 4.887
A72: Ground Floor | B72: Wall | C72: INT PARTITION | D72: 90 | E72: s90 Internal | F72: 2572 | G72: 6.713 | H72: NOT CALCULATED | I72: --- | J72: 4.96
A73: Ground Floor | B73: Wall | C73: INT PARTITION | D73: 90 | E73: s90 Internal | F73: 2572 | G73: 7.947 | H73: NOT CALCULATED | I73: --- | J73: 7.947
A74: Ground Floor | B74: Wall | C74: INT PARTITION | D74: 90 | E74: s90 Internal | F74: 2572 | G74: 9.362 | H74: NOT CALCULATED | I74: --- | J74: 9.362
A75: Ground Floor | B75: Wall | C75: INT PARTITION | D75: 90 | E75: s90 Internal | F75: 2572 | G75: 10.134 | H75: NOT CALCULATED | I75: --- | J75: 8.17
A76: Ground Floor | B76: Wall | C76: INT PARTITION | D76: 90 | E76: s90 Internal | F76: 2572 | G76: 10.365 | H76: NOT CALCULATED | I76: --- | J76: 8.285
A77: Ground Floor | B77: Wall | C77: INT PARTITION | D77: 90 | E77: s90 Internal | F77: 2572 | G77: 12.088 | H77: NOT CALCULATED | I77: --- | J77: 12.088
A78: Ground Floor | B78: Wall | C78: INT PARTITION | D78: 90 | E78: s90 Internal | F78: 2572 | G78: 12.32 | H78: NOT CALCULATED | I78: --- | J78: 12.088
A79: Ground Floor | B79: Wall | C79: INT PARTITION | D79: 90 | E79: s90 Internal | F79: 2572 | G79: 12.629 | H79: NOT CALCULATED | I79: --- | J79: 12.414
A80: Ground Floor | B80: Wall | C80: INT PARTITION | D80: 90 | E80: s90 Internal | F80: 2572 | G80: 15.381 | H80: NOT CALCULATED | I80: --- | J80: 15.381
A81: Ground Floor | B81: Wall | C81: INT PARTITION | D81: 90 | E81: s90 Internal | F81: 2572 | G81: 16.692 | H81: NOT CALCULATED | I81: --- | J81: 12.648
A82: Ground Floor | B82: Wall | C82: INT PARTITION | D82: 90 | E82: s90 Internal | F82: 2572 | G82: 16.795 | H82: NOT CALCULATED | I82: --- | J82: 16.795
A83: Ground Floor | B83: Wall | C83: INT PARTITION | D83: 90 | E83: s90 Internal | F83: 2829 | G83: 1.811 | H83: NOT CALCULATED | I83: --- | J83: 1.683
A84: Ground Floor | B84: Wall | C84: INT PARTITION | D84: 90 | E84: s90 Internal | F84: 2829 | G84: 1.924 | H84: NOT CALCULATED | I84: --- | J84: 1.924
A85: Ground Floor | B85: Wall | C85: INT PARTITION | D85: 90 | E85: s90 Internal | F85: 2829 | G85: 1.924 | H85: NOT CALCULATED | I85: --- | J85: 1.924
A86: Ground Floor | B86: Wall | C86: INT PARTITION | D86: 90 | E86: s90 Internal | F86: 2829 | G86: 1.98 | H86: NOT CALCULATED | I86: --- | J86: 2.108
A87: Ground Floor | B87: Wall | C87: INT PARTITION | D87: 90 | E87: s90 Internal | F87: 2829 | G87: 2.235 | H87: NOT CALCULATED | I87: --- | J87: 2.108
A88: Ground Floor | B88: Wall | C88: INT PARTITION | D88: 90 | E88: s90 Internal | F88: 2829 | G88: 3.084 | H88: NOT CALCULATED | I88: --- | J88: 2.956
A89: Ground Floor | B89: Wall | C89: INT PARTITION | D89: 90 | E89: s90 Internal | F89: 2829 | G89: 3.168 | H89: NOT CALCULATED | I89: --- | J89: 1.204
A90: Ground Floor | B90: Wall | C90: INT PARTITION | D90: 90 | E90: s90 Internal | F90: 2829 | G90: 3.649 | H90: NOT CALCULATED | I90: --- | J90: 3.522
A91: Ground Floor | B91: Wall | C91: INT PARTITION | D91: 90 | E91: s90 Internal | F91: 2829 | G91: 5.036 | H91: NOT CALCULATED | I91: --- | J91: 5.036
A92: Ground Floor | B92: Wall | C92: INT PARTITION | D92: 90 | E92: s90 Internal | F92: 2829 | G92: 5.29 | H92: NOT CALCULATED | I92: --- | J92: 5.174
A93: Ground Floor | B93: Wall | C93: INT PARTITION | D93: 90 | E93: s90 Internal | F93: 2829 | G93: 6.394 | H93: NOT CALCULATED | I93: --- | J93: 6.266
A94: Ground Floor | B94: Wall | C94: INT PARTITION | D94: 90 | E94: s90 Internal | F94: 2829 | G94: 7.865 | H94: NOT CALCULATED | I94: --- | J94: 7.865
A95: Ground Floor | B95: Wall | C95: INT PARTITION | D95: 90 | E95: s90 Internal | F95: 2829 | G95: 11.288 | H95: NOT CALCULATED | I95: --- | J95: 9.369
A96: Ground Floor | B96: Wall | C96: INT PARTITION | D96: 90 | E96: s90 Internal | F96: 2829 | G96: 11.599 | H96: NOT CALCULATED | I96: --- | J96: 9.007
A97: Ground Floor | B97: Wall | C97: INT PARTITION | D97: 90 | E97: s90 Internal | F97: 2829 | G97: 12.929 | H97: NOT CALCULATED | I97: --- | J97: 13.056
A98: Ground Floor | B98: Wall | C98: INT PARTITION | D98: 90 | E98: s90 Internal | F98: 2829 | G98: 14.145 | H98: NOT CALCULATED | I98: --- | J98: 9.867
A99: Ground Floor | B99: Wall | C99: INT PARTITION | D99: 90 | E99: s90 Internal | F99: 2829 | G99: 16.352 | H99: NOT CALCULATED | I99: --- | J99: 14.387
A100: Ground Floor | B100: Wall | C100: INT PARTITION | D100: 90 | E100: s90 Internal | F100: 2829 | G100: 17.992 | H100: NOT CALCULATED | I100: --- | J100: 17.992
A101: Ground Floor | B101: Wall | C101: SINGLE BRICK WALL | D101: 90 | E101: s90 Footing (1) | F101: 2914 | G101: 19.26 | H101: NOT CALCULATED | I101: --- | J101: 20.47
A102: GF Ceiling | B102: Wall | C102: --- | D102: --- | E102: --- | F102: --- | G102: --- | H102: NOT CALCULATED | I102: --- | J102: 1.129
A103: GF Ceiling | B103: Wall | C103: RENDER BWK | D103: 90 | E103: s90 Internal | F103: 292 | G103: 0.832 | H103: NOT CALCULATED | I103: --- | J103: 0.958
A104: GF Ceiling | B104: Wall | C104: RENDER BWK | D104: 90 | E104: s90 Internal | F104: 292 | G104: 2.292 | H104: NOT CALCULATED | I104: --- | J104: 2.593

Sheet EXT LINTEL LIST (hidden)
A1: Column1 | B1: Column2 | C1: Column3 | D1: Column4 | E1: Column5 | F1: Column6 | G1: Column7 | H1: Column8 | I1: Column9 | J1: Column10 | K1: Column11 | L1: Column12 | M1: Column13 | N1: Column14 | O1: Column15 | P1: Column16
A3: Related Zone Name | B3: 2D Plan Preview | C3: ID | D3: Window Width | E3: Head | F3: Type | G3: External Size | H3: Bearing | I3: Lintel Len. | J3: EX TYPE | K3: No. Over | L3: L-R Area | M3: EXT Sill Type | N3: SILL AREA | O3: EXTERNAL LR HEAD DED. | P3: Height
A4: BATH 2 | C4: W09 | D4: 1310 | E4: 2314 | F4: Auto | G4: 75 x 75 x8.0 EA | H4: 200 | I4: 1510 | J4: FACE BWK | K4: 0 | L4: 0 | M4: Finishing Block | N4: 0.225 | O4: 0 | P4: 514
A5: BED 2 | C5: W04 | D5: 1710 | E5: 2314 | F5: Auto | G5: 75 x 75 x8.0 EA | H5: 200 | I5: 1910 | J5: FACE BWK | K5: 0 | L5: 0 | M5: 1c Face Modular Solid | N5: 0.147 | O5: 0 | P5: 2314
A6: BED 3 | C6: W05 | D6: 1710 | E6: 2314 | F6: Auto | G6: 75 x 75 x8.0 EA | H6: 200 | I6: 1910 | J6: FACE BWK | K6: 0 | L6: 0 | M6: 1c Face Modular Solid | N6: 0.147 | O6: 0 | P6: 2314
A7: BED 4 | C7: W01 | D7: 2770 | E7: 2314 | F7: Auto | G7: 125 x 75 x 8.0 UA | H7: 300 | I7: 3070 | J7: RENDER BWK | K7: 0 | L7: 0 | M7: 1c Rough Longreach | N7: 0.238 | O7: 0 | P7: 2314
A8: BED 5 | C8: W10 | D8: 1810 | E8: 2314 | F8: Auto | G8: 75 x 75 x8.0 EA | H8: 200 | I8: 2010 | J8: FACE BWK | K8: 0 | L8: 0 | M8: 1c Face Modular Solid | N8: 0.156 | O8: 0 | P8: 2314
A9: BED 6 | C9: W08 | D9: 1810 | E9: 2314 | F9: Auto | G9: 75 x 75 x8.0 EA | H9: 200 | I9: 2010 | J9: FACE BWK | K9: 0 | L9: 0 | M9: 1c Face Modular Solid | N9: 0.156 | O9: 0 | P9: 2314
A10: ENS 1 | C10: W15 | D10: 1310 | E10: 2314 | F10: Auto | G10: 75 x 75 x8.0 EA | H10: 200 | I10: 1510 | J10: FACE BWK | K10: 0 | L10: 0 | M10: 1c Face Modular Solid | N10: 0.113 | O10: 0 | P10: 1457
A11: ENS 2 | C11: W02 | D11: 910 | E11: 2314 | F11: Auto | G11: 75 x 75 x8.0 EA | H11: 200 | I11: 1110 | J11: RENDER BWK | K11: 0 | L11: 0 | M11: 1c Rough Longreach | N11: 0.078 | O11: 0 | P11: 2314
A12: KITCHEN 1 | C12: W11 | D12: 3010 | E12: 2143 | F12: Auto | G12: 125 x 75 x 8.0 UA | H12: 300 | I12: 3310 | J12: FACE BWK | K12: 0 | L12: 0 | M12: 1c Face Modular Solid | N12: 0.259 | O12: 0 | P12: 2143
A13: L'DRY 1 | C13: W06 | D13: 1510 | E13: 2314 | F13: Auto | G13: 75 x 75 x8.0 EA | H13: 200 | I13: 1710 | J13: FACE BWK | K13: 0 | L13: 0 | M13: 1c Face Modular Solid | N13: 0.13 | O13: 0 | P13: 2314
A14: LIVING / DINING 1 | C14: W12 | D14: 3010 | E14: 2143 | F14: Auto | G14: 125 x 75 x 8.0 UA | H14: 300 | I14: 3310 | J14: FACE BWK | K14: 0 | L14: 0 | M14: 1c Face Modular Solid | N14: 0.259 | O14: 0 | P14: 2143
A15: LIVING / DINING 1 | C15: W14 | D15: 3110 | E15: 2143 | F15: Auto | G15: 150 x 90 x 8.0 UA | H15: 300 | I15: 3410 | J15: FACE BWK | K15: 0 | L15: 0 | M15: 1c Face Modular Solid | N15: 0.267 | O15: 0 | P15: 2143
A16: LIVING / DINING 1 | C16: W13 | D16: 3110 | E16: 2143 | F16: Auto | G16: 150 x 90 x 8.0 UA | H16: 300 | I16: 3410 | J16: FACE BWK | K16: 0 | L16: 0 | M16: 1c Face Modular Solid | N16: 0.267 | O16: 0 | P16: 2143
A17: LIVING 2 | C17: W07 | D17: 3010 | E17: 2314 | F17: Auto | G17: 125 x 75 x 8.0 UA | H17: 300 | I17: 3310 | J17: FACE BWK | K17: 0 | L17: 0 | M17: 1c Face Modular Solid | N17: 0.259 | O17: 0 | P17: 2314
A18: MAIN BED | C18: W16 | D18: 2410 | E18: 2314 | F18: Auto | G18: 100 x 75 x 8.0 UA | H18: 270 | I18: 2680 | J18: FACE BWK | K18: 0 | L18: 0 | M18: 1c Face Modular Solid | N18: 0.207 | O18: 0 | P18: 2314
A19: PORCH | C19: D14 | D19: 1270 | E19: 2314 | F19: Auto | G19: 75 x 75 x8.0 EA | H19: 200 | I19: 1470 | J19: RENDER BWK | K19: 2 | L19: 0.322 | M19: 1c Rough Longreach | N19: 0.109 | O19: 0 | P19: 2314
A20: THEATRE | C20: W03 | D20: 3010 | E20: 2314 | F20: Auto | G20: 125 x 75 x 8.0 UA | H20: 300 | I20: 3310 | J20: FACE BWK | K20: 0 | L20: 0 | M20: 1c Face Modular Solid | N20: 0.259 | O20: 0 | P20: 2314

Sheet BWK EXTERNAL (hidden)
A1: BWK EXTERNAL | B1: Column2 | C1: Column3 | D1: Column4 | E1: Column5 | F1: Column6 | G1: Column7 | H1: Column8 | I1: Column9 | J1: Column10
B2: External Brick Type | C2: Width | D2: Building Material / Composite / Profile / Fill | E2: WALL Height | F2: External Skin Area | G2: LONG REACH DEDUCTIONS | I2: 2c FB Multiplier | J2: External Num of Bricks
G3: TOP | H3: BOT
A4: Ground Floor | B4: 1c FACE BWK | C4: --- | D4: Wall_s110 | E4: 3425 | F4: 0.445 | G4: 0 | H4: 0 | I4: 48.5 | J4: 21.595
A5: Ground Floor | B5: 1c FACE BWK | C5: --- | D5: Wall_s110 | E5: 3425 | F5: 0.445 | G5: 0 | H5: 0 | I5: 48.5 | J5: 21.595
A6: Ground Floor | B6: 1c FACE BWK | C6: --- | D6: Wall_s110 | E6: 3425 | F6: 2.911 | G6: 0 | H6: 0 | I6: 48.5 | J6: 141.196
A7: Ground Floor | B7: 1c FACE BWK | C7: --- | D7: Wall_s110 | E7: 3425 | F7: 2.911 | G7: 0 | H7: 0 | I7: 48.5 | J7: 141.196
A8: Ground Floor | B8: FACE BWK | C8: --- | D8: Wall_s090 | E8: 2915 | F8: 1.07 | G8: 0.034 | H8: 0.034 | I8: 19.5 | J8: 20.861
A9: Ground Floor | B9: FACE BWK | C9: --- | D9: Wall_s090 | E9: 2915 | F9: 1.07 | G9: 0.034 | H9: 0.034 | I9: 19.5 | J9: 20.861
A10: Ground Floor | B10: FACE BWK | C10: --- | D10: Wall_s090 | E10: 2915 | F10: 1.893 | G10: 0.059 | H10: 0.059 | I10: 19.5 | J10: 36.907
A11: Ground Floor | B11: FACE BWK | C11: --- | D11: Wall_s090 | E11: 2915 | F11: 1.893 | G11: 0.059 | H11: 0.059 | I11: 19.5 | J11: 36.907
A12: Ground Floor | B12: FACE BWK | C12: 90 | D12: s90 Footing (1) | E12: 2744 | F12: 2.572 | G12: 0.086 | H12: 0.086 | I12: 19.5 | J12: 50.154
A13: Ground Floor | B13: FACE BWK | C13: 90 | D13: s90 Footing (1) | E13: 2744 | F13: 2.572 | G13: 0.086 | H13: 0.086 | I13: 19.5 | J13: 50.154
A14: Ground Floor | B14: FACE BWK | C14: 90 | D14: s90 Footing (1) | E14: 2744 | F14: 6.43 | G14: 0.215 | H14: 0.215 | I14: 19.5 | J14: 125.385
A15: Ground Floor | B15: FACE BWK | C15: 90 | D15: s90 Footing (1) | E15: 2744 | F15: 13.091 | G15: 0.438 | H15: 0.438 | I15: 19.5 | J15: 255.284
A16: Ground Floor | B16: FACE BWK | C16: 90 | D16: s90 Footing (1) | E16: 2914 | F16: 18.123 | G16: 0.568 | H16: 0.568 | I16: 19.5 | J16: 353.403
A17: Ground Floor | B17: FACE BWK | C17: 90 | D17: s90 Footing (1) | E17: 3001 | F17: 14.097 | G17: 0 | H17: 0.474 | I17: 19.5 | J17: 274.901
A18: Ground Floor | B18: FACE BWK | C18: 100 | D18: s90 Footing (1) | E18: 2744 | F18: 0.746 | G18: 0.025 | H18: 0.025 | I18: 19.5 | J18: 14.545
A19: Ground Floor | B19: FACE BWK | C19: 100 | D19: s90 Footing (1) | E19: 2744 | F19: 0.746 | G19: 0.025 | H19: 0.025 | I19: 19.5 | J19: 14.545
A20: Ground Floor | B20: FACE BWK | C20: 100 | D20: s90 Footing (1) | E20: 2744 | F20: 0.746 | G20: 0.025 | H20: 0.025 | I20: 19.5 | J20: 14.545
A21: Ground Floor | B21: FACE BWK | C21: 100 | D21: s90 Footing (1) | E21: 2744 | F21: 0.746 | G21: 0.025 | H21: 0.025 | I21: 19.5 | J21: 14.545
A22: Ground Floor | B22: FACE BWK | C22: 100 | D22: s90 Footing (1) | E22: 2744 | F22: 0.746 | G22: 0.025 | H22: 0.025 | I22: 19.5 | J22: 14.545
A23: Ground Floor | B23: FACE BWK | C23: 100 | D23: s90 Footing (1) | E23: 2744 | F23: 0.746 | G23: 0.025 | H23: 0.025 | I23: 19.5 | J23: 14.545
A24: Ground Floor | B24: FACE BWK | C24: 100 | D24: s90 Footing (1) | E24: 2744 | F24: 0.746 | G24: 0.025 | H24: 0.025 | I24: 19.5 | J24: 14.545
A25: Ground Floor | B25: FACE BWK | C25: 100 | D25: s90 Footing (1) | E25: 2744 | F25: 1.26 | G25: 0.042 | H25: 0.042 | I25: 19.5 | J25: 24.575
A26: Ground Floor | B26: FACE BWK | C26: 100 | D26: s90 Footing (1) | E26: 2744 | F26: 1.517 | G26: 0.051 | H26: 0.051 | I26: 19.5 | J26: 29.591
A27: Ground Floor | B27: FACE BWK | C27: 100 | D27: s90 Footing (1) | E27: 2744 | F27: 2.032 | G27: 0.068 | H27: 0.068 | I27: 19.5 | J27: 39.622
A28: Ground Floor | B28: FACE BWK | C28: 190 | D28: s90 Footing (1) | E28: 2058 | F28: 4.922 | G28: 0.224 | H28: 0.224 | I28: 19.5 | J28: 95.988
A29: Ground Floor | B29: FACE BWK | C29: 230 | D29: c230_Footing | E29: 2487 | F29: 1.201 | G29: 0 | H29: 0.043 | I29: 19.5 | J29: 23.41
A30: Ground Floor | B30: FACE BWK | C30: 230 | D30: c230_Footing | E30: 2487 | F30: 3.121 | G30: 0 | H30: 0.112 | I30: 19.5 | J30: 60.865
A31: Ground Floor | B31: FACE BWK | C31: 230 | D31: c230_Footing | E31: 2487 | F31: 4.507 | G31: 0 | H31: 0.361 | I31: 19.5 | J31: 87.895
A32: Ground Floor | B32: FACE BWK | C32: 230 | D32: c230_Footing | E32: 2487 | F32: 10.439 | G32: 0 | H32: 1.032 | I32: 19.5 | J32: 203.557
A33: Ground Floor | B33: FACE BWK | C33: 230 | D33: c230_Footing | E33: 2487 | F33: 12.939 | G33: 0 | H33: 0.713 | I33: 19.5 | J33: 252.313
A34: Ground Floor | B34: FACE BWK | C34: 230 | D34: c230_Footing | E34: 2744 | F34: 8.842 | G34: 0.894 | H34: 0.894 | I34: 19.5 | J34: 172.425
A35: Ground Floor | B35: FACE BWK | C35: 230 | D35: c230_Footing | E35: 2744 | F35: 12.606 | G35: 0.724 | H35: 0.724 | I35: 19.5 | J35: 245.821
A36: Ground Floor | B36: FACE BWK | C36: 230 | D36: c230_Footing | E36: 2859 | F36: 3.547 | G36: 0.114 | H36: 0.114 | I36: 19.5 | J36: 69.163
A37: Ground Floor | B37: FACE BWK | C37: 230 | D37: c230_Footing | E37: 3001 | F37: 7.166 | G37: 0 | H37: 0.668 | I37: 19.5 | J37: 139.739
A38: Ground Floor | B38: RENDER BWK | C38: 190 | D38: s190 Footing | E38: 2744 | F38: 0.421 | G38: 0.464 | H38: 0.464 | I38: 18.5 | J38: 7.782
A39: Ground Floor | B39: RENDER BWK | C39: 190 | D39: s190 Footing | E39: 2744 | F39: 0.814 | G39: 0.267 | H39: 0.267 | I39: 18.5 | J39: 15.058
A40: Ground Floor | B40: RENDER BWK | C40: 190 | D40: s190 Footing | E40: 2744 | F40: 1.543 | G40: 0.052 | H40: 0.052 | I40: 18.5 | J40: 28.549
A41: Ground Floor | B41: RENDER BWK | C41: 190 | D41: s190 Footing | E41: 3172 | F41: 1.821 | G41: 0 | H41: 0.051 | I41: 18.5 | J41: 33.684
A42: Ground Floor | B42: RENDER BWK | C42: 230 | D42: c230_Footing | E42: 2487 | F42: 2.456 | G42: 0 | H42: 0.163 | I42: 18.5 | J42: 45.439
A43: Ground Floor | B43: RENDER BWK | C43: 230 | D43: c230_Footing | E43: 2487 | F43: 3.313 | G43: 0 | H43: 0.119 | I43: 18.5 | J43: 61.298
A44: Ground Floor | B44: RENDER BWK | C44: 230 | D44: c230_Footing | E44: 2744 | F44: 0.431 | G44: 0.113 | H44: 0.113 | I44: 18.5 | J44: 7.965
A45: Ground Floor | B45: RENDER BWK | C45: 230 | D45: c230_Footing | E45: 3001 | F45: 1.516 | G45: 0 | H45: 0.045 | I45: 18.5 | J45: 28.042
A46: Ground Floor | B46: RENDER BWK | C46: 230 | D46: c230_Footing | E46: 3001 | F46: 4.172 | G46: 0 | H46: 0.312 | I46: 18.5 | J46: 77.176
A47: Ground Floor | B47: RENDER BWK | C47: 230 | D47: c230_Footing | E47: 3001 | F47: 9.328 | G47: 0 | H47: 0.275 | I47: 18.5 | J47: 172.568

Sheet Brick Chart (hidden)

Sheet STD LINTEL SHEET (hidden)
A1: JOB No: | F1: ='Main Details'!D6 -> 0 | K1: LOT:
B3: INTERNAL = O/ALL BRICKWORK - 150mm + BEARING | U3: INTERNAL = O/ALL BRICKWORK - 150mm + BEARING
B4: EXTERNAL = O/ALL BRICKWORK - 120mm + BEARING | U4: EXTERNAL = O/ALL BRICKWORK - 120mm + BEARING
B7: COLUMN:- | AH7: COLUMN:-
AN12: NOTE: MUST PRINT SEPARATE
M17: LOCATION:- | W17: LOCATION:-
M27: LOCATION:-
B37: COLUMN:- | AH37: COLUMN:-
J41: INTERNAL = O/ALL BRICKWORK - 300mm / Returns -150mm + BEARING
J42: EXTERNAL = O/ALL BRICKWORK - 240mm / Returns - 120mm + BEARING
U44: INTERNAL = O/ALL BRICKWORK - 60mm + BEARING
U45: INTERNAL = O/ALL BRICKWORK - 125mm
D47: LOCATION:- | AA47: LOCATION:-
N58: COLUMN:- | U58: COLUMN:- | AH58: COLUMN:-
B61: INTERNAL = O/ALL BRICKWORK - 60mm + BEARING | U61: EXTERNAL = O/ALL BRICKWORK - 50mm + BEARING
B62: EXTERNAL = O/ALL BRICKWORK - 50mm + BEARING | U62: EXTERNAL = O/ALL BRICKWORK - 100mm

Sheet START UP (hidden)
Q4: TANGENT SCHEDULING QUANTS
Q5: Version - 16/11/2018
J9: Job No: | O9: ='Main Details'!D6 -> 0 | T9: CLIENT: | V9: ='Main Details'!D7 -> 0
N10: Scheduler: | O10: ='Main Details'!V3 -> 0 | T10: Date: | V10: ='Main Details'!V4 -> 00:00:00

Sheet Main Details
B2: =INDEX(AW7:AW12,$AW$6) -> QUANTITY SHEET FOR EASY START HOMES | V2: SCHEDULER | X2: PG 1
B3: JOB INFORMATION DETAIL SHEET
M4: DATE:
D5: Answer Here | M5: Last VO #
B6: ENTER JOB NUMBER | AW6: 3
B7: ENTER CLIENTS SURNAME | AV7: 1 | AW7: QUANTITY SHEET FOR SUMMIT HOMES
E8: SUBURB | V8: (OR CLOSET IF NOT FOUND) | AB8: =_xlfn.XLOOKUP(M8,'BUILDERS BRICK SELECTION'!AK:AK,'BUILDERS BRICK SELECTION'!AL:AL,0) -> 0 | AC8: =IF(AB8=1,1,0) -> 0 | AD8: CARTAGE ZONE 1 | AV8: 2 | AW8: QUANTITY SHEET FOR NEW GENERATION HOMES
B9: MAIN BRICK SELECTIONS | F9: 1c or 2c? | AB9: 1 | AC9: =IF(AB8=2,1,0) -> 0 | AD9: CARTAGE ZONE 2 | AV9: 3 | AW9: QUANTITY SHEET FOR EASY START HOMES
F10: =IF(D45=0.23,"2c","1c") -> 2c | M10: Location | AC10: =IF(AB8=3,1,0) -> 0 | AD10: CARTAGE ZONE 3 | AV10: 4 | AW10: QUANTITY SHEET FOR SUMMIT PROJECTS
B11: EXTERNAL SELECTION | Y11: 230 internal | Z11: 230 internal | AC11: =IF(AB8=4,1,0) -> 0 | AD11: CARTAGE ZONE 4 | AR11: 5 | AS11: QUANTITY SHEET FOR LIFESTYLE HOMES
B12: 1c Face Bricks | C12: NO SELECTION MADE | G12: =_xlfn.XLOOKUP(C12,'BUILDERS BRICK SELECTION'!$B:$B,'BUILDERS BRICK SELECTION'!$H:$H,0) -> 0 | H12: =_xlfn.XLOOKUP(C12,'BUILDERS BRICK SELECTION'!$B:$B,'BUILDERS BRICK SELECTION'!E:E,0,) -> 48.5 | I12: =_xlfn.XLOOKUP(C12,'BUILDERS BRICK SELECTION'!$B:$B,'BUILDERS BRICK SELECTION'!C:C,0,) -> 264 | J12: =_xlfn.XLOOKUP($C$12,'BUILDERS BRICK SELECTION'!$B:$B,'BUILDERS BRICK SELECTION'!D:D,0,) -> 4 | K12: =_xlfn.XLOOKUP($C$12,'BUILDERS BRICK SELECTION'!$B:$B,'BUILDERS BRICK SELECTION'!G:G,0,) -> 0 | Y12: M.g | Z12: plastering | AC12: =IF(AB8=5,1,0) -> 0 | AD12: CARTAGE ZONE 5 | AR12: 6 | AS12: QUANTITY SHEET FOR SUMMIT HOMES BUNBURY | BC12: Whats New :
B13: Contrast 1c Face Bricks | C13: NO SELECTION MADE | G13: =_xlfn.XLOOKUP(C13,'BUILDERS BRICK SELECTION'!B:B,'BUILDERS BRICK SELECTION'!H:H) -> 0 | H13: =_xlfn.XLOOKUP(C13,'BUILDERS BRICK SELECTION'!$B:$B,'BUILDERS BRICK SELECTION'!E:E,0) -> 48.5 | I13: =_xlfn.XLOOKUP(C13,'BUILDERS BRICK SELECTION'!$B:$B,'BUILDERS BRICK SELECTION'!C:C,0,) -> 264 | J13: =_xlfn.XLOOKUP($C$13,'BUILDERS BRICK SELECTION'!$B:$B,'BUILDERS BRICK SELECTION'!D:D,0,) -> 4 | K13: =_xlfn.XLOOKUP($C$13,'BUILDERS BRICK SELECTION'!$B:$B,'BUILDERS BRICK SELECTION'!G:G,0,) -> 0 | AS13: 13 | BD13: 2025-07-04 | BE13: Minor adjustments to quantities,
B14: 2c Render Blocks | C14: MIDLAND MAXIBRICK | G14: =_xlfn.XLOOKUP(C14,'BUILDERS BRICK SELECTION'!K:K,'BUILDERS BRICK SELECTION'!R:R,0) -> INTERNAL ROUGH 2C | H14: =_xlfn.XLOOKUP(C14,'BUILDERS BRICK SELECTION'!$K:$K,'BUILDERS BRICK SELECTION'!N:N,0) -> 18.5 | I14: =_xlfn.XLOOKUP(C14,'BUILDERS BRICK SELECTION'!$K:$K,'BUILDERS BRICK SELECTION'!L:L,0) -> 138 | J14: =_xlfn.XLOOKUP(C14,'BUILDERS BRICK SELECTION'!$K:$K,'BUILDERS BRICK SELECTION'!M:M,0) -> 3 | Y14: =$S$14*-0.37 -> 0 | Z14: =$S$14*-0.46 -> 0 | AC14: =_xlfn.XLOOKUP(AB9,AC8:AC12,AD8:AD12,0) -> 0 | BE14: Addititional Cartage tab
B15: 1c Rendered Longreach | C15: MIDLAND LONGREACH CORED | G15: =_xlfn.XLOOKUP(C15,'BUILDERS BRICK SELECTION'!K:K,'BUILDERS BRICK SELECTION'!R:R,0) -> INTERNAL ROUGH 1C | H15: =_xlfn.XLOOKUP(C15,'BUILDERS BRICK SELECTION'!$K:$K,'BUILDERS BRICK SELECTION'!N:N,0) -> 37 | I15: =_xlfn.XLOOKUP(C15,'BUILDERS BRICK SELECTION'!$K:$K,'BUILDERS BRICK SELECTION'!L:L,0) -> 252 | J15: =_xlfn.XLOOKUP(C15,'BUILDERS BRICK SELECTION'!$K:$K,'BUILDERS BRICK SELECTION'!M:M,0) -> 3 | Y15: =$S$15*0.37 -> 0 | Z15: =$S$15*0.46 -> 0
B16: 1c Rendered Commons | C16: NO SELECTION MADE | G16: =_xlfn.XLOOKUP(C16,'BUILDERS BRICK SELECTION'!K:K,'BUILDERS BRICK SELECTION'!R:R,0) -> 0 | H16: =_xlfn.XLOOKUP(C16,'BUILDERS BRICK SELECTION'!$K:$K,'BUILDERS BRICK SELECTION'!N:N,0) -> 18.5 | I16: =_xlfn.XLOOKUP(C16,'BUILDERS BRICK SELECTION'!$K:$K,'BUILDERS BRICK SELECTION'!L:L,0) -> 132 | J16: =_xlfn.XLOOKUP(C16,'BUILDERS BRICK SELECTION'!$K:$K,'BUILDERS BRICK SELECTION'!M:M,0) -> 3 | Y16: =$S$16*-0.154 -> 0 | Z16: =$S$16*-0.19 -> 0
B17: 2nd Contrast 1c Face Blocks | C17: NO SELECTION MADE | G17: =_xlfn.XLOOKUP(C17,'BUILDERS BRICK SELECTION'!B:B,'BUILDERS BRICK SELECTION'!H:H) -> 0 | H17: =_xlfn.XLOOKUP(C17,'BUILDERS BRICK SELECTION'!$B:$B,'BUILDERS BRICK SELECTION'!E:E,0,) -> 48.5 | I17: =_xlfn.XLOOKUP(C17,'BUILDERS BRICK SELECTION'!$B:$B,'BUILDERS BRICK SELECTION'!C:C,0,) -> 264 | J17: =_xlfn.XLOOKUP($C$17,'BUILDERS BRICK SELECTION'!$B:$B,'BUILDERS BRICK SELECTION'!D:D,0,) -> 4 | K17: =_xlfn.XLOOKUP($C$17,'BUILDERS BRICK SELECTION'!$B:$B,'BUILDERS BRICK SELECTION'!G:G,0,) -> 0 | Y17: =$S$17*0.154 -> 0 | Z17: =$S$17*0.19 -> 0 | BD17: 2025-06-26 | BE17: Cartage for Bricks and Paving amended
B18: 2c Face Blocks | C18: NO SELECTION MADE | G18: =_xlfn.XLOOKUP(C18,'BUILDERS BRICK SELECTION'!K:K,'BUILDERS BRICK SELECTION'!R:R,0) -> 0 | H18: =_xlfn.XLOOKUP(C18,'BUILDERS BRICK SELECTION'!$K:$K,'BUILDERS BRICK SELECTION'!N:N,0) -> 18.5 | I18: =_xlfn.XLOOKUP(C18,'BUILDERS BRICK SELECTION'!$K:$K,'BUILDERS BRICK SELECTION'!L:L,0) -> 132 | J18: =_xlfn.XLOOKUP($C$18,'BUILDERS BRICK SELECTION'!$K:$K,'BUILDERS BRICK SELECTION'!M:M,0) -> 3 | K18: =_xlfn.XLOOKUP($C$18,'BUILDERS BRICK SELECTION'!$K:$K,'BUILDERS BRICK SELECTION'!S:S,0) -> 0 | L18: 38.8 | BE18: Tile Waterproofing added
B19: INTERNAL SELECTION | L19: 264 | BE19: Tiedown bricks Maxis added
B20: 1c Face Bricks | C20: NO SELECTION MADE | G20: =_xlfn.XLOOKUP(C20,'BUILDERS BRICK SELECTION'!$B:$B,'BUILDERS BRICK SELECTION'!$H:$H,0) -> 0 | H20: =_xlfn.XLOOKUP(C20,'BUILDERS BRICK SELECTION'!$B:$B,'BUILDERS BRICK SELECTION'!E:E,0,) -> 48.5 | I20: =_xlfn.XLOOKUP(C20,'BUILDERS BRICK SELECTION'!$B:$B,'BUILDERS BRICK SELECTION'!C:C,0,) -> 264 | J20: =_xlfn.XLOOKUP($C$20,'BUILDERS BRICK SELECTION'!$B:$B,'BUILDERS BRICK SELECTION'!D:D,0,) -> 4 | K20: =_xlfn.XLOOKUP($C$20,'BUILDERS BRICK SELECTION'!$B:$B,'BUILDERS BRICK SELECTION'!G:G,0,) -> 0 | Y20: =IF(D45=0.23,$D$42+(Y14+Y15+Y16+Y17),0) -> 56 | Z20: =IF(D45=0.23,$D$42+(Z14+Z15+Z16+Z17),0) -> 56 | BE20: Flush panel doors adjusted
B21: 2c Render Blocks | C21: MIDLAND MAXIBRICK | G21: =_xlfn.XLOOKUP(C21,'BUILDERS BRICK SELECTION'!K:K,'BUILDERS BRICK SELECTION'!R:R,0) -> INTERNAL ROUGH 2C | H21: =_xlfn.XLOOKUP(C21,'BUILDERS BRICK SELECTION'!$K:$K,'BUILDERS BRICK SELECTION'!N:N,0) -> 18.5 | I21: =_xlfn.XLOOKUP(C21,'BUILDERS BRICK SELECTION'!$K:$K,'BUILDERS BRICK SELECTION'!L:L,0) -> 138 | J21: =_xlfn.XLOOKUP(C21,'BUILDERS BRICK SELECTION'!$K:$K,'BUILDERS BRICK SELECTION'!M:M,0) -> 3
B22: 1c Rendered Longreach | C22: MIDLAND LONGREACH CORED | G22: =_xlfn.XLOOKUP(C22,'BUILDERS BRICK SELECTION'!K:K,'BUILDERS BRICK SELECTION'!R:R,0) -> INTERNAL ROUGH 1C | H22: =_xlfn.XLOOKUP(C22,'BUILDERS BRICK SELECTION'!$K:$K,'BUILDERS BRICK SELECTION'!N:N,0) -> 37 | I22: =_xlfn.XLOOKUP(C22,'BUILDERS BRICK SELECTION'!$K:$K,'BUILDERS BRICK SELECTION'!L:L,0) -> 252 | J22: =_xlfn.XLOOKUP(C22,'BUILDERS BRICK SELECTION'!$K:$K,'BUILDERS BRICK SELECTION'!M:M,0) -> 3
B23: 1c Rendered Commons | C23: NO SELECTION MADE | G23: =_xlfn.XLOOKUP(C23,'BUILDERS BRICK SELECTION'!K:K,'BUILDERS BRICK SELECTION'!R:R,0) -> 0 | H23: =_xlfn.XLOOKUP(C23,'BUILDERS BRICK SELECTION'!$K:$K,'BUILDERS BRICK SELECTION'!N:N,0) -> 18.5 | I23: =_xlfn.XLOOKUP(C23,'BUILDERS BRICK SELECTION'!$K:$K,'BUILDERS BRICK SELECTION'!L:L,0) -> 132 | J23: =_xlfn.XLOOKUP(C23,'BUILDERS BRICK SELECTION'!$K:$K,'BUILDERS BRICK SELECTION'!M:M,0) -> 3 | AA23: Location | BD23: 2025-06-10 | BE23: Flush Panel Doors added from internal frames
AA24: North | AB24: 285-100-1002600 | BE24: External Door count on "Int-Ext Doors and Internal walls" for Wall Carpentry count
AA25: South | BE25: Wall Carpentry items increased and moved to be with Roof Carpentry on "Fascia-Roof Hardware" Sheet (renamed)
B26: General Questions… | BE26: Cladding Items including Minimum charge added to "Fascia-Roof Carpenter" Sheet
BE27: R2.5 option for Insulation on External walls added to "Elec,Ceilinng,Plaster,Paint" sheet (renamed)
B28: Tiled Roof='Y' Colorbond = 'N' | C28: =IF(H28=TRUE,"Y","N") -> N | F28: =IF(G28=TRUE,"Y","N") -> Y | G28: TRUE | H28: FALSE | BE28: Note added to Robe Rails on "Fixing Carpentry & Moulding" Sheet, 1 Rail to 1 line
B29: Coastal Areas | C29: =IF(E29=TRUE,"Y","N") -> N | F29: =IF(G29=TRUE,"Y","N") -> Y | G29: TRUE | BE29: "Paving & Grano" sheet changed to be less busy and more compact. Addistional options added
B30: Half Bond='Y' Third Bond = 'N' | C30: =IF(E30=TRUE,"Y","N") -> N | F30: =IF(G30=TRUE,"Y","N") -> Y | G30: TRUE | BE30: Main Floor Tile added to "Additional Items' Sheet, Slimline mirrors and shower option updated
B31: Timber Roof = 'Y' Metal Truss = 'N' | BE31: "Quotes' Sheet changed to be more compact
B32: Build Type | D32: Brick veneer | F32: =IF(G32=TRUE,"Y","N") -> Y | G32: TRUE | H32: =D32 -> Brick veneer | BE32: Site Welding 'Brickwork' and 'Roof Carpenter' has been added to the 'Brick Final Sheet'
B33: Coastal Value | D33: R1 | F33: =_xlfn.IFNA(VLOOKUP('Main Details'!D33,Lists!V18:W21,2,FALSE),"") -> Moderate | H33: Double Brick | J33: ='Lintels.windows '!N45 -> 36.79 | BE33: Maxi Brick packs sizes adjusted
B34: Bushfire Rating | D34: NO BAL | BE34: Termite and Brick Clean cost centres added
B35: Areas Single Storey | D35: m2 | H35: Brick Veneer | J35: 0
B36: FLOOR PLAN | D36: =IF(W36>0,W36,'Summary Sheet'!C63) -> 296.601
B37: GARAGE | D37: =IF(W37>0,W37,'Summary Sheet'!C64) -> 57.855 | BD37: 2025-05-15 | BE37: Painting items added to quants
B38: PORCH | D38: =IF(W38>0,W38,'Summary Sheet'!C66) -> 5.157
B39: ALFRESCO | D39: =IF(W39>0,W39,'Summary Sheet'!C65) -> 24
B40: Flat Roof AREA | D40: 250 | BD40: 2024-12-12 | BE40: Changes made to suit direct upload
B41: Perimeters/lengths | D41: l/m
B42: House Perimeter | D42: 56 | BD42: 2024-11-21 | BE42: Colour Change to drop down to match across sheets
B43: Internal Partition Wall Length | D43: ='INT-EXT DOORS & int walls'!AC22 -> 0 | BE43: Brickwork adjusted to '1000' to aid with direct upload
BE44: Non Essential REO hidden in dropdown to aid with direct upload
B45: Main Cavity Width (.250 or .230) | D45: 0.23 | BE45: Brickwork formatting adjusted
D46: =D45 -> 0.23
B47: Eaves Main Width | D47: 0.48
B49: Rafter Spacing | D49: =IF(C28="Y",0.6,0.9) -> 0.9
B50: Garage / House Wall Length
B51: Garage / House Wall Width | D51: 0.09 | E51: ddt add for ceiling
B53: Main House Ceiling Height | D53: 2.4 | E53: =VLOOKUP(D53,Lists!V27:W42,2,0) -> 28c
B54: Garage Walls Length | F54: =D53*D54 -> 0
B55: Double Brick Boundary Length | E55: Only to be used on Brick Veneer with Double brick boundary walls
B56: Double Brick Boundary Height | E56: Internal Brick height only to Dble Brick boundary walls | K56: =D55*D56 -> 0

Sheet Concrete & Reo
B2: ='Main Details'!B2 -> QUANTITY SHEET FOR EASY START HOMES | M2: PG 2
B3: ='Main Details'!D6 -> 0
B4: CONCRETOR SINGLE STOREY
B5: SLAB TYPE | C5: A85 | D5: (Note: Only Guides! Overwrite if Required as per Engineer/Shire Requirements)
B6: SLAB THICKNESS | C6: =(VLOOKUP($C$5,'BUILDERS SETTINGS'!D72:F88,3,0)) -> 85 | D6: mm
B7: MESH | C7: CERTS | D7: Select Mesh Below | H7: Concrete Supply | I7: 25mpa | P7: 20mpa | Q7: 116-200-100150
B8: FOOTING / L/M | C8: =(VLOOKUP($C$5,'BUILDERS SETTINGS'!D71:L88,9,0)) -> 0.06 | D8: (cubic) | P8: 25mpa | Q8: 116-200-100160
B9: TRENCH MESH | C9: =(VLOOKUP($C$5,'BUILDERS SETTINGS'!D42:M93,10,0)) -> NO | P9: =IF(I7=P8,Q8,Q7) -> 116-200-100160
B10: FOOTINGS: | H10: SLAB:
B11: Ext per Footing | C11: ='Main Details'!D42 -> 56 | D11: l/m x | E11: =C8 -> 0.06 | F11: = | G11: =IF(C11*E11>0,C11*E11," ") -> 3.36 | H11: Slab: | I11: ='Main Details'!D36 -> 296.601 | J11: Sq/m x | K11: =C6/1000 -> 0.085 | L11: = | M11: =IF(I11*K11>0,I11*K11," ") -> 25.211085
D12: No x | F12: = | G12: =C12*E12 -> 0 | J12: L/m x | L12: =
B13: 1course DROPPED FOOTING | D13: No x | E13: =_xlfn.XLOOKUP(B13,'BUILDERS SETTINGS'!$E:$E,'BUILDERS SETTINGS'!$K:$K,0) -> 0.01 | F13: = | G13: =C13*E13 -> 0 | H13: 3course DROPPED FOOTING | J13: L/m x | K13: 0.04 | L13: = | M13: =IF(I13*K13>0,I13*K13," ") -> 
B14: 2course DROPPED FOOTING | D14: No x | E14: =_xlfn.XLOOKUP(B14,'BUILDERS SETTINGS'!$E:$E,'BUILDERS SETTINGS'!$K:$K,0) -> 0.02 | F14: = | G14: 0 | H14: 4course DROPPED FOOTING | J14: L/m x | K14: 0.07 | L14: = | M14: =IF(I14*K14>0,I14*K14," ") -> 
B15: 3course DROPPED FOOTING | D15: No x | E15: =_xlfn.XLOOKUP(B15,'BUILDERS SETTINGS'!$E:$E,'BUILDERS SETTINGS'!$K:$K,0) -> 0.03 | F15: = | G15: 0 | H15: 6course DROPPED FOOTING | J15: L/m x | K15: 0.11 | L15: = | M15: =IF(I15*K15>0,I15*K15," ") -> 
B16: 4course DROPPED FOOTING | D16: No x | E16: =_xlfn.XLOOKUP(B16,'BUILDERS SETTINGS'!$E:$E,'BUILDERS SETTINGS'!$K:$K,0) -> 0.04 | F16: = | G16: 0 | J16: L/m x | L16: =
B17: 5course DROPPED FOOTING | D17: No x | E17: 0.04 | F17: = | G17: 0 | J17: L/m x | L17: =
B18: 6course DROPPED FOOTING | D18: No x | E18: 0.04 | F18: = | G18: 0 | H18: Thickenings (No T/M) | J18: L/m x | K18: 0.069 | L18: =
D19: No x | F19: = | G19: 0 | J19: L/m x | L19: =
B20: Garage Perimeter | C20: ='Main Details'!D54 -> 0 | D20: l/m x | E20: =C8 -> 0.06 | F20: = | G20: 0 | H20: Slab Edge Thickenings | I20: ='Main Details'!D42 -> 56 | J20: L/m x | K20: 0.019 | L20: = | M20: 1.064
B21: FP1 | D21: No x | E21: 0.096 | F21: = | G21: 0 | H21: Thickenings (incl. T/M) | J21: L/m x | K21: 0.08 | L21: = | M21: =I21*K21 -> 0
B22: FP2 | D22: No x | E22: 0.196 | F22: = | G22: 0 | H22: CONNELLY KEY JOINTS | J22: LG
B23: FP3 | D23: No x | E23: 0.118 | F23: = | G23: 0 | K23: Subtotal | L23: = | M23: =IF((SUM(M11:M21))>0,SUM(M11:M21)," ") -> 26.275085
B24: FP4 | D24: No x | F24: = | G24: 0 | O24: 0.6
B25: FP5 | D25: No x | F25: = | G25: 0 | H25: NUMBER OF SLAB PUMPS | L25: = | M25: 1
B26: SF1 | D26: l/m x | E26: 0.252 | F26: =F24 -> = | G26: 0
B27: SF2 | D27: l/m x | E27: 0.06 | F27: = | G27: 0 | J27: Labour Slab | L27: = | M27: =IF(M23=" "," ",(INT(((M23*100)+20)/20)*20)/100) -> 26.4
F28: = | G28: 0 | H28: ADD | I28: 20/20/80 Concrete Supply only | L28: = | M28: =IF(M27=" "," ",(INT(((N28*100)+20)/20)*20)/100)+M25 -> 28.2 | N28: =IF($M$23=" "," ",($M$23*$H$30)+$M$23) -> 27.06333755
B29: Deductions | D29: l/m x | F29: = | G29: 0 | H29: Wastage Percentage
E30: Subtotal | F30: = | G30: =IF((SUM(G11:G28))>0,SUM(G11:G28,-G29)," ") -> 3.36 | H30: 0.03
B31: NUMBER OF FOOTING PUMPS | F31: = | G31: 1
H32: GROUND FLOOR SLAB & FOOTINGS | L32: = | M32: =IF(AND('Main Details'!D36>0,'Main Details'!D42>0),G33+M27," ") -> 29.8 | N32: Install m3
B33: Labour Footings | F33: = | G33: =IF(G30=" "," ",(INT(((G30*100)+20)/20)*20)/100) -> 3.4 | H33: =IF($G$30=" "," ",$G$30+($G$30*$H$30)) -> 3.4608
B34: 20/20/80 Concrete Supply only | F34: = | G34: =IF(H33=" "," ",(INT(((H33*100)+20)/20)*20)/100)+G31 -> 4.6 | H34: TOTAL CONCRETE SUPPLY m3 | L34: = | M34: =IF(AND('Main Details'!D36>0,'Main Details'!D42>0),G34+M28," ") -> 32.8
B36: REINFORCEMENT
C37: Qty | D37: Unit
B38: TRENCH MESH SELECTION | D38: No
C39: =IF(C9="Yes",SUM(C11*G40)+I21+SUM(C29*G39)+SUM(C20*G39))+IF(C9="NO",0) -> 0 | D39: L/m - | E39: (Includes) | G39: 1 | H39: (select) Rows To Garage Perimeter | K39: =IF(C39=0," ",((C39+0.5)/5.5)) -> 
B40: Total Trench Mesh Sheets | C40: =IF(K39=" "," ",(ROUNDUP($K$39/1,0)*1)+1+C41) ->  | D40: Sheets | G40: 1 | H40: (select) Rows To House Perimeter
B41: Additional Trench Mesh as per engs | D41: No
B42: N12 RE-ENTRY BAR 2.0m | G42: LABOUR ITEMS | J42: No adjustment
B43: N12 Z BAR 150x260x150mm | D43: Z BAR | G43: KEYED JOINT INSTALLATION | I43: =I22 -> 0
D44: STARTER | G44: Z BAR INSTALLATION | I44: =C43 -> 0
B45: Additional Sheets as per engs | D45: m2 | G45: STARTER BAR INSTALLATION | I45: =C44 -> 0
B46: Mesh Sheets Required | C46: =ROUNDUP(SUM(C48/12+(C45/12))+1,0) -> 26 | D46: Sheets
B47: SOG PL BAR CHAIR 50-65mm | C47: =(MROUND($G$58/100,1)*100)/100+1 -> 7 | D47: Bags
B48: RF63 MESH - 6 x 2.4m | C48: =I11 -> 296.601 | D48: M2
C52: E/O Slab Mesh (select) | G52: 0 | H52: Trench Mesh (select)
C53: SL52 Mesh | G53: 1 | H53: L8 Trench Mesh (200mm)
C54: SL53 Mesh | G54: 2 | H54: L8 Trench Mesh (300mm)
C55: SL63 Mesh | H55: L11 Trench Mesh (200mm)
C56: SL62 Mesh
C57: SL72 Mesh
C58: SL82 Mesh | G58: =(C46*22.5) -> 585
C59: SL92 Mesh

Sheet INT-EXT DOORS & int walls
C2: BROAD BUTT HINGES FITTED | E2: DOOR OPENINGS | I2: EXTRA STANDARD HINGE FITTED
AN4: Std Doors
K5: =2.04*K7/1000 -> 1.0608 | L5: =2.04*L7/1000 -> 1.2648 | M5: =2.34*620/1000 -> 1.4508 | N5: =2.04*N7/1000 -> 1.4688 | O5: =2.34*720/1000 -> 1.6848 | P5: 1.6728 | Q5: =2.34*820/1000 -> 1.9188 | R5: 1.7748 | S5: 1.8768 | T5: =2.34*920/1000 -> 2.1528
C6: ='Main Details'!D32 -> Brick veneer | I6: Cost Centre Check | K6: 440-610-200200 | L6: 440-610-200300 | M6: 440-610-500100 | N6: 440-610-200400 | O6: 440-610-500200 | P6: 440-610-200500 | Q6: 440-610-500300 | R6: 440-610-200600 | S6: 440-610-200700 | T6: 440-610-500410 | Y6: INTERNAL PARTITION WALLS | AL6: Shopper Door (MUST select) | AN6: Double Brick | AO6: Brick Veneer
C7: Quantity | D7: STD Frames | K7: 520 | L7: 620 | M7: 620a | N7: 720 | O7: 720a | P7: 820 | Q7: 820a | R7: 870 | S7: 920 | T7: 920a | U7: STD Height | W7: 2340 Doors | AE7: 175-100-100400 | AF7: DELUXE 2 HINGES 2040x520 RH | AH7: Double Brick | AL7: Double Brick | AN7: DELUXE 2 HINGES 2040x520 LH | AO7: DELUXE 2 HINGES 2040x620 LH
G8: =IF($C$6="Brick Veneer","SF","DB") -> SF | I8: =_xlfn.XLOOKUP(1,(Lists!$AW:$AW=D8)*(Lists!$AZ:$AZ=G8),(Lists!$AV:$AV),0) -> 0 | J8: =_xlfn.XLOOKUP('INT-EXT DOORS & int walls'!I8,Lists!AV:AV,Lists!AY:AY,0) -> 0 | K8: =IF(J8=$K$7,C8,0) -> 0 | L8: =IF(J8=$L$7,C8,0) -> 0 | M8: =IF(J8=$M$7,C8,0) -> 0 | N8: =IF(J8=$N$7,C8,0) -> 0 | O8: =IF(J8=$O$7,C8,0) -> 0 | P8: =IF(J8=$P$7,C8,0) -> 0 | Q8: =IF(J8=Q7,C8,0) -> 0 | R8: =IF(J8=$R$7,C8,0) -> 0 | S8: =IF(J8=$S$7,C8,0) -> 0 | T8: =IF(J8=$T$7,C8,0) -> 0 | U8: =SUM(K8:K14) -> 0 | V8: 520 | AE8: 175-100-100500 | AF8: DELUXE 2 HINGES 2040x620 LH | AH8: Double Brick | AL8: Brick Veneer | AN8: DELUXE 2 HINGES 2040x520 RH | AO8: DELUXE 2 HINGES 2040x620 RH
G9: =IF($C$6="Brick Veneer","SF","DB") -> SF | I9: =_xlfn.XLOOKUP(1,(Lists!$AW:$AW=D9)*(Lists!$AZ:$AZ=G9),(Lists!$AV:$AV),0) -> 0 | J9: =_xlfn.XLOOKUP('INT-EXT DOORS & int walls'!I9,Lists!AV:AV,Lists!AY:AY,0) -> 0 | K9: =IF(J9=$K$7,C9,0) -> 0 | L9: =IF(J9=$L$7,C9,0) -> 0 | M9: =IF(J9=$M$7,C9,0) -> 0 | N9: =IF(J9=$N$7,C9,0) -> 0 | O9: =IF(J9=$O$7,C9,0) -> 0 | P9: 0 | Q9: =IF(J9=$Q$7,C9,0) -> 0 | R9: =IF(J9=$R$7,C9,0) -> 0 | S9: =IF(J9=$S$7,C9,0) -> 0 | T9: =IF(J9=$T$7,C9,0) -> 0 | U9: =SUM(L8:L14) -> 0 | V9: 620 | W9: =SUM(M8:M14) -> 0 | AE9: 175-100-100600 | AF9: DELUXE 2 HINGES 2040x620 RH | AH9: Double Brick | AN9: DELUXE 2 HINGES 2040x620 LH | AO9: DELUXE 2 HINGES 2040x720 LH
G10: SF | I10: =_xlfn.XLOOKUP(1,(Lists!$AW:$AW=D10)*(Lists!$AZ:$AZ=G10),(Lists!$AV:$AV),0) -> 0 | J10: =_xlfn.XLOOKUP('INT-EXT DOORS & int walls'!I10,Lists!AV:AV,Lists!AY:AY,0) -> 0 | K10: 0 | L10: 0 | M10: 0 | N10: 0 | O10: 0 | P10: 0 | Q10: 0 | R10: 0 | S10: 0 | T10: 0 | U10: =SUM(N8:N14) -> 0 | V10: 720 | W10: =SUM(O8:O14) -> 0 | AE10: 175-100-100800 | AF10: DELUXE 2 HINGES 2040x720 LH | AH10: Double Brick | AL10: DOOR & METAL FRAME | AN10: DELUXE 2 HINGES 2040x620 RH | AO10: DELUXE 2 HINGES 2040x720 RH
G11: SF | I11: =_xlfn.XLOOKUP(1,(Lists!$AW:$AW=D11)*(Lists!$AZ:$AZ=G11),(Lists!$AV:$AV),0) -> 0 | J11: =_xlfn.XLOOKUP('INT-EXT DOORS & int walls'!I11,Lists!AV:AV,Lists!AY:AY,0) -> 0 | K11: 0 | L11: 0 | M11: 0 | N11: 0 | O11: 0 | P11: 0 | Q11: 0 | R11: 0 | S11: 0 | T11: 0 | U11: =SUM(P8:P14) -> 0 | V11: 820 | W11: =SUM(Q8:Q14) -> 0 | AE11: 175-100-100900 | AF11: DELUXE 2 HINGES 2040x720 RH | AH11: Double Brick | AN11: DELUXE 2 HINGES 2040x720 LH | AO11: DELUXE 2 HINGES 2040x820 LH
G12: SF | I12: =_xlfn.XLOOKUP(1,(Lists!$AW:$AW=D12)*(Lists!$AZ:$AZ=G12),(Lists!$AV:$AV),0) -> 0 | J12: =_xlfn.XLOOKUP('INT-EXT DOORS & int walls'!I12,Lists!AV:AV,Lists!AY:AY,0) -> 0 | K12: 0 | L12: 0 | M12: 0 | N12: 0 | O12: 0 | P12: 0 | Q12: 0 | R12: 0 | S12: 0 | T12: 0 | V12: 870 | AE12: 175-100-101200 | AF12: DELUXE 2 HINGES 2040x820 LH | AH12: Double Brick | AN12: DELUXE 2 HINGES 2040x720 RH | AO12: DELUXE 2 HINGES 2040x820 RH
G13: SF | I13: =_xlfn.XLOOKUP(1,(Lists!$AW:$AW=D13)*(Lists!$AZ:$AZ=G13),(Lists!$AV:$AV),0) -> 0 | J13: =_xlfn.XLOOKUP('INT-EXT DOORS & int walls'!I13,Lists!AV:AV,Lists!AY:AY,0) -> 0 | K13: 0 | L13: 0 | M13: 0 | N13: 0 | O13: 0 | P13: 0 | Q13: 0 | R13: 0 | S13: 0 | T13: 0 | U13: =SUM(S8:S14) -> 0 | V13: 920 | W13: =SUM(T8:T14) -> 0 | AE13: 175-100-101300 | AF13: DELUXE 2 HINGES 2040x820 RH | AH13: Double Brick | AN13: DELUXE 2 HINGES 2040x820 LH | AO13: DELUXE 2 HINGES 2040x920 LH
G14: SF | I14: =_xlfn.XLOOKUP(1,(Lists!$AW:$AW=D14)*(Lists!$AZ:$AZ=G14),(Lists!$AV:$AV),0) -> 0 | J14: =_xlfn.XLOOKUP('INT-EXT DOORS & int walls'!I14,Lists!AV:AV,Lists!AY:AY,0) -> 0 | L14: 0 | M14: 0 | N14: 0 | O14: 0 | P14: 0 | Q14: 0 | S14: 0 | T14: 0 | U14: =SUM(N13:N14) -> 0 | AE14: 175-100-101400 | AF14: DELUXE 2 HINGES 2040x870 LH | AH14: Double Brick | AN14: DELUXE 2 HINGES 2040x820 RH | AO14: DELUXE 2 HINGES 2040x920 RH
C15: =SUM(C8:C14) -> 0 | G15: =IF(C3="Brick Veneer",AP36,1) -> 1 | K15: =SUM(K8:K14)*K5 -> 0 | L15: =SUM(L8:L14)*L5 -> 0 | M15: 0 | N15: 0 | O15: 0 | P15: 0 | Q15: 0 | R15: 0 | S15: 0 | T15: 0 | V15: =SUM(L15:T15) -> 0 | AN15: DELUXE 2 HINGES 2040x870 LH | AO15: DELUXE 3 HINGES 2340x620 LH
L16: 440-610-100100 | M16: 440-610-500100 | N16: 440-610-100200 | O16: 440-610-500200 | P16: 440-610-100300 | Q16: 440-610-500300 | R16: 440-610-200600 | S16: 440-610-500300 | T16: 440-610-500410 | U16: =SUM(L18:L20) -> 0 | V16: 620 | W16: =SUM(M18:M21) -> 0 | AE16: 175-100-101500 | AF16: DELUXE 2 HINGES 2040x870 RH | AH16: Double Brick | AN16: DELUXE 2 HINGES 2040x870 RH | AO16: DELUXE 3 HINGES 2340x620 RH
C17: Quantity | D17: WC Doors | L17: 620 | M17: 620a | N17: 720 | O17: 720a | P17: 820 | Q17: 820a | R17: 870 | S17: 920 | T17: 920a | U17: =SUM(N18:N20) -> 0 | V17: 720 | W17: =SUM(O18:O21) -> 0 | AE17: 175-100-101600 | AF17: DELUXE 2 HINGES 2040x920 LH | AH17: Double Brick | AN17: DELUXE 2 HINGES 2040x920 LH | AO17: DELUXE 3 HINGES 2340x720 LH
G18: =IF($C$6="Brick Veneer","SF","DB") -> SF | I18: =_xlfn.XLOOKUP(1,(Lists!$AW:$AW=D18)*(Lists!$AZ:$AZ=G18),(Lists!$AV:$AV),0) -> 0 | J18: =_xlfn.XLOOKUP('INT-EXT DOORS & int walls'!I18,Lists!AV:AV,Lists!AY:AY,0) -> 0 | L18: =IF(J18=$L$17,C18,0) -> 0 | M18: =IF(J18=$M$17,C18,0) -> 0 | N18: =IF(J18=$N$17,C18,0) -> 0 | O18: =IF(J18=$O$17,C18,0) -> 0 | P18: =IF(J18=$P$17,C18,0) -> 0 | Q18: =IF(J18=$Q$17,C18,0) -> 0 | R18: =IF(J18=$R$17,C18,0) -> 0 | S18: =IF(J18=$S$17,C18,0) -> 0 | T18: =IF(J18=$T$17,C18,0) -> 0 | U18: =SUM(P18:P20) -> 0 | V18: 820 | W18: =SUM(Q18:Q21) -> 0 | AE18: 175-100-101700 | AF18: DELUXE 2 HINGES 2040x920 RH | AH18: Double Brick | AN18: DELUXE 2 HINGES 2040x920 RH | AO18: DELUXE 3 HINGES 2340x720 RH
G19: SF | I19: =_xlfn.XLOOKUP(1,(Lists!$AW:$AW=D19)*(Lists!$AZ:$AZ=G19),(Lists!$AV:$AV),0) -> 0 | J19: =_xlfn.XLOOKUP('INT-EXT DOORS & int walls'!I19,Lists!AV:AV,Lists!AY:AY,0) -> 0 | L19: =IF(J19=$L$17,C19,0) -> 0 | M19: =IF(J19=$M$17,C19,0) -> 0 | N19: =IF(J19=$N$17,C19,0) -> 0 | O19: =IF(J19=$O$17,C19,0) -> 0 | P19: =IF(J19=$P$17,C19,0) -> 0 | Q19: =IF(J19=$Q$17,C19,0) -> 0 | R19: =IF(J19=$R$17,C19,0) -> 0 | S19: =IF(J19=$S$17,C19,0) -> 0 | T19: =IF(J19=$T$17,C19,0) -> 0 | U19: =SUM(R18:R20) -> 0 | V19: 870 | AE19: 175-100-101770 | AF19: DELUXE 3 HINGES 2040x920 LH | AH19: Double Brick | AN19: DELUXE 3 HINGES 2340x620 LH | AO19: DELUXE 3 HINGES 2340x820 LH
G20: SF | I20: =_xlfn.XLOOKUP(1,(Lists!$AW:$AW=D20)*(Lists!$AZ:$AZ=G20),(Lists!$AV:$AV),0) -> 0 | J20: =_xlfn.XLOOKUP('INT-EXT DOORS & int walls'!I20,Lists!AV:AV,Lists!AY:AY,0) -> 0 | L20: =IF(J20=$L$17,C20,0) -> 0 | M20: =IF(J20=$M$17,C20,0) -> 0 | N20: =IF(J20=$N$17,C20,0) -> 0 | O20: =IF(J20=$O$17,C20,0) -> 0 | P20: =IF(J20=$P$17,C20,0) -> 0 | Q20: =IF(J20=$Q$17,C20,0) -> 0 | R20: =IF(J20=$R$17,C20,0) -> 0 | S20: =IF(J20=$S$17,C20,0) -> 0 | T20: 0 | U20: =SUM(S18:S20) -> 0 | V20: 920 | W20: =SUM(T18:T20) -> 0 | AE20: 175-100-101775 | AF20: DELUXE 3 HINGES 2040x920 RH | AH20: Double Brick | AN20: DELUXE 3 HINGES 2340x620 RH | AO20: DELUXE 3 HINGES 2340x820 RH
C21: =SUM(C18:C20) -> 0 | J21: =_xlfn.XLOOKUP('INT-EXT DOORS & int walls'!I21,Lists!AV:AV,Lists!AY:AY,0) -> 0 | K21: =SUM(K18:K20)*K5 -> 0 | L21: =SUM(L18:L20)*L5 -> 0 | M21: 0 | N21: 0 | O21: 0 | P21: 0 | Q21: 0 | R21: 0 | S21: 0 | T21: =SUM(T18:T20)*T5 -> 0 | V21: =SUM(K21:T21) -> 0 | AN21: DELUXE 3 HINGES 2340x720 LH | AO21: DELUXE 3 HINGES 2340x920 LH
M22: =SUM(M18:M21)*$L$5 -> 0 | N22: 0 | O22: =SUM(O18:O21)*$L$5 -> 0 | R22: 0 | S22: 0 | T22: 0 | Y22: TOTAL INTERNAL WALL LENGTHS | AC22: =SUM(Y8:AC20) -> 0 | AE22: 175-100-200900 | AF22: DELUXE 3 HINGES 2340x620 LH | AH22: Double Brick | AN22: DELUXE 3 HINGES 2340x720 RH | AO22: DELUXE 3 HINGES 2340x920 RH
C23: Quantity | D23: Sliding Doors | L23: 440-610-300100 | N23: 440-610-300200 | P23: 440-610-300300 | S23: 440-610-200700 | T23: 870 | U23: =SUM(L24:L26) -> 0 | V23: 620 | AE23: 175-100-201100 | AF23: DELUXE 3 HINGES 2340x720 LH | AH23: Double Brick | AN23: DELUXE 3 HINGES 2340x820 LH
G24: =IF($C$6="Brick Veneer","SF","DB") -> SF | I24: =_xlfn.XLOOKUP(1,(Lists!$AW:$AW=D24)*(Lists!$AZ:$AZ=G24),(Lists!$AV:$AV),0) -> 0 | J24: =_xlfn.XLOOKUP('INT-EXT DOORS & int walls'!I24,Lists!AV:AV,Lists!AY:AY,0) -> 0 | L24: =IF(J24=$L$17,C24,0) -> 0 | M24: =IF(J24=$M$17,C24,0) -> 0 | N24: =IF(J24=$N$17,C24,0) -> 0 | O24: =IF(J24=$O$17,C24,0) -> 0 | P24: =IF(J24=$P$17,C24,0) -> 0 | Q24: =IF(J24=$Q$17,C24,0) -> 0 | S24: =IF(J24=$T$23,C24,0) -> 0 | T24: =IF(J24=$T$17,C24,0) -> 0 | U24: =SUM(N24:N26) -> 0 | V24: 720 | Y24: METERBOX | AC24: Quantity | AE24: 175-100-201200 | AF24: DELUXE 3 HINGES 2340x720 RH | AH24: Double Brick | AK24: Internal Doors | AN24: DELUXE 3 HINGES 2340x820 RH
G25: SF | I25: =_xlfn.XLOOKUP(1,(Lists!$AW:$AW=D25)*(Lists!$AZ:$AZ=G25),(Lists!$AV:$AV),0) -> 0 | J25: =_xlfn.XLOOKUP('INT-EXT DOORS & int walls'!I25,Lists!AV:AV,Lists!AY:AY,0) -> 0 | L25: =IF(J25=$L$17,C25,0) -> 0 | M25: =IF(J25=$M$17,C25,0) -> 0 | N25: =IF(J25=$N$17,C25,0) -> 0 | O25: =IF(J25=$O$17,C25,0) -> 0 | P25: =IF(J25=$P$17,C25,0) -> 0 | Q25: =IF(J25=$Q$17,C25,0) -> 0 | S25: =IF(J25=$T$23,C25,0) -> 0 | T25: =IF(J25=$T$17,C25,0) -> 0 | U25: =SUM(P24:P26) -> 0 | V25: 820 | Y25: =_xlfn.XLOOKUP(1,(Lists!AW:AW=$Y$26)*(Lists!AX:AX=Y28),(Lists!AV:AV),0) -> 175-500-100900 | AC25: 1 | AE25: 175-100-201500 | AF25: DELUXE 3 HINGES 2340x820 LH | AH25: Double Brick | AN25: DELUXE 3 HINGES 2340x920 LH
G26: SF | I26: =_xlfn.XLOOKUP(1,(Lists!$AW:$AW=D26)*(Lists!$AZ:$AZ=G26),(Lists!$AV:$AV),0) -> 0 | J26: =_xlfn.XLOOKUP('INT-EXT DOORS & int walls'!I26,Lists!AV:AV,Lists!AY:AY,0) -> 0 | L26: =IF(J26=$L$17,C26,0) -> 0 | M26: =IF(J26=$M$17,C26,0) -> 0 | N26: =IF(J26=$N$17,C26,0) -> 0 | O26: =IF(J26=$O$17,C26,0) -> 0 | P26: =IF(J26=$P$17,C26,0) -> 0 | Q26: =IF(J26=$Q$17,C26,0) -> 0 | S26: 0 | T26: 0 | U26: =SUM(S24:S26) -> 0 | V26: 920 | Y26: METERBOX COMBINATION | AE26: 175-100-201600 | AF26: DELUXE 3 HINGES 2340x820 RH | AH26: Double Brick | AN26: DELUXE 3 HINGES 2340x920 RH
C27: =SUM(C24:C26) -> 0 | G27: SF | K27: =SUM(K24:K26)*K5 -> 0 | L27: =SUM(L24:L26)*L5 -> 0 | M27: 0 | N27: 0 | O27: 0 | P27: 0 | Q27: 0 | R27: 0 | S27: 0 | T27: 0 | V27: =SUM(L27:T27) -> 0
J28: =2.04*0.52 -> 1.0608 | L28: 440-610-200200 | N28: 440-610-200300 | O28: 440-610-500100 | P28: 440-610-200400 | Q28: 440-610-500200 | R28: 440-610-200500 | S28: 440-610-500300 | U28: STD Height | W28: 2340 Doors | Y28: NON REBATED | AE28: 175-100-201650 | AF28: DELUXE 3 HINGES 2340x920 LH | AH28: Double Brick | AK28: =C8+C9+C10+C11+C12+C13+C14+C18+C19+C20+C24+C25+C26+C30+C31+C32+C33 -> 0
C29: Quantity | D29: Double Doors | L29: 520 | M29: 520a | N29: 620 | O29: 620a | P29: 720 | Q29: 720a | R29: 820 | S29: 820a | U29: =SUM(L30:L33) -> 0 | V29: 520 | W29: =SUM(M30:M33) -> 0 | AE29: 175-100-201660 | AF29: DELUXE 3 HINGES 2340x920 RH | AH29: Double Brick | AK29: =IF(AK25="Double Brick",(#REF!),(AK28)) -> 0
G30: =IF($C$6="Brick Veneer","SF","DB") -> SF | I30: =_xlfn.XLOOKUP(1,(AH:AH=$C$6)*(AF:AF=D30),(AE:AE),0) -> 0 | J30: =_xlfn.XLOOKUP('INT-EXT DOORS & int walls'!I30,Lists!AV:AV,Lists!AY:AY,0) -> 0 | L30: =IF(J30=$L$29,C30*2,0) -> 0 | M30: =IF(J30=$M$29,C30*2,0) -> 0 | N30: =IF(J30=$N$29,C19*2,0) -> 0 | O30: =IF(J30=$O$29,C30*2,0) -> 0 | P30: =IF(J30=$P$29,C30*2,0) -> 0 | Q30: =IF(J30=$Q$29,C30*2,0) -> 0 | R30: =IF(J30=$R$29,C30*2,0) -> 0 | S30: =IF(J30=$S$29,C30*2,0) -> 0 | T30: =IF(J30=$T$17,C30,0) -> 0 | U30: =SUM(N30:N33) -> 0 | V30: 620 | W30: =SUM(O30:O33) -> 0 | Y30: Double Doors | AE30: 175-100-201700 | AF30: DELUXE 3 HINGES 2040x920 LH | AH30: Double Brick
G31: SF | I31: =_xlfn.XLOOKUP(1,(AH:AH=$C$6)*(AF:AF=D31),(AE:AE),0) -> 0 | J31: =_xlfn.XLOOKUP('INT-EXT DOORS & int walls'!I31,Lists!AV:AV,Lists!AY:AY,0) -> 0 | L31: =IF(J31=$L$29,C31*2,0) -> 0 | M31: =IF(J31=$M$29,C31*2,0) -> 0 | N31: =IF(J31=$N$29,C31*2,0) -> 0 | O31: =IF(J31=$O$29,C31*2,0) -> 0 | P31: =IF(J31=$P$29,C31*2,0) -> 0 | Q31: =IF(J31=$Q$29,C31*2,0) -> 0 | R31: =IF(J31=$R$29,C31*2,0) -> 0 | S31: =IF(J31=$S$29,C3*26,0) -> 0 | T31: =IF(J31=$T$17,C31,0) -> 0 | U31: =SUM(P30:P33) -> 0 | V31: 720 | W31: =SUM(Q30:Q33) -> 0 | Z31: MUSHROOM STOP | AE31: 175-100-300100 | AF31: DELUXE 2040x620 SLIDER | AH31: Double Brick | AK31: External Doors
G32: SF | I32: =_xlfn.XLOOKUP(1,(AH:AH=$C$6)*(AF:AF=D32),(AE:AE),0) -> 0 | J32: =_xlfn.XLOOKUP('INT-EXT DOORS & int walls'!I32,Lists!AV:AV,Lists!AY:AY,0) -> 0 | L32: 0 | M32: 0 | N32: =IF(J32=$N$29,C32*2,0) -> 0 | O32: 0 | P32: 0 | Q32: 0 | R32: 0 | S32: =IF(J32=$S$29,C4*26,0) -> 0 | T32: 0 | U32: =SUM(R30:R33) -> 0 | V32: 820 | W32: =SUM(S30:S33) -> 0 | AE32: 175-100-300200 | AF32: DELUXE 2040x720 SLIDER | AH32: Double Brick
G33: SF | I33: =_xlfn.XLOOKUP(1,(AH:AH=$C$6)*(AF:AF=D33),(AE:AE),0) -> 0 | J33: =_xlfn.XLOOKUP('INT-EXT DOORS & int walls'!I33,Lists!AV:AV,Lists!AY:AY,0) -> 0 | L33: 0 | M33: 0 | N33: =IF(J33=$N$29,C33*2,0) -> 0 | O33: 0 | P33: 0 | Q33: 0 | R33: 0 | S33: =IF(J33=$S$29,C33*2,0) -> 0 | W33: =SUM(T30:T37) -> 0 | Z33: TIMBER ENTRY DOOR FRAME | AE33: 175-100-300300 | AF33: DELUXE 2040x820 SLIDER | AH33: Double Brick
C34: =SUM(C30:C33) -> 0 | K34: =SUM(K30:K33)*K5 -> 0 | L34: =SUM(L30:L33)*L5 -> 0 | M34: 0 | N34: 0 | O34: 0 | P34: 0 | Q34: 0 | R34: 0 | S34: 0 | T34: 0 | V34: =SUM(L34:T34) -> 0
C35: =C15+C21+C27+C34 -> 0 | V35: =V15+V21+V27+V34 -> 0 | AE35: 175-100-300350 | AF35: DELUXE 2040x870 SLIDER | AH35: Double Brick
C37: Double Brick | AE37: 175-100-300700 | AF37: DELUXE 2340x820 SLIDER | AH37: Double Brick | AN37: WC doors
C38: Quantity | D38: Shopper Garage | Y38: "Y" | AE38: 175-110-100300 | AF38: DELUXE 2 HINGES 2040x620 LH WC | AG38: WC-2 hinges | AH38: Double Brick | AN38: Double Brick | AO38: Brick Veneer
I39: =_xlfn.XLOOKUP(1,(AH:AH=$C$37)*(AF:AF=D39)*(AG:AG=H39),(AE:AE),0) -> 0 | K39: DB | L39: =_xlfn.XLOOKUP(I39,AE:AE,AI:AI,0) -> 0 | M39: =IF(L39>0,C39,0) -> 0 | Z39: GARAGE/HOUSE SEAL REQUIRED | AE39: 175-110-100400 | AF39: DELUXE 2 HINGES 2040x620 RH WC | AG39: WC-2 hinges | AH39: Double Brick | AK39: =IF(Y39="Y",C39,"") ->  | AL39: =SUM(AK39:AK41) -> 0 | AM39: RAVEN RP5 915mm | AN39: DELUXE 2 HINGES 2040x620 LH WC | AO39: DELUXE 2 HINGES 2040x620 LH WC
I40: =_xlfn.XLOOKUP(1,(AH:AH=$C$37)*(AF:AF=D40)*(AG:AG=H40),(AE:AE),0) -> 0 | L40: =_xlfn.XLOOKUP(I40,AE:AE,AI:AI,0) -> 0 | M40: =IF(L40>0,C40,0) -> 0 | Z40: GARAGE/HOUSE SEAL REQUIRED | AE40: 175-110-100500 | AF40: DELUXE 2 HINGES 2040x720 LH WC | AG40: WC-2 hinges | AH40: Double Brick | AK40: =IF(Y40="Y",C40,"") ->  | AL40: =SUM(AK39:AK41) -> 0 | AM40: COWDROY DOOR SEAL | AN40: DELUXE 2 HINGES 2040x620 RH WC | AO40: DELUXE 2 HINGES 2040x620 RH WC
I41: =_xlfn.XLOOKUP(1,(AH:AH=$C$37)*(AF:AF=D41)*(AG:AG=H41),(AE:AE),0) -> 0 | L41: 0 | M41: 0 | Z41: GARAGE/HOUSE SEAL REQUIRED | AE41: 175-110-100600 | AF41: DELUXE 2 HINGES 2040x720 RH WC | AG41: WC-2 hinges | AH41: Double Brick | AK41: =IF(Y41="Y",C41,"") ->  | AN41: DELUXE 2 HINGES 2040x720 LH WC | AO41: DELUXE 2 HINGES 2040x720 LH WC
C42: =SUM(C39:C41) -> 0 | L42: 0 | AG42: WC-2 hinges | AN42: DELUXE 2 HINGES 2040x720 RH WC | AO42: DELUXE 2 HINGES 2040x720 RH WC
C43: =SUM(C39:C41) -> 0 | AE43: 175-110-100700 | AF43: DELUXE 2 HINGES 2040x820 LH WC | AG43: WC-2 hinges | AH43: Double Brick | AN43: DELUXE 2 HINGES 2040x820 LH WC | AO43: DELUXE 2 HINGES 2040x820 LH WC
AE44: 175-110-100800 | AF44: DELUXE 2 HINGES 2040x820 RH WC | AG44: WC-2 hinges | AH44: Double Brick | AN44: DELUXE 2 HINGES 2040x820 RH WC | AO44: DELUXE 2 HINGES 2040x820 RH WC
AE45: 175-110-100900 | AF45: DELUXE 2 HINGES 2040x870 LH WC | AG45: WC-2 hinges | AH45: Double Brick | AN45: DELUXE 2 HINGES 2040x870 LH WC | AO45: DELUXE 2 HINGES 2040x920 LH WC
AE46: 175-110-100950 | AF46: DELUXE 2 HINGES 2040x870 RH WC | AG46: WC-2 hinges | AH46: Double Brick | AN46: DELUXE 2 HINGES 2040x870 RH WC | AO46: DELUXE 2 HINGES 2040x920 RH WC
AE47: 175-110-200100 | AF47: DELUXE 3 HINGES 2340x920 LH WC | AG47: WC-3 hinges | AH47: Double Brick | AN47: DELUXE 3 HINGES 2340x920 LH WC | AO47: DELUXE 3 HINGES 2340x620 LH WC
AE48: 175-110-200200 | AF48: DELUXE 3 HINGES 2340x920 RH WC | AG48: WC-3 hinges | AH48: Double Brick | AN48: DELUXE 3 HINGES 2340x920 RH WC | AO48: DELUXE 3 HINGES 2340x620 RH WC
AE49: 175-110-200300 | AF49: DELUXE 3 HINGES 2340x820 LH WC | AG49: WC-3 hinges | AH49: Double Brick | AN49: DELUXE 3 HINGES 2340x820 LH WC | AO49: DELUXE 3 HINGES 2340x720 LH WC
AE50: 175-110-200400 | AF50: DELUXE 3 HINGES 2340x820 RH WC | AG50: WC-3 hinges | AH50: Double Brick | AN50: DELUXE 3 HINGES 2340x820 RH WC | AO50: DELUXE 3 HINGES 2340x720 RH WC
AE51: 175-110-200500 | AF51: DELUXE 3 HINGES 2340x720 LH WC | AG51: WC-3 hinges | AH51: Double Brick | AN51: DELUXE 3 HINGES 2340x720 LH WC | AO51: DELUXE 3 HINGES 2340x820 LH WC
AE52: 175-110-200600 | AF52: DELUXE 3 HINGES 2340x720 RH WC | AG52: WC-3 hinges | AH52: Double Brick | AN52: DELUXE 3 HINGES 2340x720 RH WC | AO52: DELUXE 3 HINGES 2340x820 RH WC
AE53: 175-110-200700 | AF53: DELUXE 3 HINGES 2340x620 LH WC | AG53: WC-3 hinges | AH53: Double Brick | AN53: DELUXE 3 HINGES 2340x620 LH WC | AO53: DELUXE 3 HINGES 2340x920 LH WC
AG54: Standard | AH54: Double Brick | AN54: DELUXE 3 HINGES 2340x620 RH WC | AO54: DELUXE 3 HINGES 2340x920 RH WC
AE55: 175-120-100700 | AF55: DELUXE 3 HINGE 2040x820 LH | AG55: SHOPPER 90mm BACK OPENING | AH55: Double Brick | AI55: 440-110-100100
AE56: 175-120-100800 | AF56: DELUXE 3 HINGE 2040x820 RH | AG56: SHOPPER 90mm BACK OPENING | AH56: Double Brick | AI56: 440-110-100100 | AN56: Sliding Doors
AE57: 175-120-101300 | AF57: DELUXE 3 HINGE 2040x870 RH | AG57: SHOPPER 90mm BACK OPENING | AH57: Double Brick | AN57: Double Brick | AO57: Brick Veneer
AE58: 175-120-101400 | AF58: DELUXE 3 HINGE 2040x870 LH | AG58: SHOPPER 90mm BACK OPENING | AH58: Double Brick | AN58: DELUXE SLIDER 2040x620 | AO58: DELUXE SLIDER 2040x620
AE59: 175-120-101450 | AF59: DELUXE 3 HINGE 2040x920 LH | AG59: SHOPPER 90mm BACK OPENING | AH59: Double Brick | AI59: 440-100-100175 | AN59: DELUXE SLIDER 2040x720 | AO59: DELUXE SLIDER 2040x720
AE60: 175-120-101455 | AF60: DELUXE 3 HINGE 2040x920 RH | AG60: SHOPPER 90mm BACK OPENING | AH60: Double Brick | AI60: 440-100-100175 | AN60: DELUXE SLIDER 2040x820 | AO60: DELUXE SLIDER 2040x820
AE61: 175-120-300100 | AF61: DELUXE 3 HINGE 2040x820 RH | AG61: SHOPPER 110mm BACK OPENING | AH61: Double Brick | AI61: 440-110-100100 | AN61: DELUXE SLIDER 2040x870 | AO61: DELUXE SLIDER 2040x870
AE62: 175-120-300700 | AF62: DELUXE 3 HINGE 2040x820 LH | AG62: SHOPPER 110mm BACK OPENING | AH62: Double Brick | AI62: 440-110-100100 | AN62: DELUXE 2340x620 SLIDER | AO62: DELUXE SLIDER 2340x620
AE63: 175-130-100800 | AF63: DELUXE 3 HINGE 2340x920 RH | AG63: SHOPPER 90mm BACK OPENING | AH63: Double Brick | AI63: 440-110-100225 | AN63: DELUXE 2340x720 SLIDER | AO63: DELUXE SLIDER 2340x720
AE64: 175-130-100900 | AF64: DELUXE 3 HINGE 2340x920 LH | AG64: SHOPPER 90mm BACK OPENING | AH64: Double Brick | AI64: 440-110-100225 | AN64: DELUXE 2340x820 SLIDER | AO64: DELUXE SLIDER 2340x820
AE65: 175-130-200800 | AF65: DELUXE 3 HINGE 2340x920 RH | AG65: SHOPPER 110mm BACK OPENING | AH65: Double Brick | AI65: 440-110-100225 | AN65: DELUXE SLIDER 2040x1240 | AO65: DELUXE SLIDER 2340x870
AE66: 175-130-200900 | AF66: DELUXE 3 HINGE 2340x920 LH | AG66: SHOPPER 110mm BACK OPENING | AH66: Double Brick | AI66: 440-110-100225 | AN66: DELUXE SLIDER 2040x1440
AE67: 175-130-200910 | AF67: DELUXE 3 HINGE 2340x820 RH | AG67: SHOPPER 90mm BACK OPENING | AH67: Double Brick | AI67: 440-110-100200 | AN67: DELUXE SLIDER 2040x1640
AE68: 175-130-200920 | AF68: DELUXE 3 HINGE 2340x820 LH | AG68: SHOPPER 90mm BACK OPENING | AH68: Double Brick | AI68: 440-110-100200
AG69: Square Bend | AN69: Double Doors
AE70: 175-140-100050 | AF70: SQUARE BEND 3 HINGE | AG70: 2040x720 LH SHOPPER | AH70: Double Brick | AI70: 440-300-100100 | AN70: Double Brick | AO70: Brick Veneer
AE71: 175-140-100100 | AF71: SQUARE BEND 3 HINGE | AG71: 2040x720 RH SHOPPER | AH71: Double Brick | AI71: 440-300-100100 | AN71: DELUXE 2 HINGES 2040x1040 | AO71: DELUXE 2 HINGES 2040x1040
AE72: 175-140-100150 | AF72: SQUARE BEND 3 HINGE | AG72: 2040x820 LH SHOPPER | AH72: Double Brick | AI72: 440-300-100200 | AN72: DELUXE 2 HINGES 2040x1240 | AO72: DELUXE 2 HINGES 2040x1240
AE73: 175-140-100200 | AF73: SQUARE BEND 3 HINGE | AG73: 2040x820 RH SHOPPER | AH73: Double Brick | AI73: 440-300-100200 | AN73: DELUXE 2 HINGES 2040x1440 | AO73: DELUXE 2 HINGES 2040x1440
AG74: BAL DOOR | AN74: DELUXE 2 HINGES 2040x1640 | AO74: DELUXE 2 HINGES 2040x1640
AE75: 175-140-100250 | AF75: SQUARE BEND 3 HINGE | AG75: 2040x720x42 LH BAL DOOR | AH75: Double Brick | AN75: DELUXE 3 HINGES 2340x1240 | AO75: DELUXE 2 HINGES 2340x1240
AE76: 175-140-100300 | AF76: SQUARE BEND 3 HINGE | AG76: 2040x720x42 RH BAL DOOR | AH76: Double Brick | AN76: DELUXE 3 HINGES 2340x1640 | AO76: DELUXE 2 HINGES 2340x1440
AE77: 175-140-100350 | AF77: SQUARE BEND 3 HINGE | AG77: 2040x820x42 LH BAL DOOR | AH77: Double Brick | AN77: DELUXE 3 HINGES 2340x1040 | AO77: DELUXE 2 HINGES 2340x1640
AE78: 175-140-100400 | AF78: SQUARE BEND 3 HINGE | AG78: 2040x820x42 RH BAL DOOR | AN78: DELUXE 3 HINGES 2340x1440
AG79: BAL RATED DOOR | AH79: Double Brick
AE80: 175-100-701100 | AF80: DELUXE 3 HINGES 2040x820x42 RH | AG80: BAL DOOR | AH80: Double Brick
AE81: 175-100-701200 | AF81: DELUXE 3 HINGES 2040x820x42 LH | AG81: BAL DOOR
AH88: Double Brick
AE89: 175-200-100200 | AF89: DELUXE 2 HINGES 2040x1040 | AG89: TO SUIT 2 x 520 DOORS | AH89: Double Brick
AE90: 175-200-100400 | AF90: DELUXE 2 HINGES 2040x1240 | AG90: TO SUIT 2 x 620 DOORS | AH90: Double Brick
AE91: 175-200-100600 | AF91: DELUXE 2 HINGES 2040x1440 | AG91: TO SUIT 2 x 720 DOORS | AH91: Double Brick
AE92: 175-200-100800 | AF92: DELUXE 2 HINGES 2040x1640 | AG92: TO SUIT 2 x 820 DOORS | AH92: Double Brick
AE93: 175-200-200400 | AF93: DELUXE 3 HINGES 2340x1240 | AG93: TO SUIT 2 x 620 DOORS | AH93: Double Brick
AE94: 175-200-200800 | AF94: DELUXE 3 HINGES 2340x1640 | AG94: TO SUIT 2 x 820 DOORS | AH94: Double Brick
AE95: 175-200-201300 | AF95: DELUXE 3 HINGES 2340x1440 | AG95: TO SUIT 2 x 720 DOORS | AH95: Double Brick
AE96: 175-200-300100 | AF96: DELUXE 2040x1240 SLIDER | AG96: TO SUIT 2 x 670 DOORS | AH96: Double Brick
AE97: 175-200-300200 | AF97: DELUXE 2040x1440 SLIDER | AG97: TO SUIT 2 x 770 DOORS | AH97: Double Brick
AE98: 175-200-300300 | AF98: DELUXE 2040x1640 SLIDER | AG98: TO SUIT 2 x 870 DOORS | AH98: Brick Veneer
AE99: 175-460-100110 | AF99: DELUXE FRAMED - 2040x620 LH | AH99: Brick Veneer
AE100: 175-460-100115 | AF100: DELUXE FRAMED - 2040x620 RH | AH100: Brick Veneer
AE101: 175-460-100120 | AF101: DELUXE FRAMED - 2040x720 LH | AH101: Brick Veneer
AE102: 175-460-100125 | AF102: DELUXE FRAMED - 2040x720 RH | AH102: Brick Veneer
AE103: 175-460-100130 | AF103: DELUXE FRAMED - 2040x820 LH | AH103: Brick Veneer
AE104: 175-460-100135 | AF104: DELUXE FRAMED - 2040x820 RH | AH104: Brick Veneer
AE105: 175-460-100150 | AF105: DELUXE FRAMED - 2040x920 LH | AH105: Brick Veneer
AE106: 175-460-100155 | AF106: DELUXE FRAMED - 2040x920 RH | AH106: Brick Veneer
AE107: 175-460-100310 | AF107: DELUXE FRAMED - 2340x620 LH | AH107: Brick Veneer
AE108: 175-460-100315 | AF108: DELUXE FRAMED - 2340x620 RH | AH108: Brick Veneer
AE109: 175-460-100320 | AF109: DELUXE FRAMED - 2340x720 LH | AH109: Brick Veneer
AE110: 175-460-100325 | AF110: DELUXE FRAMED - 2340x720 RH | AH110: Brick Veneer
AE111: 175-460-100330 | AF111: DELUXE FRAMED - 2340x820 LH | AH111: Brick Veneer
AE112: 175-460-100335 | AF112: DELUXE FRAMED - 2340x820 RH | AH112: Brick Veneer
AE113: 175-460-100350 | AF113: DELUXE FRAMED - 2340x920 LH | AH113: Brick Veneer
AE114: 175-460-100355 | AF114: DELUXE FRAMED - 2340x920 RH | AH114: Brick Veneer
AE115: 175-460-100500 | AF115: DELUXE FRAMED - 2040x620 LH | AG115: WC-2 hinges | AH115: Brick Veneer
AE116: 175-460-100505 | AF116: DELUXE FRAMED - 2040x620 RH | AG116: WC-2 hinges | AH116: Brick Veneer
AE117: 175-460-100510 | AF117: DELUXE FRAMED - 2040x720 LH | AG117: WC-2 hinges | AH117: Brick Veneer
AE118: 175-460-100515 | AF118: DELUXE FRAMED - 2040x720 RH | AG118: WC-2 hinges | AH118: Brick Veneer
AE119: 175-460-100520 | AF119: DELUXE FRAMED - 2040x820 LH | AG119: WC-2 hinges | AH119: Brick Veneer
AE120: 175-460-100525 | AF120: DELUXE FRAMED - 2040x820 RH | AG120: WC-2 hinges | AH120: Brick Veneer
AE121: 175-460-100540 | AF121: DELUXE FRAMED - 2040x920 LH | AG121: WC-2 hinges | AH121: Brick Veneer
AE122: 175-460-100545 | AF122: DELUXE FRAMED - 2040x920 RH | AG122: WC-2 hinges | AH122: Brick Veneer
AE123: 175-460-100700 | AF123: DELUXE FRAMED - 2340x620 LH | AG123: WC-3 hinges | AH123: Brick Veneer
AE124: 175-460-100705 | AF124: DELUXE FRAMED - 2340x620 RH | AG124: WC-3 hinges | AH124: Brick Veneer
AE125: 175-460-100710 | AF125: DELUXE FRAMED - 2340x720 LH | AG125: WC-3 hinges | AH125: Brick Veneer
AE126: 175-460-100715 | AF126: DELUXE FRAMED - 2340x720 RH | AG126: WC-3 hinges | AH126: Brick Veneer
AE127: 175-460-100720 | AF127: DELUXE FRAMED - 2340x820 LH | AG127: WC-3 hinges | AH127: Brick Veneer
AE128: 175-460-100725 | AF128: DELUXE FRAMED - 2340x820 RH | AG128: WC-3 hinges | AH128: Brick Veneer
AE129: 175-460-100740 | AF129: DELUXE FRAMED - 2340x920 LH | AG129: WC-3 hinges | AH129: Brick Veneer
AE130: 175-460-100745 | AF130: DELUXE FRAMED - 2340x920 RH | AG130: WC-3 hinges | AH130: Brick Veneer
AE131: 175-460-100900 | AF131: DELUXE FRAMED - 2040x820 LH | AG131: Shopper 3 hinges | AH131: Brick Veneer
AE132: 175-460-100905 | AF132: DELUXE FRAMED - 2040x820 RH | AG132: Shopper 3 hinges | AH132: Brick Veneer
AE133: 175-460-100925 | AF133: DELUXE FRAMED - 2040x920 RH | AG133: Shopper 4 hinges | AH133: Brick Veneer
AE134: 175-460-101100 | AF134: DELUXE FRAMED - 2340x820 LH | AG134: Shopper 3 hinges | AH134: Brick Veneer
AE135: 175-460-101105 | AF135: DELUXE FRAMED - 2340x820 RH | AG135: Shopper 3 hinges | AH135: Brick Veneer
AE136: 175-460-101300 | AF136: DELUXE 2 HINGES 2040x1040 | AG136: 2 doors | AH136: Brick Veneer
AE137: 175-460-101305 | AF137: DELUXE 2 HINGES 2040x1240 | AG137: 2 doors | AH137: Brick Veneer
AE138: 175-460-101310 | AF138: DELUXE 2 HINGES 2040x1440 | AG138: 2 doors | AH138: Brick Veneer
AE139: 175-460-101315 | AF139: DELUXE 2 HINGES 2040x1640 | AG139: 2 doors | AH139: Brick Veneer
AE140: 175-460-101500 | AF140: DELUXE 2 HINGES 2340x1240 | AG140: 2 doors | AH140: Brick Veneer
AE141: 175-460-101505 | AF141: DELUXE 2 HINGES 2340x1440 | AG141: 2 doors | AH141: Brick Veneer
AE142: 175-460-101510 | AF142: DELUXE 2 HINGES 2340x1640 | AG142: 2 doors | AH142: Brick Veneer
AE143: 175-460-101700 | AF143: DELUXE FRAMED 2040x620 SLIDER | AH143: Brick Veneer
AE144: 175-460-101705 | AF144: DELUXE FRAMED 2040x720 SLIDER | AH144: Brick Veneer
AE145: 175-460-101710 | AF145: DELUXE FRAMED 2040x820 SLIDER | AH145: Brick Veneer
AE146: 175-460-101715 | AF146: DELUXE FRAMED 2040x870 SLIDER | AH146: Brick Veneer
AE147: 175-460-101900 | AF147: DELUXE FRAMED 2340x620 SLIDER | AH147: Brick Veneer
AE148: 175-460-101905 | AF148: DELUXE FRAMED 2340x720 SLIDER | AH148: Brick Veneer
AE149: 175-460-101910 | AF149: DELUXE FRAMED 2340x820 SLIDER | AH149: Brick Veneer
AE150: 175-460-101915 | AF150: DELUXE FRAMED 2340x870 SLIDER

Sheet Lintels.windows
B2: ='Main Details'!B2 -> QUANTITY SHEET FOR EASY START HOMES | AM2: PG 4
B3: ='Main Details'!D6 -> 0
G4: LINTEL TAKEOFF | R4: GALVANISED: | V4: =_xlfn.IFNA(VLOOKUP('Main Details'!D33,Lists!Y6:AA9,2,FALSE),"") -> 600 | X4: mg/m2 | AI4: GALVANISED: | AK4: =_xlfn.IFNA(VLOOKUP('Main Details'!D33,Lists!Y6:AA9,2,FALSE),"") -> 600 | AL4: T-BARS (Incl. Lugs)
R5: GENERALLY INTERNAL LINTELS: | AI5: GENERALLY EXTERNAL
D6: ext ddt only | E6: Window Nosing? Yes = "Y" | F6: deduction | G6: WINDOW OR DOOR SIZE | J6: Bricks | K6: Width | L6: M2 openings | N6: External Lintel? Yes = "Y" | P6: =IF('Main Details'!$G$28,"0.1>1.6","0.1>1.2") -> 0.1>1.6 | R6: =IF('Main Details'!$G$28,"1.6>1.9","1.2>1.5") -> 1.6>1.9 | T6: =IF('Main Details'!$G$28,"1.9>2.6","1.5>2.2") -> 1.9>2.6 | V6: =IF('Main Details'!$G$28,"2.6>3.1","2.2>2.6") -> 2.6>3.1 | X6: =IF('Main Details'!$G$28,"3.1>3.45","2.6>3.0") -> 3.1>3.45 | Z6: =IF('Main Details'!$G$28,"3.45>3.85","3.0>3.45") -> 3.45>3.85 | AB6: =IF('Main Details'!$G$28,"N/A","N/A") -> N/A | AD6: LUGS- LINTELS & TBARS | AE6: =IF('Main Details'!$G$28,"0.1>2.4","0.1>2.1") -> 0.1>2.4 | AF6: =IF('Main Details'!$F$10="2C",IF('Main Details'!$G$28,"2.35>2.65","2.05>2.25"),IF('Main Details'!$G$28,"2.4>2.65","2.1>2.25")) -> 2.35>2.65 | AG6: =IF('Main Details'!$F$10="2C",IF('Main Details'!$G$28,"2.65>3.45","2.25>3.0"),"N/A") -> 2.65>3.45 | AH6: =IF('Main Details'!$F$10="2C",IF('Main Details'!$G$28,"3.45>3.85","3.0>3.45"),IF('Main Details'!$G$28,"2.65>3.85","2.25>3.45")) -> 3.45>3.85 | AI6: =IF('Main Details'!$G$28,"N/A","N/A") -> N/A | AJ6: TBAR SIZE (to be nominated) | AK6: 4.0>
B7: LOCATION | C7: ddt ext only | F7: window | O7: 75x8 | P7: 75x75 | R7: 75x75 | T7: 100x75 | V7: 125x75 | X7: 150x90 | Z7: 150x100 | AB7: N/A | AE7: =IF('Main Details'!$F$10="2c","90x90 x8","100x100 x6") -> 90x90 x8 | AF7: 100x100 | AG7: =IF('Main Details'!$F$10="2c","150x90 x8","N/A") -> 150x90 x8 | AH7: 150x100 | AI7: N/A | AK7: TBARS | AV7: PRE-WELDED LUGS FORMULAS
F8: cont 1 | O8: FB | P8: x6 | R8: x8 | T8: x8 | V8: x8 | X8: x8 | Z8: x10 | AF8: x8 | AH8: x10 | AS8: RODS UNDER | AT8: Ext Deduction
A9: =IF(#REF!>0,I9+#REF!) ->  | C9: =IF(D9="Y",G9*I9,0) -> 0 | D9: N | F9: =IF(AND(#REF!>0,G9>0),(#REF!*0.086)*(K9/1000)," ") ->  | H9: x | I9: =(IF(K9=""," ",(K9-10)/240)) ->  | J9: =IF(G9>0,G9*I9," ") ->  | L9: =IF(G9>0,(K9+160)/1000," ") ->  | P9: =IF('[7]Main Details'!$G$28,IF(AND($K9>0,$K9<=1600),($K9/1000)+0.2,""),IF(AND($K9>0,$K9<=1200),($K9/1000)+0.2,"")) ->  | R9: =IF('[7]Main Details'!$G$28,IF(AND($K9>1600,$K9<=1900),($K9/1000)+0.2,""),IF(AND($K9>1200,$K9<=1500),($K9/1000)+0.2,"")) ->  | T9: =IF('[7]Main Details'!$G$28,IF(AND($K9>1900,$K9<=2600),($K9/1000)+0.27,""),IF(AND($K9>1500,$K9<=2200),($K9/1000)+0.27,"")) ->  | V9: =IF('[7]Main Details'!$G$28,IF(AND($K9>2600,$K9<=3100),($K9/1000)+0.3,""),IF(AND($K9>2200,$K9<=2600),($K9/1000)+0.3,"")) ->  | X9: =IF('[7]Main Details'!$G$28,IF(AND($K9>3100,$K9<=3450),($K9/1000)+0.3,""),IF(AND($K9>2600,$K9<=3000),($K9/1000)+0.3,"")) ->  | Z9: =IF('[7]Main Details'!$G$28,IF(AND($K9>3450,$K9<=3850),($K9/1000)+0.3,""),IF(AND($K9>3000,$K9<=3450),($K9/1000)+0.3,"")) ->  | AD9: =IF(AM9>=1200,AO9+AP9+AQ9+AR9," ") ->  | AE9: =IF($N9="Y",IF('[7]Main Details'!$G$28, IF('[7]Main Details'!$F$10="2c",IF(AND($K9>0,$K9<=2350),($K9/1000)+0.24,""),IF(AND($K9>0,$K9<=2400),($K9/1000)+0.27,"")), IF('[7]Main Details'!$F$10="2c",IF(AND($K9>0,$K9<=2050),($K9/1000)+0.24,""),IF(AND($K9>0,$K9<=2100),($K9/1000)+0.27,"")) ),"") ->  | AF9: =IF($N9="Y",IF('[7]Main Details'!$G$28, IF('[7]Main Details'!$F$10="2c",IF(AND($K9>2350,$K9<=2650),($K9/1000)+0.3,""),IF(AND($K9>2400,$K9<=2650),($K9/1000)+0.3,"")), IF('[7]Main Details'!$F$10="2c",IF(AND($K9>2050,$K9<=2250),($K9/1000)+0.3,""),IF(AND($K9>2100,$K9<=2250),($K9/1000)+0.3,"")) ),"") ->  | AG9: =IF($N9="Y",IF('[7]Main Details'!$G$28, IF('[7]Main Details'!$F$10="2c",IF(AND($K9>2650,$K9<=3450),($K9/1000)+0.3,""),""), IF('[7]Main Details'!$F$10="2c",IF(AND($K9>2250,$K9<=3000),($K9/1000)+0.3,""),"") ),"") ->  | AH9: =IF($N9="Y",IF('[7]Main Details'!$G$28, IF('[7]Main Details'!$F$10="2c",IF(AND($K9>3450,$K9<=3850),($K9/1000)+0.3,""),IF(AND($K9>2650,$K9<=3850),($K9/1000)+0.3,"")), IF('[7]Main Details'!$F$10="2c",IF(AND($K9>3000,$K9<=3450),($K9/1000)+0.3,""),IF(AND($K9>2250,$K9<=3450),($K9/1000)+0.3,"")) ),"") ->  | AI9: =IF(AND($K9<=4000,$K9>=3401,N9="Y"),($K9+'[7]BUILDERS SETTINGS'!$C$14)/1000," ") ->  | AK9: =IF(AND($K9<=7199,$K9>=4001),($K9+'[7]BUILDERS SETTINGS'!$C$15)/1000," ") ->  | AM9: =K9+200 -> 200 | AO9: =IF(AND($AM9<=1999,$AM9>=1000),1,"0") -> 0 | AP9: =IF(AND($AM9<=2999,$AM9>=2000),2,"0") -> 0 | AQ9: =IF(AND($AM9<=3999,$AM9>=3000),3,"0") -> 0 | AR9: =IF(AND($AM9<=4999,$AM9>=4000),4,"0") -> 0
A10: =IF(#REF!>0,I10+#REF!) ->  | B10: ='Summary Sheet'!B69 -> BATH 2 | C10: =IF(D10="Y",G10*I10,0) -> 0 | D10: N | F10: =IF(AND(#REF!>0,G10>0),(#REF!*0.086)*(K10/1000)," ") ->  | G10: ='Summary Sheet'!G69 -> 0.514 | H10: x | I10: =(IF(K10=""," ",(K10-10)/240)) -> 5.416666667 | J10: =IF(G10>0,G10*I10," ") -> 2.784166667 | K10: ='Summary Sheet'!C69 -> 1310 | L10: =G10*K10/1000 -> 0.67334 | M10: =IF(G10>0,1,0) -> 1 | P10: =IF('Main Details'!$G$28,IF(AND($K10>0,$K10<=1600,$B10<>"GOB"),($K10/1000)+0.2,""),IF(AND($K10>0,$K10<=1200),($K10/1000)+0.2,"")) -> 1.51 | Q10: =IF(P10>1.2,P10,0) -> 1.51 | R10: =IF('Main Details'!$G$28,IF(AND($K10>1600,$K10<=1900),($K10/1000)+0.2,""),IF(AND($K10>1200,$K10<=1500),($K10/1000)+0.2,"")) ->  | S10: =IF(R10>1.2,R10,0) ->  | T10: =IF('Main Details'!$G$28,IF(AND($K10>1900,$K10<=2600),($K10/1000)+0.27,""),IF(AND($K10>1500,$K10<=2200),($K10/1000)+0.27,"")) ->  | U10: =IF(T10>1.2,T10,0) ->  | V10: =IF('Main Details'!$G$28,IF(AND($K10>2600,$K10<=3100),($K10/1000)+0.3,""),IF(AND($K10>2200,$K10<=2600),($K10/1000)+0.3,"")) ->  | W10: =IF(V10>1.2,V10,0) ->  | X10: =IF('Main Details'!$G$28,IF(AND($K10>3100,$K10<=3450),($K10/1000)+0.3,""),IF(AND($K10>2600,$K10<=3000),($K10/1000)+0.3,"")) ->  | Y10: =IF(X10>1.2,X10,0) ->  | Z10: =IF('Main Details'!$G$28,IF(AND($K10>3450,$K10<=3850),($K10/1000)+0.3,""),IF(AND($K10>3000,$K10<=3450),($K10/1000)+0.3,"")) ->  | AA10: =IF(Z10>1.2,Z10,0) ->  | AC10: =IF(AB10>1.2,AB10,0) -> 0 | AD10: =IF(AV10>=1200,AO10+AP10+AQ10+AR10," ") -> 1 | AE10: =IF(OR($N10="Y",$B10="GOB"),IF('Main Details'!$G$28, IF('Main Details'!$F$10="2c",IF(AND($K10>0,$K10<=2350),($K10/1000)+0.24,""),IF(AND($K10>0,$K10<=2400),($K10/1000)+0.27,"")), IF('Main Details'!$F$10="2c",IF(AND($K10>0,$K10<=2050),($K10/1000)+0.24,""),IF(AND($K10>0,$K10<=2100),($K10/1000)+0.27,"")) ),"") ->  | AF10: =IF($N10="Y",IF('Main Details'!$G$28, IF('Main Details'!$F$10="2c",IF(AND($K10>2350,$K10<=2650),($K10/1000)+0.3,""),IF(AND($K10>2400,$K10<=2650),($K10/1000)+0.3,"")), IF('Main Details'!$F$10="2c",IF(AND($K10>2050,$K10<=2250),($K10/1000)+0.3,""),IF(AND($K10>2100,$K10<=2250),($K10/1000)+0.3,"")) ),"") ->  | AG10: =IF($N10="Y",IF('Main Details'!$G$28, IF('Main Details'!$F$10="2c",IF(AND($K10>2650,$K10<=3450),($K10/1000)+0.3,""),""), IF('Main Details'!$F$10="2c",IF(AND($K10>2250,$K10<=3000),($K10/1000)+0.3,""),"") ),"") ->  | AH10: =IF($N10="Y",IF('Main Details'!$G$28, IF('Main Details'!$F$10="2c",IF(AND($K10>3450,$K10<=3850),($K10/1000)+0.3,""),IF(AND($K10>2650,$K10<=3850),($K10/1000)+0.3,"")), IF('Main Details'!$F$10="2c",IF(AND($K10>3000,$K10<=3450),($K10/1000)+0.3,""),IF(AND($K10>2250,$K10<=3450),($K10/1000)+0.3,"")) ),"") ->  | AK10: =IF(AND($K10<=7199,$K10>=4001),($K10+'BUILDERS SETTINGS'!$C$15)/1000," ") ->  | AN10: =IF(N10="Y",K10,0) -> 0 | AO10: =IF(AND($AV10<=1999,$AV10>=1000),1,"0") -> 1 | AP10: =IF(AND($AV10<=2999,$AV10>=2000),2,"0") -> 0 | AQ10: =IF(AND($AV10<=3999,$AV10>=3000),3,"0") -> 0 | AR10: =IF(AND($AV10<=4999,$AV10>=4000),4,"0") -> 0 | AS10: =IF(AND(G10>0,G10<25),K10/1000+1.5,0) -> 2.81 | AT10: =IF(AND(G10>0,N10=FALSE),K10/1000,0) -> 1.31 | AV10: =K10+200 -> 1510
A11: =IF(#REF!>0,I11+#REF!) ->  | B11: ='Summary Sheet'!B70 -> BED 2 | C11: =IF(D11="Y",G11*I11,0) -> 0 | D11: N | F11: =IF(AND(#REF!>0,G11>0),(#REF!*0.086)*(K11/1000)," ") ->  | G11: ='Summary Sheet'!G70 -> 2.314 | H11: x | I11: =(IF(K11=""," ",(K11-10)/240)) -> 7.083333333 | J11: =IF(G11>0,G11*I11," ") -> 16.39083333 | K11: ='Summary Sheet'!C70 -> 1710 | L11: =G11*K11/1000 -> 3.95694 | M11: =IF(G11>0,1,0) -> 1 | P11: =IF('Main Details'!$G$28,IF(AND($K11>0,$K11<=1600,$B11<>"GOB"),($K11/1000)+0.2,""),IF(AND($K11>0,$K11<=1200),($K11/1000)+0.2,"")) ->  | Q11: =IF(P11>1.2,P11,0) ->  | R11: =IF('Main Details'!$G$28,IF(AND($K11>1600,$K11<=1900),($K11/1000)+0.2,""),IF(AND($K11>1200,$K11<=1500),($K11/1000)+0.2,"")) -> 1.91 | S11: =IF(R11>1.2,R11,0) -> 1.91 | T11: =IF('Main Details'!$G$28,IF(AND($K11>1900,$K11<=2600),($K11/1000)+0.27,""),IF(AND($K11>1500,$K11<=2200),($K11/1000)+0.27,"")) ->  | U11: =IF(T11>1.2,T11,0) ->  | V11: =IF('Main Details'!$G$28,IF(AND($K11>2600,$K11<=3100),($K11/1000)+0.3,""),IF(AND($K11>2200,$K11<=2600),($K11/1000)+0.3,"")) ->  | W11: =IF(V11>1.2,V11,0) ->  | X11: =IF('Main Details'!$G$28,IF(AND($K11>3100,$K11<=3450),($K11/1000)+0.3,""),IF(AND($K11>2600,$K11<=3000),($K11/1000)+0.3,"")) ->  | Y11: =IF(X11>1.2,X11,0) ->  | Z11: =IF('Main Details'!$G$28,IF(AND($K11>3450,$K11<=3850),($K11/1000)+0.3,""),IF(AND($K11>3000,$K11<=3450),($K11/1000)+0.3,"")) ->  | AA11: =IF(Z11>1.2,Z11,0) ->  | AC11: =IF(AB11>1.2,AB11,0) -> 0 | AD11: 1 | AE11: =IF(OR($N11="Y",$B11="GOB"),IF('Main Details'!$G$28, IF('Main Details'!$F$10="2c",IF(AND($K11>0,$K11<=2350),($K11/1000)+0.24,""),IF(AND($K11>0,$K11<=2400),($K11/1000)+0.27,"")), IF('Main Details'!$F$10="2c",IF(AND($K11>0,$K11<=2050),($K11/1000)+0.24,""),IF(AND($K11>0,$K11<=2100),($K11/1000)+0.27,"")) ),"") ->  | AF11: =IF($N11="Y",IF('Main Details'!$G$28, IF('Main Details'!$F$10="2c",IF(AND($K11>2350,$K11<=2650),($K11/1000)+0.3,""),IF(AND($K11>2400,$K11<=2650),($K11/1000)+0.3,"")), IF('Main Details'!$F$10="2c",IF(AND($K11>2050,$K11<=2250),($K11/1000)+0.3,""),IF(AND($K11>2100,$K11<=2250),($K11/1000)+0.3,"")) ),"") ->  | AG11: =IF($N11="Y",IF('Main Details'!$G$28, IF('Main Details'!$F$10="2c",IF(AND($K11>2650,$K11<=3450),($K11/1000)+0.3,""),""), IF('Main Details'!$F$10="2c",IF(AND($K11>2250,$K11<=3000),($K11/1000)+0.3,""),"") ),"") ->  | AH11: =IF($N11="Y",IF('Main Details'!$G$28, IF('Main Details'!$F$10="2c",IF(AND($K11>3450,$K11<=3850),($K11/1000)+0.3,""),IF(AND($K11>2650,$K11<=3850),($K11/1000)+0.3,"")), IF('Main Details'!$F$10="2c",IF(AND($K11>3000,$K11<=3450),($K11/1000)+0.3,""),IF(AND($K11>2250,$K11<=3450),($K11/1000)+0.3,"")) ),"") ->  | AK11: =IF(AND($K11<=7199,$K11>=4001),($K11+'BUILDERS SETTINGS'!$C$15)/1000," ") ->  | AN11: =IF(N11="Y",K11,0) -> 0 | AO11: 1 | AP11: 0 | AQ11: 0 | AR11: 0 | AS11: 3.21 | AT11: 1.71 | AV11: 1910
A12: =IF(#REF!>0,I12+#REF!) ->  | B12: ='Summary Sheet'!B71 -> BED 3 | C12: =IF(D12="Y",G12*I12,0) -> 0 | D12: N | F12: =IF(AND(#REF!>0,G12>0),(#REF!*0.086)*(K12/1000)," ") ->  | G12: ='Summary Sheet'!G71 -> 2.314 | H12: x | I12: =(IF(K12=""," ",(K12-10)/240)) -> 7.083333333 | J12: =IF(G12>0,G12*I12," ") -> 16.39083333 | K12: ='Summary Sheet'!C71 -> 1710 | L12: 3.95694 | M12: 1 | P12: =IF('Main Details'!$G$28,IF(AND($K12>0,$K12<=1600,$B12<>"GOB"),($K12/1000)+0.2,""),IF(AND($K12>0,$K12<=1200),($K12/1000)+0.2,"")) ->  | R12: =IF('Main Details'!$G$28,IF(AND($K12>1600,$K12<=1900),($K12/1000)+0.2,""),IF(AND($K12>1200,$K12<=1500),($K12/1000)+0.2,"")) -> 1.91 | S12: 1.91 | T12: =IF('Main Details'!$G$28,IF(AND($K12>1900,$K12<=2600),($K12/1000)+0.27,""),IF(AND($K12>1500,$K12<=2200),($K12/1000)+0.27,"")) ->  | V12: =IF('Main Details'!$G$28,IF(AND($K12>2600,$K12<=3100),($K12/1000)+0.3,""),IF(AND($K12>2200,$K12<=2600),($K12/1000)+0.3,"")) ->  | X12: =IF('Main Details'!$G$28,IF(AND($K12>3100,$K12<=3450),($K12/1000)+0.3,""),IF(AND($K12>2600,$K12<=3000),($K12/1000)+0.3,"")) ->  | Z12: =IF('Main Details'!$G$28,IF(AND($K12>3450,$K12<=3850),($K12/1000)+0.3,""),IF(AND($K12>3000,$K12<=3450),($K12/1000)+0.3,"")) ->  | AC12: 0 | AD12: 1 | AE12: =IF(OR($N12="Y",$B12="GOB"),IF('Main Details'!$G$28, IF('Main Details'!$F$10="2c",IF(AND($K12>0,$K12<=2350),($K12/1000)+0.24,""),IF(AND($K12>0,$K12<=2400),($K12/1000)+0.27,"")), IF('Main Details'!$F$10="2c",IF(AND($K12>0,$K12<=2050),($K12/1000)+0.24,""),IF(AND($K12>0,$K12<=2100),($K12/1000)+0.27,"")) ),"") ->  | AF12: =IF($N12="Y",IF('Main Details'!$G$28, IF('Main Details'!$F$10="2c",IF(AND($K12>2350,$K12<=2650),($K12/1000)+0.3,""),IF(AND($K12>2400,$K12<=2650),($K12/1000)+0.3,"")), IF('Main Details'!$F$10="2c",IF(AND($K12>2050,$K12<=2250),($K12/1000)+0.3,""),IF(AND($K12>2100,$K12<=2250),($K12/1000)+0.3,"")) ),"") ->  | AG12: =IF($N12="Y",IF('Main Details'!$G$28, IF('Main Details'!$F$10="2c",IF(AND($K12>2650,$K12<=3450),($K12/1000)+0.3,""),""), IF('Main Details'!$F$10="2c",IF(AND($K12>2250,$K12<=3000),($K12/1000)+0.3,""),"") ),"") ->  | AH12: =IF($N12="Y",IF('Main Details'!$G$28, IF('Main Details'!$F$10="2c",IF(AND($K12>3450,$K12<=3850),($K12/1000)+0.3,""),IF(AND($K12>2650,$K12<=3850),($K12/1000)+0.3,"")), IF('Main Details'!$F$10="2c",IF(AND($K12>3000,$K12<=3450),($K12/1000)+0.3,""),IF(AND($K12>2250,$K12<=3450),($K12/1000)+0.3,"")) ),"") ->  | AK12: =IF(AND($K12<=7199,$K12>=4001),($K12+'BUILDERS SETTINGS'!$C$15)/1000," ") ->  | AN12: 0 | AO12: 1 | AP12: 0 | AQ12: 0 | AR12: 0 | AS12: 3.21 | AT12: 1.71 | AV12: 1910
A13: =IF(#REF!>0,I13+#REF!) ->  | B13: ='Summary Sheet'!B72 -> BED 4 | C13: =IF(D13="Y",G13*I13,0) -> 0 | D13: N | F13: =IF(AND(#REF!>0,G13>0),(#REF!*0.086)*(K13/1000)," ") ->  | G13: ='Summary Sheet'!G72 -> 2.314 | H13: x | I13: 11.5 | J13: 26.611 | K13: ='Summary Sheet'!C72 -> 2770 | L13: 6.40978 | M13: 1 | P13: =IF('Main Details'!$G$28,IF(AND($K13>0,$K13<=1600,$B13<>"GOB"),($K13/1000)+0.2,""),IF(AND($K13>0,$K13<=1200),($K13/1000)+0.2,"")) ->  | R13: =IF('Main Details'!$G$28,IF(AND($K13>1600,$K13<=1900),($K13/1000)+0.2,""),IF(AND($K13>1200,$K13<=1500),($K13/1000)+0.2,"")) ->  | T13: =IF('Main Details'!$G$28,IF(AND($K13>1900,$K13<=2600),($K13/1000)+0.27,""),IF(AND($K13>1500,$K13<=2200),($K13/1000)+0.27,"")) ->  | V13: =IF('Main Details'!$G$28,IF(AND($K13>2600,$K13<=3100),($K13/1000)+0.3,""),IF(AND($K13>2200,$K13<=2600),($K13/1000)+0.3,"")) -> 3.07 | W13: 3.07 | X13: =IF('Main Details'!$G$28,IF(AND($K13>3100,$K13<=3450),($K13/1000)+0.3,""),IF(AND($K13>2600,$K13<=3000),($K13/1000)+0.3,"")) ->  | Z13: =IF('Main Details'!$G$28,IF(AND($K13>3450,$K13<=3850),($K13/1000)+0.3,""),IF(AND($K13>3000,$K13<=3450),($K13/1000)+0.3,"")) ->  | AC13: 0 | AD13: 2 | AE13: =IF(OR($N13="Y",$B13="GOB"),IF('Main Details'!$G$28, IF('Main Details'!$F$10="2c",IF(AND($K13>0,$K13<=2350),($K13/1000)+0.24,""),IF(AND($K13>0,$K13<=2400),($K13/1000)+0.27,"")), IF('Main Details'!$F$10="2c",IF(AND($K13>0,$K13<=2050),($K13/1000)+0.24,""),IF(AND($K13>0,$K13<=2100),($K13/1000)+0.27,"")) ),"") ->  | AF13: =IF($N13="Y",IF('Main Details'!$G$28, IF('Main Details'!$F$10="2c",IF(AND($K13>2350,$K13<=2650),($K13/1000)+0.3,""),IF(AND($K13>2400,$K13<=2650),($K13/1000)+0.3,"")), IF('Main Details'!$F$10="2c",IF(AND($K13>2050,$K13<=2250),($K13/1000)+0.3,""),IF(AND($K13>2100,$K13<=2250),($K13/1000)+0.3,"")) ),"") ->  | AG13: =IF($N13="Y",IF('Main Details'!$G$28, IF('Main Details'!$F$10="2c",IF(AND($K13>2650,$K13<=3450),($K13/1000)+0.3,""),""), IF('Main Details'!$F$10="2c",IF(AND($K13>2250,$K13<=3000),($K13/1000)+0.3,""),"") ),"") ->  | AH13: =IF($N13="Y",IF('Main Details'!$G$28, IF('Main Details'!$F$10="2c",IF(AND($K13>3450,$K13<=3850),($K13/1000)+0.3,""),IF(AND($K13>2650,$K13<=3850),($K13/1000)+0.3,"")), IF('Main Details'!$F$10="2c",IF(AND($K13>3000,$K13<=3450),($K13/1000)+0.3,""),IF(AND($K13>2250,$K13<=3450),($K13/1000)+0.3,"")) ),"") ->  | AK13: =IF(AND($K13<=7199,$K13>=4001),($K13+'BUILDERS SETTINGS'!$C$15)/1000," ") ->  | AN13: 0 | AO13: 0 | AP13: 2 | AQ13: 0 | AR13: 0 | AS13: 4.27 | AT13: 2.77 | AV13: 2970
A14: =IF(#REF!>0,I14+#REF!) ->  | B14: ='Summary Sheet'!B73 -> BED 5 | C14: 0 | D14: N | F14: =IF(AND(#REF!>0,G14>0),(#REF!*0.086)*(K14/1000)," ") ->  | G14: ='Summary Sheet'!G73 -> 2.314 | H14: x | I14: 7.5 | J14: 17.355 | K14: ='Summary Sheet'!C73 -> 1810 | L14: 4.18834 | M14: 1 | P14: =IF('Main Details'!$G$28,IF(AND($K14>0,$K14<=1600,$B14<>"GOB"),($K14/1000)+0.2,""),IF(AND($K14>0,$K14<=1200),($K14/1000)+0.2,"")) ->  | R14: =IF('Main Details'!$G$28,IF(AND($K14>1600,$K14<=1900),($K14/1000)+0.2,""),IF(AND($K14>1200,$K14<=1500),($K14/1000)+0.2,"")) -> 2.01 | S14: 2.01 | T14: =IF('Main Details'!$G$28,IF(AND($K14>1900,$K14<=2600),($K14/1000)+0.27,""),IF(AND($K14>1500,$K14<=2200),($K14/1000)+0.27,"")) ->  | V14: =IF('Main Details'!$G$28,IF(AND($K14>2600,$K14<=3100),($K14/1000)+0.3,""),IF(AND($K14>2200,$K14<=2600),($K14/1000)+0.3,"")) ->  | X14: =IF('Main Details'!$G$28,IF(AND($K14>3100,$K14<=3450),($K14/1000)+0.3,""),IF(AND($K14>2600,$K14<=3000),($K14/1000)+0.3,"")) ->  | Z14: =IF('Main Details'!$G$28,IF(AND($K14>3450,$K14<=3850),($K14/1000)+0.3,""),IF(AND($K14>3000,$K14<=3450),($K14/1000)+0.3,"")) ->  | AC14: 0 | AD14: 2 | AE14: =IF(OR($N14="Y",$B14="GOB"),IF('Main Details'!$G$28, IF('Main Details'!$F$10="2c",IF(AND($K14>0,$K14<=2350),($K14/1000)+0.24,""),IF(AND($K14>0,$K14<=2400),($K14/1000)+0.27,"")), IF('Main Details'!$F$10="2c",IF(AND($K14>0,$K14<=2050),($K14/1000)+0.24,""),IF(AND($K14>0,$K14<=2100),($K14/1000)+0.27,"")) ),"") ->  | AF14: =IF($N14="Y",IF('Main Details'!$G$28, IF('Main Details'!$F$10="2c",IF(AND($K14>2350,$K14<=2650),($K14/1000)+0.3,""),IF(AND($K14>2400,$K14<=2650),($K14/1000)+0.3,"")), IF('Main Details'!$F$10="2c",IF(AND($K14>2050,$K14<=2250),($K14/1000)+0.3,""),IF(AND($K14>2100,$K14<=2250),($K14/1000)+0.3,"")) ),"") ->  | AG14: =IF($N14="Y",IF('Main Details'!$G$28, IF('Main Details'!$F$10="2c",IF(AND($K14>2650,$K14<=3450),($K14/1000)+0.3,""),""), IF('Main Details'!$F$10="2c",IF(AND($K14>2250,$K14<=3000),($K14/1000)+0.3,""),"") ),"") ->  | AH14: =IF($N14="Y",IF('Main Details'!$G$28, IF('Main Details'!$F$10="2c",IF(AND($K14>3450,$K14<=3850),($K14/1000)+0.3,""),IF(AND($K14>2650,$K14<=3850),($K14/1000)+0.3,"")), IF('Main Details'!$F$10="2c",IF(AND($K14>3000,$K14<=3450),($K14/1000)+0.3,""),IF(AND($K14>2250,$K14<=3450),($K14/1000)+0.3,"")) ),"") ->  | AK14: =IF(AND($K14<=7199,$K14>=4001),($K14+'BUILDERS SETTINGS'!$C$15)/1000," ") ->  | AN14: 0 | AO14: 0 | AP14: 2 | AQ14: 0 | AR14: 0 | AS14: 3.31 | AT14: 1.81 | AV14: 2010
A15: =IF(#REF!>0,I15+#REF!) ->  | B15: ='Summary Sheet'!B74 -> BED 6 | C15: 0 | D15: N | F15: =IF(AND(#REF!>0,G15>0),(#REF!*0.086)*(K15/1000)," ") ->  | G15: ='Summary Sheet'!G74 -> 2.314 | H15: x | I15: 7.5 | J15: 17.355 | K15: ='Summary Sheet'!C74 -> 1810 | L15: 4.18834 | M15: 1 | P15: =IF('Main Details'!$G$28,IF(AND($K15>0,$K15<=1600,$B15<>"GOB"),($K15/1000)+0.2,""),IF(AND($K15>0,$K15<=1200),($K15/1000)+0.2,"")) ->  | R15: =IF('Main Details'!$G$28,IF(AND($K15>1600,$K15<=1900),($K15/1000)+0.2,""),IF(AND($K15>1200,$K15<=1500),($K15/1000)+0.2,"")) -> 2.01 | S15: 2.01 | T15: =IF('Main Details'!$G$28,IF(AND($K15>1900,$K15<=2600),($K15/1000)+0.27,""),IF(AND($K15>1500,$K15<=2200),($K15/1000)+0.27,"")) ->  | V15: =IF('Main Details'!$G$28,IF(AND($K15>2600,$K15<=3100),($K15/1000)+0.3,""),IF(AND($K15>2200,$K15<=2600),($K15/1000)+0.3,"")) ->  | X15: =IF('Main Details'!$G$28,IF(AND($K15>3100,$K15<=3450),($K15/1000)+0.3,""),IF(AND($K15>2600,$K15<=3000),($K15/1000)+0.3,"")) ->  | Z15: =IF('Main Details'!$G$28,IF(AND($K15>3450,$K15<=3850),($K15/1000)+0.3,""),IF(AND($K15>3000,$K15<=3450),($K15/1000)+0.3,"")) ->  | AC15: 0 | AD15: 2 | AE15: =IF(OR($N15="Y",$B15="GOB"),IF('Main Details'!$G$28, IF('Main Details'!$F$10="2c",IF(AND($K15>0,$K15<=2350),($K15/1000)+0.24,""),IF(AND($K15>0,$K15<=2400),($K15/1000)+0.27,"")), IF('Main Details'!$F$10="2c",IF(AND($K15>0,$K15<=2050),($K15/1000)+0.24,""),IF(AND($K15>0,$K15<=2100),($K15/1000)+0.27,"")) ),"") ->  | AF15: =IF($N15="Y",IF('Main Details'!$G$28, IF('Main Details'!$F$10="2c",IF(AND($K15>2350,$K15<=2650),($K15/1000)+0.3,""),IF(AND($K15>2400,$K15<=2650),($K15/1000)+0.3,"")), IF('Main Details'!$F$10="2c",IF(AND($K15>2050,$K15<=2250),($K15/1000)+0.3,""),IF(AND($K15>2100,$K15<=2250),($K15/1000)+0.3,"")) ),"") ->  | AG15: =IF($N15="Y",IF('Main Details'!$G$28, IF('Main Details'!$F$10="2c",IF(AND($K15>2650,$K15<=3450),($K15/1000)+0.3,""),""), IF('Main Details'!$F$10="2c",IF(AND($K15>2250,$K15<=3000),($K15/1000)+0.3,""),"") ),"") ->  | AH15: =IF($N15="Y",IF('Main Details'!$G$28, IF('Main Details'!$F$10="2c",IF(AND($K15>3450,$K15<=3850),($K15/1000)+0.3,""),IF(AND($K15>2650,$K15<=3850),($K15/1000)+0.3,"")), IF('Main Details'!$F$10="2c",IF(AND($K15>3000,$K15<=3450),($K15/1000)+0.3,""),IF(AND($K15>2250,$K15<=3450),($K15/1000)+0.3,"")) ),"") ->  | AK15: =IF(AND($K15<=7199,$K15>=4001),($K15+'BUILDERS SETTINGS'!$C$15)/1000," ") ->  | AN15: 0 | AO15: 0 | AP15: 2 | AQ15: 0 | AR15: 0 | AS15: 3.31 | AT15: 1.81 | AV15: 2010
A16: =IF(#REF!>0,I16+#REF!) ->  | B16: ='Summary Sheet'!B75 -> ENS 1 | C16: 0 | D16: N | F16: =IF(AND(#REF!>0,G16>0),(#REF!*0.086)*(K16/1000)," ") ->  | G16: ='Summary Sheet'!G75 -> 1.457 | H16: x | I16: 5.416666667 | J16: 7.892083333 | K16: ='Summary Sheet'!C75 -> 1310 | L16: 1.90867 | M16: 1 | P16: =IF('Main Details'!$G$28,IF(AND($K16>0,$K16<=1600,$B16<>"GOB"),($K16/1000)+0.2,""),IF(AND($K16>0,$K16<=1200),($K16/1000)+0.2,"")) -> 1.51 | Q16: 1.51 | R16: =IF('Main Details'!$G$28,IF(AND($K16>1600,$K16<=1900),($K16/1000)+0.2,""),IF(AND($K16>1200,$K16<=1500),($K16/1000)+0.2,"")) ->  | T16: =IF('Main Details'!$G$28,IF(AND($K16>1900,$K16<=2600),($K16/1000)+0.27,""),IF(AND($K16>1500,$K16<=2200),($K16/1000)+0.27,"")) ->  | V16: =IF('Main Details'!$G$28,IF(AND($K16>2600,$K16<=3100),($K16/1000)+0.3,""),IF(AND($K16>2200,$K16<=2600),($K16/1000)+0.3,"")) ->  | X16: =IF('Main Details'!$G$28,IF(AND($K16>3100,$K16<=3450),($K16/1000)+0.3,""),IF(AND($K16>2600,$K16<=3000),($K16/1000)+0.3,"")) ->  | Z16: =IF('Main Details'!$G$28,IF(AND($K16>3450,$K16<=3850),($K16/1000)+0.3,""),IF(AND($K16>3000,$K16<=3450),($K16/1000)+0.3,"")) ->  | AC16: 0 | AD16: 1 | AE16: =IF(OR($N16="Y",$B16="GOB"),IF('Main Details'!$G$28, IF('Main Details'!$F$10="2c",IF(AND($K16>0,$K16<=2350),($K16/1000)+0.24,""),IF(AND($K16>0,$K16<=2400),($K16/1000)+0.27,"")), IF('Main Details'!$F$10="2c",IF(AND($K16>0,$K16<=2050),($K16/1000)+0.24,""),IF(AND($K16>0,$K16<=2100),($K16/1000)+0.27,"")) ),"") ->  | AF16: =IF($N16="Y",IF('Main Details'!$G$28, IF('Main Details'!$F$10="2c",IF(AND($K16>2350,$K16<=2650),($K16/1000)+0.3,""),IF(AND($K16>2400,$K16<=2650),($K16/1000)+0.3,"")), IF('Main Details'!$F$10="2c",IF(AND($K16>2050,$K16<=2250),($K16/1000)+0.3,""),IF(AND($K16>2100,$K16<=2250),($K16/1000)+0.3,"")) ),"") ->  | AG16: =IF($N16="Y",IF('Main Details'!$G$28, IF('Main Details'!$F$10="2c",IF(AND($K16>2650,$K16<=3450),($K16/1000)+0.3,""),""), IF('Main Details'!$F$10="2c",IF(AND($K16>2250,$K16<=3000),($K16/1000)+0.3,""),"") ),"") ->  | AH16: =IF($N16="Y",IF('Main Details'!$G$28, IF('Main Details'!$F$10="2c",IF(AND($K16>3450,$K16<=3850),($K16/1000)+0.3,""),IF(AND($K16>2650,$K16<=3850),($K16/1000)+0.3,"")), IF('Main Details'!$F$10="2c",IF(AND($K16>3000,$K16<=3450),($K16/1000)+0.3,""),IF(AND($K16>2250,$K16<=3450),($K16/1000)+0.3,"")) ),"") ->  | AK16: =IF(AND($K16<=7199,$K16>=4001),($K16+'BUILDERS SETTINGS'!$C$15)/1000," ") ->  | AN16: 0 | AO16: 1 | AP16: 0 | AQ16: 0 | AR16: 0 | AS16: 2.81 | AT16: 1.31 | AV16: 1510
A17: =IF(#REF!>0,I17+#REF!) ->  | B17: ='Summary Sheet'!B76 -> ENS 2 | C17: 0 | D17: N | F17: =IF(AND(#REF!>0,G17>0),(#REF!*0.086)*(K17/1000)," ") ->  | G17: ='Summary Sheet'!G76 -> 2.314 | H17: x | I17: 3.75 | J17: 8.6775 | K17: ='Summary Sheet'!C76 -> 910 | L17: 2.10574 | M17: 1 | P17: =IF('Main Details'!$G$28,IF(AND($K17>0,$K17<=1600,$B17<>"GOB"),($K17/1000)+0.2,""),IF(AND($K17>0,$K17<=1200),($K17/1000)+0.2,"")) -> 1.11 | Q17: 0 | R17: =IF('Main Details'!$G$28,IF(AND($K17>1600,$K17<=1900),($K17/1000)+0.2,""),IF(AND($K17>1200,$K17<=1500),($K17/1000)+0.2,"")) ->  | T17: =IF('Main Details'!$G$28,IF(AND($K17>1900,$K17<=2600),($K17/1000)+0.27,""),IF(AND($K17>1500,$K17<=2200),($K17/1000)+0.27,"")) ->  | V17: =IF('Main Details'!$G$28,IF(AND($K17>2600,$K17<=3100),($K17/1000)+0.3,""),IF(AND($K17>2200,$K17<=2600),($K17/1000)+0.3,"")) ->  | X17: =IF('Main Details'!$G$28,IF(AND($K17>3100,$K17<=3450),($K17/1000)+0.3,""),IF(AND($K17>2600,$K17<=3000),($K17/1000)+0.3,"")) ->  | Z17: =IF('Main Details'!$G$28,IF(AND($K17>3450,$K17<=3850),($K17/1000)+0.3,""),IF(AND($K17>3000,$K17<=3450),($K17/1000)+0.3,"")) ->  | AC17: 0 | AE17: =IF(OR($N17="Y",$B17="GOB"),IF('Main Details'!$G$28, IF('Main Details'!$F$10="2c",IF(AND($K17>0,$K17<=2350),($K17/1000)+0.24,""),IF(AND($K17>0,$K17<=2400),($K17/1000)+0.27,"")), IF('Main Details'!$F$10="2c",IF(AND($K17>0,$K17<=2050),($K17/1000)+0.24,""),IF(AND($K17>0,$K17<=2100),($K17/1000)+0.27,"")) ),"") ->  | AF17: =IF($N17="Y",IF('Main Details'!$G$28, IF('Main Details'!$F$10="2c",IF(AND($K17>2350,$K17<=2650),($K17/1000)+0.3,""),IF(AND($K17>2400,$K17<=2650),($K17/1000)+0.3,"")), IF('Main Details'!$F$10="2c",IF(AND($K17>2050,$K17<=2250),($K17/1000)+0.3,""),IF(AND($K17>2100,$K17<=2250),($K17/1000)+0.3,"")) ),"") ->  | AG17: =IF($N17="Y",IF('Main Details'!$G$28, IF('Main Details'!$F$10="2c",IF(AND($K17>2650,$K17<=3450),($K17/1000)+0.3,""),""), IF('Main Details'!$F$10="2c",IF(AND($K17>2250,$K17<=3000),($K17/1000)+0.3,""),"") ),"") ->  | AH17: =IF($N17="Y",IF('Main Details'!$G$28, IF('Main Details'!$F$10="2c",IF(AND($K17>3450,$K17<=3850),($K17/1000)+0.3,""),IF(AND($K17>2650,$K17<=3850),($K17/1000)+0.3,"")), IF('Main Details'!$F$10="2c",IF(AND($K17>3000,$K17<=3450),($K17/1000)+0.3,""),IF(AND($K17>2250,$K17<=3450),($K17/1000)+0.3,"")) ),"") ->  | AN17: 0 | AO17: 1 | AP17: 0 | AQ17: 0 | AR17: 0 | AS17: 2.41 | AT17: 0.91 | AV17: 1110
A18: =IF(#REF!>0,I18+#REF!) ->  | B18: ='Summary Sheet'!B77 -> KITCHEN 1 | C18: 0 | D18: N | F18: =IF(AND(#REF!>0,G18>0),(#REF!*0.086)*(K18/1000)," ") ->  | G18: ='Summary Sheet'!G77 -> 2.143 | H18: x | I18: 12.5 | J18: 26.7875 | K18: ='Summary Sheet'!C77 -> 3010 | L18: 6.45043 | M18: 1 | P18: =IF('Main Details'!$G$28,IF(AND($K18>0,$K18<=1600,$B18<>"GOB"),($K18/1000)+0.2,""),IF(AND($K18>0,$K18<=1200),($K18/1000)+0.2,"")) ->  | R18: =IF('Main Details'!$G$28,IF(AND($K18>1600,$K18<=1900),($K18/1000)+0.2,""),IF(AND($K18>1200,$K18<=1500),($K18/1000)+0.2,"")) ->  | T18: =IF('Main Details'!$G$28,IF(AND($K18>1900,$K18<=2600),($K18/1000)+0.27,""),IF(AND($K18>1500,$K18<=2200),($K18/1000)+0.27,"")) ->  | V18: =IF('Main Details'!$G$28,IF(AND($K18>2600,$K18<=3100),($K18/1000)+0.3,""),IF(AND($K18>2200,$K18<=2600),($K18/1000)+0.3,"")) -> 3.31 | W18: 3.31 | X18: =IF('Main Details'!$G$28,IF(AND($K18>3100,$K18<=3450),($K18/1000)+0.3,""),IF(AND($K18>2600,$K18<=3000),($K18/1000)+0.3,"")) ->  | Z18: =IF('Main Details'!$G$28,IF(AND($K18>3450,$K18<=3850),($K18/1000)+0.3,""),IF(AND($K18>3000,$K18<=3450),($K18/1000)+0.3,"")) ->  | AC18: 0 | AD18: 3 | AE18: =IF(OR($N18="Y",$B18="GOB"),IF('Main Details'!$G$28, IF('Main Details'!$F$10="2c",IF(AND($K18>0,$K18<=2350),($K18/1000)+0.24,""),IF(AND($K18>0,$K18<=2400),($K18/1000)+0.27,"")), IF('Main Details'!$F$10="2c",IF(AND($K18>0,$K18<=2050),($K18/1000)+0.24,""),IF(AND($K18>0,$K18<=2100),($K18/1000)+0.27,"")) ),"") ->  | AF18: =IF($N18="Y",IF('Main Details'!$G$28, IF('Main Details'!$F$10="2c",IF(AND($K18>2350,$K18<=2650),($K18/1000)+0.3,""),IF(AND($K18>2400,$K18<=2650),($K18/1000)+0.3,"")), IF('Main Details'!$F$10="2c",IF(AND($K18>2050,$K18<=2250),($K18/1000)+0.3,""),IF(AND($K18>2100,$K18<=2250),($K18/1000)+0.3,"")) ),"") ->  | AG18: =IF($N18="Y",IF('Main Details'!$G$28, IF('Main Details'!$F$10="2c",IF(AND($K18>2650,$K18<=3450),($K18/1000)+0.3,""),""), IF('Main Details'!$F$10="2c",IF(AND($K18>2250,$K18<=3000),($K18/1000)+0.3,""),"") ),"") ->  | AH18: =IF($N18="Y",IF('Main Details'!$G$28, IF('Main Details'!$F$10="2c",IF(AND($K18>3450,$K18<=3850),($K18/1000)+0.3,""),IF(AND($K18>2650,$K18<=3850),($K18/1000)+0.3,"")), IF('Main Details'!$F$10="2c",IF(AND($K18>3000,$K18<=3450),($K18/1000)+0.3,""),IF(AND($K18>2250,$K18<=3450),($K18/1000)+0.3,"")) ),"") ->  | AK18: =IF(AND($K18<=7199,$K18>=4001),($K18+'BUILDERS SETTINGS'!$C$15)/1000," ") ->  | AN18: 0 | AO18: 0 | AP18: 0 | AQ18: 3 | AR18: 0 | AS18: 4.51 | AT18: 3.01 | AV18: 3210
A19: =IF(#REF!>0,I19+#REF!) ->  | B19: ='Summary Sheet'!B78 -> L'DRY 1 | C19: 0 | D19: N | F19: =IF(AND(#REF!>0,G19>0),(#REF!*0.086)*(K19/1000)," ") ->  | G19: ='Summary Sheet'!G78 -> 2.314 | H19: x | I19: 6.25 | J19: 14.4625 | K19: ='Summary Sheet'!C78 -> 1510 | L19: 3.49414 | M19: 1 | P19: =IF('Main Details'!$G$28,IF(AND($K19>0,$K19<=1600,$B19<>"GOB"),($K19/1000)+0.2,""),IF(AND($K19>0,$K19<=1200),($K19/1000)+0.2,"")) -> 1.71 | Q19: 1.71 | R19: =IF('Main Details'!$G$28,IF(AND($K19>1600,$K19<=1900),($K19/1000)+0.2,""),IF(AND($K19>1200,$K19<=1500),($K19/1000)+0.2,"")) ->  | T19: =IF('Main Details'!$G$28,IF(AND($K19>1900,$K19<=2600),($K19/1000)+0.27,""),IF(AND($K19>1500,$K19<=2200),($K19/1000)+0.27,"")) ->  | V19: =IF('Main Details'!$G$28,IF(AND($K19>2600,$K19<=3100),($K19/1000)+0.3,""),IF(AND($K19>2200,$K19<=2600),($K19/1000)+0.3,"")) ->  | X19: =IF('Main Details'!$G$28,IF(AND($K19>3100,$K19<=3450),($K19/1000)+0.3,""),IF(AND($K19>2600,$K19<=3000),($K19/1000)+0.3,"")) ->  | Z19: =IF('Main Details'!$G$28,IF(AND($K19>3450,$K19<=3850),($K19/1000)+0.3,""),IF(AND($K19>3000,$K19<=3450),($K19/1000)+0.3,"")) ->  | AC19: 0 | AD19: 1 | AE19: =IF(OR($N19="Y",$B19="GOB"),IF('Main Details'!$G$28, IF('Main Details'!$F$10="2c",IF(AND($K19>0,$K19<=2350),($K19/1000)+0.24,""),IF(AND($K19>0,$K19<=2400),($K19/1000)+0.27,"")), IF('Main Details'!$F$10="2c",IF(AND($K19>0,$K19<=2050),($K19/1000)+0.24,""),IF(AND($K19>0,$K19<=2100),($K19/1000)+0.27,"")) ),"") ->  | AF19: =IF($N19="Y",IF('Main Details'!$G$28, IF('Main Details'!$F$10="2c",IF(AND($K19>2350,$K19<=2650),($K19/1000)+0.3,""),IF(AND($K19>2400,$K19<=2650),($K19/1000)+0.3,"")), IF('Main Details'!$F$10="2c",IF(AND($K19>2050,$K19<=2250),($K19/1000)+0.3,""),IF(AND($K19>2100,$K19<=2250),($K19/1000)+0.3,"")) ),"") ->  | AG19: =IF($N19="Y",IF('Main Details'!$G$28, IF('Main Details'!$F$10="2c",IF(AND($K19>2650,$K19<=3450),($K19/1000)+0.3,""),""), IF('Main Details'!$F$10="2c",IF(AND($K19>2250,$K19<=3000),($K19/1000)+0.3,""),"") ),"") ->  | AH19: =IF($N19="Y",IF('Main Details'!$G$28, IF('Main Details'!$F$10="2c",IF(AND($K19>3450,$K19<=3850),($K19/1000)+0.3,""),IF(AND($K19>2650,$K19<=3850),($K19/1000)+0.3,"")), IF('Main Details'!$F$10="2c",IF(AND($K19>3000,$K19<=3450),($K19/1000)+0.3,""),IF(AND($K19>2250,$K19<=3450),($K19/1000)+0.3,"")) ),"") ->  | AK19: =IF(AND($K19<=7199,$K19>=4001),($K19+'BUILDERS SETTINGS'!$C$15)/1000," ") ->  | AN19: 0 | AO19: 1 | AP19: 0 | AQ19: 0 | AR19: 0 | AS19: 3.01 | AT19: 1.51 | AV19: 1710
A20: =IF(#REF!>0,I20+#REF!) ->  | B20: ='Summary Sheet'!B79 -> LIVING / DINING 1 | C20: 0 | D20: N | F20: =IF(AND(#REF!>0,G20>0),(#REF!*0.086)*(K20/1000)," ") ->  | G20: ='Summary Sheet'!G79 -> 2.143 | H20: x | I20: 12.5 | J20: 26.7875 | K20: ='Summary Sheet'!C79 -> 3010 | L20: 6.45043 | M20: 1 | P20: =IF('Main Details'!$G$28,IF(AND($K20>0,$K20<=1600,$B20<>"GOB"),($K20/1000)+0.2,""),IF(AND($K20>0,$K20<=1200),($K20/1000)+0.2,"")) ->  | R20: =IF('Main Details'!$G$28,IF(AND($K20>1600,$K20<=1900),($K20/1000)+0.2,""),IF(AND($K20>1200,$K20<=1500),($K20/1000)+0.2,"")) ->  | T20: =IF('Main Details'!$G$28,IF(AND($K20>1900,$K20<=2600),($K20/1000)+0.27,""),IF(AND($K20>1500,$K20<=2200),($K20/1000)+0.27,"")) ->  | V20: =IF('Main Details'!$G$28,IF(AND($K20>2600,$K20<=3100),($K20/1000)+0.3,""),IF(AND($K20>2200,$K20<=2600),($K20/1000)+0.3,"")) -> 3.31 | W20: 3.31 | X20: =IF('Main Details'!$G$28,IF(AND($K20>3100,$K20<=3450),($K20/1000)+0.3,""),IF(AND($K20>2600,$K20<=3000),($K20/1000)+0.3,"")) ->  | Z20: =IF('Main Details'!$G$28,IF(AND($K20>3450,$K20<=3850),($K20/1000)+0.3,""),IF(AND($K20>3000,$K20<=3450),($K20/1000)+0.3,"")) ->  | AC20: 0 | AD20: 3 | AE20: =IF(OR($N20="Y",$B20="GOB"),IF('Main Details'!$G$28, IF('Main Details'!$F$10="2c",IF(AND($K20>0,$K20<=2350),($K20/1000)+0.24,""),IF(AND($K20>0,$K20<=2400),($K20/1000)+0.27,"")), IF('Main Details'!$F$10="2c",IF(AND($K20>0,$K20<=2050),($K20/1000)+0.24,""),IF(AND($K20>0,$K20<=2100),($K20/1000)+0.27,"")) ),"") ->  | AF20: =IF($N20="Y",IF('Main Details'!$G$28, IF('Main Details'!$F$10="2c",IF(AND($K20>2350,$K20<=2650),($K20/1000)+0.3,""),IF(AND($K20>2400,$K20<=2650),($K20/1000)+0.3,"")), IF('Main Details'!$F$10="2c",IF(AND($K20>2050,$K20<=2250),($K20/1000)+0.3,""),IF(AND($K20>2100,$K20<=2250),($K20/1000)+0.3,"")) ),"") ->  | AG20: =IF($N20="Y",IF('Main Details'!$G$28, IF('Main Details'!$F$10="2c",IF(AND($K20>2650,$K20<=3450),($K20/1000)+0.3,""),""), IF('Main Details'!$F$10="2c",IF(AND($K20>2250,$K20<=3000),($K20/1000)+0.3,""),"") ),"") ->  | AH20: =IF($N20="Y",IF('Main Details'!$G$28, IF('Main Details'!$F$10="2c",IF(AND($K20>3450,$K20<=3850),($K20/1000)+0.3,""),IF(AND($K20>2650,$K20<=3850),($K20/1000)+0.3,"")), IF('Main Details'!$F$10="2c",IF(AND($K20>3000,$K20<=3450),($K20/1000)+0.3,""),IF(AND($K20>2250,$K20<=3450),($K20/1000)+0.3,"")) ),"") ->  | AK20: =IF(AND($K20<=7199,$K20>=4001),($K20+'BUILDERS SETTINGS'!$C$15)/1000," ") ->  | AN20: 0 | AO20: 0 | AP20: 0 | AQ20: 3 | AR20: 0 | AS20: 4.51 | AT20: 3.01 | AV20: 3210
A21: =IF(#REF!>0,I21+#REF!) ->  | B21: ='Summary Sheet'!B80 -> LIVING / DINING 1 | C21: 0 | D21: N | F21: =IF(AND(#REF!>0,G21>0),(#REF!*0.086)*(K21/1000)," ") ->  | G21: ='Summary Sheet'!G80 -> 2.143 | H21: x | I21: 12.91666667 | J21: 27.68041667 | K21: ='Summary Sheet'!C80 -> 3110 | L21: 6.66473 | M21: 1 | P21: =IF('Main Details'!$G$28,IF(AND($K21>0,$K21<=1600,$B21<>"GOB"),($K21/1000)+0.2,""),IF(AND($K21>0,$K21<=1200),($K21/1000)+0.2,"")) ->  | R21: =IF('Main Details'!$G$28,IF(AND($K21>1600,$K21<=1900),($K21/1000)+0.2,""),IF(AND($K21>1200,$K21<=1500),($K21/1000)+0.2,"")) ->  | T21: =IF('Main Details'!$G$28,IF(AND($K21>1900,$K21<=2600),($K21/1000)+0.27,""),IF(AND($K21>1500,$K21<=2200),($K21/1000)+0.27,"")) ->  | V21: =IF('Main Details'!$G$28,IF(AND($K21>2600,$K21<=3100),($K21/1000)+0.3,""),IF(AND($K21>2200,$K21<=2600),($K21/1000)+0.3,"")) ->  | X21: =IF('Main Details'!$G$28,IF(AND($K21>3100,$K21<=3450),($K21/1000)+0.3,""),IF(AND($K21>2600,$K21<=3000),($K21/1000)+0.3,"")) -> 3.41 | Y21: 3.41 | Z21: =IF('Main Details'!$G$28,IF(AND($K21>3450,$K21<=3850),($K21/1000)+0.3,""),IF(AND($K21>3000,$K21<=3450),($K21/1000)+0.3,"")) ->  | AC21: 0 | AD21: 3 | AE21: =IF(OR($N21="Y",$B21="GOB"),IF('Main Details'!$G$28, IF('Main Details'!$F$10="2c",IF(AND($K21>0,$K21<=2350),($K21/1000)+0.24,""),IF(AND($K21>0,$K21<=2400),($K21/1000)+0.27,"")), IF('Main Details'!$F$10="2c",IF(AND($K21>0,$K21<=2050),($K21/1000)+0.24,""),IF(AND($K21>0,$K21<=2100),($K21/1000)+0.27,"")) ),"") ->  | AF21: =IF($N21="Y",IF('Main Details'!$G$28, IF('Main Details'!$F$10="2c",IF(AND($K21>2350,$K21<=2650),($K21/1000)+0.3,""),IF(AND($K21>2400,$K21<=2650),($K21/1000)+0.3,"")), IF('Main Details'!$F$10="2c",IF(AND($K21>2050,$K21<=2250),($K21/1000)+0.3,""),IF(AND($K21>2100,$K21<=2250),($K21/1000)+0.3,"")) ),"") ->  | AG21: =IF($N21="Y",IF('Main Details'!$G$28, IF('Main Details'!$F$10="2c",IF(AND($K21>2650,$K21<=3450),($K21/1000)+0.3,""),""), IF('Main Details'!$F$10="2c",IF(AND($K21>2250,$K21<=3000),($K21/1000)+0.3,""),"") ),"") ->  | AH21: =IF($N21="Y",IF('Main Details'!$G$28, IF('Main Details'!$F$10="2c",IF(AND($K21>3450,$K21<=3850),($K21/1000)+0.3,""),IF(AND($K21>2650,$K21<=3850),($K21/1000)+0.3,"")), IF('Main Details'!$F$10="2c",IF(AND($K21>3000,$K21<=3450),($K21/1000)+0.3,""),IF(AND($K21>2250,$K21<=3450),($K21/1000)+0.3,"")) ),"") ->  | AK21: =IF(AND($K21<=7199,$K21>=4001),($K21+'BUILDERS SETTINGS'!$C$15)/1000," ") ->  | AN21: 0 | AO21: 0 | AP21: 0 | AQ21: 3 | AR21: 0 | AS21: 4.61 | AT21: 3.11 | AV21: 3310
A22: =IF(#REF!>0,I22+#REF!) ->  | B22: ='Summary Sheet'!B81 -> LIVING / DINING 1 | C22: 0 | D22: N | F22: =IF(AND(#REF!>0,G22>0),(#REF!*0.086)*(K22/1000)," ") ->  | G22: ='Summary Sheet'!G81 -> 2.143 | H22: x | I22: 12.91666667 | J22: 27.68041667 | K22: ='Summary Sheet'!C81 -> 3110 | L22: 6.66473 | M22: 1 | P22: =IF('Main Details'!$G$28,IF(AND($K22>0,$K22<=1600,$B22<>"GOB"),($K22/1000)+0.2,""),IF(AND($K22>0,$K22<=1200),($K22/1000)+0.2,"")) ->  | R22: =IF('Main Details'!$G$28,IF(AND($K22>1600,$K22<=1900),($K22/1000)+0.2,""),IF(AND($K22>1200,$K22<=1500),($K22/1000)+0.2,"")) ->  | T22: =IF('Main Details'!$G$28,IF(AND($K22>1900,$K22<=2600),($K22/1000)+0.27,""),IF(AND($K22>1500,$K22<=2200),($K22/1000)+0.27,"")) ->  | V22: =IF('Main Details'!$G$28,IF(AND($K22>2600,$K22<=3100),($K22/1000)+0.3,""),IF(AND($K22>2200,$K22<=2600),($K22/1000)+0.3,"")) ->  | X22: =IF('Main Details'!$G$28,IF(AND($K22>3100,$K22<=3450),($K22/1000)+0.3,""),IF(AND($K22>2600,$K22<=3000),($K22/1000)+0.3,"")) -> 3.41 | Y22: 3.41 | Z22: =IF('Main Details'!$G$28,IF(AND($K22>3450,$K22<=3850),($K22/1000)+0.3,""),IF(AND($K22>3000,$K22<=3450),($K22/1000)+0.3,"")) ->  | AC22: 0 | AD22: 3 | AE22: =IF(OR($N22="Y",$B22="GOB"),IF('Main Details'!$G$28, IF('Main Details'!$F$10="2c",IF(AND($K22>0,$K22<=2350),($K22/1000)+0.24,""),IF(AND($K22>0,$K22<=2400),($K22/1000)+0.27,"")), IF('Main Details'!$F$10="2c",IF(AND($K22>0,$K22<=2050),($K22/1000)+0.24,""),IF(AND($K22>0,$K22<=2100),($K22/1000)+0.27,"")) ),"") ->  | AF22: =IF($N22="Y",IF('Main Details'!$G$28, IF('Main Details'!$F$10="2c",IF(AND($K22>2350,$K22<=2650),($K22/1000)+0.3,""),IF(AND($K22>2400,$K22<=2650),($K22/1000)+0.3,"")), IF('Main Details'!$F$10="2c",IF(AND($K22>2050,$K22<=2250),($K22/1000)+0.3,""),IF(AND($K22>2100,$K22<=2250),($K22/1000)+0.3,"")) ),"") ->  | AG22: =IF($N22="Y",IF('Main Details'!$G$28, IF('Main Details'!$F$10="2c",IF(AND($K22>2650,$K22<=3450),($K22/1000)+0.3,""),""), IF('Main Details'!$F$10="2c",IF(AND($K22>2250,$K22<=3000),($K22/1000)+0.3,""),"") ),"") ->  | AH22: =IF($N22="Y",IF('Main Details'!$G$28, IF('Main Details'!$F$10="2c",IF(AND($K22>3450,$K22<=3850),($K22/1000)+0.3,""),IF(AND($K22>2650,$K22<=3850),($K22/1000)+0.3,"")), IF('Main Details'!$F$10="2c",IF(AND($K22>3000,$K22<=3450),($K22/1000)+0.3,""),IF(AND($K22>2250,$K22<=3450),($K22/1000)+0.3,"")) ),"") ->  | AK22: =IF(AND($K22<=7199,$K22>=4001),($K22+'BUILDERS SETTINGS'!$C$15)/1000," ") ->  | AN22: 0 | AO22: 0 | AP22: 0 | AQ22: 3 | AR22: 0 | AS22: 4.61 | AT22: 3.11 | AV22: 3310
A23: =IF(#REF!>0,I23+#REF!) ->  | B23: ='Summary Sheet'!B82 -> LIVING 2 | C23: 0 | D23: N | F23: =IF(AND(#REF!>0,G23>0),(#REF!*0.086)*(K23/1000)," ") ->  | G23: ='Summary Sheet'!G82 -> 2.314 | H23: x | I23: 12.5 | J23: 28.925 | K23: ='Summary Sheet'!C82 -> 3010 | L23: 6.96514 | M23: 1 | P23: =IF('Main Details'!$G$28,IF(AND($K23>0,$K23<=1600,$B23<>"GOB"),($K23/1000)+0.2,""),IF(AND($K23>0,$K23<=1200),($K23/1000)+0.2,"")) ->  | R23: =IF('Main Details'!$G$28,IF(AND($K23>1600,$K23<=1900),($K23/1000)+0.2,""),IF(AND($K23>1200,$K23<=1500),($K23/1000)+0.2,"")) ->  | T23: =IF('Main Details'!$G$28,IF(AND($K23>1900,$K23<=2600),($K23/1000)+0.27,""),IF(AND($K23>1500,$K23<=2200),($K23/1000)+0.27,"")) ->  | V23: =IF('Main Details'!$G$28,IF(AND($K23>2600,$K23<=3100),($K23/1000)+0.3,""),IF(AND($K23>2200,$K23<=2600),($K23/1000)+0.3,"")) -> 3.31 | W23: 3.31 | X23: =IF('Main Details'!$G$28,IF(AND($K23>3100,$K23<=3450),($K23/1000)+0.3,""),IF(AND($K23>2600,$K23<=3000),($K23/1000)+0.3,"")) ->  | Z23: =IF('Main Details'!$G$28,IF(AND($K23>3450,$K23<=3850),($K23/1000)+0.3,""),IF(AND($K23>3000,$K23<=3450),($K23/1000)+0.3,"")) ->  | AC23: 0 | AD23: 3 | AE23: =IF(OR($N23="Y",$B23="GOB"),IF('Main Details'!$G$28, IF('Main Details'!$F$10="2c",IF(AND($K23>0,$K23<=2350),($K23/1000)+0.24,""),IF(AND($K23>0,$K23<=2400),($K23/1000)+0.27,"")), IF('Main Details'!$F$10="2c",IF(AND($K23>0,$K23<=2050),($K23/1000)+0.24,""),IF(AND($K23>0,$K23<=2100),($K23/1000)+0.27,"")) ),"") ->  | AF23: =IF($N23="Y",IF('Main Details'!$G$28, IF('Main Details'!$F$10="2c",IF(AND($K23>2350,$K23<=2650),($K23/1000)+0.3,""),IF(AND($K23>2400,$K23<=2650),($K23/1000)+0.3,"")), IF('Main Details'!$F$10="2c",IF(AND($K23>2050,$K23<=2250),($K23/1000)+0.3,""),IF(AND($K23>2100,$K23<=2250),($K23/1000)+0.3,"")) ),"") ->  | AG23: =IF($N23="Y",IF('Main Details'!$G$28, IF('Main Details'!$F$10="2c",IF(AND($K23>2650,$K23<=3450),($K23/1000)+0.3,""),""), IF('Main Details'!$F$10="2c",IF(AND($K23>2250,$K23<=3000),($K23/1000)+0.3,""),"") ),"") ->  | AH23: =IF($N23="Y",IF('Main Details'!$G$28, IF('Main Details'!$F$10="2c",IF(AND($K23>3450,$K23<=3850),($K23/1000)+0.3,""),IF(AND($K23>2650,$K23<=3850),($K23/1000)+0.3,"")), IF('Main Details'!$F$10="2c",IF(AND($K23>3000,$K23<=3450),($K23/1000)+0.3,""),IF(AND($K23>2250,$K23<=3450),($K23/1000)+0.3,"")) ),"") ->  | AK23: =IF(AND($K23<=7199,$K23>=4001),($K23+'BUILDERS SETTINGS'!$C$15)/1000," ") ->  | AN23: 0 | AO23: 0 | AP23: 0 | AQ23: 3 | AR23: 0 | AS23: 4.51 | AT23: 3.01 | AV23: 3210
A24: =IF(#REF!>0,I24+#REF!) ->  | B24: ='Summary Sheet'!B83 -> MAIN BED | C24: 0 | D24: N | F24: =IF(AND(#REF!>0,G24>0),(#REF!*0.086)*(K24/1000)," ") ->  | G24: ='Summary Sheet'!G83 -> 2.314 | H24: x | I24: 10 | J24: 23.14 | K24: ='Summary Sheet'!C83 -> 2410 | L24: 5.57674 | M24: 1 | P24: =IF('Main Details'!$G$28,IF(AND($K24>0,$K24<=1600,$B24<>"GOB"),($K24/1000)+0.2,""),IF(AND($K24>0,$K24<=1200),($K24/1000)+0.2,"")) ->  | R24: =IF('Main Details'!$G$28,IF(AND($K24>1600,$K24<=1900),($K24/1000)+0.2,""),IF(AND($K24>1200,$K24<=1500),($K24/1000)+0.2,"")) ->  | T24: =IF('Main Details'!$G$28,IF(AND($K24>1900,$K24<=2600),($K24/1000)+0.27,""),IF(AND($K24>1500,$K24<=2200),($K24/1000)+0.27,"")) -> 2.68 | U24: 2.68 | V24: =IF('Main Details'!$G$28,IF(AND($K24>2600,$K24<=3100),($K24/1000)+0.3,""),IF(AND($K24>2200,$K24<=2600),($K24/1000)+0.3,"")) ->  | X24: =IF('Main Details'!$G$28,IF(AND($K24>3100,$K24<=3450),($K24/1000)+0.3,""),IF(AND($K24>2600,$K24<=3000),($K24/1000)+0.3,"")) ->  | Z24: =IF('Main Details'!$G$28,IF(AND($K24>3450,$K24<=3850),($K24/1000)+0.3,""),IF(AND($K24>3000,$K24<=3450),($K24/1000)+0.3,"")) ->  | AC24: 0 | AD24: 2 | AE24: =IF(OR($N24="Y",$B24="GOB"),IF('Main Details'!$G$28, IF('Main Details'!$F$10="2c",IF(AND($K24>0,$K24<=2350),($K24/1000)+0.24,""),IF(AND($K24>0,$K24<=2400),($K24/1000)+0.27,"")), IF('Main Details'!$F$10="2c",IF(AND($K24>0,$K24<=2050),($K24/1000)+0.24,""),IF(AND($K24>0,$K24<=2100),($K24/1000)+0.27,"")) ),"") ->  | AF24: =IF($N24="Y",IF('Main Details'!$G$28, IF('Main Details'!$F$10="2c",IF(AND($K24>2350,$K24<=2650),($K24/1000)+0.3,""),IF(AND($K24>2400,$K24<=2650),($K24/1000)+0.3,"")), IF('Main Details'!$F$10="2c",IF(AND($K24>2050,$K24<=2250),($K24/1000)+0.3,""),IF(AND($K24>2100,$K24<=2250),($K24/1000)+0.3,"")) ),"") ->  | AG24: =IF($N24="Y",IF('Main Details'!$G$28, IF('Main Details'!$F$10="2c",IF(AND($K24>2650,$K24<=3450),($K24/1000)+0.3,""),""), IF('Main Details'!$F$10="2c",IF(AND($K24>2250,$K24<=3000),($K24/1000)+0.3,""),"") ),"") ->  | AH24: =IF($N24="Y",IF('Main Details'!$G$28, IF('Main Details'!$F$10="2c",IF(AND($K24>3450,$K24<=3850),($K24/1000)+0.3,""),IF(AND($K24>2650,$K24<=3850),($K24/1000)+0.3,"")), IF('Main Details'!$F$10="2c",IF(AND($K24>3000,$K24<=3450),($K24/1000)+0.3,""),IF(AND($K24>2250,$K24<=3450),($K24/1000)+0.3,"")) ),"") ->  | AK24: =IF(AND($K24<=7199,$K24>=4001),($K24+'BUILDERS SETTINGS'!$C$15)/1000," ") ->  | AN24: 0 | AO24: 0 | AP24: 2 | AQ24: 0 | AR24: 0 | AS24: 3.91 | AT24: 2.41 | AV24: 2610
A25: =IF(#REF!>0,I25+#REF!) ->  | B25: ='Summary Sheet'!B84 -> PORCH | C25: 0 | D25: N | F25: =IF(AND(#REF!>0,G25>0),(#REF!*0.086)*(K25/1000)," ") ->  | G25: ='Summary Sheet'!G84 -> 2.314 | H25: x | I25: 5.25 | J25: 12.1485 | K25: ='Summary Sheet'!C84 -> 1270 | L25: 2.93878 | M25: 1 | P25: =IF('Main Details'!$G$28,IF(AND($K25>0,$K25<=1600,$B25<>"GOB"),($K25/1000)+0.2,""),IF(AND($K25>0,$K25<=1200),($K25/1000)+0.2,"")) -> 1.47 | Q25: 1.47 | R25: =IF('Main Details'!$G$28,IF(AND($K25>1600,$K25<=1900),($K25/1000)+0.2,""),IF(AND($K25>1200,$K25<=1500),($K25/1000)+0.2,"")) ->  | T25: =IF('Main Details'!$G$28,IF(AND($K25>1900,$K25<=2600),($K25/1000)+0.27,""),IF(AND($K25>1500,$K25<=2200),($K25/1000)+0.27,"")) ->  | V25: =IF('Main Details'!$G$28,IF(AND($K25>2600,$K25<=3100),($K25/1000)+0.3,""),IF(AND($K25>2200,$K25<=2600),($K25/1000)+0.3,"")) ->  | X25: =IF('Main Details'!$G$28,IF(AND($K25>3100,$K25<=3450),($K25/1000)+0.3,""),IF(AND($K25>2600,$K25<=3000),($K25/1000)+0.3,"")) ->  | Z25: =IF('Main Details'!$G$28,IF(AND($K25>3450,$K25<=3850),($K25/1000)+0.3,""),IF(AND($K25>3000,$K25<=3450),($K25/1000)+0.3,"")) ->  | AC25: 0 | AD25: 1 | AE25: =IF(OR($N25="Y",$B25="GOB"),IF('Main Details'!$G$28, IF('Main Details'!$F$10="2c",IF(AND($K25>0,$K25<=2350),($K25/1000)+0.24,""),IF(AND($K25>0,$K25<=2400),($K25/1000)+0.27,"")), IF('Main Details'!$F$10="2c",IF(AND($K25>0,$K25<=2050),($K25/1000)+0.24,""),IF(AND($K25>0,$K25<=2100),($K25/1000)+0.27,"")) ),"") ->  | AF25: =IF($N25="Y",IF('Main Details'!$G$28, IF('Main Details'!$F$10="2c",IF(AND($K25>2350,$K25<=2650),($K25/1000)+0.3,""),IF(AND($K25>2400,$K25<=2650),($K25/1000)+0.3,"")), IF('Main Details'!$F$10="2c",IF(AND($K25>2050,$K25<=2250),($K25/1000)+0.3,""),IF(AND($K25>2100,$K25<=2250),($K25/1000)+0.3,"")) ),"") ->  | AG25: =IF($N25="Y",IF('Main Details'!$G$28, IF('Main Details'!$F$10="2c",IF(AND($K25>2650,$K25<=3450),($K25/1000)+0.3,""),""), IF('Main Details'!$F$10="2c",IF(AND($K25>2250,$K25<=3000),($K25/1000)+0.3,""),"") ),"") ->  | AH25: =IF($N25="Y",IF('Main Details'!$G$28, IF('Main Details'!$F$10="2c",IF(AND($K25>3450,$K25<=3850),($K25/1000)+0.3,""),IF(AND($K25>2650,$K25<=3850),($K25/1000)+0.3,"")), IF('Main Details'!$F$10="2c",IF(AND($K25>3000,$K25<=3450),($K25/1000)+0.3,""),IF(AND($K25>2250,$K25<=3450),($K25/1000)+0.3,"")) ),"") ->  | AK25: =IF(AND($K25<=7199,$K25>=4001),($K25+'BUILDERS SETTINGS'!$C$15)/1000," ") ->  | AN25: 0 | AO25: 1 | AP25: 0 | AQ25: 0 | AR25: 0 | AS25: 2.77 | AT25: 1.27 | AV25: 1470
A26: =IF(#REF!>0,I26+#REF!) ->  | B26: ='Summary Sheet'!B85 -> THEATRE | C26: 0 | D26: N | F26: =IF(AND(#REF!>0,G26>0),(#REF!*0.086)*(K26/1000)," ") ->  | G26: ='Summary Sheet'!G85 -> 2.314 | H26: x | I26: 12.5 | J26: 28.925 | K26: ='Summary Sheet'!C85 -> 3010 | L26: 6.96514 | M26: 1 | P26: =IF('Main Details'!$G$28,IF(AND($K26>0,$K26<=1600,$B26<>"GOB"),($K26/1000)+0.2,""),IF(AND($K26>0,$K26<=1200),($K26/1000)+0.2,"")) ->  | R26: =IF('Main Details'!$G$28,IF(AND($K26>1600,$K26<=1900),($K26/1000)+0.2,""),IF(AND($K26>1200,$K26<=1500),($K26/1000)+0.2,"")) ->  | T26: =IF('Main Details'!$G$28,IF(AND($K26>1900,$K26<=2600),($K26/1000)+0.27,""),IF(AND($K26>1500,$K26<=2200),($K26/1000)+0.27,"")) ->  | V26: =IF('Main Details'!$G$28,IF(AND($K26>2600,$K26<=3100),($K26/1000)+0.3,""),IF(AND($K26>2200,$K26<=2600),($K26/1000)+0.3,"")) -> 3.31 | W26: 3.31 | X26: =IF('Main Details'!$G$28,IF(AND($K26>3100,$K26<=3450),($K26/1000)+0.3,""),IF(AND($K26>2600,$K26<=3000),($K26/1000)+0.3,"")) ->  | Z26: =IF('Main Details'!$G$28,IF(AND($K26>3450,$K26<=3850),($K26/1000)+0.3,""),IF(AND($K26>3000,$K26<=3450),($K26/1000)+0.3,"")) ->  | AC26: 0 | AD26: 3 | AE26: =IF(OR($N26="Y",$B26="GOB"),IF('Main Details'!$G$28, IF('Main Details'!$F$10="2c",IF(AND($K26>0,$K26<=2350),($K26/1000)+0.24,""),IF(AND($K26>0,$K26<=2400),($K26/1000)+0.27,"")), IF('Main Details'!$F$10="2c",IF(AND($K26>0,$K26<=2050),($K26/1000)+0.24,""),IF(AND($K26>0,$K26<=2100),($K26/1000)+0.27,"")) ),"") ->  | AF26: =IF($N26="Y",IF('Main Details'!$G$28, IF('Main Details'!$F$10="2c",IF(AND($K26>2350,$K26<=2650),($K26/1000)+0.3,""),IF(AND($K26>2400,$K26<=2650),($K26/1000)+0.3,"")), IF('Main Details'!$F$10="2c",IF(AND($K26>2050,$K26<=2250),($K26/1000)+0.3,""),IF(AND($K26>2100,$K26<=2250),($K26/1000)+0.3,"")) ),"") ->  | AG26: =IF($N26="Y",IF('Main Details'!$G$28, IF('Main Details'!$F$10="2c",IF(AND($K26>2650,$K26<=3450),($K26/1000)+0.3,""),""), IF('Main Details'!$F$10="2c",IF(AND($K26>2250,$K26<=3000),($K26/1000)+0.3,""),"") ),"") ->  | AH26: =IF($N26="Y",IF('Main Details'!$G$28, IF('Main Details'!$F$10="2c",IF(AND($K26>3450,$K26<=3850),($K26/1000)+0.3,""),IF(AND($K26>2650,$K26<=3850),($K26/1000)+0.3,"")), IF('Main Details'!$F$10="2c",IF(AND($K26>3000,$K26<=3450),($K26/1000)+0.3,""),IF(AND($K26>2250,$K26<=3450),($K26/1000)+0.3,"")) ),"") ->  | AK26: =IF(AND($K26<=7199,$K26>=4001),($K26+'BUILDERS SETTINGS'!$C$15)/1000," ") ->  | AN26: 0 | AO26: 0 | AP26: 0 | AQ26: 3 | AR26: 0 | AS26: 4.51 | AT26: 3.01 | AV26: 3210
A27: =IF(#REF!>0,I27+#REF!) ->  | B27: ='Summary Sheet'!B86 -> 0 | C27: 0 | D27: N | F27: =IF(AND(#REF!>0,G27>0),(#REF!*0.086)*(K27/1000)," ") ->  | G27: ='Summary Sheet'!G86 -> 0 | H27: x | I27: -0.04166666667 | K27: ='Summary Sheet'!C86 -> 0 | L27: 0 | M27: 0 | P27: =IF('Main Details'!$G$28,IF(AND($K27>0,$K27<=1600,$B27<>"GOB"),($K27/1000)+0.2,""),IF(AND($K27>0,$K27<=1200),($K27/1000)+0.2,"")) ->  | R27: =IF('Main Details'!$G$28,IF(AND($K27>1600,$K27<=1900),($K27/1000)+0.2,""),IF(AND($K27>1200,$K27<=1500),($K27/1000)+0.2,"")) ->  | T27: =IF('Main Details'!$G$28,IF(AND($K27>1900,$K27<=2600),($K27/1000)+0.27,""),IF(AND($K27>1500,$K27<=2200),($K27/1000)+0.27,"")) ->  | V27: =IF('Main Details'!$G$28,IF(AND($K27>2600,$K27<=3100),($K27/1000)+0.3,""),IF(AND($K27>2200,$K27<=2600),($K27/1000)+0.3,"")) ->  | X27: =IF('Main Details'!$G$28,IF(AND($K27>3100,$K27<=3450),($K27/1000)+0.3,""),IF(AND($K27>2600,$K27<=3000),($K27/1000)+0.3,"")) ->  | Z27: =IF('Main Details'!$G$28,IF(AND($K27>3450,$K27<=3850),($K27/1000)+0.3,""),IF(AND($K27>3000,$K27<=3450),($K27/1000)+0.3,"")) ->  | AC27: 0 | AE27: =IF(OR($N27="Y",$B27="GOB"),IF('Main Details'!$G$28, IF('Main Details'!$F$10="2c",IF(AND($K27>0,$K27<=2350),($K27/1000)+0.24,""),IF(AND($K27>0,$K27<=2400),($K27/1000)+0.27,"")), IF('Main Details'!$F$10="2c",IF(AND($K27>0,$K27<=2050),($K27/1000)+0.24,""),IF(AND($K27>0,$K27<=2100),($K27/1000)+0.27,"")) ),"") ->  | AF27: =IF($N27="Y",IF('Main Details'!$G$28, IF('Main Details'!$F$10="2c",IF(AND($K27>2350,$K27<=2650),($K27/1000)+0.3,""),IF(AND($K27>2400,$K27<=2650),($K27/1000)+0.3,"")), IF('Main Details'!$F$10="2c",IF(AND($K27>2050,$K27<=2250),($K27/1000)+0.3,""),IF(AND($K27>2100,$K27<=2250),($K27/1000)+0.3,"")) ),"") ->  | AG27: =IF($N27="Y",IF('Main Details'!$G$28, IF('Main Details'!$F$10="2c",IF(AND($K27>2650,$K27<=3450),($K27/1000)+0.3,""),""), IF('Main Details'!$F$10="2c",IF(AND($K27>2250,$K27<=3000),($K27/1000)+0.3,""),"") ),"") ->  | AH27: =IF($N27="Y",IF('Main Details'!$G$28, IF('Main Details'!$F$10="2c",IF(AND($K27>3450,$K27<=3850),($K27/1000)+0.3,""),IF(AND($K27>2650,$K27<=3850),($K27/1000)+0.3,"")), IF('Main Details'!$F$10="2c",IF(AND($K27>3000,$K27<=3450),($K27/1000)+0.3,""),IF(AND($K27>2250,$K27<=3450),($K27/1000)+0.3,"")) ),"") ->  | AK27: =IF(AND($K27<=7199,$K27>=4001),($K27+'BUILDERS SETTINGS'!$C$15)/1000," ") ->  | AN27: 0 | AO27: 0 | AP27: 0 | AQ27: 0 | AR27: 0 | AS27: 0 | AT27: 0 | AV27: 200
A28: =IF(#REF!>0,I28+#REF!) ->  | B28: ='Summary Sheet'!B87 -> 0 | C28: 0 | D28: N | F28: =IF(AND(#REF!>0,G28>0),(#REF!*0.086)*(K28/1000)," ") ->  | G28: ='Summary Sheet'!G87 -> 0 | H28: x | I28: -0.04166666667 | K28: ='Summary Sheet'!C87 -> 0 | L28: 0 | M28: 0 | P28: =IF('Main Details'!$G$28,IF(AND($K28>0,$K28<=1600,$B28<>"GOB"),($K28/1000)+0.2,""),IF(AND($K28>0,$K28<=1200),($K28/1000)+0.2,"")) ->  | R28: =IF('Main Details'!$G$28,IF(AND($K28>1600,$K28<=1900),($K28/1000)+0.2,""),IF(AND($K28>1200,$K28<=1500),($K28/1000)+0.2,"")) ->  | T28: =IF('Main Details'!$G$28,IF(AND($K28>1900,$K28<=2600),($K28/1000)+0.27,""),IF(AND($K28>1500,$K28<=2200),($K28/1000)+0.27,"")) ->  | V28: =IF('Main Details'!$G$28,IF(AND($K28>2600,$K28<=3100),($K28/1000)+0.3,""),IF(AND($K28>2200,$K28<=2600),($K28/1000)+0.3,"")) ->  | X28: =IF('Main Details'!$G$28,IF(AND($K28>3100,$K28<=3450),($K28/1000)+0.3,""),IF(AND($K28>2600,$K28<=3000),($K28/1000)+0.3,"")) ->  | Z28: =IF('Main Details'!$G$28,IF(AND($K28>3450,$K28<=3850),($K28/1000)+0.3,""),IF(AND($K28>3000,$K28<=3450),($K28/1000)+0.3,"")) ->  | AC28: 0 | AE28: =IF(OR($N28="Y",$B28="GOB"),IF('Main Details'!$G$28, IF('Main Details'!$F$10="2c",IF(AND($K28>0,$K28<=2350),($K28/1000)+0.24,""),IF(AND($K28>0,$K28<=2400),($K28/1000)+0.27,"")), IF('Main Details'!$F$10="2c",IF(AND($K28>0,$K28<=2050),($K28/1000)+0.24,""),IF(AND($K28>0,$K28<=2100),($K28/1000)+0.27,"")) ),"") ->  | AF28: =IF($N28="Y",IF('Main Details'!$G$28, IF('Main Details'!$F$10="2c",IF(AND($K28>2350,$K28<=2650),($K28/1000)+0.3,""),IF(AND($K28>2400,$K28<=2650),($K28/1000)+0.3,"")), IF('Main Details'!$F$10="2c",IF(AND($K28>2050,$K28<=2250),($K28/1000)+0.3,""),IF(AND($K28>2100,$K28<=2250),($K28/1000)+0.3,"")) ),"") ->  | AG28: =IF($N28="Y",IF('Main Details'!$G$28, IF('Main Details'!$F$10="2c",IF(AND($K28>2650,$K28<=3450),($K28/1000)+0.3,""),""), IF('Main Details'!$F$10="2c",IF(AND($K28>2250,$K28<=3000),($K28/1000)+0.3,""),"") ),"") ->  | AH28: =IF($N28="Y",IF('Main Details'!$G$28, IF('Main Details'!$F$10="2c",IF(AND($K28>3450,$K28<=3850),($K28/1000)+0.3,""),IF(AND($K28>2650,$K28<=3850),($K28/1000)+0.3,"")), IF('Main Details'!$F$10="2c",IF(AND($K28>3000,$K28<=3450),($K28/1000)+0.3,""),IF(AND($K28>2250,$K28<=3450),($K28/1000)+0.3,"")) ),"") ->  | AK28: =IF(AND($K28<=7199,$K28>=4001),($K28+'BUILDERS SETTINGS'!$C$15)/1000," ") ->  | AN28: 0 | AO28: 0 | AP28: 0 | AQ28: 0 | AR28: 0 | AS28: 0 | AT28: 0 | AV28: 200
A29: =IF(#REF!>0,I29+#REF!) ->  | B29: ='Summary Sheet'!B88 -> 0 | C29: 0 | D29: N | F29: =IF(AND(#REF!>0,G29>0),(#REF!*0.086)*(K29/1000)," ") ->  | G29: ='Summary Sheet'!G88 -> 0 | H29: x | I29: -0.04166666667 | K29: ='Summary Sheet'!C88 -> 0 | L29: 0 | M29: 0 | P29: =IF('Main Details'!$G$28,IF(AND($K29>0,$K29<=1600,$B29<>"GOB"),($K29/1000)+0.2,""),IF(AND($K29>0,$K29<=1200),($K29/1000)+0.2,"")) ->  | R29: =IF('Main Details'!$G$28,IF(AND($K29>1600,$K29<=1900),($K29/1000)+0.2,""),IF(AND($K29>1200,$K29<=1500),($K29/1000)+0.2,"")) ->  | T29: =IF('Main Details'!$G$28,IF(AND($K29>1900,$K29<=2600),($K29/1000)+0.27,""),IF(AND($K29>1500,$K29<=2200),($K29/1000)+0.27,"")) ->  | V29: =IF('Main Details'!$G$28,IF(AND($K29>2600,$K29<=3100),($K29/1000)+0.3,""),IF(AND($K29>2200,$K29<=2600),($K29/1000)+0.3,"")) ->  | X29: =IF('Main Details'!$G$28,IF(AND($K29>3100,$K29<=3450),($K29/1000)+0.3,""),IF(AND($K29>2600,$K29<=3000),($K29/1000)+0.3,"")) ->  | Z29: =IF('Main Details'!$G$28,IF(AND($K29>3450,$K29<=3850),($K29/1000)+0.3,""),IF(AND($K29>3000,$K29<=3450),($K29/1000)+0.3,"")) ->  | AC29: 0 | AE29: =IF(OR($N29="Y",$B29="GOB"),IF('Main Details'!$G$28, IF('Main Details'!$F$10="2c",IF(AND($K29>0,$K29<=2350),($K29/1000)+0.24,""),IF(AND($K29>0,$K29<=2400),($K29/1000)+0.27,"")), IF('Main Details'!$F$10="2c",IF(AND($K29>0,$K29<=2050),($K29/1000)+0.24,""),IF(AND($K29>0,$K29<=2100),($K29/1000)+0.27,"")) ),"") ->  | AF29: =IF($N29="Y",IF('Main Details'!$G$28, IF('Main Details'!$F$10="2c",IF(AND($K29>2350,$K29<=2650),($K29/1000)+0.3,""),IF(AND($K29>2400,$K29<=2650),($K29/1000)+0.3,"")), IF('Main Details'!$F$10="2c",IF(AND($K29>2050,$K29<=2250),($K29/1000)+0.3,""),IF(AND($K29>2100,$K29<=2250),($K29/1000)+0.3,"")) ),"") ->  | AG29: =IF($N29="Y",IF('Main Details'!$G$28, IF('Main Details'!$F$10="2c",IF(AND($K29>2650,$K29<=3450),($K29/1000)+0.3,""),""), IF('Main Details'!$F$10="2c",IF(AND($K29>2250,$K29<=3000),($K29/1000)+0.3,""),"") ),"") ->  | AH29: =IF($N29="Y",IF('Main Details'!$G$28, IF('Main Details'!$F$10="2c",IF(AND($K29>3450,$K29<=3850),($K29/1000)+0.3,""),IF(AND($K29>2650,$K29<=3850),($K29/1000)+0.3,"")), IF('Main Details'!$F$10="2c",IF(AND($K29>3000,$K29<=3450),($K29/1000)+0.3,""),IF(AND($K29>2250,$K29<=3450),($K29/1000)+0.3,"")) ),"") ->  | AK29: =IF(AND($K29<=7199,$K29>=4001),($K29+'BUILDERS SETTINGS'!$C$15)/1000," ") ->  | AN29: 0 | AO29: 0 | AP29: 0 | AQ29: 0 | AR29: 0 | AS29: 0 | AT29: 0 | AV29: 200
A30: =IF(#REF!>0,I30+#REF!) ->  | B30: ='Summary Sheet'!B89 -> 0 | C30: 0 | D30: N | F30: =IF(AND(#REF!>0,G30>0),(#REF!*0.086)*(K30/1000)," ") ->  | G30: ='Summary Sheet'!G89 -> 0 | H30: x | I30: -0.04166666667 | K30: ='Summary Sheet'!C89 -> 0 | L30: 0 | M30: 0 | P30: =IF('Main Details'!$G$28,IF(AND($K30>0,$K30<=1600,$B30<>"GOB"),($K30/1000)+0.2,""),IF(AND($K30>0,$K30<=1200),($K30/1000)+0.2,"")) ->  | R30: =IF('Main Details'!$G$28,IF(AND($K30>1600,$K30<=1900),($K30/1000)+0.2,""),IF(AND($K30>1200,$K30<=1500),($K30/1000)+0.2,"")) ->  | T30: =IF('Main Details'!$G$28,IF(AND($K30>1900,$K30<=2600),($K30/1000)+0.27,""),IF(AND($K30>1500,$K30<=2200),($K30/1000)+0.27,"")) ->  | V30: =IF('Main Details'!$G$28,IF(AND($K30>2600,$K30<=3100),($K30/1000)+0.3,""),IF(AND($K30>2200,$K30<=2600),($K30/1000)+0.3,"")) ->  | X30: =IF('Main Details'!$G$28,IF(AND($K30>3100,$K30<=3450),($K30/1000)+0.3,""),IF(AND($K30>2600,$K30<=3000),($K30/1000)+0.3,"")) ->  | Z30: =IF('Main Details'!$G$28,IF(AND($K30>3450,$K30<=3850),($K30/1000)+0.3,""),IF(AND($K30>3000,$K30<=3450),($K30/1000)+0.3,"")) ->  | AC30: 0 | AE30: =IF(OR($N30="Y",$B30="GOB"),IF('Main Details'!$G$28, IF('Main Details'!$F$10="2c",IF(AND($K30>0,$K30<=2350),($K30/1000)+0.24,""),IF(AND($K30>0,$K30<=2400),($K30/1000)+0.27,"")), IF('Main Details'!$F$10="2c",IF(AND($K30>0,$K30<=2050),($K30/1000)+0.24,""),IF(AND($K30>0,$K30<=2100),($K30/1000)+0.27,"")) ),"") ->  | AF30: =IF($N30="Y",IF('Main Details'!$G$28, IF('Main Details'!$F$10="2c",IF(AND($K30>2350,$K30<=2650),($K30/1000)+0.3,""),IF(AND($K30>2400,$K30<=2650),($K30/1000)+0.3,"")), IF('Main Details'!$F$10="2c",IF(AND($K30>2050,$K30<=2250),($K30/1000)+0.3,""),IF(AND($K30>2100,$K30<=2250),($K30/1000)+0.3,"")) ),"") ->  | AG30: =IF($N30="Y",IF('Main Details'!$G$28, IF('Main Details'!$F$10="2c",IF(AND($K30>2650,$K30<=3450),($K30/1000)+0.3,""),""), IF('Main Details'!$F$10="2c",IF(AND($K30>2250,$K30<=3000),($K30/1000)+0.3,""),"") ),"") ->  | AH30: =IF($N30="Y",IF('Main Details'!$G$28, IF('Main Details'!$F$10="2c",IF(AND($K30>3450,$K30<=3850),($K30/1000)+0.3,""),IF(AND($K30>2650,$K30<=3850),($K30/1000)+0.3,"")), IF('Main Details'!$F$10="2c",IF(AND($K30>3000,$K30<=3450),($K30/1000)+0.3,""),IF(AND($K30>2250,$K30<=3450),($K30/1000)+0.3,"")) ),"") ->  | AK30: =IF(AND($K30<=7199,$K30>=4001),($K30+'BUILDERS SETTINGS'!$C$15)/1000," ") ->  | AN30: 0 | AO30: 0 | AP30: 0 | AQ30: 0 | AR30: 0 | AS30: 0 | AT30: 0 | AV30: 200
A31: =IF(#REF!>0,I31+#REF!) ->  | B31: ='Summary Sheet'!B90 -> 0 | C31: 0 | D31: N | F31: =IF(AND(#REF!>0,G31>0),(#REF!*0.086)*(K31/1000)," ") ->  | G31: ='Summary Sheet'!G90 -> 0 | H31: x | I31: -0.04166666667 | K31: ='Summary Sheet'!C90 -> 0 | L31: 0 | M31: 0 | P31: =IF('Main Details'!$G$28,IF(AND($K31>0,$K31<=1600,$B31<>"GOB"),($K31/1000)+0.2,""),IF(AND($K31>0,$K31<=1200),($K31/1000)+0.2,"")) ->  | R31: =IF('Main Details'!$G$28,IF(AND($K31>1600,$K31<=1900),($K31/1000)+0.2,""),IF(AND($K31>1200,$K31<=1500),($K31/1000)+0.2,"")) ->  | T31: =IF('Main Details'!$G$28,IF(AND($K31>1900,$K31<=2600),($K31/1000)+0.27,""),IF(AND($K31>1500,$K31<=2200),($K31/1000)+0.27,"")) ->  | V31: =IF('Main Details'!$G$28,IF(AND($K31>2600,$K31<=3100),($K31/1000)+0.3,""),IF(AND($K31>2200,$K31<=2600),($K31/1000)+0.3,"")) ->  | X31: =IF('Main Details'!$G$28,IF(AND($K31>3100,$K31<=3450),($K31/1000)+0.3,""),IF(AND($K31>2600,$K31<=3000),($K31/1000)+0.3,"")) ->  | Z31: =IF('Main Details'!$G$28,IF(AND($K31>3450,$K31<=3850),($K31/1000)+0.3,""),IF(AND($K31>3000,$K31<=3450),($K31/1000)+0.3,"")) ->  | AC31: 0 | AE31: =IF(OR($N31="Y",$B31="GOB"),IF('Main Details'!$G$28, IF('Main Details'!$F$10="2c",IF(AND($K31>0,$K31<=2350),($K31/1000)+0.24,""),IF(AND($K31>0,$K31<=2400),($K31/1000)+0.27,"")), IF('Main Details'!$F$10="2c",IF(AND($K31>0,$K31<=2050),($K31/1000)+0.24,""),IF(AND($K31>0,$K31<=2100),($K31/1000)+0.27,"")) ),"") ->  | AF31: =IF($N31="Y",IF('Main Details'!$G$28, IF('Main Details'!$F$10="2c",IF(AND($K31>2350,$K31<=2650),($K31/1000)+0.3,""),IF(AND($K31>2400,$K31<=2650),($K31/1000)+0.3,"")), IF('Main Details'!$F$10="2c",IF(AND($K31>2050,$K31<=2250),($K31/1000)+0.3,""),IF(AND($K31>2100,$K31<=2250),($K31/1000)+0.3,"")) ),"") ->  | AG31: =IF($N31="Y",IF('Main Details'!$G$28, IF('Main Details'!$F$10="2c",IF(AND($K31>2650,$K31<=3450),($K31/1000)+0.3,""),""), IF('Main Details'!$F$10="2c",IF(AND($K31>2250,$K31<=3000),($K31/1000)+0.3,""),"") ),"") ->  | AH31: =IF($N31="Y",IF('Main Details'!$G$28, IF('Main Details'!$F$10="2c",IF(AND($K31>3450,$K31<=3850),($K31/1000)+0.3,""),IF(AND($K31>2650,$K31<=3850),($K31/1000)+0.3,"")), IF('Main Details'!$F$10="2c",IF(AND($K31>3000,$K31<=3450),($K31/1000)+0.3,""),IF(AND($K31>2250,$K31<=3450),($K31/1000)+0.3,"")) ),"") ->  | AK31: =IF(AND($K31<=7199,$K31>=4001),($K31+'BUILDERS SETTINGS'!$C$15)/1000," ") ->  | AN31: 0 | AO31: 0 | AP31: 0 | AQ31: 0 | AR31: 0 | AS31: 0 | AT31: 0 | AV31: 200
A32: =IF(#REF!>0,I32+#REF!) ->  | B32: ='Summary Sheet'!B91 -> 0 | C32: 0 | D32: N | F32: =IF(AND(#REF!>0,G32>0),(#REF!*0.086)*(K32/1000)," ") ->  | G32: ='Summary Sheet'!G91 -> 0 | H32: x | I32: -0.04166666667 | K32: ='Summary Sheet'!C91 -> 0 | L32: 0 | M32: 0 | P32: =IF('Main Details'!$G$28,IF(AND($K32>0,$K32<=1600,$B32<>"GOB"),($K32/1000)+0.2,""),IF(AND($K32>0,$K32<=1200),($K32/1000)+0.2,"")) ->  | R32: =IF('Main Details'!$G$28,IF(AND($K32>1600,$K32<=1900),($K32/1000)+0.2,""),IF(AND($K32>1200,$K32<=1500),($K32/1000)+0.2,"")) ->  | T32: =IF('Main Details'!$G$28,IF(AND($K32>1900,$K32<=2600),($K32/1000)+0.27,""),IF(AND($K32>1500,$K32<=2200),($K32/1000)+0.27,"")) ->  | V32: =IF('Main Details'!$G$28,IF(AND($K32>2600,$K32<=3100),($K32/1000)+0.3,""),IF(AND($K32>2200,$K32<=2600),($K32/1000)+0.3,"")) ->  | X32: =IF('Main Details'!$G$28,IF(AND($K32>3100,$K32<=3450),($K32/1000)+0.3,""),IF(AND($K32>2600,$K32<=3000),($K32/1000)+0.3,"")) ->  | Z32: =IF('Main Details'!$G$28,IF(AND($K32>3450,$K32<=3850),($K32/1000)+0.3,""),IF(AND($K32>3000,$K32<=3450),($K32/1000)+0.3,"")) ->  | AC32: 0 | AE32: =IF(OR($N32="Y",$B32="GOB"),IF('Main Details'!$G$28, IF('Main Details'!$F$10="2c",IF(AND($K32>0,$K32<=2350),($K32/1000)+0.24,""),IF(AND($K32>0,$K32<=2400),($K32/1000)+0.27,"")), IF('Main Details'!$F$10="2c",IF(AND($K32>0,$K32<=2050),($K32/1000)+0.24,""),IF(AND($K32>0,$K32<=2100),($K32/1000)+0.27,"")) ),"") ->  | AF32: =IF($N32="Y",IF('Main Details'!$G$28, IF('Main Details'!$F$10="2c",IF(AND($K32>2350,$K32<=2650),($K32/1000)+0.3,""),IF(AND($K32>2400,$K32<=2650),($K32/1000)+0.3,"")), IF('Main Details'!$F$10="2c",IF(AND($K32>2050,$K32<=2250),($K32/1000)+0.3,""),IF(AND($K32>2100,$K32<=2250),($K32/1000)+0.3,"")) ),"") ->  | AG32: =IF($N32="Y",IF('Main Details'!$G$28, IF('Main Details'!$F$10="2c",IF(AND($K32>2650,$K32<=3450),($K32/1000)+0.3,""),""), IF('Main Details'!$F$10="2c",IF(AND($K32>2250,$K32<=3000),($K32/1000)+0.3,""),"") ),"") ->  | AH32: =IF($N32="Y",IF('Main Details'!$G$28, IF('Main Details'!$F$10="2c",IF(AND($K32>3450,$K32<=3850),($K32/1000)+0.3,""),IF(AND($K32>2650,$K32<=3850),($K32/1000)+0.3,"")), IF('Main Details'!$F$10="2c",IF(AND($K32>3000,$K32<=3450),($K32/1000)+0.3,""),IF(AND($K32>2250,$K32<=3450),($K32/1000)+0.3,"")) ),"") ->  | AK32: =IF(AND($K32<=7199,$K32>=4001),($K32+'BUILDERS SETTINGS'!$C$15)/1000," ") ->  | AN32: 0 | AO32: 0 | AP32: 0 | AQ32: 0 | AR32: 0 | AS32: 0 | AT32: 0 | AV32: 200
A33: =IF(#REF!>0,I33+#REF!) ->  | C33: 0 | D33: N | F33: =IF(AND(#REF!>0,G33>0),(#REF!*0.086)*(K33/1000)," ") ->  | H33: x | L33: 0 | M33: 0 | P33: =IF('Main Details'!$G$28,IF(AND($K33>0,$K33<=1600,$B33<>"GOB"),($K33/1000)+0.2,""),IF(AND($K33>0,$K33<=1200),($K33/1000)+0.2,"")) ->  | R33: =IF('Main Details'!$G$28,IF(AND($K33>1600,$K33<=1900),($K33/1000)+0.2,""),IF(AND($K33>1200,$K33<=1500),($K33/1000)+0.2,"")) ->  | T33: =IF('Main Details'!$G$28,IF(AND($K33>1900,$K33<=2600),($K33/1000)+0.27,""),IF(AND($K33>1500,$K33<=2200),($K33/1000)+0.27,"")) ->  | V33: =IF('Main Details'!$G$28,IF(AND($K33>2600,$K33<=3100),($K33/1000)+0.3,""),IF(AND($K33>2200,$K33<=2600),($K33/1000)+0.3,"")) ->  | X33: =IF('Main Details'!$G$28,IF(AND($K33>3100,$K33<=3450),($K33/1000)+0.3,""),IF(AND($K33>2600,$K33<=3000),($K33/1000)+0.3,"")) ->  | Z33: =IF('Main Details'!$G$28,IF(AND($K33>3450,$K33<=3850),($K33/1000)+0.3,""),IF(AND($K33>3000,$K33<=3450),($K33/1000)+0.3,"")) ->  | AC33: 0 | AE33: =IF(OR($N33="Y",$B33="GOB"),IF('Main Details'!$G$28, IF('Main Details'!$F$10="2c",IF(AND($K33>0,$K33<=2350),($K33/1000)+0.24,""),IF(AND($K33>0,$K33<=2400),($K33/1000)+0.27,"")), IF('Main Details'!$F$10="2c",IF(AND($K33>0,$K33<=2050),($K33/1000)+0.24,""),IF(AND($K33>0,$K33<=2100),($K33/1000)+0.27,"")) ),"") ->  | AF33: =IF($N33="Y",IF('Main Details'!$G$28, IF('Main Details'!$F$10="2c",IF(AND($K33>2350,$K33<=2650),($K33/1000)+0.3,""),IF(AND($K33>2400,$K33<=2650),($K33/1000)+0.3,"")), IF('Main Details'!$F$10="2c",IF(AND($K33>2050,$K33<=2250),($K33/1000)+0.3,""),IF(AND($K33>2100,$K33<=2250),($K33/1000)+0.3,"")) ),"") ->  | AG33: =IF($N33="Y",IF('Main Details'!$G$28, IF('Main Details'!$F$10="2c",IF(AND($K33>2650,$K33<=3450),($K33/1000)+0.3,""),""), IF('Main Details'!$F$10="2c",IF(AND($K33>2250,$K33<=3000),($K33/1000)+0.3,""),"") ),"") ->  | AH33: =IF($N33="Y",IF('Main Details'!$G$28, IF('Main Details'!$F$10="2c",IF(AND($K33>3450,$K33<=3850),($K33/1000)+0.3,""),IF(AND($K33>2650,$K33<=3850),($K33/1000)+0.3,"")), IF('Main Details'!$F$10="2c",IF(AND($K33>3000,$K33<=3450),($K33/1000)+0.3,""),IF(AND($K33>2250,$K33<=3450),($K33/1000)+0.3,"")) ),"") ->  | AK33: =IF(AND($K33<=7199,$K33>=4001),($K33+'BUILDERS SETTINGS'!$C$15)/1000," ") ->  | AN33: 0 | AO33: 0 | AP33: 0 | AQ33: 0 | AR33: 0 | AS33: 0 | AT33: 0 | AV33: 200
A34: =IF(#REF!>0,I34+#REF!) ->  | C34: 0 | D34: N | F34: =IF(AND(#REF!>0,G34>0),(#REF!*0.086)*(K34/1000)," ") ->  | G34: ='Summary Sheet'!G93 -> 0 | H34: x | I34: -0.04166666667 | K34: ='Summary Sheet'!C93 -> 0 | L34: 0 | M34: 0 | P34: =IF('Main Details'!$G$28,IF(AND($K34>0,$K34<=1600,$B34<>"GOB"),($K34/1000)+0.2,""),IF(AND($K34>0,$K34<=1200),($K34/1000)+0.2,"")) ->  | R34: =IF('Main Details'!$G$28,IF(AND($K34>1600,$K34<=1900),($K34/1000)+0.2,""),IF(AND($K34>1200,$K34<=1500),($K34/1000)+0.2,"")) ->  | T34: =IF('Main Details'!$G$28,IF(AND($K34>1900,$K34<=2600),($K34/1000)+0.27,""),IF(AND($K34>1500,$K34<=2200),($K34/1000)+0.27,"")) ->  | V34: =IF('Main Details'!$G$28,IF(AND($K34>2600,$K34<=3100),($K34/1000)+0.3,""),IF(AND($K34>2200,$K34<=2600),($K34/1000)+0.3,"")) ->  | X34: =IF('Main Details'!$G$28,IF(AND($K34>3100,$K34<=3450),($K34/1000)+0.3,""),IF(AND($K34>2600,$K34<=3000),($K34/1000)+0.3,"")) ->  | Z34: =IF('Main Details'!$G$28,IF(AND($K34>3450,$K34<=3850),($K34/1000)+0.3,""),IF(AND($K34>3000,$K34<=3450),($K34/1000)+0.3,"")) ->  | AC34: 0 | AE34: =IF(OR($N34="Y",$B34="GOB"),IF('Main Details'!$G$28, IF('Main Details'!$F$10="2c",IF(AND($K34>0,$K34<=2350),($K34/1000)+0.24,""),IF(AND($K34>0,$K34<=2400),($K34/1000)+0.27,"")), IF('Main Details'!$F$10="2c",IF(AND($K34>0,$K34<=2050),($K34/1000)+0.24,""),IF(AND($K34>0,$K34<=2100),($K34/1000)+0.27,"")) ),"") ->  | AF34: =IF($N34="Y",IF('Main Details'!$G$28, IF('Main Details'!$F$10="2c",IF(AND($K34>2350,$K34<=2650),($K34/1000)+0.3,""),IF(AND($K34>2400,$K34<=2650),($K34/1000)+0.3,"")), IF('Main Details'!$F$10="2c",IF(AND($K34>2050,$K34<=2250),($K34/1000)+0.3,""),IF(AND($K34>2100,$K34<=2250),($K34/1000)+0.3,"")) ),"") ->  | AG34: =IF($N34="Y",IF('Main Details'!$G$28, IF('Main Details'!$F$10="2c",IF(AND($K34>2650,$K34<=3450),($K34/1000)+0.3,""),""), IF('Main Details'!$F$10="2c",IF(AND($K34>2250,$K34<=3000),($K34/1000)+0.3,""),"") ),"") ->  | AH34: =IF($N34="Y",IF('Main Details'!$G$28, IF('Main Details'!$F$10="2c",IF(AND($K34>3450,$K34<=3850),($K34/1000)+0.3,""),IF(AND($K34>2650,$K34<=3850),($K34/1000)+0.3,"")), IF('Main Details'!$F$10="2c",IF(AND($K34>3000,$K34<=3450),($K34/1000)+0.3,""),IF(AND($K34>2250,$K34<=3450),($K34/1000)+0.3,"")) ),"") ->  | AK34: =IF(AND($K34<=7199,$K34>=4001),($K34+'BUILDERS SETTINGS'!$C$15)/1000," ") ->  | AN34: 0 | AO34: 0 | AP34: 0 | AQ34: 0 | AR34: 0 | AS34: 0 | AT34: 0 | AV34: 200
A35: =IF(#REF!>0,I35+#REF!) ->  | B35: ='Summary Sheet'!B94 -> 0 | C35: 0 | D35: N | F35: =IF(AND(#REF!>0,G35>0),(#REF!*0.086)*(K35/1000)," ") ->  | G35: ='Summary Sheet'!G94 -> 0 | H35: x | I35: -0.04166666667 | K35: ='Summary Sheet'!C94 -> 0 | L35: 0 | M35: 0 | P35: =IF('Main Details'!$G$28,IF(AND($K35>0,$K35<=1600,$B35<>"GOB"),($K35/1000)+0.2,""),IF(AND($K35>0,$K35<=1200),($K35/1000)+0.2,"")) ->  | R35: =IF('Main Details'!$G$28,IF(AND($K35>1600,$K35<=1900),($K35/1000)+0.2,""),IF(AND($K35>1200,$K35<=1500),($K35/1000)+0.2,"")) ->  | T35: =IF('Main Details'!$G$28,IF(AND($K35>1900,$K35<=2600),($K35/1000)+0.27,""),IF(AND($K35>1500,$K35<=2200),($K35/1000)+0.27,"")) ->  | V35: =IF('Main Details'!$G$28,IF(AND($K35>2600,$K35<=3100),($K35/1000)+0.3,""),IF(AND($K35>2200,$K35<=2600),($K35/1000)+0.3,"")) ->  | X35: =IF('Main Details'!$G$28,IF(AND($K35>3100,$K35<=3450),($K35/1000)+0.3,""),IF(AND($K35>2600,$K35<=3000),($K35/1000)+0.3,"")) ->  | Z35: =IF('Main Details'!$G$28,IF(AND($K35>3450,$K35<=3850),($K35/1000)+0.3,""),IF(AND($K35>3000,$K35<=3450),($K35/1000)+0.3,"")) ->  | AC35: 0 | AE35: =IF(OR($N35="Y",$B35="GOB"),IF('Main Details'!$G$28, IF('Main Details'!$F$10="2c",IF(AND($K35>0,$K35<=2350),($K35/1000)+0.24,""),IF(AND($K35>0,$K35<=2400),($K35/1000)+0.27,"")), IF('Main Details'!$F$10="2c",IF(AND($K35>0,$K35<=2050),($K35/1000)+0.24,""),IF(AND($K35>0,$K35<=2100),($K35/1000)+0.27,"")) ),"") ->  | AF35: =IF($N35="Y",IF('Main Details'!$G$28, IF('Main Details'!$F$10="2c",IF(AND($K35>2350,$K35<=2650),($K35/1000)+0.3,""),IF(AND($K35>2400,$K35<=2650),($K35/1000)+0.3,"")), IF('Main Details'!$F$10="2c",IF(AND($K35>2050,$K35<=2250),($K35/1000)+0.3,""),IF(AND($K35>2100,$K35<=2250),($K35/1000)+0.3,"")) ),"") ->  | AG35: =IF($N35="Y",IF('Main Details'!$G$28, IF('Main Details'!$F$10="2c",IF(AND($K35>2650,$K35<=3450),($K35/1000)+0.3,""),""), IF('Main Details'!$F$10="2c",IF(AND($K35>2250,$K35<=3000),($K35/1000)+0.3,""),"") ),"") ->  | AH35: =IF($N35="Y",IF('Main Details'!$G$28, IF('Main Details'!$F$10="2c",IF(AND($K35>3450,$K35<=3850),($K35/1000)+0.3,""),IF(AND($K35>2650,$K35<=3850),($K35/1000)+0.3,"")), IF('Main Details'!$F$10="2c",IF(AND($K35>3000,$K35<=3450),($K35/1000)+0.3,""),IF(AND($K35>2250,$K35<=3450),($K35/1000)+0.3,"")) ),"") ->  | AK35: =IF(AND($K35<=7199,$K35>=4001),($K35+'BUILDERS SETTINGS'!$C$15)/1000," ") ->  | AN35: 0 | AO35: 0 | AP35: 0 | AQ35: 0 | AR35: 0 | AS35: 0 | AT35: 0 | AV35: 200
A36: =IF(#REF!>0,I36+#REF!) ->  | B36: ='Summary Sheet'!B95 -> 0 | C36: 0 | D36: N | F36: =IF(AND(#REF!>0,G36>0),(#REF!*0.086)*(K36/1000)," ") ->  | G36: ='Summary Sheet'!G95 -> 0 | H36: x | I36: -0.04166666667 | K36: ='Summary Sheet'!C95 -> 0 | L36: 0 | M36: 0 | P36: =IF('Main Details'!$G$28,IF(AND($K36>0,$K36<=1600,$B36<>"GOB"),($K36/1000)+0.2,""),IF(AND($K36>0,$K36<=1200),($K36/1000)+0.2,"")) ->  | R36: =IF('Main Details'!$G$28,IF(AND($K36>1600,$K36<=1900),($K36/1000)+0.2,""),IF(AND($K36>1200,$K36<=1500),($K36/1000)+0.2,"")) ->  | T36: =IF('Main Details'!$G$28,IF(AND($K36>1900,$K36<=2600),($K36/1000)+0.27,""),IF(AND($K36>1500,$K36<=2200),($K36/1000)+0.27,"")) ->  | V36: =IF('Main Details'!$G$28,IF(AND($K36>2600,$K36<=3100),($K36/1000)+0.3,""),IF(AND($K36>2200,$K36<=2600),($K36/1000)+0.3,"")) ->  | X36: =IF('Main Details'!$G$28,IF(AND($K36>3100,$K36<=3450),($K36/1000)+0.3,""),IF(AND($K36>2600,$K36<=3000),($K36/1000)+0.3,"")) ->  | Z36: =IF('Main Details'!$G$28,IF(AND($K36>3450,$K36<=3850),($K36/1000)+0.3,""),IF(AND($K36>3000,$K36<=3450),($K36/1000)+0.3,"")) ->  | AC36: 0 | AE36: =IF(OR($N36="Y",$B36="GOB"),IF('Main Details'!$G$28, IF('Main Details'!$F$10="2c",IF(AND($K36>0,$K36<=2350),($K36/1000)+0.24,""),IF(AND($K36>0,$K36<=2400),($K36/1000)+0.27,"")), IF('Main Details'!$F$10="2c",IF(AND($K36>0,$K36<=2050),($K36/1000)+0.24,""),IF(AND($K36>0,$K36<=2100),($K36/1000)+0.27,"")) ),"") ->  | AF36: =IF($N36="Y",IF('Main Details'!$G$28, IF('Main Details'!$F$10="2c",IF(AND($K36>2350,$K36<=2650),($K36/1000)+0.3,""),IF(AND($K36>2400,$K36<=2650),($K36/1000)+0.3,"")), IF('Main Details'!$F$10="2c",IF(AND($K36>2050,$K36<=2250),($K36/1000)+0.3,""),IF(AND($K36>2100,$K36<=2250),($K36/1000)+0.3,"")) ),"") ->  | AG36: =IF($N36="Y",IF('Main Details'!$G$28, IF('Main Details'!$F$10="2c",IF(AND($K36>2650,$K36<=3450),($K36/1000)+0.3,""),""), IF('Main Details'!$F$10="2c",IF(AND($K36>2250,$K36<=3000),($K36/1000)+0.3,""),"") ),"") ->  | AH36: =IF($N36="Y",IF('Main Details'!$G$28, IF('Main Details'!$F$10="2c",IF(AND($K36>3450,$K36<=3850),($K36/1000)+0.3,""),IF(AND($K36>2650,$K36<=3850),($K36/1000)+0.3,"")), IF('Main Details'!$F$10="2c",IF(AND($K36>3000,$K36<=3450),($K36/1000)+0.3,""),IF(AND($K36>2250,$K36<=3450),($K36/1000)+0.3,"")) ),"") ->  | AK36: =IF(AND($K36<=7199,$K36>=4001),($K36+'BUILDERS SETTINGS'!$C$15)/1000," ") ->  | AN36: 0 | AO36: 0 | AP36: 0 | AQ36: 0 | AR36: 0 | AS36: 0 | AT36: 0 | AV36: 200
A37: =IF(#REF!>0,I37+#REF!) ->  | B37: ='Summary Sheet'!B96 -> 0 | C37: 0 | D37: N | F37: =IF(AND(#REF!>0,G37>0),(#REF!*0.086)*(K37/1000)," ") ->  | G37: ='Summary Sheet'!G96 -> 0 | H37: x | I37: -0.04166666667 | K37: ='Summary Sheet'!C96 -> 0 | L37: 0 | M37: 0 | P37: =IF('Main Details'!$G$28,IF(AND($K37>0,$K37<=1600,$B37<>"GOB"),($K37/1000)+0.2,""),IF(AND($K37>0,$K37<=1200),($K37/1000)+0.2,"")) ->  | R37: =IF('Main Details'!$G$28,IF(AND($K37>1600,$K37<=1900),($K37/1000)+0.2,""),IF(AND($K37>1200,$K37<=1500),($K37/1000)+0.2,"")) ->  | T37: =IF('Main Details'!$G$28,IF(AND($K37>1900,$K37<=2600),($K37/1000)+0.27,""),IF(AND($K37>1500,$K37<=2200),($K37/1000)+0.27,"")) ->  | V37: =IF('Main Details'!$G$28,IF(AND($K37>2600,$K37<=3100),($K37/1000)+0.3,""),IF(AND($K37>2200,$K37<=2600),($K37/1000)+0.3,"")) ->  | X37: =IF('Main Details'!$G$28,IF(AND($K37>3100,$K37<=3450),($K37/1000)+0.3,""),IF(AND($K37>2600,$K37<=3000),($K37/1000)+0.3,"")) ->  | Z37: =IF('Main Details'!$G$28,IF(AND($K37>3450,$K37<=3850),($K37/1000)+0.3,""),IF(AND($K37>3000,$K37<=3450),($K37/1000)+0.3,"")) ->  | AC37: 0 | AE37: =IF(OR($N37="Y",$B37="GOB"),IF('Main Details'!$G$28, IF('Main Details'!$F$10="2c",IF(AND($K37>0,$K37<=2350),($K37/1000)+0.24,""),IF(AND($K37>0,$K37<=2400),($K37/1000)+0.27,"")), IF('Main Details'!$F$10="2c",IF(AND($K37>0,$K37<=2050),($K37/1000)+0.24,""),IF(AND($K37>0,$K37<=2100),($K37/1000)+0.27,"")) ),"") ->  | AF37: =IF($N37="Y",IF('Main Details'!$G$28, IF('Main Details'!$F$10="2c",IF(AND($K37>2350,$K37<=2650),($K37/1000)+0.3,""),IF(AND($K37>2400,$K37<=2650),($K37/1000)+0.3,"")), IF('Main Details'!$F$10="2c",IF(AND($K37>2050,$K37<=2250),($K37/1000)+0.3,""),IF(AND($K37>2100,$K37<=2250),($K37/1000)+0.3,"")) ),"") ->  | AG37: =IF($N37="Y",IF('Main Details'!$G$28, IF('Main Details'!$F$10="2c",IF(AND($K37>2650,$K37<=3450),($K37/1000)+0.3,""),""), IF('Main Details'!$F$10="2c",IF(AND($K37>2250,$K37<=3000),($K37/1000)+0.3,""),"") ),"") ->  | AH37: =IF($N37="Y",IF('Main Details'!$G$28, IF('Main Details'!$F$10="2c",IF(AND($K37>3450,$K37<=3850),($K37/1000)+0.3,""),IF(AND($K37>2650,$K37<=3850),($K37/1000)+0.3,"")), IF('Main Details'!$F$10="2c",IF(AND($K37>3000,$K37<=3450),($K37/1000)+0.3,""),IF(AND($K37>2250,$K37<=3450),($K37/1000)+0.3,"")) ),"") ->  | AK37: =IF(AND($K37<=7199,$K37>=4001),($K37+'BUILDERS SETTINGS'!$C$15)/1000," ") ->  | AN37: 0 | AO37: 0 | AP37: 0 | AQ37: 0 | AR37: 0 | AS37: 0 | AT37: 0 | AV37: 200
A38: =IF(#REF!>0,I38+#REF!) ->  | B38: ='Summary Sheet'!B97 -> 0 | C38: 0 | D38: N | F38: =IF(AND(#REF!>0,G38>0),(#REF!*0.086)*(K38/1000)," ") ->  | G38: ='Summary Sheet'!G97 -> 0 | H38: x | I38: -0.04166666667 | K38: ='Summary Sheet'!C97 -> 0 | L38: 0 | M38: 0 | P38: =IF('Main Details'!$G$28,IF(AND($K38>0,$K38<=1600,$B38<>"GOB"),($K38/1000)+0.2,""),IF(AND($K38>0,$K38<=1200),($K38/1000)+0.2,"")) ->  | R38: =IF('Main Details'!$G$28,IF(AND($K38>1600,$K38<=1900),($K38/1000)+0.2,""),IF(AND($K38>1200,$K38<=1500),($K38/1000)+0.2,"")) ->  | T38: =IF('Main Details'!$G$28,IF(AND($K38>1900,$K38<=2600),($K38/1000)+0.27,""),IF(AND($K38>1500,$K38<=2200),($K38/1000)+0.27,"")) ->  | V38: =IF('Main Details'!$G$28,IF(AND($K38>2600,$K38<=3100),($K38/1000)+0.3,""),IF(AND($K38>2200,$K38<=2600),($K38/1000)+0.3,"")) ->  | X38: =IF('Main Details'!$G$28,IF(AND($K38>3100,$K38<=3450),($K38/1000)+0.3,""),IF(AND($K38>2600,$K38<=3000),($K38/1000)+0.3,"")) ->  | Z38: =IF('Main Details'!$G$28,IF(AND($K38>3450,$K38<=3850),($K38/1000)+0.3,""),IF(AND($K38>3000,$K38<=3450),($K38/1000)+0.3,"")) ->  | AC38: 0 | AE38: =IF(OR($N38="Y",$B38="GOB"),IF('Main Details'!$G$28, IF('Main Details'!$F$10="2c",IF(AND($K38>0,$K38<=2350),($K38/1000)+0.24,""),IF(AND($K38>0,$K38<=2400),($K38/1000)+0.27,"")), IF('Main Details'!$F$10="2c",IF(AND($K38>0,$K38<=2050),($K38/1000)+0.24,""),IF(AND($K38>0,$K38<=2100),($K38/1000)+0.27,"")) ),"") ->  | AF38: =IF($N38="Y",IF('Main Details'!$G$28, IF('Main Details'!$F$10="2c",IF(AND($K38>2350,$K38<=2650),($K38/1000)+0.3,""),IF(AND($K38>2400,$K38<=2650),($K38/1000)+0.3,"")), IF('Main Details'!$F$10="2c",IF(AND($K38>2050,$K38<=2250),($K38/1000)+0.3,""),IF(AND($K38>2100,$K38<=2250),($K38/1000)+0.3,"")) ),"") ->  | AG38: =IF($N38="Y",IF('Main Details'!$G$28, IF('Main Details'!$F$10="2c",IF(AND($K38>2650,$K38<=3450),($K38/1000)+0.3,""),""), IF('Main Details'!$F$10="2c",IF(AND($K38>2250,$K38<=3000),($K38/1000)+0.3,""),"") ),"") ->  | AH38: =IF($N38="Y",IF('Main Details'!$G$28, IF('Main Details'!$F$10="2c",IF(AND($K38>3450,$K38<=3850),($K38/1000)+0.3,""),IF(AND($K38>2650,$K38<=3850),($K38/1000)+0.3,"")), IF('Main Details'!$F$10="2c",IF(AND($K38>3000,$K38<=3450),($K38/1000)+0.3,""),IF(AND($K38>2250,$K38<=3450),($K38/1000)+0.3,"")) ),"") ->  | AK38: =IF(AND($K38<=7199,$K38>=4001),($K38+'BUILDERS SETTINGS'!$C$15)/1000," ") ->  | AN38: 0 | AO38: 0 | AP38: 0 | AQ38: 0 | AR38: 0 | AS38: 0 | AT38: 0 | AV38: 200
A39: =IF(#REF!>0,I39+#REF!) ->  | B39: ='Summary Sheet'!B98 -> 0 | C39: 0 | D39: N | F39: =IF(AND(#REF!>0,G39>0),(#REF!*0.086)*(K39/1000)," ") ->  | G39: ='Summary Sheet'!G98 -> 0 | H39: x | I39: -0.04166666667 | K39: ='Summary Sheet'!C98 -> 0 | L39: 0 | M39: 0 | P39: =IF('Main Details'!$G$28,IF(AND($K39>0,$K39<=1600,$B39<>"GOB"),($K39/1000)+0.2,""),IF(AND($K39>0,$K39<=1200),($K39/1000)+0.2,"")) ->  | R39: =IF('Main Details'!$G$28,IF(AND($K39>1600,$K39<=1900),($K39/1000)+0.2,""),IF(AND($K39>1200,$K39<=1500),($K39/1000)+0.2,"")) ->  | T39: =IF('Main Details'!$G$28,IF(AND($K39>1900,$K39<=2600),($K39/1000)+0.27,""),IF(AND($K39>1500,$K39<=2200),($K39/1000)+0.27,"")) ->  | V39: =IF('Main Details'!$G$28,IF(AND($K39>2600,$K39<=3100),($K39/1000)+0.3,""),IF(AND($K39>2200,$K39<=2600),($K39/1000)+0.3,"")) ->  | X39: =IF('Main Details'!$G$28,IF(AND($K39>3100,$K39<=3450),($K39/1000)+0.3,""),IF(AND($K39>2600,$K39<=3000),($K39/1000)+0.3,"")) ->  | Z39: =IF('Main Details'!$G$28,IF(AND($K39>3450,$K39<=3850),($K39/1000)+0.3,""),IF(AND($K39>3000,$K39<=3450),($K39/1000)+0.3,"")) ->  | AC39: 0 | AE39: =IF(OR($N39="Y",$B39="GOB"),IF('Main Details'!$G$28, IF('Main Details'!$F$10="2c",IF(AND($K39>0,$K39<=2350),($K39/1000)+0.24,""),IF(AND($K39>0,$K39<=2400),($K39/1000)+0.27,"")), IF('Main Details'!$F$10="2c",IF(AND($K39>0,$K39<=2050),($K39/1000)+0.24,""),IF(AND($K39>0,$K39<=2100),($K39/1000)+0.27,"")) ),"") ->  | AF39: =IF($N39="Y",IF('Main Details'!$G$28, IF('Main Details'!$F$10="2c",IF(AND($K39>2350,$K39<=2650),($K39/1000)+0.3,""),IF(AND($K39>2400,$K39<=2650),($K39/1000)+0.3,"")), IF('Main Details'!$F$10="2c",IF(AND($K39>2050,$K39<=2250),($K39/1000)+0.3,""),IF(AND($K39>2100,$K39<=2250),($K39/1000)+0.3,"")) ),"") ->  | AG39: =IF($N39="Y",IF('Main Details'!$G$28, IF('Main Details'!$F$10="2c",IF(AND($K39>2650,$K39<=3450),($K39/1000)+0.3,""),""), IF('Main Details'!$F$10="2c",IF(AND($K39>2250,$K39<=3000),($K39/1000)+0.3,""),"") ),"") ->  | AH39: =IF($N39="Y",IF('Main Details'!$G$28, IF('Main Details'!$F$10="2c",IF(AND($K39>3450,$K39<=3850),($K39/1000)+0.3,""),IF(AND($K39>2650,$K39<=3850),($K39/1000)+0.3,"")), IF('Main Details'!$F$10="2c",IF(AND($K39>3000,$K39<=3450),($K39/1000)+0.3,""),IF(AND($K39>2250,$K39<=3450),($K39/1000)+0.3,"")) ),"") ->  | AK39: =IF(AND($K39<=7199,$K39>=4001),($K39+'BUILDERS SETTINGS'!$C$15)/1000," ") ->  | AN39: 0 | AO39: 0 | AP39: 0 | AQ39: 0 | AR39: 0 | AS39: 0 | AT39: 0 | AV39: 200
A40: =IF(#REF!>0,I40+#REF!) ->  | B40: ='Summary Sheet'!B99 -> 0 | C40: 0 | D40: N | F40: =IF(AND(#REF!>0,G40>0),(#REF!*0.086)*(K40/1000)," ") ->  | H40: x | I40: -0.04166666667 | K40: ='Summary Sheet'!C99 -> 0 | L40: 0 | M40: 0 | P40: =IF('Main Details'!$G$28,IF(AND($K40>0,$K40<=1600,$B40<>"GOB"),($K40/1000)+0.2,""),IF(AND($K40>0,$K40<=1200),($K40/1000)+0.2,"")) ->  | R40: =IF('Main Details'!$G$28,IF(AND($K40>1600,$K40<=1900),($K40/1000)+0.2,""),IF(AND($K40>1200,$K40<=1500),($K40/1000)+0.2,"")) ->  | T40: =IF('Main Details'!$G$28,IF(AND($K40>1900,$K40<=2600),($K40/1000)+0.27,""),IF(AND($K40>1500,$K40<=2200),($K40/1000)+0.27,"")) ->  | V40: =IF('Main Details'!$G$28,IF(AND($K40>2600,$K40<=3100),($K40/1000)+0.3,""),IF(AND($K40>2200,$K40<=2600),($K40/1000)+0.3,"")) ->  | X40: =IF('Main Details'!$G$28,IF(AND($K40>3100,$K40<=3450),($K40/1000)+0.3,""),IF(AND($K40>2600,$K40<=3000),($K40/1000)+0.3,"")) ->  | Z40: =IF('Main Details'!$G$28,IF(AND($K40>3450,$K40<=3850),($K40/1000)+0.3,""),IF(AND($K40>3000,$K40<=3450),($K40/1000)+0.3,"")) ->  | AC40: 0 | AE40: =IF(OR($N40="Y",$B40="GOB"),IF('Main Details'!$G$28, IF('Main Details'!$F$10="2c",IF(AND($K40>0,$K40<=2350),($K40/1000)+0.24,""),IF(AND($K40>0,$K40<=2400),($K40/1000)+0.27,"")), IF('Main Details'!$F$10="2c",IF(AND($K40>0,$K40<=2050),($K40/1000)+0.24,""),IF(AND($K40>0,$K40<=2100),($K40/1000)+0.27,"")) ),"") ->  | AF40: =IF($N40="Y",IF('Main Details'!$G$28, IF('Main Details'!$F$10="2c",IF(AND($K40>2350,$K40<=2650),($K40/1000)+0.3,""),IF(AND($K40>2400,$K40<=2650),($K40/1000)+0.3,"")), IF('Main Details'!$F$10="2c",IF(AND($K40>2050,$K40<=2250),($K40/1000)+0.3,""),IF(AND($K40>2100,$K40<=2250),($K40/1000)+0.3,"")) ),"") ->  | AG40: =IF($N40="Y",IF('Main Details'!$G$28, IF('Main Details'!$F$10="2c",IF(AND($K40>2650,$K40<=3450),($K40/1000)+0.3,""),""), IF('Main Details'!$F$10="2c",IF(AND($K40>2250,$K40<=3000),($K40/1000)+0.3,""),"") ),"") ->  | AH40: =IF($N40="Y",IF('Main Details'!$G$28, IF('Main Details'!$F$10="2c",IF(AND($K40>3450,$K40<=3850),($K40/1000)+0.3,""),IF(AND($K40>2650,$K40<=3850),($K40/1000)+0.3,"")), IF('Main Details'!$F$10="2c",IF(AND($K40>3000,$K40<=3450),($K40/1000)+0.3,""),IF(AND($K40>2250,$K40<=3450),($K40/1000)+0.3,"")) ),"") ->  | AK40: =IF(AND($K40<=7199,$K40>=4001),($K40+'BUILDERS SETTINGS'!$C$15)/1000," ") ->  | AN40: 0 | AO40: 0 | AP40: 0 | AQ40: 0 | AR40: 0 | AS40: 0 | AT40: 0 | AV40: 200
C41: =SUM(C9:C40) -> 0 | F41: =SUM(F9:F40) ->  | J41: =SUM(J10:J40) -> 329.99325 | L41: 0 | O41: =SUM(O9:O40) -> 0 | P41: =SUM(P10:P40) -> 7.31 | R41: =SUM(R10:R40) -> 7.84 | T41: =SUM(T10:T40) -> 2.68 | V41: =SUM(V10:V40) -> 16.31 | X41: 6.82 | Z41: 0 | AB41: 0 | AD41: 32 | AE41: =SUM(AE10:AE40) -> 0 | AF41: =SUM(AF10:AF40) -> 0 | AG41: 0 | AH41: 0 | AI41: 0 | AK41: =SUM(AK9:AK40) -> 0 | AL41: =AE41+AF41+AG41+AH41+AI41+AK41 -> 0 | AM41: Total | AN41: =SUM(AN10:AN40)/1000 -> 0 | AS41: =SUM(AS10:AS40) -> 62.29 | AT41: =SUM(AT10:AT40) -> 36.79
Q42: =SUM(Q10:Q40) -> 6.2 | S42: =SUM(S10:S40) -> 7.84 | U42: =SUM(U10:U40) -> 2.68 | W42: =SUM(W10:W40) -> 16.31 | Y42: =SUM(Y10:Y40) -> 6.82 | AA42: =SUM(AA10:AA40) -> 0 | AC42: =SUM(AC10:AC40) -> 0
A43: =SUM(A9:A40) ->  | B43: Window Openings m2 | K43: =SUM(L10:L41) -> 79.55835 | M43: =SUM(K9:K40)/1000 -> 36.79 | R43: L/M TOTAL OPENINGS= | X43: =SUM(K9:K40)/1000 -> 36.79 | Z43: TOTAL LENGTH ALL LINTELS OF THE SAME DIMENSIONS= | AI43: =X41+AG41 -> 6.82 | AJ43: =Z41+AH41 -> 0 | AK43: =AB41+AI41 -> 0 | AL43: EXTERNAL LINTELS
V44: qty | X44: Extras | AE44: Column Base Plates = | AH44: =SUM(AG46,AG47,AG48) -> 0 | AI44: =_xlfn.IFNA(VLOOKUP('Main Details'!D33,Lists!Y6:AA9,3,FALSE),"") -> 600g/m2
B45: TOTAL LENGTH OF OPENINGS= | N45: =SUM(K9:K40)/1000 -> 36.79 | O45: Lintel Mitre Factory Cut & Weld | AE45: L/M OF SLOTS & LUGS | AG45: Columns | AH45: length | AI45: H/D RODS (off centre)
N46: =AE41+AF41+AG41+AH41+AI41 -> 0 | O46: Lintel Mitre Factory Cut Only | AE46: INT LINTELS | AF46: =SUM(P42:AC42) -> 39.85 | AI46: PWC 100x50x3 - 1.5m
G47: no of windows | M47: =SUM(M10:M40)-1 -> 16 | O47: T-Bar Mitre Factory Cut & Weld | AE47: TBARS | AF47: =AK41 -> 0 | AI47: COLUMN 50x50x3mm UP TO 3m
K48: no of openings | M48: =SUM(M10:M41) -> 17 | O48: T-Bar Mitre Factory Cut Only | AE48: TOTAL | AF48: =SUM(AF46:AF47) -> 39.85 | AI48: COLUMN 89x89x3.5mm UP TO 3m
C128: =IF(D128="Y",G128*I128,0) -> 0 | D128: N | F128: =IF(AND(#REF!>0,G128>0),(#REF!*0.086)*(K128/1000)," ") ->  | H128: x | I128: =(IF(K128=""," ",(K128-10)/240)) ->  | J128: =IF(G128>0,G128*I128," ") ->  | L128: =IF(G128>0,(K128+160)/1000," ") ->  | R128: =IF(#REF!=TRUE,K128/1000,"") ->  | T128: =(OR(G128=21,G128=19,G128=17,G128=15,G128=13,G128=11,G128=9,G128=7,G128=5,G128=3,G128=1)) -> FALSE | V128: =IF(T128=TRUE,K128/1000," ") ->  | Z128: =IF(AND(X128>0,G128>0),(X128*0.086)*(K128/1000)," ") ->  | AD128: =IF(AND(AB128>0,I128>0),(AB128*0.086)*(K128/1000)," ") ->  | AE128: =ROUNDUP(G128/2,0)+1 -> 1 | AF128: =ROUNDUP(G128/2,0)+2 -> 2 | AG128: =ROUNDUP(G128/2,0)+1 -> 1 | AK128: =IF(AND($K128<=1499,$K128>=0.1),($K128+'[7]BUILDERS SETTINGS'!$C$8)/1000," ") ->  | AL128: =IF(AND($K128<=1799,$K128>=1500),($K128+'[7]BUILDERS SETTINGS'!$C$9)/1000," ") ->  | AM128: =IF(AND($K128<=2399,$K128>=1800),($K128+'[7]BUILDERS SETTINGS'!$C$11)/1000," ") ->  | AO128: =IF(AND($K128<=3299,$K128>=3000),($K128+'[7]BUILDERS SETTINGS'!$C$14)/1000," ") ->  | AP128: =IF(AND($K128<=3599,$K128>=3300),($K128+'[7]BUILDERS SETTINGS'!$C$15)/1000," ") ->  | AQ128: =IF(AND($K128<=3999,$K128>=3600),($K128+'[7]BUILDERS SETTINGS'!$C$16)/1000," ") ->  | AR128: =IF(AND($K128<=4400,$K128>=4000),($K128+'[7]BUILDERS SETTINGS'!$C$17)/1000," ") ->  | AS128: =IF(AND($K128<=2199,$K128>=0.1,P128="Y"),($K128+'[7]BUILDERS SETTINGS'!$C$10)/1000," ") ->  | AT128: =IF(AND($K128<=2699,$K128>=2200,P128="y"),($K128+'[7]BUILDERS SETTINGS'!$C$12)/1000," ") -> 

Sheet BRICKWORK
A1: External Brick Extras
A3: 2c Face Bricks 290x90x162 | H3: 1c Face Bricks 290x90x76 | O3: 1c Face Solids 290x90x76
A4: Location | D4: Length | E4: Height | F4: Area | H4: Location | K4: Length | L4: Height | M4: Area | O4: Location | R4: Length | S4: Height | T4: Area
F5: =D5*E5 -> 0 | M5: =K5*L5 -> 0 | T5: =R5*S5 -> 0
F6: =D6*E6 -> 0 | M6: =K6*L6 -> 0 | T6: =R6*S6 -> 0
F7: 0 | M7: 0 | T7: 0
F8: 0 | M8: 0 | T8: 0
F9: 0 | M9: 0 | T9: 0
D10: 2c Face Total | F10: ='Summary Sheet'!C5+'Summary Sheet'!C11+('Summary Sheet'!C7/2)+SUM(F5:F9) -> 150.115 | K10: 1c face Total | M10: =+('Summary Sheet'!C8/2)+'Summary Sheet'!C6+'Summary Sheet'!C15+'Summary Sheet'!C9+'Summary Sheet'!C12+SUM(M5:M9) -> 11.2575 | R10: 1c Face Solid Total | T10: =('Summary Sheet'!C8/2)+'Summary Sheet'!C13+'Summary Sheet'!C16+('Summary Sheet'!C17/2)+SUM(T5:T9) -> 4.0515
A12: 2c Render Brick External | H12: 1c Rendered Longreach Cored | O12: 1c Rendered Longreach Solid
A13: Location | D13: Length | E13: Height | F13: Area | H13: Location | K13: Length | L13: Height | M13: Area | O13: Location | R13: Length | S13: Height | T13: Area
F14: =D14*E14 -> 0 | M14: =K14*L14 -> 0 | T14: =R14*S14 -> 0
F15: =D15*E15 -> 0 | M15: =K15*L15 -> 0 | T15: =R15*S15 -> 0
F16: 0 | M16: 0 | T16: 0
F17: 0 | M17: 0 | T17: 0
D18: 2c Render Total | F18: ='Summary Sheet'!C28+SUM(F14:F17)-SUM(T14:T17) -> 32.056 | K18: 1c Render Cored | M18: ='Summary Sheet'!C29+'Summary Sheet'!C30+SUM(M14:M17) -> 3.079 | R18: 1c Render Solid Total | T18: =SUM(T14:T17)+'Summary Sheet'!C31 -> 3.329
A20: 1c Feature Face 230x110x76 Cored | H20: 1c Feature Face 230x110x76 Solid | O20: 2c Face Snaps
A21: Location | D21: Length | E21: Height | F21: Area | H21: Location | K21: Length | L21: Height | M21: Area | O21: Location | R21: Length | S21: Height | T21: Area
F22: =D22*E22 -> 0 | M22: =K22*L22 -> 0 | T22: =R22*S22 -> 0
F23: =D23*E23 -> 0 | M23: =K23*L23 -> 0 | T23: =R23*S23 -> 0
F24: 0 | M24: 0 | T24: 0
F25: 0 | M25: 0 | T25: 0
D26: 1c Face Cored Total | F26: ='Summary Sheet'!C20+SUM(F22:F25)-BRICKWORK!M26 -> 6.712 | K26: 1c Face Total | M26: =SUM(M22:M25) -> 0 | R26: 1c Face Total | T26: ='Summary Sheet'!C23+'Summary Sheet'!C24+'Summary Sheet'!C25+SUM(T22:T25) -> 10.75035
A28: 1c Rendered Commons | H28: 1c Rendered Solid Commons
A29: Location | D29: Length | E29: Height | F29: Area | H29: Location | K29: Length | L29: Height | M29: Area
F30: =D30*E30 -> 0 | M30: =K30*L30 -> 0
F31: =D31*E31 -> 0 | M31: =K31*L31 -> 0
F32: 0 | M32: 0
F33: 0 | M33: 0
D34: 1c Face Cored Total | F34: =SUM(F30:F33) -> 0 | K34: 1c Face Total | M34: =SUM(M30:M33) -> 0
A38: Internal Brick Extras
A41: Allowed Over all Windows | D41: =VLOOKUP('Main Details'!H32,'Main Details'!H33:J35,3,0) -> 0 | E41: 0.257 | F41: =D41*E41 -> 0
A42: Between Windows (manual) | E42: 0.257 | F42: =D42*E42 -> 0
E43: 0.172 | F43: =D43*E43 -> 0
A45: 2c Render Bricks 290x90x162 | H45: 1c Render Bricks 290x90x76 | O45: 1c Render Solids 290x90x76
A46: Location | D46: Length | E46: Height | F46: Area | H46: Location | K46: Length | L46: Height | M46: Area | O46: Location | R46: Length | S46: Height | T46: Area
F47: =D47*E47 -> 0 | M47: =K47*L47 -> 0 | T47: =R47*S47 -> 0
F48: =D48*E48 -> 0 | M48: =K48*L48 -> 0 | T48: =R48*S48 -> 0
F49: 0 | M49: 0 | T49: 0
F50: 0 | M50: 0 | T50: 0
F51: 0 | M51: 0 | T51: 0
D52: 2c Face Total | F52: ='Summary Sheet'!C38+'Summary Sheet'!C39+SUM(F47:F51)-F41-F42-F43 -> 348.637 | K52: 1c face Total | M52: ='Summary Sheet'!C40+'Summary Sheet'!C41+'Summary Sheet'!C42+'Summary Sheet'!C43+SUM(M47:M51)+F41+F42+F43 -> 30.816 | R52: 1c Face Solid Total | T52: =SUM(T47:T51) -> 0
A54: 1c Feature Face 290x90x76 Cored | H54: 1c Feature Face Solid | O54: 1c Common Bricks | R54: Length | S54: Height | T54: Area
A55: Location | D55: Length | E55: Height | F55: Area | H55: Location | K55: Length | L55: Height | M55: Area | O55: Cored | T55: =R55*S55 -> 0
F56: =D56*E56 -> 0 | M56: =K56*L56 -> 0 | T56: =R56*S56 -> 0
F57: =D57*E57 -> 0 | M57: =K57*L57 -> 0 | R57: Cored Total | T57: =SUM(T55:T56) -> 0
F58: 0 | M58: 0 | O58: Solid | T58: =R58*S58 -> 0
F59: 0 | M59: 0 | T59: =R59*S59 -> 0
D60: 1c Face Cored Total | F60: =SUM(F56:F59) -> 0 | K60: 1c Face Total | M60: =SUM(M56:M59) -> 0 | R60: Solid Total | T60: =SUM(T58:T59) -> 0

Sheet Brick Final Sheet
N2: PG 7
B3: TOTALS FOR EXTERNAL FACE BLOCKWORK | N3: Labour / Thousand
B5: EXTERNAL FACE BRICKWORK | D5: Per m2 | F5: No Bricks | G5: Pk size | H5: No Pks | I5: Order Pks | J5: Total Brks | K5: TYPE OF BRICK
B6: EXTERNAL FACE 2C | D6: ='Main Details'!$H$18 -> 18.5 | F6: =BRICKWORK!F10*'Brick Final Sheet '!D6 -> 2777.1275 | G6: ='Main Details'!I18 -> 132 | H6: =IF(K6="Midland - Shale",(F6/G6)+1,(F6/G6)) -> 21.0388447 | I6: =(ROUNDUP(((SUM(H6:H6))*3),0))/3+1 -> 22.33333333 | J6: =SUM(I6*G6)/1000 -> 2.948 | K6: ='Main Details'!$C$18 -> NO SELECTION MADE | M6: MIDLAND 2c FACE | N6: =F6/1000 -> 2.7771275
B7: EXTERNAL FACE 1C | D7: ='Main Details'!L18 -> 38.8 | F7: =BRICKWORK!M10*D7 -> 436.791 | G7: ='Main Details'!L19 -> 264 | H7: =IF(F7>0,F7/G7,"0") -> 1.654511364 | I7: =(ROUNDUP(((SUM(H7:H7))*3),0))/3 -> 1.666666667 | J7: =(I7*G7)/1000 -> 0.44 | K7: ='Main Details'!$C$18 -> NO SELECTION MADE | M7: MIDLAND FACE LONGREACH CORED | N7: =F7/1000 -> 0.436791
B8: EXTERNAL FACE 1C | C8: SOLID | D8: ='Main Details'!L18 -> 38.8 | F8: =BRICKWORK!T10*D8 -> 157.1982 | G8: ='Main Details'!L19 -> 264 | H8: =IF(F8>0,F8/G8,"0") -> 0.5954477273 | I8: =(ROUNDUP(SUM(H8*3),0)/3) -> 0.6666666667 | J8: =(I8*G8)/1000 -> 0.176 | K8: ='Main Details'!$C$18 -> NO SELECTION MADE | M8: MIDLAND FACE LONGREACH SOLID | N8: =F8/1000 -> 0.1571982
B9: EXTERNAL FACE 2C | C9: SNAPS | D9: ='Main Details'!H18 -> 18.5 | F9: =BRICKWORK!T26*D9 -> 198.881475 | G9: ='Main Details'!I18 -> 132 | H9: =IF(F9>0,F9/G9," ") -> 1.506677841 | I9: =(ROUNDUP(SUM(H9*3),0)/3) -> 1.666666667 | J9: =(I9*G9)/1000 -> 0.22 | K9: ='Main Details'!$C$18 -> NO SELECTION MADE | M9: MIDLAND 2c 190mm FRACTION SNAP | N9: =F9/1000 -> 0.198881475
I10: TOTAL ORDER: | J10: =SUM(J6:J9) -> 3.784 | L10: TOTAL LABOUR: | N10: =SUM(N6:N9) -> 3.569998175
K11: 1c Total | L11: =N7+N8 -> 0.5939892
K12: 2c Total | L12: =N6+N9 -> 2.976008975
B13: 1c FEATURE FACE BRICKWORK
B15: MAIN EXT BRICKS | D15: Per m2 | F15: No Bricks | G15: Pk size | H15: No Pks | I15: Order Pks | J15: Total Brks | K15: TYPE OF BRICK | N15: Labour
B16: EXTERNAL FACE 1C | C16: CORED | D16: ='Main Details'!$H$12 -> 48.5 | F16: =BRICKWORK!F26*'Brick Final Sheet '!D16 -> 325.532 | G16: ='Main Details'!$I$12 -> 264 | H16: =IF(F16>0,F16/G16,"0") -> 1.233075758 | I16: =(ROUNDUP(((SUM(H16))*4),0))/4 -> 1.25 | J16: =(I16*G16)/1000 -> 0.33 | K16: ='Main Details'!$C$12 -> NO SELECTION MADE | M16: =_xlfn.XLOOKUP(K16,'BUILDERS BRICK SELECTION'!B:B,'BUILDERS BRICK SELECTION'!H:H,0) -> 0 | N16: =F16/1000 -> 0.325532
B17: EXTERNAL FACE 1C | C17: SOLID | D17: ='Main Details'!$H$12 -> 48.5 | F17: =BRICKWORK!M26*'Brick Final Sheet '!D17 -> 0 | G17: ='Main Details'!$I$12 -> 264 | H17: =IF(F17>0,F17/G17,"0") -> 0 | I17: =(ROUNDUP(((SUM(H17))*4),0))/4 -> 0 | J17: =(I17*G17)/1000 -> 0 | K17: ='Main Details'!$C$12 -> NO SELECTION MADE | M17: =_xlfn.XLOOKUP(K17,'BUILDERS BRICK SELECTION'!B:B,'BUILDERS BRICK SELECTION'!I:I,0) -> 0 | N17: =F17/1000 -> 0
I18: TOTAL ORDER: | J18: =SUM(J16:J17) -> 0.33 | K18: TOTAL LABOUR: | N18: =SUM(N16:N17) -> 0.325532 | V18: 129-100-100100 | X18: SITE WELDING BRICKLAYER
B19: INTERNAL FACE BRICKWORK
B21: INT FACE BRICKS | D21: Per m2 | F21: No Bricks | G21: Pk size | H21: No Pks | I21: Order Pks | J21: Total Brks | K21: TYPE OF BRICK | N21: Labour
B22: INTERNAL FACE 1C | C22: CORED | D22: ='Main Details'!$H$20 -> 48.5 | F22: =BRICKWORK!F60*D22 -> 0 | G22: ='Main Details'!$I$20 -> 264 | H22: =IF(F22>0,F22/G22," ") ->  | I22: =(ROUNDUP(((SUM(H22))*4),0))/4 -> 0 | J22: =(I22*G22)/1000 -> 0 | K22: ='Main Details'!$C$20 -> NO SELECTION MADE | M22: =_xlfn.XLOOKUP(K22,'BUILDERS BRICK SELECTION'!B:B,'BUILDERS BRICK SELECTION'!H:H,0) -> 0 | N22: =F22/100 -> 0
B23: INTERNAL FACE 1C | C23: SOLID | D23: ='Main Details'!$H$20 -> 48.5 | F23: =BRICKWORK!M60*D23 -> 0 | G23: ='Main Details'!$I$20 -> 264 | H23: =IF(F23>0,F23/G23," ") ->  | I23: =(ROUNDUP(((SUM(H23))*4),0))/4 -> 0 | J23: =(I23*G23)/1000 -> 0 | K23: ='Main Details'!$C$20 -> NO SELECTION MADE | M23: =_xlfn.XLOOKUP(K23,'BUILDERS BRICK SELECTION'!B:B,'BUILDERS BRICK SELECTION'!I:I,0) -> 0 | N23: =F23/1000 -> 0
I24: TOTAL ORDER: | J24: =SUM(J22:J23) -> 0 | K24: TOTAL LABOUR: | N24: =SUM(N22:N23) -> 0 | X24: SITE WELDING ALLOWANCE
B25: INTERNAL BLOCKWORK | W25: =X25*25 -> 0 | Y25: PER HD ROD (DYNABOLT OR EPOXY)
W26: =X26*50 -> 0 | Y26: PER STRUCTURAL COLUMN
B27: INTERNAL BRICKWORK | D27: Per m2 | F27: No Bricks | G27: Pk size | H27: No Pks | I27: Order Pks | J27: Total Brks | K27: TYPE OF BRICK | N27: Labour | Q27: =IF(Q47="Brick veneer",1,0) -> 1 | R27: INSTALL BRICK VENEER WALL TIES | W27: =X27*50 -> 0 | Y27: PER LINTEL/TBAR INTO COLUMN
B28: INTERNAL ROUGH 2C | D28: ='Main Details'!H21 -> 18.5 | F28: =(BRICKWORK!F52)*D28 -> 6449.7845 | G28: ='Main Details'!I21 -> 138 | H28: =IF(F28>0,F28/G28,"0") -> 46.73756884 | I28: =(ROUNDUP(((SUM(H28))*3),0))/3 -> 47 | J28: =SUM(I28*G28)/1000 -> 6.486 | K28: ='Main Details'!C21 -> MIDLAND MAXIBRICK | N28: =F28/1000 -> 6.4497845 | R28: RAMSET DYNABOLT PLUS HEX NUT | S28: BOLT 10x100mm GALVANISED | W28: 0 | Y28: PER CORNER LINTEL (FACTORY WELD)
B29: INTERNAL ROUGH 1C | D29: ='Main Details'!H22 -> 37 | F29: =BRICKWORK!M52*D29 -> 1140.192 | G29: ='Main Details'!I22 -> 252 | H29: =IF(F29>0,F29/G29,"0") -> 4.524571429 | I29: =(ROUNDUP(((SUM(H29))*3),0))/3 -> 4.666666667 | J29: =SUM(I29*G29)/1000 -> 1.176 | K29: ='Main Details'!C22 -> MIDLAND LONGREACH CORED | N29: =F29/1000 -> 1.140192 | R29: RAMSET DYNABOLT PLUS HEX NUT | S29: BOLT 12x100mm GALVANISED | W29: =X29*100 -> 0 | Y29: PER CORNER LINTEL (ONSITE WELD)
B30: INTERNAL ROUGH 1C | C30: SOLID | D30: ='Main Details'!H22 -> 37 | F30: =BRICKWORK!T52*D30 -> 0 | G30: ='Main Details'!I22 -> 252 | H30: =IF(F30>0,F30/G30,"0") -> 0 | I30: =(ROUNDUP(((SUM(H30))*3),0))/3 -> 0 | J30: =I30*G30/1000 -> 0 | K30: =IF(K29="MIDLAND LONGREACH CORED",("MIDLAND LONGREACH SOLID"),("NO SELECTION MADE")) -> MIDLAND LONGREACH SOLID | N30: =F30/1000 -> 0 | W30: =X30*250 -> 250 | X30: 1 | Y30: MINIMUM CALL OUT
N31: =F31 -> 0 | Q31: Cement Calc
B32: INTERNAL ROUGH 1C | D32: ='Main Details'!H23 -> 18.5 | F32: =BRICKWORK!T57*D32 -> 0 | G32: ='Main Details'!$I$23 -> 132 | H32: =IF(F32>0,F32/G32,"0") -> 0 | I32: =(ROUNDUP(((SUM(H32))*3),0))/3 -> 0 | J32: =SUM(I32*G32)/1000 -> 0 | K32: ='Main Details'!$C$23 -> NO SELECTION MADE | N32: =F32/1000 -> 0 | Q32: internal grey | S32: =J28+J29+J30+J32+J33 -> 7.662 | T32: =S32*1.1 -> 8.4282 | U32: =T32*10.8 -> 91.02456 | V32: Totals | X32: =SUM(W25:W30) -> 250 | Y32: TOTAL
B33: INTERNAL ROUGH 1C | C33: SOLID | D33: ='Main Details'!H23 -> 18.5 | F33: =BRICKWORK!T60*D33 -> 0 | G33: ='Main Details'!$I$23 -> 132 | H33: =IF(F33>0,F33/G33,"0") -> 0 | I33: =(ROUNDUP(((SUM(H33:H33))*3),0))/3 -> 0 | J33: =SUM(I33*G33)/1000 -> 0 | K33: =IF(K32="MIDLAND COMMON CORED",("MIDLAND COMMON SOLID"),("NO SELECTION MADE")) -> NO SELECTION MADE | N33: =F33/1000 -> 0 | Q33: external grey | S33: =J40+J41+J42+J44+J45 -> 0.934 | T33: =S33*1.2 -> 1.1208 | U33: =T33*10.8 -> 12.10464 | V33: =U32+U33 -> 103.1292
I34: TOTAL ORDER: | J34: =SUM(J28:J33) -> 7.662 | L34: TOTAL LABOUR: | N34: =SUM(N28:N33) -> 7.5899765 | T34: =S34/1000*1.2 -> 0 | U34: =T34*10.8 -> 0
K35: 1c Total | L35: =N29+N32+N30+N33 -> 1.140192 | Q35: Brickies Lite 1c | S35: =J7+J16+J17+J22+J23+J8 -> 0.946 | T35: =S35*1.1 -> 1.0406 | U35: =T35*11.2 -> 11.65472 | V35: Totals
K36: 2c Total | L36: =N28 -> 6.4497845 | Q36: Brickies lite 2c | S36: =J6+J9 -> 3.168 | T36: =S36*1.2 -> 3.8016 | U36: =T36*11.2 -> 42.57792 | V36: =U35+U36 -> 54.23264
B37: EXTERNAL BLOCKWORK
Q38: Sand Calculations | V38: Brickies Sand Yellow 12m3
B39: EXTERNAL BLOCKWORK | D39: Per m2 | F39: No Bricks | G39: Pk size | H39: No Pks | I39: Order Pks | J39: Total Brks | K39: TYPE OF BRICK | N39: Labour | Q39: Total Bricks | S39: =ROUNDUP(J10+J18+J24+J34+J46,0)+1 -> 14 | T39: m3
B40: EXTERNAL ROUGH 2C | D40: ='Main Details'!H18 -> 18.5 | F40: =BRICKWORK!F18*D40 -> 593.036 | G40: ='Main Details'!I14 -> 138 | H40: =IF(F40>0,F40/G40,"0") -> 4.297362319 | I40: =(ROUNDUP(((SUM(H40:H40))*3),0))/3 -> 4.333333333 | J40: =SUM(I40*G40)/1000 -> 0.598 | K40: ='Main Details'!C14 -> MIDLAND MAXIBRICK | N40: =F40/1000 -> 0.593036 | S40: =ROUNDUP(S39,0)+1 -> 15 | T40: =IF(S39>1,1,0) -> 1
B41: EXTERNAL ROUGH 1C | D41: ='Main Details'!$H$15 -> 37 | F41: =BRICKWORK!M18*D41 -> 113.923 | G41: ='Main Details'!I15 -> 252 | H41: =IF(F41>0,F41/G41,"0") -> 0.4520753968 | I41: =(ROUNDUP(((SUM(H41))*3),0))/3 -> 0.6666666667 | J41: =SUM(I41*G41)/1000 -> 0.168 | K41: ='Main Details'!C15 -> MIDLAND LONGREACH CORED | N41: =F41/1000 -> 0.113923 | Q41: CARTAGE ZONE 1
B42: EXTERNAL ROUGH 1C | C42: SOLID | D42: ='Main Details'!$H$15 -> 37 | F42: =BRICKWORK!T18*D42 -> 123.173 | G42: ='Main Details'!I15 -> 252 | H42: =IF(F42>0,F42/G42,"0") -> 0.488781746 | I42: 0.6666666667 | J42: =SUM(I42*G42)/1000 -> 0.168 | K42: =IF(K41="MIDLAND LONGREACH CORED",("MIDLAND LONGREACH SOLID"),("NO SELECTION MADE")) -> MIDLAND LONGREACH SOLID | N42: =F42/1000 -> 0.123173 | Q42: CARTAGE ZONE 2
Q43: CARTAGE ZONE 3
B44: INTERNAL ROUGH 1C | D44: ='Main Details'!$H$16 -> 18.5 | F44: =BRICKWORK!F34*D44 -> 0 | G44: ='Main Details'!I16 -> 132 | H44: =IF(F44>0,F44/G44,"0") -> 0 | I44: 0 | J44: =SUM(I44*G44)/1000 -> 0 | K44: ='Main Details'!C16 -> NO SELECTION MADE | N44: =F44/1000 -> 0 | Q44: CARTAGE ZONE 4
B45: INTERNAL ROUGH 1C | C45: SOLID | D45: ='Main Details'!$H$16 -> 18.5 | F45: =BRICKWORK!M34*D45 -> 0 | G45: ='Main Details'!I16 -> 132 | H45: =IF(F45>0,F45/G45,"0") -> 0 | I45: 0 | J45: =SUM(I45*G45)/1000 -> 0 | K45: =IF(K44="MIDLAND COMMON CORED",("MIDLAND COMMON SOLID"),("NO SELECTION MADE")) -> NO SELECTION MADE | N45: =F45/1000 -> 0 | Q45: CARTAGE ZONE 5 | R45: 155-300-100450 | X45: REINFORCEMENT ROD CALCULATION
I46: TOTAL ORDER: | J46: =SUM(J40:J45) -> 0.934 | K46: TOTAL LABOUR: | N46: =SUM(N40:N45) -> 0.830132 | Z46: Length | AA46: x | AB46: Rows | AD46: Total
B47: =_xlfn.XLOOKUP('Main Details'!D34,'Brick Final Sheet '!Q103:Q107,'Brick Final Sheet '!R103:R107,"") -> WEEPA STANDARD WEEP HOLE | E47: =(ROUNDUP((SUM('Main Details'!D42-'Main Details'!D50)/0.9/25),0)) -> 3 | H47: ABBTF FUND 1C | J47: =J7+J8+J29+J30+J32+J33+J41+J42+J44+J45+J17+J16+J22+J23 -> 2.458 | K47: 1c Total | L47: =N41+N42+N44+N45 -> 0.237096 | Q47: ='Main Details'!D32 -> Brick veneer | S47: ='Main Details'!D33 -> R1 | U47: Perimeter M2 | V47: Gge/House | X47: Internal Perimeter | Z47: ='Main Details'!D42 -> 56 | AA47: x | AB47: 2 | AD47: =Z47*AB47 -> 112 | AE47: lm
H48: ABBTF FUND 2C | J48: =J9+J6+J28+J40 -> 10.252 | K48: 2c Total | L48: =N40 -> 0.593036 | Q48: Brick veneer | S48: each | T48: =(U48-V48)*5 -> 513.06325 | U48: =BRICKWORK!F10+BRICKWORK!F18-'Lintels.windows '!K43 -> 102.61265 | V48: ='Main Details'!F54 -> 0 | AB48: 2
L49: BRICK HARDWARE | Q49: =IF('Main Details'!D32="Brick Veneer",'Brick Final Sheet '!M52," ") -> 513.06325 | R49: 155-300-100450 | S49: pks | T49: =ROUNDUP(U49-V49,0)*4.5/50 -> 0 | U49: ='Main Details'!K56 -> 0 | X49: Garage Perimeter | Z49: ='Main Details'!D54 -> 0 | AA49: x | AB49: 2 | AD49: =Z49*AB49 -> 0 | AE49: lm
B50: ALCOR FLASHINGS | D50: Mortar Filled Piers | H50: ='Main Details'!F33 -> Moderate | L50: METRO AREA | M50: =S40-M51 -> 15 | N50: m3 | Q50: =IF('Main Details'!D32="Double Brick",'Brick Final Sheet '!T51,0) -> 0 | R50: 155-300-100100 | U50: Perimeter M2 | V50: Gge/House | X50: Under Openings | Z50: ='Lintels.windows '!N45 -> 36.79 | AA50: x | AB50: 4 | AD50: 147.16 | AE50: lm
B51: Alcor Total | C51: =ROUNDUP((C52*3/10)+(C53*3/10)+(C54*1/10)+('Lintels.windows '!N46*1/10),"0") -> 0 | D51: EACH | H51: =IF(H50="Severe Marine",(Q91),(Q89)) -> CEMENT BRICKIES GREY COCKBURN | J51: =IF(H50="Severe Marine",(V33*17.8/20),(V33))+(G51*3) -> 103.1292 | K51: bags | L51: Split Sand Loads | N51: m3 | Q51: Double brick | S51: pks | T51: =ROUNDUP(U51-V51,0)*4.5/50+1 -> 12.52 | U51: =BRICKWORK!F10+BRICKWORK!M10+BRICKWORK!F18+BRICKWORK!M18+BRICKWORK!T26-'Lintels.windows '!K43 -> 127.6995 | V51: ='Main Details'!D50*'Main Details'!D53 -> 0 | X51: Over Openings | Z51: ='Lintels.windows '!N45 -> 36.79 | AA51: x | AB51: 4 | AD51: 147.16 | AE51: lm
B52: Cavity Closers no | D52: BRICK LINTELS | H52: =IF(H50="Severe Marine",(Q90),(Q88)) -> CEMENT BRICKIES LITE COCKBURN | J52: =IF(H50="Severe Marine",(V36*17.8/20),(V36)) -> 54.23264 | K52: bags | L52: Wire Ties | M52: =_xlfn.IFNA(VLOOKUP(Q47,Q48:T52,4,FALSE),"") -> 513.06325 | N52: =_xlfn.IFNA(VLOOKUP(Q47,Q48:T52,3,FALSE),"") -> each | Q52: Fully Framed | S52: none | T52: 0 | X52: Internal Partition Walls | Z52: ='Main Details'!D43 -> 0 | AA52: x | AB52: 2 | AD52: 0 | AE52: lm
B53: Structural Col's no | H53: Cartage Totals | L53: DBL BOUNDARY BV | M53: =IF(Q47="Brick veneer",T49," ") -> 0 | N53: pack | V53: =IF('Main Details'!D32="Brick Veneer",3,0) -> 3 | X53: Ext B/work over 25c | AA53: x | AB53: 2 | AD53: 0 | AE53: lm
B54: O/window no Eaves lm | E54: at | H54: ='Main Details'!AC14 -> 0 | L54: 3.0m Hoop Iron | N54: no | Q54: Hoop Iron Conversion | X54: T-bars | AA54: x | AD54: 0 | AE54: lm
B55: BRICKWORK REINFORCEMENT | E55: at | H55: 1c FACE CORED | J55: =J22+J16 -> 0.33 | K55: 1C | L55: Hoop Iron Strap 30m | M55: =VLOOKUP(Q55,Q56:V57,6,FALSE) -> 0 | N55: rolls | Q55: ='Main Details'!D32 -> Brick veneer | X55: Corner Windows | AA55: x | AD55: 0 | AE55: lm
E56: at | H56: 1c FACE SOLID | J56: =J23+J17 -> 0 | K56: 1C | L56: 10mm Dyna Bolts | N56: no | Q56: Double Brick | T56: =('Main Details'!D42-'Main Details'!D50)/1.2*3 -> 140 | V56: =ROUNDUP(T58/30,0) -> 5 | X56: Brick Bulkhead | AA56: x | AB56: 4 | AD56: 0 | AE56: lm
C57: = Enter nett l/m of Reo to pay Brickie | E57: at | H57: LONGREACH CORED | J57: =J7+J29+J41+J44+J32 -> 1.784 | K57: 1C | L57: 12mm Dyna Bolts | N57: no | Q57: Brick Veneer | T57: =(M54*3) -> 0 | U57: =M54*3+R58*3 -> 0 | V57: =ROUNDUP(U58/30,0) -> 0 | X57: *Spare* | Z57: 0 | AA57: x | AD57: 0 | AE57: lm
E58: at | H58: LONGREACH SOLID | J58: =J8+J30+J42+J33+J45 -> 0.344 | K58: 1C | L58: Brick Clean 1c | M58: =U69 -> 0.325532 | N58: no | Q58: DBL bound | R58: =ROUNDUP('Main Details'!D55/1.2,0) -> 0 | T58: =T56+T57 -> 140 | U58: =U56+U57 -> 0 | AC58: Total : | AD58: =SUM(AD47:AD57) -> 406.32 | AE58: lm
E59: at | H59: FASTWALL / MAXIBRICK | J59: =J28+J40 -> 7.084 | K59: 2C | L59: Brick Clean 2c | M59: =U68 -> 3.569998175 | N59: no | Q59: WES FAB HOOP IRON TRUECORE | U59: =M55 -> 0
B60: =P155 -> 0 | C60: BRICKWORK REINFORCEMENT | E60: at | H60: 2c FACE | J60: =J6+J9 -> 3.168 | K60: 2C | L60: Render on Face | N60: Deduction m2 | Q60: DYNABOLT 110mm x 10mm | T60: =M56 -> 0
E61: at | L61: E/O Red Bricks | M61: =IF('Main Details'!K18=TRUE,"REQUIRED"," ") ->  | Q61: DYNABOLT 100mm x 12mm | T61: =M57 -> 0
L63: BRICKLAYING EXTRAS
L64: PIERS ISOLATED | Q64: 125-100-102300 | S64: Piers Isolated
Q66: Brick Clean Calculator
Q67: 2c Bricks | S67: =N10 -> 3.569998175 | T67: =('Main Details'!F54*18.5)/1000 -> 0 | U67: =S67+T67-(M60*18.5/1000) -> 3.569998175
T68: =(M60*18.5)/1000 -> 0 | U68: =U67-T68 -> 3.569998175
Q69: 1c Face Brick | S69: =N18+N24 -> 0.325532 | U69: =S69+T69 -> 0.325532
Q72: (select) | U72: 0
Q73: BRICKWORK REINFORCEMENT | U73: 1
Q74: BRM50 STEEL MESH 3000mm | U74: 2
Q75: =C60 -> BRICKWORK REINFORCEMENT | T75: =B60 -> 0 | U75: 3
U76: 4
Q77: MIDLAND FASTWALL 940mm | T77: =SUM(D54:D61) -> 0 | U77: 5
Q78: MIDLAND FASTWALL 1250mm | U78: 6
Q79: MIDLAND FASTWALL 1570mm | U79: 7
Q80: MIDLAND FASTWALL 1890mm | U80: 8
Q81: MIDLAND FASTWALL 2200mm | U81: 9
Q82: MIDLAND FASTWALL 2500mm | U82: 10
Q83: MIDLAND FASTWALL 2830mm
Q84: MIDLAND FASTWALL 3140mm
Q85: MIDLAND FASTWALL 3460mm
Q86: FASTWALL LINTEL
Q88: CEMENT BRICKIES LITE COCKBURN
Q89: CEMENT BRICKIES GREY COCKBURN
Q90: CEMENT BRICKIES COASTAL (LITE)
Q91: CEMENT BRICKIES COASTAL (GREY)
Q93: MIDLAND ABBTF TRAINING FUND 1c | U93: =J47 -> 2.458
Q94: MIDLAND ABBTF TRAINING FUND 2c | U94: =J48 -> 10.252
Q97: CAgroup ALDAMP 300x0.3mm x 10m | U97: =C51 -> 0
Q99: WIRE TIES 3.00mm x 170mm | R99: 155-300-100100 | S99: =IF(S100>0,0,Q50) -> 0 | T99: GALVANIZED MEDIUM DUTY | V99: =IF(V100>0,0,V53) -> 3
Q100: WIRE TIES 3.00mm x 170mm | R100: 155-300-100400 | S100: =IF('Main Details'!D33="R4",Q50,0) -> 0 | T100: STAINLESS STEEL MEDIUM DUTY | V100: =IF('Main Details'!D33="R4",V53,0) -> 0
T101: =IF(H50="Severe Marine",(T100),(T99)) -> GALVANIZED MEDIUM DUTY
Q103: NO BAL | R103: WEEPA STANDARD WEEP HOLE | U103: 155-450-100650
Q104: BAL 12.5 | R104: WEEPA HIGH PERFORMANCE | U104: 155-450-100700
Q105: BAL 19 | R105: WEEPA HIGH PERFORMANCE | U105: 155-450-100700
Q106: BAL 29 | R106: WEEPA NEW GENERATION | U106: 155-450-101100
Q107: BAL 40 | R107: WEEPA NEW GENERATION | U107: 155-450-101100
Q109: STEEL HANDYMAN ROD 6.3mm
Q111: =IF('Main Details'!D32="Double Brick",2,1) -> 1 | R111: JACK BRICK MESH
S112: =IF($Q$47="Double Brick","",Lists!AW552) -> VENEER TIES SUIT SINGLE STOREY
Q113: R1 | S113: MAX N2 WIND/MAX R2 CORROSION
Q114: R2 | R114: =IF('Main Details'!D33="R2",('Brick Final Sheet '!Q49),(0)) -> 0 | S114: MAX N2 WIND/MAX R2 CORROSION
Q115: R3 | R115: =IF('Main Details'!D33="R3",('Brick Final Sheet '!Q49),(0)) -> 0 | S115: MAX N2 WIND/MAX R3 CORROSION
Q116: R4 | R116: =IF('Main Details'!D33="R4",('Brick Final Sheet '!Q49),(0)) -> 0 | S116: MAX N3 WIND/MAX R4 CORROSION
Q119: =IF('Main Details'!D32="Brick Veneer",'Main Details'!D33,"") -> R1 | R119: =IF('Main Details'!D32="Brick Veneer",Q49,0) -> 513.06325 | S119: =VLOOKUP(Q119,Q113:S116,3,TRUE) -> MAX N2 WIND/MAX R2 CORROSION
Q121: REO RODS NETT
Q122: REO RODS ROUNDUP EVEN
Q123: =IF(R123>0,1,0) -> 0 | R123: =M51 -> 0 | S123: =_xlfn.XLOOKUP(Q124,S125:S141,Q125:Q141,0) -> 0
Q124: 1 | R124: =S40-M51 -> 15 | S124: =_xlfn.XLOOKUP(Q124,R125:R141,Q125:Q141,0) -> 0
Q125: BRICKIES SAND YELLOW 1m3 | R125: =IF($R$124=1,1,0) -> 0 | S125: =IF($R$123=1,1,0) -> 0 | T125: =IF(R125=1,$L$50,0) -> 0
Q126: BRICKIES SAND YELLOW 2m3 | R126: =IF($R$124=2,1,0) -> 0 | S126: =IF($R$123=2,1,0) -> 0 | T126: 0
Q127: BRICKIES SAND YELLOW 3m3 | R127: =IF($R$124=3,1,0) -> 0 | S127: =IF($R$123=3,1,0) -> 0 | T127: 0
Q128: BRICKIES SAND YELLOW 4m3 | R128: =IF($R$124=4,1,0) -> 0 | S128: =IF($R$123=4,1,0) -> 0 | T128: 0
Q129: BRICKIES SAND YELLOW 5m3 | R129: =IF($R$124=5,1,0) -> 0 | S129: =IF($R$123=5,1,0) -> 0 | T129: 0
Q130: BRICKIES SAND YELLOW 6m3 | R130: =IF($R$124=6,1,0) -> 0 | S130: =IF($R$123=6,1,0) -> 0 | T130: 0
Q131: BRICKIES SAND YELLOW 7m3 | R131: =IF($R$124=7,1,0) -> 0 | S131: =IF($R$123=7,1,0) -> 0 | T131: 0
Q132: BRICKIES SAND YELLOW 8m3 | R132: =IF($R$124=8,1,0) -> 0 | S132: =IF($R$123=8,1,0) -> 0 | T132: 0
Q133: BRICKIES SAND YELLOW 9m3 | R133: =IF($R$123=7,1,0) -> 0 | S133: 0 | T133: 0
Q134: BRICKIES SAND YELLOW 10m3 | R134: 0 | S134: 0 | T134: 0
Q135: BRICKIES SAND YELLOW 11m3 | R135: 0 | S135: 0 | T135: 0
Q136: BRICKIES SAND YELLOW 12m3 | R136: 0 | S136: 0 | T136: 0
R137: 0 | S137: 0 | T137: 0
Q138: BRICKIES SAND YELLOW 9m3 | R138: =IF($R$124=9,1,0) -> 0 | S138: =IF($R$123=9,1,0) -> 0 | T138: 0
Q139: BRICKIES SAND YELLOW 10m3 | R139: =IF($R$124=10,1,0) -> 0 | S139: =IF($R$123=10,1,0) -> 0 | T139: 0
Q140: BRICKIES SAND YELLOW 11m3 | R140: =IF($R$124=11,1,0) -> 0 | S140: =IF($R$123=11,1,0) -> 0 | T140: 0
Q141: BRICKIES SAND YELLOW 12m3 | R141: =IF($R$124=12,1,0) -> 0 | S141: =IF($R$124=12,1,0) -> 0 | T141: 0
P154: =IF(C60=Q72,"0",IF(C60=Q73,B57/5.5,IF(C60=Q74,B57/2.5+2))) -> 0
P155: =CEILING(P154,1) -> 0

Sheet BUILDERS BRICK SELECTION (hidden)
A2: AUSTRAL/MIDLAND FACE BRICK STANDARD LISTING | AK2: ALEXANDER HEIGHTS | AL2: 1
B3: LAST UPDATED 23 NOVEMBER 2017 | K3: INT BLOCK SELECTION | U3: LAST UPDATED 23 NOVEMBER 2017 | AK3: ALFRED COVE | AL3: 2
A4: Line | B4: Brick Type Description | C4: Pk size | D4: Lfs/pk | E4: no/m2 | F4: brick size | J4: Line | K4: Brick Type Selection | L4: Pk Size | M4: LEAFS | N4: No/m2 | O4: Brick Size | P4: 1c pk size | U4: Brick Type Selection | V4: Pk Size | W4: No/m2 | X4: Brick Size | AA4: INNER | AB4: OUTER | AC4: LEAFS | AD4: PICK UP | AE4: M2 PER PACK | AK4: ALKIMOS | AL4: 3
B5: NO SELECTION MADE | C5: 264 | D5: 4 | E5: 48.5 | F5: 230x110x76 | J5: 1 | K5: NO SELECTION MADE | L5: 132 | M5: 3 | N5: 18.5 | O5: 305x90x162 | U5: NO SELECTION MADE | V5: 0 | W5: 0 | Y5: x | AA5: x | AK5: ANKETELL | AL5: 2
J6: 3 | K6: MIDLAND MAXIBRICK | L6: 138 | M6: 3 | N6: 18.5 | O6: 305x90x162 | R6: INTERNAL ROUGH 2C | AK6: APPLECROSS | AL6: 2
K7: MIDLAND TIEDOWN MAXI | L7: 132 | M7: 2 | N7: 18.5 | O7: 305x90x162 | AK7: ARDROSS | AL7: 2
B8: MIDLAND 1C BRICK - REDS | U8: MIDLAND RANGE PAVERS 60mm:- | AG8: MIDLAND MASTERPAVE CLASSIC | AK8: ARMADALE | AL8: 2
B9: MIDLAND- Burnished Red | C9: 264 | D9: 4 | E9: 48.5 | F9: 230x110x76 | G9: TRUE | H9: MIDLAND 1c FACE CORED | I9: MIDLAND 1c FACE SOLID | K9: EXT BLOCK SELECTION | AK9: ASCOT | AL9: 1
J10: Line | K10: Brick Type Selection | L10: Pk Size | M10: LEAFS | N10: No/m2 | O10: Brick Size | P10: 1c pk size | U10: MIDLAND PAVESTONE ORIGINAL | V10: 330 | W10: =1/AD10 -> 38.13882532 | X10: 230 | Y10: x | Z10: 114 | AA10: 10 | AB10: 60 | AC10: 5 | AD10: =(X10/1000)*(Z10/1000) -> 0.02622 | AE10: 8.66 | AG10: =IF(OR(AG8="MIDLAND PAVESTONE ORIGINAL",AG8="MIDLAND MASTERPAVE CLASSIC",AG8="MIDLAND PROMENADE",AG8="MIDLAND MASTERPAVE GRANITE",AG8="MIDLAND FLAGSTONE GRANITE",AG8="MIDLAND MASTERPAVE GEO",AG8="MIDLAND FLAGSTONE GEO"),TRUE,FALSE) -> TRUE | AK10: ASHBY | AL10: 2
J11: 1 | K11: NO SELECTION MADE | L11: 132 | M11: 3 | N11: 18.5 | O11: 305x90x162 | AK11: ASHENDON | AL11: 3
B12: MIDLAND- Red Smooth | C12: 264 | D12: 4 | E12: 48.5 | F12: 230x110x76 | G12: TRUE | H12: MIDLAND 1c FACE CORED | I12: MIDLAND 1c FACE SOLID | J12: 3 | K12: MIDLAND MAXIBRICK | L12: 138 | M12: 3 | N12: 18.5 | O12: 305x90x162 | R12: EXTERNAL ROUGH 2C | U12: MIDLAND MASTERPAVE CLASSIC | V12: 230 | W12: 25 | X12: 200 | Y12: x | Z12: 200 | AA12: 10 | AB12: 60 | AC12: 5 | AD12: =(X12/1000)*(Z12/1000) -> 0.04 | AE12: 9.2 | AK12: ASHFIELD | AL12: 1
B13: MIDLAND- Restoration Red | C13: 264 | D13: 4 | E13: 48.5 | F13: 230x110x76 | G13: TRUE | H13: MIDLAND 1c FACE CORED | I13: MIDLAND 1c FACE SOLID | AK13: ATTADALE | AL13: 2
K14: INTERNAL LONGREACH | U14: MIDLAND PROMENADE CLASSIC | V14: 160 | W14: =1/AD14 -> 11.11111111 | X14: 300 | Y14: x | Z14: 300 | AA14: 15 | AB14: 60 | AC14: 10 | AD14: 0.09 | AE14: 14.41 | AK14: ATWELL | AL14: 2
B15: MIDLAND- Subiaco Red | C15: 264 | D15: 4 | E15: 48.5 | F15: 230x110x76 | G15: TRUE | H15: MIDLAND 1c FACE CORED | I15: MIDLAND 1c FACE SOLID | J15: Line | K15: Brick Type Selection | L15: Pk Size | N15: No/m2 | O15: Brick Size | AK15: AUBIN GROVE | AL15: 3
J16: 1 | K16: NO SELECTION MADE | L16: 252 | M16: 3 | N16: 37 | O16: 305x90x76 | U16: MIDLAND MASTERPAVE GRANITE | V16: 228 | W16: 25 | X16: 200 | Y16: x | Z16: 200 | AA16: 10 | AB16: 60 | AC16: 4 | AD16: 0.04 | AE16: 9.12 | AK16: AVELEY | AL16: 1
B17: MIDLAND- Restoration Red Coach | C17: 264 | D17: 4 | E17: 48.5 | F17: 230x110x76 | G17: TRUE | H17: MIDLAND 1c FACE CORED | I17: MIDLAND 1c FACE SOLID | J17: 2 | K17: MIDLAND LONGREACH CORED | L17: 252 | M17: 3 | N17: 37 | O17: 305x90x76 | R17: INTERNAL ROUGH 1C | AK17: BAILUP | AL17: 2
B18: MIDLAND- Nouveau Grey | C18: 264 | D18: 4 | E18: 48.5 | F18: 230x110x76 | H18: MIDLAND 1c FACE CORED | I18: MIDLAND 1c FACE SOLID | J18: 3 | K18: MIDLAND LONGREACH SOLID | L18: 252 | M18: 3 | N18: 37 | O18: 305x90x76 | R18: INTERNAL ROUGH 1C | U18: MIDLAND FLAGSTONE GRANITE | V18: 135 | W18: =1/AD18 -> 18.36547291 | X18: 330 | Y18: x | Z18: 165 | AA18: 15 | AB18: 60 | AC18: 10 | AD18: 0.05445 | AE18: 7.5 | AK18: BAKERS HILL | AL18: 3
B19: MIDLAND- Limestone Hue | C19: 264 | D19: 4 | E19: 48.5 | F19: 230x110x76 | H19: MIDLAND 1c FACE CORED | I19: MIDLAND 1c FACE SOLID | AK19: BALCATTA | AL19: 1
B20: MIDLAND 1C REVIVAL RANGE | K20: EXTERNAL LONGREACH | U20: MIDLAND MASTERPAVE GEO | V20: 228 | W20: 25 | X20: 200 | Y20: x | Z20: 200 | AA20: 10 | AB20: 60 | AC20: 4 | AD20: 0.04 | AE20: 9.12 | AK20: BALDIVIS | AL20: 3
B21: MIDLAND - Bishops House | C21: 264 | D21: 4 | E21: 48.5 | F21: 230x110x76 | H21: MIDLAND 1c FACE CORED. | I21: MIDLAND 1c FACE SOLID. | J21: Line | K21: Brick Type Selection | L21: Pk Size | N21: No/m2 | O21: Brick Size | AK21: BALGA | AL21: 1
B22: MIDLAND - Laneway Vibe | C22: 264 | D22: 4 | E22: 48.5 | F22: 230x110x76 | H22: MIDLAND 1c FACE CORED. | I22: MIDLAND 1c FACE SOLID. | J22: 1 | K22: NO SELECTION MADE | L22: 252 | M22: 3 | N22: 37 | O22: 305x90x76 | U22: MIDLAND FLAGSTONE GEO | V22: 135 | W22: =1/AD22 -> 18.36547291 | X22: 330 | Y22: X | Z22: 165 | AA22: 15 | AB22: 60 | AC22: 3 | AD22: 0.05445 | AE22: 7.5 | AK22: BALLAJURA | AL22: 1
B23: MIDLAND - Treasury Red | C23: 264 | D23: 4 | E23: 48.5 | F23: 230x110x76 | G23: TRUE | H23: MIDLAND 1c FACE CORED. | I23: MIDLAND 1c FACE SOLID. | J23: 2 | K23: MIDLAND LONGREACH CORED | L23: 252 | M23: 3 | N23: 37 | O23: 305x90x76 | R23: EXTERNAL ROUGH 1C | AK23: BANJUP | AL23: 2
J24: 3 | K24: MIDLAND LONGREACH SOLID | L24: 252 | M24: 3 | N24: 37 | O24: 305x90x76 | R24: EXTERNAL ROUGH 1C | U24: NOUVO PAVE 60 | V24: 230 | W24: 27.7 | X24: 190 | Y24: x | Z24: 190 | AA24: 10 | AB24: 60 | AC24: 5 | AD24: 0.0361 | AE24: 8.303 | AK24: BANKSIA GROVE | AL24: 2
A25: 13 | B25: MIDLAND- Traditional | C25: 264 | D25: 4 | E25: 48.5 | F25: 230x110x76 | G25: TRUE | AK25: BARRAGUP | AL25: 4
A26: 15 | B26: MIDLAND- Subiaco Red Coach | C26: 264 | D26: 4 | E26: 48.5 | F26: 230x110x76 | G26: TRUE | K26: INTERNAL COMMON SELECTION | U26: NOUVO PAVE 60 RIVERWASH | V26: 230 | W26: =1/(0.19*0.19) -> 27.70083102 | X26: 190 | Y26: x | Z26: 190 | AA26: 10 | AB26: 60 | AC26: 5 | AD26: 0.0361 | AE26: 8.303 | AK26: BASKERVILLE | AL26: 1
A27: 16 | B27: MIDLAND- Traditional Coach | C27: 264 | D27: 4 | E27: 48.5 | F27: 230x110x76 | G27: TRUE | J27: Line | K27: Brick Type Selection | L27: Pk Size | N27: No/m2 | O27: Brick Size | AK27: BASSENDEAN | AL27: 1
B28: MIDLAND- Kalbarri | C28: 264 | D28: 4 | E28: 48.5 | F28: 230x110x76 | G28: TRUE | J28: 1 | K28: NO SELECTION MADE | L28: 264 | M28: 4 | N28: 48.5 | O28: 230x110x76 | U28: EASI PAVE 60 | V28: 330 | W28: 37.8 | X28: 230 | Z28: 115 | AA28: 10 | AB28: 60 | AC28: 5 | AD28: 0.02645 | AE28: 8.728 | AK28: BATEMAN | AL28: 2
A29: 18 | B29: MIDLAND 1C BRICK - CREAMS | J29: 2 | K29: MIDLAND COMMON CORED | L29: 264 | M29: 4 | N29: 48.5 | O29: 230x110x76 | R29: INTERNAL ROUGH 1C | AK29: BAYSWATER | AL29: 1
A30: 19 | B30: MIDLAND- Cream Maxi | C30: 264 | D30: 4 | E30: 48.5 | F30: 230x110x76 | J30: 3 | K30: MIDLAND COMMON SOLID | L30: 264 | M30: 4 | N30: 48.5 | O30: 230x110x76 | R30: INTERNAL ROUGH 1C | U30: MIDLAND ORIGINAL COLLECTION 60:- | AK30: BEACONSFIELD | AL30: 2
B31: MIDLAND- Salmon Gum | C31: 264 | D31: 4 | E31: 48.5 | F31: 230x110x76 | G31: TRUE | U31: PAVESTONE 60 Autumn Blend | V31: =$U$10 -> MIDLAND PAVESTONE ORIGINAL | W31: =$V$10 -> 330 | X31: =$W$10 -> 38.13882532 | Y31: x | Z31: =$Y$10 -> x | AA31: =$Z$10 -> 114 | AB31: =$AA$10 -> 10 | AC31: =$AB$10 -> 60 | AD31: =$AC$10 -> 5 | AE31: =$AD$10 -> 0.02622 | AK31: BECKENHAM | AL31: 1
A32: 24 | B32: MIDLAND- Milano | C32: 264 | D32: 4 | E32: 48.5 | F32: 230x110x76 | K32: EXTERNAL COMMON SELECTION | U32: PAVESTONE 60 Heritage Red | V32: MIDLAND PAVESTONE ORIGINAL | W32: 330 | X32: 38.13882532 | Y32: x | Z32: x | AA32: 114 | AB32: 10 | AC32: 60 | AD32: 5 | AE32: 0.02622 | AK32: BEDFORD | AL32: 1
A33: 25 | B33: MIDLAND- Seville | C33: 264 | D33: 4 | E33: 48.5 | F33: 230x110x76 | J33: Line | K33: Brick Type Selection | L33: Pk Size | N33: No/m2 | O33: Brick Size | U33: PAVESTONE 60 Limestone | V33: MIDLAND PAVESTONE ORIGINAL | W33: 330 | X33: 38.13882532 | Y33: x | Z33: x | AA33: 114 | AB33: 10 | AC33: 60 | AD33: 5 | AE33: 0.02622 | AK33: BEDFORDALE | AL33: 2
A34: 27 | B34: MIDLAND- Tuscan | C34: 264 | D34: 4 | E34: 48.5 | F34: 230x110x76 | J34: 1 | K34: NO SELECTION MADE | L34: 264 | M34: 4 | N34: 48.5 | O34: 230x110x76 | U34: PAVESTONE 60 Charcoal | V34: MIDLAND PAVESTONE ORIGINAL | W34: 330 | X34: 38.13882532 | Y34: x | Z34: x | AA34: 114 | AB34: 10 | AC34: 60 | AD34: 5 | AE34: 0.02622 | AK34: BEECHBORO | AL34: 1
A35: 28 | J35: 2 | K35: MIDLAND COMMON CORED | L35: 264 | M35: 4 | N35: 48.5 | O35: 230x110x76 | R35: EXTERNAL ROUGH 1C | U35: PAVESTONE 60 Pewter | V35: MIDLAND PAVESTONE ORIGINAL | W35: 330 | X35: 38.13882532 | Y35: x | Z35: x | AA35: 114 | AB35: 10 | AC35: 60 | AD35: 5 | AE35: 0.02622 | AK35: BEECHINA | AL35: 2
A36: 29 | B36: MIDLAND 1C BRICK - PEARL | J36: 3 | K36: MIDLAND COMMON SOLID | L36: 264 | M36: 4 | N36: 48.5 | O36: 230x110x76 | R36: EXTERNAL ROUGH 1C | AK36: BEELIAR | AL36: 2
A37: 30 | B37: MIDLAND- Amber | C37: 264 | D37: 4 | E37: 48.5 | F37: 230x110x76 | G37: TRUE | U37: MIDLAND CLASSIC COLLECTION 60:- | AK37: BELDON | AL37: 2
A38: 31 | B38: MIDLAND- Black | C38: 264 | D38: 4 | E38: 48.5 | F38: 230x110x76 | G38: TRUE | K38: 2C FACE BLOCKS | U38: MASTERPAVE 60 Charcoal | V38: =$U$12 -> MIDLAND MASTERPAVE CLASSIC | W38: =$V$12 -> 230 | X38: =$W$12 -> 25 | Y38: x | Z38: =$Y$12 -> x | AA38: =$Z$12 -> 200 | AB38: =$AA$12 -> 10 | AC38: =$AB$12 -> 60 | AD38: =$AC$12 -> 5 | AE38: =$AD$12 -> 0.04 | AK38: BELHUS | AL38: 1
A39: 32 | B39: MIDLAND- Copper | C39: 264 | D39: 4 | E39: 48.5 | F39: 230x110x76 | G39: TRUE | U39: MASTERPAVE 60 Golden Sand | V39: =$U$12 -> MIDLAND MASTERPAVE CLASSIC | W39: =$V$12 -> 230 | X39: =$W$12 -> 25 | Y39: x | Z39: =$Y$12 -> x | AA39: =$Z$12 -> 200 | AB39: =$AA$12 -> 10 | AC39: =$AB$12 -> 60 | AD39: =$AC$12 -> 5 | AE39: =$AD$12 -> 0.04 | AK39: BELLEVUE | AL39: 1
A40: 33 | B40: MIDLAND- Grey | C40: 264 | D40: 4 | E40: 48.5 | F40: 230x110x76 | G40: TRUE | J40: Line | K40: Brick Type Selection | L40: Pk Size | M40: leafs | N40: No/m2 | O40: Brick Size | U40: MASTERPAVE 60 Heritage Red | V40: MIDLAND MASTERPAVE CLASSIC | W40: 230 | X40: 25 | Y40: x | Z40: x | AA40: 200 | AB40: 10 | AC40: 60 | AD40: 5 | AE40: 0.04 | AK40: BELMONT | AL40: 1
A41: 34 | J41: 1 | K41: NO SELECTION MADE | L41: 138 | M41: 3 | N41: 19.4 | O41: 290x90x162 | P41: 264 | Q41: 38.75 | U41: MASTERPAVE 60 Limestone | V41: MIDLAND MASTERPAVE CLASSIC | W41: 230 | X41: 25 | Y41: x | Z41: x | AA41: 200 | AB41: 10 | AC41: 60 | AD41: 5 | AE41: 0.04 | AK41: BENNETT SPRINGS | AL41: 1
A42: 35 | J42: 5 | U42: MASTERPAVE 60 Pewter | V42: MIDLAND MASTERPAVE CLASSIC | W42: 230 | X42: 25 | Y42: x | Z42: x | AA42: 200 | AB42: 10 | AC42: 60 | AD42: 5 | AE42: 0.04 | AK42: BENTLEY | AL42: 2
A43: 36 | B43: MIDLAND 1C BRICK - CODA | J43: 6 | K43: MIDLAND 2C BRICKS | U43: MASTERPAVE 60 Steel Grey | V43: MIDLAND MASTERPAVE CLASSIC | W43: 230 | X43: 25 | Y43: x | Z43: x | AA43: 200 | AB43: 10 | AC43: 60 | AD43: 5 | AE43: 0.04 | AK43: BERTRAM | AL43: 3
A44: 37 | B44: MIDLAND- Grey | C44: 264 | D44: 4 | E44: 48.5 | F44: 230x110x76 | J44: 7 | K44: MIDLAND - Bremer Bay | L44: 138 | M44: 3 | N44: 19.4 | O44: 290x90x162 | P44: 264 | Q44: 38.75 | R44: MIDLAND 2c FACE | U44: MASTERPAVE 60 Silver | V44: MIDLAND MASTERPAVE CLASSIC | W44: 230 | X44: 25 | Y44: x | Z44: x | AA44: 200 | AB44: 10 | AC44: 60 | AD44: 5 | AE44: 0.04 | AK44: BIBRA LAKE | AL44: 2
A45: 38 | B45: MIDLAND- Red | C45: 264 | D45: 4 | E45: 48.5 | F45: 230x110x76 | J45: 8 | K45: MIDLAND - Bullara | L45: 138 | M45: 3 | N45: 19.4 | O45: 290x90x162 | P45: 264 | Q45: 38.75 | R45: MIDLAND 2c FACE | AK45: BICKLEY | AL45: 1
A46: 39 | J46: 9 | K46: MIDLAND - Kennedy | L46: 138 | M46: 3 | N46: 19.4 | O46: 290x90x162 | P46: 264 | Q46: 38.75 | R46: MIDLAND 2c FACE | S46: TRUE | U46: MIDLAND CLASSIC COLLECTION 60:- | AK46: BICTON | AL46: 2
A47: 40 | B47: MIDLAND 1C BRICK - HANDMADE | J47: 10 | K47: MIDLAND - Loongana Limestone | L47: 138 | M47: 3 | N47: 19.4 | O47: 290x90x162 | P47: 264 | Q47: 38.75 | R47: MIDLAND 2c FACE | U47: PROMENADE 60 Limestone | V47: 160 | W47: =1/AD47 -> 11.11111111 | X47: 300 | Y47: x | Z47: 300 | AA47: 15 | AB47: 60 | AC47: 10 | AD47: =(X47/1000)*(Z47/1000) -> 0.09 | AE47: 14.41 | AK47: BINDOON | AL47: 3
A48: 41 | B48: MIDLAND- Caversham | C48: 264 | D48: 4 | E48: 48.5 | F48: 230x110x76 | J48: 11 | K48: MIDLAND - Roebuck | L48: 138 | M48: 3 | N48: 19.4 | O48: 290x90x162 | P48: 264 | Q48: 38.75 | R48: MIDLAND 2c FACE | S48: TRUE | U48: PROMENADE 60 Autum Blend | V48: 160 | W48: =1/AD48 -> 11.11111111 | X48: 300 | Y48: x | Z48: 300 | AA48: 15 | AB48: 60 | AC48: 10 | AD48: 0.09 | AE48: 14.41 | AK48: BOORAGOON | AL48: 2
A49: 42 | B49: MIDLAND- Helena vale | C49: 264 | D49: 4 | E49: 48.5 | F49: 230x110x76 | G49: TRUE | J49: 12 | K49: MIDLAND - Shale | L49: 138 | M49: 3 | N49: 19.4 | O49: 290x90x162 | P49: 252 | Q49: 38.75 | R49: MIDLAND 2c FACE | S49: TRUE | U49: PROMENADE 60 Golden Sand | V49: 160 | W49: 11.11111111 | X49: 300 | Y49: x | Z49: 300 | AA49: 15 | AB49: 60 | AC49: 10 | AD49: 0.09 | AE49: 14.41 | AK49: BOUVARD | AL49: 5
A50: 43 | B50: MIDLAND- Sandalford | C50: 264 | D50: 4 | E50: 48.5 | F50: 230x110x76 | G50: TRUE | J50: 13 | K50: MIDLAND - Trealla Limestone | L50: 138 | M50: 3 | N50: 19.4 | O50: 290x90x162 | P50: 264 | Q50: 38.75 | R50: MIDLAND 2c FACE | U50: PROMENADE 60 Pewter | V50: 160 | W50: 11.11111111 | X50: 300 | Y50: x | Z50: 300 | AA50: 15 | AB50: 60 | AC50: 10 | AD50: 0.09 | AE50: 14.41 | AK50: BOYA | AL50: 1
A51: 44 | B51: MIDLAND- Woodbridge | C51: 264 | D51: 4 | E51: 48.5 | F51: 230x110x76 | J51: 14 | K51: MIDLAND - Mandu | L51: 138 | M51: 3 | N51: 19.4 | O51: 290x90x162 | P51: 252 | Q51: 38.75 | R51: MIDLAND 2c FACE | U51: PROMENADE 60 Charcoal | V51: 160 | W51: 11.11111111 | X51: 300 | Y51: x | Z51: 300 | AA51: 15 | AB51: 60 | AC51: 10 | AD51: 0.09 | AE51: 14.41 | AK51: BRABHAM | AL51: 1
U52: PROMENADE 60 Steel Grey | V52: 160 | W52: 11.11111111 | X52: 300 | Y52: x | Z52: 300 | AA52: 15 | AB52: 60 | AC52: 10 | AD52: 0.09 | AE52: 14.41 | AK52: BRENTWOOD | AL52: 2
AK53: BRIGADOON | AL53: 1
K54: MIDLAND 2c 190mm FRACTION SNAP | R54: MIDLAND 2c 190mm FRACTION SNAP | U54: MIDLAND CLASSIC COLLECTION 60:- | AK54: BROOKDALE | AL54: 2
S55: 50 | U55: FLAGSTONE 60 Charcoal | V55: 135 | W55: =1/AD55 -> 18.36547291 | X55: 330 | Y55: x | Z55: 165 | AA55: 15 | AB55: 60 | AC55: 10 | AD55: =(X55/1000)*(Z55/1000) -> 0.05445 | AE55: 7.5 | AK55: BULLCREEK | AL55: 2
S56: 51 | U56: FLAGSTONE 60 Pewter | V56: 135 | W56: =1/AD56 -> 18.36547291 | X56: 330 | Y56: x | Z56: 165 | AA56: 15 | AB56: 60 | AC56: 10 | AD56: 0.05445 | AE56: 7.5 | AK56: BULLSBROOK | AL56: 1
S57: 52 | U57: FLAGSTONE 60 Silver | V57: 135 | W57: 18.36547291 | X57: 330 | Y57: x | Z57: 165 | AA57: 15 | AB57: 60 | AC57: 10 | AD57: 0.05445 | AE57: 7.5 | AK57: BULLSBROOK EAST | AL57: 2
S58: 53 | AK58: BURNS BEACH | AL58: 2
S59: 54 | U59: MIDLAND GRANITE COLLECTION 60 - | AK59: BURSWOOD | AL59: 1
S60: 55 | U60: FLAGSTONE 60 Artic | V60: 135 | W60: =1/AD60 -> 18.36547291 | X60: 330 | Y60: x | Z60: 165 | AA60: 15 | AB60: 60 | AC60: 10 | AD60: =(X60/1000)*(Z60/1000) -> 0.05445 | AE60: 7.5 | AK60: BUSHMEAD | AL60: 1
S61: 56 | U61: FLAGSTONE 60 Sea Mist | V61: 135 | W61: 18.36547291 | X61: 330 | Y61: x | Z61: 165 | AA61: 15 | AB61: 60 | AC61: 10 | AD61: 0.05445 | AE61: 7.5 | AK61: BUTLER | AL61: 3
S62: 57 | U62: FLAGSTONE 60 Storm Cloud | V62: 135 | W62: 18.36547291 | X62: 330 | Y62: x | Z62: 165 | AA62: 15 | AB62: 60 | AC62: 10 | AD62: 0.05445 | AE62: 7.5 | AK62: BYFORD | AL62: 3
S63: 58 | U63: FLAGSTONE 60 Tundra | V63: 135 | W63: 18.36547291 | X63: 330 | Y63: x | Z63: 165 | AA63: 15 | AB63: 60 | AC63: 10 | AD63: 0.05445 | AE63: 7.5 | AK63: CALISTA | AL63: 3
S64: 59 | AK64: CAMILLO | AL64: 2
S65: 60 | U65: MIDLAND GRANITE COLLECTION 60 - | AK65: CANNING VALE | AL65: 2
S66: 61 | U66: MASTERPAVE 60 Artic | V66: 228 | W66: =1/AD66 -> 25 | X66: 200 | Y66: x | Z66: 200 | AA66: 10 | AB66: 60 | AC66: 4 | AD66: =(X66/1000)*(Z66/1000) -> 0.04 | AE66: 9.12 | AK66: CANNINGTON | AL66: 2
S67: 62 | U67: MASTERPAVE 60 Sea Mist | V67: 228 | W67: 25 | X67: 200 | Y67: x | Z67: 200 | AA67: 10 | AB67: 60 | AC67: 4 | AD67: 0.04 | AE67: 9.12 | AK67: CARABOODA | AL67: 3
S68: 63 | U68: MASTERPAVE 60 Storm Cloud | V68: 228 | W68: 25 | X68: 200 | Y68: x | Z68: 200 | AA68: 10 | AB68: 60 | AC68: 4 | AD68: 0.04 | AE68: 9.12 | AK68: CARDUP | AL68: 3
S69: 64 | U69: MASTERPAVE 60 Tundra | V69: 228 | W69: 25 | X69: 200 | Y69: x | Z69: 200 | AA69: 10 | AB69: 60 | AC69: 4 | AD69: 0.04 | AE69: 9.12 | AK69: CARILLA | AL69: 2
S70: 65 | AK70: CARINE | AL70: 2
S71: 66 | U71: MIDLAND STONEWASH COLLECTION | AK71: CARLISLE | AL71: 1
S72: 67 | U72: FLAGSTONE 60 Charcoal | V72: 135 | W72: =1/AD72 -> 18.36547291 | X72: 330 | Y72: x | Z72: 165 | AA72: 15 | AB72: 60 | AC72: 3 | AD72: =(X72/1000)*(Z72/1000) -> 0.05445 | AE72: 7.5 | AK72: CARMEL | AL72: 1
S73: 68 | U73: FLAGSTONE 60 Grey | V73: 135 | W73: =1/AD73 -> 18.36547291 | X73: 330 | Y73: x | Z73: 165 | AA73: 15 | AB73: 60 | AC73: 3 | AD73: 0.05445 | AE73: 7.5 | AK73: CARRAMAR | AL73: 2
S74: 69 | U74: FLAGSTONE 60 Silver | V74: 135 | W74: 18.36547291 | X74: 330 | Y74: x | Z74: 165 | AA74: 15 | AB74: 60 | AC74: 3 | AD74: 0.05445 | AE74: 7.5 | AK74: CASUARINA | AL74: 3
S75: 70 | AK75: CAVERSHAM | AL75: 1
S76: 71 | U76: MIDLAND STONEWASH COLLECTION | AK76: CHAMPION LAKES | AL76: 2
S77: 72 | U77: MASTERPAVE 60 Charcoal | V77: 228 | W77: =1/AD77 -> 25 | X77: 200 | Y77: x | Z77: 200 | AA77: 10 | AB77: 60 | AC77: 3 | AD77: =(X77/1000)*(Z77/1000) -> 0.04 | AE77: 9.12 | AK77: CHIDLOW | AL77: 2
S78: 73 | U78: MASTERPAVE 60 Grey | V78: 228 | W78: 25 | X78: 200 | Y78: x | Z78: 200 | AA78: 10 | AB78: 60 | AC78: 3 | AD78: 0.04 | AE78: 9.12 | AK78: CHITTERING | AL78: 3
S79: 74 | U79: MASTERPAVE 60 Silver | V79: 228 | W79: 25 | X79: 200 | Y79: x | Z79: 200 | AA79: 10 | AB79: 60 | AC79: 3 | AD79: 0.04 | AE79: 9.12 | AK79: CHURCHLANDS | AL79: 2
S80: 75 | AK80: CITY BEACH | AL80: 2
S81: 76 | U81: MIDLAND GEO COLLECTION | AK81: CLACKLINE | AL81: 3
S82: 77 | U82: FLAGSTONE 60 Dew | V82: 135 | W82: =1/AD82 -> 18.36547291 | X82: 330 | Y82: X | Z82: 165 | AA82: 15 | AB82: 60 | AC82: 3 | AD82: =(X82/1000)*(Z82/1000) -> 0.05445 | AE82: 7.5 | AK82: CLAREMONT | AL82: 2
S83: 78 | U83: FLAGSTONE 60 Kao | V83: 135 | W83: 18.36547291 | X83: 330 | Y83: X | Z83: 165 | AA83: 15 | AB83: 60 | AC83: 3 | AD83: 0.05445 | AE83: 7.5 | AK83: CLARKSON | AL83: 2
S84: 79 | U84: FLAGSTONE 60 Sky | V84: 135 | W84: 18.36547291 | X84: 330 | Y84: X | Z84: 165 | AA84: 15 | AB84: 60 | AC84: 3 | AD84: 0.05445 | AE84: 7.5 | AK84: CLOVERDALE | AL84: 1
S85: 80 | AK85: COCKBURN CENTRAL | AL85: 2
S86: 81 | U86: MIDLAND GEO COLLECTION | AK86: COMO | AL86: 2
S87: 82 | U87: MASTERPAVE 60 Dew | V87: 228 | W87: =1/AD87 -> 25 | X87: 200 | Y87: X | Z87: 200 | AA87: 10 | AB87: 60 | AC87: 3 | AD87: =(X87/1000)*(Z87/1000) -> 0.04 | AE87: 9.12 | AK87: CONNOLLY | AL87: 2
S88: 83 | U88: MASTERPAVE 60 Kao | V88: 228 | W88: 25 | X88: 200 | Y88: X | Z88: 200 | AA88: 10 | AB88: 60 | AC88: 3 | AD88: 0.04 | AE88: 9.12 | AK88: COODANUP | AL88: 4
S89: 84 | U89: MASTERPAVE 60 Sky | V89: 228 | W89: 25 | X89: 200 | Y89: X | Z89: 200 | AA89: 10 | AB89: 60 | AC89: 3 | AD89: 0.04 | AE89: 9.12 | AK89: COOGEE | AL89: 2
S90: 85 | AK90: COOLBELLUP | AL90: 2
S91: 86 | U91: MIDLAND HONED COLLECTION | AK91: COOLBINIA | AL91: 2
S92: 87 | U92: PROMENADE 60 Blanc | V92: 160 | W92: =1/AD92 -> 11.11111111 | X92: 300 | Y92: x | Z92: 300 | AA92: 15 | AB92: 60 | AC92: 10 | AD92: =(X92/1000)*(Z92/1000) -> 0.09 | AE92: 14.41 | AK92: COOLOONGUP | AL92: 3
S93: 88 | U93: PROMENADE 60 Grigio | V93: 160 | W93: 11.11111111 | X93: 300 | Y93: x | Z93: 300 | AA93: 15 | AB93: 60 | AC93: 10 | AD93: 0.09 | AE93: 14.41 | AK93: COTTESLOE | AL93: 2
S94: 89 | U94: PROMENADE 60 Noire | V94: 160 | W94: 11.11111111 | X94: 300 | Y94: x | Z94: 300 | AA94: 15 | AB94: 60 | AC94: 10 | AD94: 0.09 | AE94: 14.41 | AK94: CRAIGIE | AL94: 2
S95: 90 | AK95: CRAWLEY | AL95: 2
S96: 91 | AK96: CULLACABARDEE | AL96: 1
S97: 92 | AK97: CURRAMBINE | AL97: 2
AK98: DAGLISH | AL98: 1
AK99: DALKEITH | AL99: 2
AK100: DARCH | AL100: 1
AK101: DARLING DOWNS | AL101: 2
AK102: DARLINGTON | AL102: 1
AK103: DAWESVILLE | AL103: 5
AK104: DAYTON | AL104: 1
AK105: DIANELLA | AL105: 1
AK106: DOUBLEVIEW | AL106: 2
AK107: DUDLEY PARK | AL107: 4
AK108: DUNCRAIG | AL108: 2
AK109: EAST CANNINGTON | AL109: 1
AK110: EAST FREMANTLE | AL110: 3
AK111: EAST PERTH | AL111: 1
AK112: EAST ROCKINGHAM | AL112: 3
AK113: EAST VICTORIA PK | AL113: 2
AK114: EDEN HILL | AL114: 1
AK115: EDGEWATER | AL115: 2
AK116: EGLINTON | AL116: 3
AK117: ELLENBROOK | AL117: 1
AK118: EMBLETON | AL118: 1
AK119: ERSKINE | AL119: 4
AK120: FALCON | AL120: 4
AK121: FERNDALE | AL121: 2
AK122: FLOREAT | AL122: 2
AK123: FORRESTDALE | AL123: 2
AK124: FORRESTFIELD | AL124: 1
AK125: FREMANTLE | AL125: 2
AK126: FURNISSDALE | AL126: 4
AK127: GARDEN ISLAND | AL127: 3
AK128: GIDGEGANNUP | AL128: 1
AK129: GIN GIN | AL129: 3
AK130: GIN GIN WEST | AL130: 5
AK131: GIRRAWHEEN | AL131: 1
AK132: GLEN FORREST | AL132: 1
AK133: GLENDALOUGH | AL133: 2
AK134: GNANGARA | AL134: 2
AK135: GOLDEN BAY | AL135: 4
AK136: GOOSEBERRY HILL | AL136: 1
AK137: GOSNELLS | AL137: 2
AK138: GREENFIELDS | AL138: 4
AK139: GREENMOUNT | AL139: 1
AK140: GREENWOOD | AL140: 2
AK141: GUILDERTON | AL141: 5
AK142: GUILDFORD | AL142: 1
AK143: GWELUP | AL143: 2
AK144: HACKETTS GULLY | AL144: 2
AK145: HALLS HEAD | AL145: 4
AK146: HAMERSLEY | AL146: 1
AK147: HAMILTON HILL | AL147: 2
AK148: HAMMOND PARK | AL148: 2
AK149: HARRISDALE | AL149: 2
AK150: HAYNES | AL150: 2
AK151: HAZELMERE | AL151: 1
AK152: HEATHRIDGE | AL152: 2
AK153: HELENA VALLEY | AL153: 1
AK154: HENDERSON | AL154: 3
AK155: HENLEY BROOK | AL155: 1
AK156: HERNE HILL | AL156: 1
AK157: HIGH WYCOMBE | AL157: 1
AK158: HIGHGATE | AL158: 2
AK159: HILBERT | AL159: 2
AK160: HILLARYS | AL160: 2
AK161: HILLMAN | AL161: 3
AK162: HILTON | AL162: 2
AK163: HOCKING | AL163: 2
AK164: HOPE VALLEY | AL164: 3
AK165: HOVEA | AL165: 1
AK166: HUNTINGDALE | AL166: 2
AK167: ILUKA | AL167: 2
AK168: INGLEWOOD | AL168: 1
AK169: INNALOO | AL169: 2
AK170: JANDABUP | AL170: 2
AK171: JANDAKOT | AL171: 2
AK172: JANE BROOK | AL172: 1
S173: 169 | AK173: JARRAHDALE | AL173: 3
S174: 170 | AK174: JINDALEE | AL174: 3
AK175: JOLIMONT | AL175: 2
AK176: JOONDALUP | AL176: 2
AK177: JOONDANNA | AL177: 2
AK178: KALAMUNDA | AL178: 1
AK179: KALLAROO | AL179: 2
AK180: KARAWARA | AL180: 2
AK181: KARDINYA | AL181: 2
AK182: KARNUP | AL182: 3
AK183: KARRAGULLEN | AL183: 2
AK184: KARRAKATTA | AL184: 2
AK185: KARRINYUP | AL185: 2
AK186: KELMSCOTT | AL186: 2
AK187: KENSINGTON | AL187: 1
AK188: KENWICK | AL188: 2
AK189: KEWDALE | AL189: 1
AK190: KEYSBROOK | AL190: 3
AK191: KIARA | AL191: 1
AK192: KINGSLEY | AL192: 2
AK193: KINROSS | AL193: 2
AK194: KOONDOOLA | AL194: 1
AK195: KOONGAMIA | AL195: 1
AK196: KWINANA | AL196: 3
AK197: LAKE COOGEE | AL197: 2
AK198: LAKELANDS | AL198: 4
AK199: LANDSDALE | AL199: 1
AK200: LANGFORD | AL200: 2
AK201: LATHLAIN | AL201: 1
... 182 more rows

Sheet Fascia-Roof Hardware
B2: FASCIA, ROOF LABOUR AND ROOF HARDWARE | AO2: =IF(BC16="required",BD9,("")) -> 
AO3: =IF(BC16="required",BD10,("")) -> 
AO4: =IF(BC16="required",BD11,("")) -> 
B5: METAL FASCIA | K5: Wall Carpentry | Y5: HARDWARE
D7: 1 | E7: =IF($C7*$D7=0," ",$C7*$D7) ->  | K7: =_xlfn.XLOOKUP(U7,Lists!AV:AV,Lists!AW:AW) -> STEEL FRAME WALL OVER 15C | S7: =IF('Main Details'!$D$32="Brick Veneer",AP7,0) -> 56 | U7: 235-150-100200 | V7: additional | Y7: TENSIONER BRACKETS | AE7: =$AP$54 -> 0 | AF7: PACK | AP7: =IF('Main Details'!D32="Brick Veneer",('Main Details'!$D$42-'Main Details'!$D$50)+T7+'Main Details'!D43,"") -> 56 | AR7: VUESMART HEX DRIVE ANTI SLIP
D8: 1.5 | E8: =IF($C8*$D8=0," ",$C8*$D8) ->  | K8: =_xlfn.XLOOKUP(U8,Lists!AV:AV,Lists!AW:AW) -> INSTALL DOOR FRAMES WITH TABS | S8: =IF('Main Details'!$D$32="Brick Veneer",AP8,0) -> 0 | U8: 235-600-100100 | Y8: WPA BOLTS | AE8: BBS | AF8: No | AK8: =Y19*AA19/1000000 -> 2.88 | AP8: =IF('Main Details'!D32="Brick Veneer",('INT-EXT DOORS & int walls'!C35+'INT-EXT DOORS & int walls'!Y33),("")) -> 0
D9: 2 | K9: =_xlfn.XLOOKUP(U9,Lists!AV:AV,Lists!AW:AW) -> STEEL FRAME WINDOW INSTALL | S9: =IF('Main Details'!$D$32="Brick Veneer",AP9,0) -> 16 | U9: 245-150-100400 | Y9: STEEL TRUSS HARDWARE | AK9: =Y20*AA20/1000000 -> 3.6 | AP9: =IF('Main Details'!D32="Brick Veneer",('Lintels.windows '!$M$47),("")) -> 16
D10: 2.5 | K10: =_xlfn.XLOOKUP(U10,Lists!AV:AV,Lists!AW:AW) -> INSTALL WALL WRAP TO ENTIRE | S10: NO | U10: 245-700-100750 | Y10: CLADDING Screws | AE10: =IF('Main Details'!$G$32=TRUE,ROUNDUP((((($AH$17+$AH$25)*4.2/0.45))/50),0)," ") -> 0 | AF10: BOX 50 | AK10: =Y21*AA21/1000000 -> 4.32 | AN10: NO | AR10: WINGED ZENITH 10g x 45mm
D11: 3 | K11: Roof Carpentry | Y11: BARGE Screws | AE11: =IF('Main Details'!$G$32=TRUE,ROUNDUP((((($S$33)/0.6))/50),0)," ") -> 0 | AF11: BOX 50 | AN11: YES | AO11: 1 | AP11: =IF(S10="YES",1,0) -> 0 | AR11: WINGED ZENITH 10g x 45mm
D12: 3.5 | K12: POST STEEL OR TIMBER | T12: Ea | U12: 245-100-100800 | Y12: FLOOR Screws | AF12: BOX 50 | AT12: WEATHERTEX WEATHERGROOVE PANEL
D13: 4 | K13: STEEL FRAME ROOF | S13: ='Main Details'!D40 -> 250 | T13: M2 | U13: 245-150-100100 | Y13: EAVE SHEET SCREW | AE13: =IF('Main Details'!$G$32=TRUE,ROUNDUP(((SUM($AK$14*$AB$25,$AK$15*$AB$26,$AK$16*$AB$27,$AK$17*$AB$28,$AK$18*$AB$29,$AK$19*$AB$30,$AK$20*$AB$31)*7)/100),0)," ") -> 0 | AF13: BOX 100 | AN13: 290-100-100100 | AQ13: ZENITH WAFER HEAD SCREWS | AR13: ZENITH 10g x 22mm | AS13: Eave Sheet | AX13: 249-100-100100
D14: 4.5 | K14: E/O RIDGES - 6 OR GREATER | T14: M2 | U14: 245-150-100325 | Y14: DURALUX PLUS SCREW | AE14: =IF('Main Details'!$G$32=TRUE,ROUNDUP(SUM($AK$8*$AB$19,$AK$9*$AB$20,$AK$10*$AB$21)*7/100,0)," ") -> 0 | AF14: BOX 100 | AK14: =Y25*AA25/1000000 -> 1.08 | AL14: BGC DURASHEET | AM14: 2400x450x4.5mm | AN14: 290-200-100075 | AR14: ZENITH 8g x 30mm | AY14: SITE WELDING ALLOWANCE
D15: 5 | K15: E/O RECESSED CEILING | T15: LM | U15: 245-150-100525 | Y15: Compressed Fibre and Cladding | AK15: 1.44 | AL15: BGC DURASHEET | AM15: 2400x600x4.5mm | AN15: 290-200-100125 | AX15: =AY15*50 -> 0 | AZ15: PER ROD
D16: 5.5 | K16: STEEL FRAME 30-38 DEGREE PITCH | T16: M2 | U16: 245-150-100600 | Y16: CFC SHEETS/BOARDS | AE16: CLADDING | AK16: 1.8 | AL16: BGC DURASHEET | AM16: 2400x750x4.5mm | AN16: 290-200-100175 | AQ16: 290-100-200790 | AR16: ZENITH SELF EMBEDDING HEAD | AS16: =AE11 -> 0 | AX16: =AY16*50 -> 0 | AZ16: PER COLUMN
D17: 6 | K17: STEEL FRAME RAKING CEILING | T17: M2 | U17: 245-150-100650 | AE17: BGC STRATUM CONTOUR | AH17: =AP44+AH18 -> 0 | AI17: No | AK17: 2.16 | AL17: BGC DURASHEET | AM17: 1800x1200x4.5mm | AN17: 290-200-100425 | AQ17: 290-100-200790 | AR17: ZENITH SELF EMBEDDING HEAD | AS17: =IF(AE10<6,AE10,0) -> 0 | AX17: =AY17*50 -> 0 | AZ17: PER BEAM TO POST CONNECTION
D18: 6.5 | K18: STEEL FRAME GABLE/GAMBRILL | T18: Ea | U18: 245-150-100900 | Y18: DURALUX PLUS | AE18: ADDITIONAL BOARDS | AI18: No | AK18: 2.88 | AL18: BGC DURASHEET | AM18: 2400x1200x4.5mm | AN18: 290-200-100475 | AQ18: 290-100-200925 | AR18: SCREWS WNG CSK SQ | AS18: =IF(AE10>5,1,0) -> 0 | AX18: =AY18*50 -> 0 | AZ18: PER BEAM TO BEAM CONNECTION
D19: 7 | K19: SINGLE GABLE MINIMUM CHARGE | T19: Ea | Y19: 2400 | Z19: x | AA19: 1200 | AC19: No | AE19: =IF(AE17="BGC STRATUM",(AQ34),IF(AP40="BGC STRATUM CONTOUR",(AR34),IF(AP40="BGC STRATUM DUO",(AS34),IF(AP40="BGC STRATUM DUO WOODGRAIN",(AT34),IF(AP40="BGC STRATUM TRIO",(AU34),IF(AP40="BGC STRATUM WOODGRAIN",(AV34),(0))))))) -> WEATHERBOARD 4200x170x10mm | AK19: 3.24 | AL19: BGC DURASHEET | AM19: 2700x1200x4.5mm | AN19: 290-200-100525 | AQ19: 290-100-100100 | AR19: Delivery | AX19: =AY19*250 -> 250 | AY19: 1 | AZ19: MINIMUM CALL OUT
D20: 7.5 | K20: STEEL FRAME PORTAL BEAMS | T20: Ea | U20: 245-150-101200 | Y20: 3000 | Z20: x | AA20: 1200 | AC20: No | AE20: Nuline Plus Square 4.2x175mm | AI20: No | AK20: 3.6 | AL20: BGC DURASHEET | AM20: 3000x1200x4.5mm | AN20: 290-200-100575
D21: 8 | K21: CLADDING MINIMUM CHARGE | T21: Ea | U21: 245-200-100030 | Y21: 3600 | Z21: x | AA21: 1200 | AC21: No | AE21: EXTERNAL CORNER 3000mm | AI21: No | AL21: SUPA COVER WT | AN21: 290-100-300100 | AY21: =SUM(AX15:AX19) -> 250 | AZ21: TOTAL
D22: 8.5 | K22: CLADDING | T22: M2 | Y22: 6mm Negative Joiner 3m | AC22: No | AE22: INTERNAL CORNER 3000mm | AI22: No
D23: 9 | E23: =IF($C23*$D23=0," ",$C23*$D23) ->  | K23: E/O METERBOX AND OPENINGS | T23: Ea | U23: 245-200-400100 | V23: M/Box | Y23: 6mm Divisional Mould 3m | AC23: No | AE23: =IF(AP40="BGC STRATUM",(AQ35),IF(AP40="BGC STRATUM CONTOUR",(AR35),IF(AP40="BGC STRATUM DUO",(AS41),IF(AP40="BGC STRATUM DUO WOODGRAIN",(AT41),IF(AP40="BGC STRATUM TRIO",(AU41),IF(AP40="BGC STRATUM WOODGRAIN",(AV41),(0))))))) -> TOE MOULD | AI23: LM | AK23: 2.88 | AL23: BGC DURALUX PLUS | AN23: 290-250-200050
B24: TOTAL: | C24: =SUM(E7:E23) -> 0 | D24: l/m | H24: 285-100-200100 | K24: E/O INTERNAL/EXTERNAL CORNER | T24: Ea | U24: 245-200-400250 | Y24: DURASHEET | AE24: THERMAL BREAK | AI24: Rolls | AK24: 3.6 | AL24: BGC DURALUX PLUS | AN24: 290-250-200250
C25: Ext corners= | F25: No | H25: 285-100-200200 | K25: STEEL FRAME WALL UP TO 15C | T25: LM | U25: 245-150-100300 | Y25: 2400 | Z25: x | AA25: 450 | AC25: No | AE25: =IF(AP40="BGC STRATUM",(AQ45),IF(AP40="BGC STRATUM CONTOUR",(AR45),IF(AP40="BGC STRATUM DUO",(AS39),IF(AP40="BGC STRATUM DUO WOODGRAIN",(AT39),IF(AP40="BGC STRATUM TRIO",(AU39),IF(AP40="BGC STRATUM WOODGRAIN",(AV39),(0))))))) -> 0 | AI25: No | AK25: 4.32 | AL25: BGC DURALUX PLUS | AN25: 290-250-200350 | AQ25: BGC DURAGROOVE SMOOTH | AR25: BGC DURAGROOVE SMOOTH | AS25: BGC DURAGROOVE SMOOTH | AT25: BGC DURAGROOVE SMOOTH
C26: Int corners= | F26: No | H26: 285-100-200300 | K26: WALL BATTS (REVERSE CAVITY) | T26: M2 | U26: 245-200-400010 | Y26: 2400 | Z26: x | AA26: 600 | AC26: No | AE26: =IF(AP40="BGC STRATUM",(AQ45),IF(AP40="BGC STRATUM CONTOUR",(AR45),IF(AP40="BGC STRATUM DUO",(AS40),IF(AP40="BGC STRATUM DUO WOODGRAIN",(AT40),IF(AP40="BGC STRATUM TRIO",(AU40),IF(AP40="BGC STRATUM WOODGRAIN",(AV40),(0))))))) -> 0 | AI26: No | AL26: HARDIE 6mm PVC EAVE SOFFIT | AN26: 290-250-200600 | AQ26: NARROW 2450x1200x9mm | AR26: NARROW 2750x1200x9mm | AS26: NARROW 3000x1200x9mm | AT26: EXTRA WIDE 3000x1200x9mm
C27: Bracket/clip= | D27: =IF('Main Details'!H28=TRUE,(ROUNDUP(C24/0.6,0)),(ROUNDUP(C24/0.9,0)))+5 -> 5 | F27: No | H27: 285-100-100250 | K27: STEEL BATTENS W/- TIMBER ROOF | Y27: 2400 | Z27: x | AA27: 750 | AC27: No | AE27: BBS Membrane 1350mm | AI27: LM
B28: Straights/joins= | F28: No | H28: 285-100-100800 | K28: ROOF BATTEN G550 40mm | T28: 6.1 | V28: lengths | Y28: 1800 | Z28: x | AA28: 1200 | AC28: No | AE28: Wall Wrap Tape 50m | AI28: Rolls
C29: 135 deg ext = | F29: No | H29: 285-100-200400 | K29: BATTEN ZIP SCREW | S29: =ROUNDUP(SUM(((S28*T28)/0.9)*2)/1000,0.1) -> 0 | T29: BOX | V29: 1000 | Y29: 2400 | Z29: x | AA29: 1200 | AC29: No | AE29: Plascourse 150mm x 30m | AI29: Rolls
C30: 135 deg int = | F30: No | H30: 285-100-200500 | Y30: 2700 | Z30: x | AA30: 1200 | AC30: No | AE30: Cladding E/O Delivery | AH30: =IF(AH17>0,1,0) -> 0 | AI30: EA
C31: Stop end: Lh | F31: No | H31: 285-100-200700 | K31: MISC/PAINTING. ITEMS | Y31: 3000 | Z31: x | AA31: 1200 | AC31: No | AE31: BGC DURAGROOVE | AL31: EXTERNAL CORNER 3000mm | AQ31: 13 | AR31: 24 | AS31: 13 | AT31: 13 | AU31: 13 | AV31: 13
C32: Rh | F32: No | H32: 285-100-200700 | K32: GABLE BATTENS | T32: LM | V32: PAINTED | Y32: 4.5mm Divisional Mould 3m | AC32: No | AE32: NARROW 2450x1200x9mm | AL32: =IF(AP40="BGC STRATUM",(AQ38),IF(AP40="BGC STRATUM CONTOUR",(AR38),IF(AP40="BGC STRATUM DUO",(AS36),IF(AP40="BGC STRATUM DUO WOODGRAIN",(AT36),IF(AP40="BGC STRATUM TRIO",(AU36),IF(AP40="BGC STRATUM WOODGRAIN",(AV36),(0))))))) -> 290-500-200610 | AQ32: 1.159 | AR32: 0.592 | AS32: 1.159 | AT32: 1.159 | AU32: 1.159 | AV32: 1.159
C33: C/B Pop Rvts | D33: =ROUNDUP((SUM(D25+D26+D28+D29+D30+D31+D32)*4)/100,0) -> 0 | F33: Pkt | H33: 285-100-200800 | K33: TIMBER BARGES | T33: LM | V33: PAINTED | AQ33: BGC STRATUM | AR33: BGC STRATUM CONTOUR | AS33: BGC STRATUM DUO | AT33: BGC STRATUM DUO WOODGRAIN | AU33: BGC STRATUM TRIO | AV33: BGC STRATUM WOODGRAIN
K34: WEATHERTEX CLADDING | T34: M2 | V34: PAINTED | AL34: INTERNAL CORNER 3000mm | AQ34: WEATHERBOARD 4200x300x12mm | AR34: WEATHERBOARD 4200x170x10mm | AS34: 4200x300x12mm | AT34: 4200x300x12mm | AU34: 4200x300x12mm | AV34: 4200x300x12mm
K35: TIMBER POST SHOE | T35: No | AL35: =IF(AP40="BGC STRATUM",(AQ40),IF(AP40="BGC STRATUM CONTOUR",(AR40),IF(AP40="BGC STRATUM DUO",(AS38),IF(AP40="BGC STRATUM DUO WOODGRAIN",(AT38),IF(AP40="BGC STRATUM TRIO",(AU38),IF(AP40="BGC STRATUM WOODGRAIN",(AV38),(0))))))) -> 290-500-200620 | AQ35: TOE MOULD | AR35: TOE MOULD | AS35: EXTERNAL CORNER 3000mm | AT35: EXTERNAL CORNER 3000mm | AU35: EXTERNAL CORNER 3000mm | AV35: EXTERNAL CORNER 3000mm
K36: DOWNPIPES | T36: No | V36: PAINTED | AQ36: 285-100-400100 | AR36: 285-100-400100 | AS36: 290-500-200660 | AT36: 290-500-200660 | AU36: 290-500-200660 | AV36: 290-500-200660
K37: STEEL POSTS | T37: LM | V37: PAINTED | AL37: =AE23 -> TOE MOULD | AQ37: EXTERNAL CORNER 3000mm | AR37: EXTERNAL CORNER 3000mm | AS37: INTERNAL CORNER 3000mm | AT37: INTERNAL CORNER 3000mm | AU37: INTERNAL CORNER 3000mm | AV37: INTERNAL CORNER 3000mm
K38: STEEL BEAMS | T38: LM | V38: PAINTED | AL38: =IF(AP40="BGC STRATUM",(AQ36),IF(AP40="BGC STRATUM CONTOUR",(AR36),IF(AP40="BGC STRATUM DUO",(AS42),IF(AP40="BGC STRATUM DUO WOODGRAIN",(AT42),IF(AP40="BGC STRATUM TRIO",(AU42),IF(AP40="BGC STRATUM WOODGRAIN",(AV42),(0))))))) -> 285-100-400100 | AQ38: 290-500-200610 | AR38: 290-500-200610 | AS38: 290-500-200650 | AT38: 290-500-200650 | AU38: 290-500-200650 | AV38: 290-500-200650
K39: TIMBER BEAMS | T39: LM | U39: 245-100-100900 | V39: PAINTED | AQ39: INTERNAL CORNER 3000mm | AR39: INTERNAL CORNER 3000mm | AS39: JOINT SEALANT ADHESIVE | AT39: JOINT SEALANT ADHESIVE | AU39: JOINT SEALANT ADHESIVE | AV39: JOINT SEALANT ADHESIVE
AL40: BGC THERMAL BREAK TAPE | AP40: =AE17 -> BGC STRATUM CONTOUR | AQ40: 290-500-200620 | AR40: 290-500-200620 | AS40: BGC EPDM FOAM GASKET | AT40: BGC EPDM FOAM GASKET | AU40: BGC EPDM FOAM GASKET | AV40: BGC EPDM FOAM GASKET
AP41: =IF(AP40="BGC STRATUM",(AQ32),IF(AP40="BGC STRATUM CONTOUR",(AR32),IF(AP40="BGC STRATUM DUO",(AS32),IF(AP40="BGC STRATUM DUO WOODGRAIN",(AT32),IF(AP40="BGC STRATUM TRIO",(AU32),IF(AP40="BGC STRATUM WOODGRAIN",(AV32),(0))))))) -> 0.592 | AQ41: BGC NULINE PLUS SQUARE | AR41: BGC NULINE PLUS SQUARE | AS41: TOE MOULD | AT41: TOE MOULD | AU41: TOE MOULD | AV41: TOE MOULD
AL42: HARDIPLANK LINING | AP42: =S22+AP35 -> 0 | AQ42: WEATHERBOARD 4200x175x14mm | AR42: WEATHERBOARD 4200x175x14mm | AS42: 285-100-400100 | AT42: 285-100-400100 | AU42: 285-100-400100 | AV42: 285-100-400100
AL43: WEATHERBOARD CLADDING | AP43: =IF(S22>0,AP42/AP41*1.25+2,0) -> 0
AP44: =ROUNDUP(AP43,0) -> 0 | AQ44: THERMAROLL 12500x42x8mm | AR44: THERMAROLL 12500x42x8mm
AL46: =IF(AL47<10,"",AL47) -> 
AL47: =IF(S22>0,AP42,0) -> 0 | AM47: GABLE CHARGE | AP47: =IF(AP42>10,"245-200-100500",0) -> 0
AK48: =IF($K$19="SINGLE GABLE MINIMUM CHARGE",AP48,0) -> 245-200-100010 | AL48: =IF(K19="single gable minimum charge",(S19),0) -> 0 | AM48: SINGLE GABLE MINIMUM CHARGE | AP48: =_xlfn.XLOOKUP(AM48,Lists!AW:AW,Lists!AV:AV) -> 245-200-100010
AK49: =IF($K$19="DOUBLE GABLE MINIMUM CHARGE",AP49,0) -> 0 | AL49: =IF(K19="double gable minimum charge",(S19),0) -> 0 | AM49: DOUBLE GABLE MINIMUM CHARGE | AP49: =_xlfn.XLOOKUP(AM49,Lists!AW:AW,Lists!AV:AV) -> 245-200-100020
AL50: =IF(S22<10,S21,0) -> 0 | AM50: CLADDING MINIMUM CHARGE | AP50: 245-200-100030
AL53: Tensioner Brackets
AL54: ='Main Details'!D32 -> Brick veneer | AP54: =IF(AL54=AP55,(AL55),(AL56)) -> 0
AL55: =ROUNDUP('Brick Final Sheet '!M55*30/3/6,0) -> 0 | AP55: Double Brick
AL56: =ROUNDUP('Brick Final Sheet '!M54/6,0) -> 0 | AP56: Brick Veneer
AL58: BRACING TENSIONER VUEPRO
AL59: WALL WRAP 1350mm WIDE
AL60: WALL WRAP TAPE 72mm x 50m
AL61: PLASCOURSE BLACK POLYTHENE
AO64: =IF(AO65>0,1,0) -> 0 | AP64: DELIVERY PINE TIMBER
AO65: =S39 -> 0 | AP65: KAPUR GLULAM BEAM 198 X 60
AL67: 290-100-400050 | AM67: 290-100-400075
AK68: =IF(S10="yes",AH28,0) -> 0 | AL68: =IF(S10="yes",AH27,0) -> 0 | AM68: Wall Wrap for BBS Supply
AK69: =IF(S10="NO",AH28,0) -> 0 | AL69: =IF(S10="NO",AH27,0) -> 0 | AM69: Wall Wrap for Roof Hardware

Sheet Roof & Ceiling Quantities (hidden)
B2: ='Main Details'!B2 -> QUANTITY SHEET FOR EASY START HOMES | AZ2: PG 9
B3: ='Main Details'!D6 -> 0
H4: ROOF TIMBER QUANTITIES
C6: 120x35 | F6: 200x25 | J6: 170x35 | L6: 170x35 | N6: 170x35 | P6: 120x35 | T6: 170x35 | W6: 120x35 | Z6: 150x25 | AC6: 96x51 U/Purlin | AG6: 96x51 U/Purlin | AJ6: 70x45 | AM6: E-SPLAYS 1,2 | AN6: 70x35 | AQ6: E-SPLAYS 1,2 | AR6: 70x45 | AV6: E-SPLAYS 1,2 | AW6: 90x35 | AZ6: 90x35
C8: Rafters | F8: Ridges | J8: Hips | L8: Valleys | N8: Hips | P8: Hangers | T8: Totals | W8: Totals | Z8: V/boards | AC8: BOTM ROW | AG8: TOP ROW | AJ8: Eave Trimmers | AN8: Soldiers | AR8: Gable Studs | AW8: Pine<6.0 | AZ8: Pine>6.0
B9: 0.6 | D9: =B9*C9 -> 0 | G9: =B9*F9 -> 0 | I9: 2.4 | K9: =I9*J9 -> 0 | M9: =I9*L9 -> 0 | Q9: =IF(J9="","",J9) ->  | R9: 0.6 | T9: =IF((L9+N9)>0,(L9+N9)," ") ->  | U9: =IF(T9=" "," ",I9*T9) ->  | V9: 0.6 | Y9: 0.6 | AB9: =IF(Z9=" "," ",Z9*AA9) -> 0 | AE9: 1.2 | AF9: =AC9*AE9 -> 0 | AH9: 1.2 | AI9: =AG9*AH9 -> 0 | AJ9: =SUM('Fascia-Roof Hardware'!AB27*3.6/3.6) -> 0 | AK9: 3.6 | AL9: =IF(AJ9=" ",0,AK9*AJ9) -> 0 | AN9: =IF(AJ9=" "," ",ROUNDUP(AJ9/2,0)) -> 0 | AO9: 3.6 | AP9: =IF(AN9=" ",0,AO9*AN9) -> 0 | AS9: 3.6 | AT9: =AR9*AS9 -> 0 | AX9: 1.5 | AY9: =AX9*AW9 -> 0 | BA9: 6.3 | BB9: =BA9*AZ9 -> 0 | BD9: 75x38
B10: 0.9 | D10: =B10*C10 -> 0 | G10: 0 | I10: 2.7 | K10: 0 | M10: =I10*L10 -> 0 | Q10: =IF(J10="","",J10) ->  | R10: 0.9 | V10: 0.9 | Y10: 0.9 | AB10: 0 | AE10: 1.5 | AF10: 0 | AH10: 1.5 | AI10: 0 | AL10: =AK10*AJ10 -> 0 | AP10: =AO10*AN10 -> 0 | AT10: =AR10*AS10 -> 0 | AX10: 1.8 | AY10: 0 | BA10: 6.6 | BB10: =BA10*AZ10 -> 0 | BD10: ROOF AREA | BF10: x1.3= | BG10: ='Main Details'!D39*1.3 -> 31.2
B11: 1.2 | D11: =B11*C11 -> 0 | G11: 0 | I11: 3 | K11: 0 | M11: 0 | R11: 1.2 | S11: =P11*R11 -> 0 | V11: 1.2 | W11: =IF((C11+P11)>0,(C11+P11)," ") ->  | X11: =IF(W11=" "," ",Y11*W11) ->  | Y11: 1.2 | AB11: 0 | AE11: 1.8 | AF11: 0 | AH11: 1.8 | AI11: 0 | AL11: 0 | AP11: 0 | AT11: =AR11*AS11 -> 0 | AX11: 2.1 | AY11: 0 | BA11: 6.9 | BB11: 0 | BD11: ROOF PERIMETER | BF11: = | BG11: ='Main Details'!D44 -> 0
B12: 1.5 | D12: 0 | G12: 0 | I12: 3.3 | K12: 0 | M12: 0 | R12: 1.5 | S12: =P12*R12 -> 0 | V12: 1.5 | W12: =IF((C12+P12)>0,(C12+P12)," ") ->  | Y12: 1.5 | AB12: 0 | AE12: 2.1 | AF12: 0 | AH12: 2.1 | AI12: 0 | AJ12: =SUM(AL9:AL11) -> 0 | AK12: l/m | AN12: =SUM(AP5:AP11) -> 0 | AO12: l/m | AP12: l/m | AR12: =SUM(AT5:AT11) -> 0 | AS12: l/m | AX12: 2.4 | AY12: 0 | BA12: 7.2 | BB12: 0 | BD12: RIDGES,HIPS VALLEYS | BF12: x2= | BG12: =SUM(F28+J22+J40+L22+L40)*2 -> 0
B13: 1.8 | D13: 0 | G13: 0 | I13: 3.6 | K13: 0 | M13: 0 | R13: 1.8 | S13: =P13*R13 -> 0 | V13: 1.8 | W13: =IF((C13+P13)>0,(C13+P13)," ") ->  | Y13: 1.8 | AB13: 0 | AE13: 2.4 | AF13: 0 | AH13: 2.4 | AI13: 0 | AJ13: 300x45 LVL | AN13: 200x63 LVL | AR13: 240x63 LVL | AX13: 2.7 | AY13: 0 | BA13: 7.5 | BB13: 0 | BF13: /5.4= | BG13: =(BG10+BG11+BG12)/5.4 -> 5.777777778
B14: 2.1 | D14: 0 | G14: 0 | I14: 3.9 | K14: 0 | M14: 0 | R14: 2.1 | S14: =P14*R14 -> 0 | V14: 2.1 | W14: =IF((C14+P14)>0,(C14+P14)," ") ->  | Y14: 2.1 | AB14: 0 | AE14: 2.7 | AF14: 0 | AH14: 2.7 | AI14: 0 | AX14: 3 | AY14: 0 | BA14: 7.8 | BB14: 0 | BF14: Total= | BG14: =ROUNDUP(BG13,0) -> 6
B15: 2.4 | D15: 0 | G15: 0 | I15: 4.2 | K15: 0 | M15: 0 | R15: 2.4 | S15: =P15*R15 -> 0 | V15: 2.4 | W15: =IF((C15+P15+AW32)>0,(C15+P15+AW32)," ") ->  | Y15: 2.4 | AB15: 0 | AE15: 3 | AF15: 0 | AH15: 3 | AI15: 0 | AL15: =AJ15*AK15 -> 0 | AP15: =AN15*AO15 -> 0 | AT15: =AR15*AS15 -> 0 | AX15: 3.3 | AY15: 0 | BA15: 8.1 | BB15: 0 | BF15: order= | BG15: =IF(AND('Main Details'!C28="N",BG14>0),BG14+8,0) -> 14
B16: 2.7 | D16: 0 | G16: 0 | I16: 4.5 | K16: 0 | M16: 0 | P16: =SUM(S9:S15) -> 0 | R16: l/m | T16: =IF(L16+N16+J16>0,L16+N16+J16,"") ->  | U16: =IF(J16+L16+N16>0,(J16+L16+N16)*2.7,0) -> 0 | V16: 2.7 | W16: =IF((C16)>0,(C16)," ") ->  | Y16: 2.7 | AB16: 0 | AE16: 3.3 | AF16: 0 | AH16: 3.3 | AI16: 0 | AL16: 0 | AP16: 0 | AT16: =AS16*AR16 -> 0 | AX16: 3.6 | AY16: 0 | BA16: 8.4 | BB16: 0
B17: 3 | D17: 0 | G17: 0 | I17: 4.8 | K17: 0 | M17: 0 | P17: 170x35 | T17: =IF(L17+N17+J17>0,L17+N17+J17,"") ->  | U17: =IF(J17+L17+N17>0,(J17+L17+N17)*3,0) -> 0 | V17: 3 | W17: =IF((C17+AW33)>0,(C17+AW33)," ") ->  | Y17: 3 | AB17: 0 | AE17: 3.6 | AF17: 0 | AH17: 3.6 | AI17: 0 | AL17: 0 | AP17: 0 | AT17: 0 | AX17: 3.9 | AY17: 0 | BA17: 8.7 | BB17: =BA17*AZ17 -> 0
B18: 3.3 | D18: 0 | G18: 0 | I18: 5.1 | K18: 0 | M18: 0 | P18: Hangers | T18: =IF(L18+N18+J18>0,L18+N18+J18,"") ->  | U18: =IF(J18+L18+N18>0,(J18+L18+N18)*3.3,0) -> 0 | V18: 3.3 | W18: =IF((C18)>0,(C18)," ") ->  | Y18: 3.3 | AB18: 0 | AE18: 3.9 | AF18: 0 | AH18: 3.9 | AI18: 0 | AL18: 0 | AP18: 0 | AT18: 0 | AX18: 4.2 | AY18: 0 | BA18: 9 | BB18: 0
B19: 3.6 | D19: 0 | G19: 0 | I19: 5.4 | K19: 0 | M19: 0 | R19: 2.7 | S19: =P19*R19 -> 0 | T19: =IF(L19+N19+J19>0,L19+N19+J19,"") ->  | U19: =IF(J19+L19+N19>0,(J19+L19+N19)*3.6,0) -> 0 | V19: 3.6 | W19: =IF((C19+AW34)>0,(C19+AW34)," ") ->  | Y19: 3.6 | AA19: 3.6 | AB19: 0 | AE19: 4.2 | AF19: 0 | AH19: 4.2 | AI19: 0 | AL19: 0 | AP19: 0 | AT19: 0 | AX19: 4.5 | AY19: 0 | BA19: 9.3 | BB19: 0
B20: 3.9 | D20: 0 | G20: 0 | I20: 5.7 | K20: 0 | M20: 0 | R20: 3 | S20: =P20*R20 -> 0 | T20: =IF(L20+N20+J20>0,L20+N20+J20,"") ->  | U20: =IF(J20+L20+N20>0,(J20+L20+N20)*3.9,0) -> 0 | V20: 3.9 | W20: =IF((C20)>0,(C20)," ") ->  | Y20: 3.9 | AB20: 0 | AE20: 4.5 | AF20: 0 | AH20: 4.5 | AI20: 0 | AL20: =AK20*AJ20 -> 0 | AP20: =AO20*AN20 -> 0 | AT20: 0 | AX20: 4.8 | AY20: 0 | BB20: 0
B21: 4.2 | D21: 0 | G21: 0 | I21: 6 | K21: 0 | M21: 0 | R21: 3.3 | S21: =P21*R21 -> 0 | T21: =IF((L21+N21)>0,(L21+N21)," ") ->  | U21: =IF(T21=" "," ",I21*T21) ->  | V21: 4.2 | W21: =IF((C21+AW35)>0,(C21+AW35)," ") ->  | Y21: 4.2 | AA21: 4.2 | AB21: 0 | AE21: 4.8 | AF21: 0 | AH21: 4.8 | AI21: 0 | AL21: 0 | AP21: =AO21*AN21 -> 0 | AT21: 0 | AX21: 5.1 | AY21: 0 | BB21: 0
B22: 4.5 | D22: 0 | G22: 0 | I22: l/m | J22: =SUM(K9:K21) -> 0 | L22: =SUM(M9:M21) -> 0 | R22: 3.6 | S22: =P22*R22 -> 0 | V22: 4.5 | W22: =IF((C22)>0,(C22)," ") ->  | Y22: 4.5 | AB22: 0 | AE22: 5.1 | AF22: =AE22*AC22 -> 0 | AH22: 5.1 | AI22: 0 | AL22: 0 | AP22: =AO22*AN22 -> 0 | AT22: 0 | AX22: 5.4 | AY22: 0 | BB22: 0
B23: 4.8 | D23: 0 | G23: 0 | R23: 3.9 | S23: =P23*R23 -> 0 | V23: 4.8 | W23: =IF((C23+AW36)>0,(C23+AW36)," ") ->  | Y23: 4.8 | AA23: 4.8 | AB23: 0 | AE23: 5.4 | AF23: 0 | AH23: 5.4 | AI23: 0 | AL23: 0 | AP23: =AO23*AN23 -> 0 | AT23: 0 | AX23: 5.7 | AY23: 0 | BB23: 0
B24: 5.1 | D24: 0 | G24: 0 | P24: =SUM(S18:S23) -> 0 | R24: l/m | V24: 5.1 | W24: =IF((C24)>0,(C24)," ") ->  | Y24: 5.1 | AB24: 0 | AE24: 5.7 | AF24: 0 | AH24: 5.7 | AI24: 0 | AL24: 0 | AP24: =AO24*AN24 -> 0 | AT24: 0 | AX24: 6 | AY24: 0 | BB24: 0
B25: 5.4 | D25: 0 | G25: 0 | V25: 5.4 | W25: =IF((C25+AW37)>0,(C25+AW37)," ") ->  | Y25: 5.4 | AA25: 5.4 | AB25: 0 | AE25: 6 | AF25: 0 | AH25: 6 | AI25: 0 | AJ25: =SUM(AL15:AL24) -> 0 | AK25: l/m | AN25: =SUM(AP15:AP24) -> 0 | AO25: l/m | AR25: =SUM(AT15:AT24) -> 0 | AS25: l/m | AW25: =SUM(AY9:AY24) -> 0 | AX25: l/m | AZ25: =SUM(BB9:BB24) -> 0 | BA25: l/m
B26: 5.7 | D26: 0 | G26: 0 | V26: 5.7 | W26: =IF((C26)>0,(C26)," ") ->  | Y26: 5.7 | AB26: 0 | AE26: 6.3 | AF26: 0 | AH26: 6.3 | AI26: 0 | AJ26: 300x63 LVL | AN26: 360x63 LVL | AW26: E-Splays to LVL Beams
B27: 6 | D27: 0 | G27: 0 | V27: 6 | W27: =IF((C27+AW38)>0,(C27+AW38)," ") ->  | Y27: 6 | AA27: 6 | AB27: 0 | AE27: 6.6 | AF27: 0 | AH27: 6.6 | AI27: 0
B28: l/m | C28: =SUM(D9:D27) -> 0 | F28: =SUM(G9:G27) -> 0 | N28: =SUM(O9:O27) -> 0 | T28: =SUM(U9:U27) -> 0 | U28: 0 | V28: l/m | W28: =SUM(X9:X27) -> 0 | Y28: l/m | Z28: =SUM(AB9:AB27) -> 0 | AC28: =SUM(AF3:AF27) -> 0 | AE28: l/m | AG28: =SUM(AI3:AI27) -> 0 | AH28: l/m | AL28: =AJ28*AK28 -> 0 | AP28: =AN28*AO28 -> 0 | AT28: =AR28*AS28 -> 0 | AW28: =SUM(AM15:AM24,AQ15:AQ24,AV15:AV24,AM28:AM35,AQ28:AQ35,AV28:AV35) -> 0 | BA28: No
B29: 6.3 | D29: =B29*C29 -> 0 | P29: 240x45 | V29: 6.3 | W29: =IF((C29+AW39)>0,(C29+AW39)," ") ->  | Y29: 6.3 | AB29: 0 | AC29: 63x63 Struts | AG29: 63x63 Struts | AL29: =AJ29*AK29 -> 0 | AP29: =AN29*AO29 -> 0 | AT29: =AR29*AS29 -> 0
B30: 6.6 | D30: 0 | P30: Hangers | V30: 6.6 | W30: =IF((C30+AW40)>0,(C30+AW40)," ") ->  | Y30: 6.6 | AB30: 0 | AC30: 3.6m | AG30: 4.5m | AL30: =AJ30*AK30 -> 0 | AP30: =AN30*AO30 -> 0 | AT30: =AR30*AS30 -> 0 | AW30: 120x35 Collar Ties
B31: 6.9 | D31: 0 | I31: 6.6 | K31: 0 | M31: 0 | R31: 4.2 | S31: =P31*R31 -> 0 | V31: 6.9 | Y31: 6.9 | AB31: 0 | AC31: =CEILING((((F28+AC28)/1.5)*1.5)/3.6,1) -> 0 | AD31: say:- | AE31: say:- | AG31: =CEILING((((AG28)/1.5)*2.1)/4.5,1) -> 0 | AH31: say:- | AL31: 0 | AP31: =AO31*AN31 -> 0 | AT31: =AS31*AR31 -> 0
B32: 7.2 | D32: 0 | I32: 7.2 | K32: 0 | M32: 0 | R32: 4.5 | S32: =P32*R32 -> 0 | V32: 7.2 | Y32: 7.2 | AB32: 0 | AC32: =IF(AC31>0,AC31, "") ->  | AD32: 3.6 | AE32: 3.6 | AF32: =IF(AC31>0,AC32*AE32, "0.0") -> 0.0 | AG32: =IF(AG31>0,AG31+1, "") ->  | AH32: 4.5 | AI32: =IF(AG31>0,AG32*AH32, "0.0") -> 0.0 | AL32: 0 | AP32: =AO32*AN32 -> 0 | AT32: =AS32*AR32 -> 0 | AX32: 2.4 | AY32: =AW32*AX32 -> 0 | BB32: =AZ32*BA32 -> 0
B33: 7.5 | D33: 0 | I33: 7.8 | K33: 0 | M33: =I33*L33 -> 0 | R33: 4.8 | S33: =P33*R33 -> 0 | V33: 7.5 | Y33: 7.5 | AB33: 0 | AC33: =AF32 -> 0.0 | AD33: l/m | AE33: l/m | AG33: =AI32 -> 0.0 | AH33: l/m | AL33: 0 | AP33: =AO33*AN33 -> 0 | AT33: =AS33*AR33 -> 0 | AX33: 3 | AY33: 0 | BB33: =AZ33*BA33 -> 0
B34: 7.8 | D34: 0 | I34: 8.4 | K34: 0 | M34: =I34*L34 -> 0 | R34: 5.1 | S34: =P34*R34 -> 0 | V34: 7.8 | Y34: 7.8 | AB34: 0 | AC34: 280x30 LOSP Barge Board | AG34: 70x45 Roof Battens | AL34: 0 | AP34: =AO34*AN34 -> 0 | AT34: =AS34*AR34 -> 0 | AX34: 3.6 | AY34: 0 | BB34: =AZ34*BA34 -> 0
B35: 8.1 | D35: 0 | I35: 9 | K35: 0 | M35: 0 | R35: 5.4 | S35: =P35*R35 -> 0 | V35: 8.1 | Y35: 8.1 | AB35: 0 | AL35: 0 | AP35: =AO35*AN35 -> 0 | AT35: =AS35*AR35 -> 0 | AX35: 4.2 | AY35: 0 | BB35: =BA35*AZ35 -> 0
B36: 8.4 | D36: 0 | I36: 9.6 | K36: 0 | M36: 0 | P36: =SUM(S31:S35) -> 0 | R36: l/m | V36: 8.4 | Y36: 8.4 | AB36: 0 | AF36: =AC36*AE36 -> 0 | AG36: =BG15 -> 14 | AH36: 5.4 | AI36: =AG36*AH36 -> 75.6 | AJ36: =SUM(AL28:AL35) -> 0 | AK36: l/m | AN36: =SUM(AP28:AP35) -> 0 | AO36: l/m | AR36: =SUM(AT28:AT35) -> 0 | AS36: l/m | AX36: 4.8 | AY36: 0 | BB36: 0
B37: 8.7 | D37: 0 | I37: 10.2 | K37: 0 | M37: 0 | V37: 8.7 | Y37: 8.7 | AB37: 0 | AF37: =AC37*AE37 -> 0 | AI37: =AG37*AH37 -> 0 | AJ37: 90x35 Wall Plate | AL37: l/m | AN37: 150x25 H3 CCA | AP37: l/m | AR37: Perimeter | AT37: l/m | AX37: 5.4 | AY37: 0 | BB37: 0
B38: 9 | D38: 0 | I38: 10.8 | K38: 0 | M38: 0 | V38: 9 | Y38: 9 | AB38: 0 | AF38: =AC38*AE38 -> 0 | AI38: =AG38*AH38 -> 0 | AR38: Batten 70x35 | AX38: 6 | AY38: 0 | BB38: 0
B39: 9.3 | D39: 0 | I39: 11.4 | K39: 0 | M39: 0 | V39: 9.3 | Y39: 9.3 | AB39: 0 | AF39: =AC39*AE39 -> 0 | AI39: =AG39*AH39 -> 0 | AJ39: =(ROUNDUP((('Fascia-Roof Hardware'!#REF!+'Fascia-Roof Hardware'!#REF!+'Fascia-Roof Hardware'!#REF!+'Fascia-Roof Hardware'!#REF!+'Fascia-Roof Hardware'!#REF!+'Fascia-Roof Hardware'!#REF!)+'Main Details'!$D$42+'Main Details'!$D$43+'INT-EXT DOORS & int walls'!#REF!+'INT-EXT DOORS & int walls'!X40+'INT-EXT DOORS & int walls'!#REF!+'Concrete & Reo'!C20)/6,0)) ->  | AK39: say:- | AP39: =AN39*AO39 -> 0 | AS39: 6 | AT39: =AR39*AS39 -> 0 | AX39: 6.3 | AY39: 0 | BB39: 0
B40: l/m | C40: =SUM(D29:D39) -> 0 | I40: l/m | J40: =SUM(K31:K39) -> 0 | L40: =SUM(M31:M39) -> 0 | N40: =SUM(O29:O39) -> 0 | T40: =SUM(U29:U39) -> 0 | V40: l/m | W40: =SUM(X29:X39) -> 0 | Y40: l/m | AC40: =SUM(AF36:AF39) -> 0 | AE40: l/m | AG40: =SUM(AI36:AI39) -> 75.6 | AH40: l/m | AJ40: =SUM(AJ39,1)+10 ->  | AK40: 6 | AL40: =AJ40*AK40 ->  | AP40: =AN40*AO40 -> 0 | AT40: =AR40*AS40 -> 0 | AX40: 6.6 | AY40: 0 | BB40: 0
AJ41: =AL39+AL40 ->  | AK41: l/m | AN41: =AP39+AP40 -> 0 | AO41: l/m | AR41: =AT39+AT40 -> 0 | AS41: l/m | AW41: =SUM(AY32:AY40) -> 0 | AX41: l/m | AZ41: =SUM(BB32:BB40) -> 0 | BA41: l/m

Sheet Elec,Ceiling,Plaster,Paint
A1: ='Main Details'!B2 -> QUANTITY SHEET FOR EASY START HOMES | Y1: PG 10
A2: ='Main Details'!D6 -> 0
B4: SYNERGY CONNECTION NUMBER: | E4: =_xlfn.XLOOKUP(B4,Lists!AW:AW,Lists!AV:AV,0) -> 340-010-100100 | F4: 1
B5: ELECTRICAL | H5: SINGLE PHASE | L5: CEILINGS
H6: THREE PHASE | U6: 415-100-200400 | V6: ='Main Details'!D40 -> 250
B7: ADCO | F7: =IF(B7="IDEAL",("QUOTE"),("")) ->  | L7: DDT EXT PERIMETER: | M7: ='Main Details'!D42 -> 56 | N7: =(('Main Details'!D42-'Main Details'!D50)*'Main Details'!D45)+('Main Details'!D50*'Main Details'!D51) -> 12.88 | Q7: =M14+M16 -> 0 | R7: Flat e/o Int + Flat Ext | U7: 415-120-100100 | V7: =M28 -> 354.456
B8: Switch Plate Colour WHITE | L8: DDT INT PERIMETER: | M8: ='Main Details'!D43*0.09 -> 0 | N8: =('Main Details'!D43+'INT-EXT DOORS & int walls'!AC22)*0.09 -> 0 | P8: = | Q8: =M9-N9+M17 -> 283.721 | R8: Ceiling Area Int Flat | U8: 415-120-100150 | V8: =M12 -> 0
B9: SINGLE PHASE | F9: RUN-IN | H9: SINGLE PHASE | I9: THREE PHASE | L9: Slab Area: | M9: ='Main Details'!D36 -> 296.601 | N9: =N7+N8 -> 12.88 | Q9: =SUM(M12:M13) -> 0 | R9: DDT Raking area (Int Only) | U9: 415-500-200200 | V9: =O13 -> 54.84165
B10: UNDERGROUND MAINS RUN | D10: SINGLE PHASE 10mm | E10: =_xlfn.XLOOKUP(1, (Lists!$AW:$AW=B10)* (Lists!$AX:$AX=D10), (Lists!$AV:$AV),0) -> 340-050-100200 | G10: lm | H10: SINGLE PHASE 10mm | I10: THREE PHASE 6mm | L10: Total Raking Int & Ext | M10: =SUM(M12:M13,M15) -> 0 | N10: m2 | P10: TOTAL | Q10: =((Q8+Q7))-Q9 -> 283.721 | R10: m2 Flat Ceiling (Int & Ext) | U10: 415-700-100400 | V10: =O15 ->  | W10: NO
B11: FINAL METER CONNECTION | D11: =B9 -> SINGLE PHASE | E11: =_xlfn.XLOOKUP(1, (Lists!$AW:$AW=B11)* (Lists!$AX:$AX=D11), (Lists!$AV:$AV),0) -> 340-100-100100 | F11: =IF($B$7="IDEAL",0,1) -> 1 | H11: SINGLE PHASE 16mm | I11: THREE PHASE 10mm | L11: Total e/o 13mm Gypr | M11: =SUM(M15:M17) -> 0 | N11: m2 | P11: l/m | W11: YES
B12: MAINS SWITCHBOARD | D12: =B9 -> SINGLE PHASE | E12: =_xlfn.XLOOKUP(1, (Lists!$AW:$AW=B12)* (Lists!$AX:$AX=D12), (Lists!$AV:$AV),0) -> 340-100-100200 | F12: =IF($B$7="IDEAL",0,1) -> 1 | H12: SINGLE PHASE 2.5mm | I12: THREE PHASE 16mm | L12: Raking Ceilings INT | N12: m2 | P12: m2 | Q12: Insulation to RAKING ceilings / Bulkheads
B13: =IF(B7="IDEAL",0,"24 POLES TO METER BOX") -> 24 POLES TO METER BOX | D13: =_xlfn.XLOOKUP(B13,Lists!AW:AW,Lists!AX:AX,"") -> E/O 16 POLE | E13: =_xlfn.XLOOKUP(1, (Lists!$AW:$AW=B13)* (Lists!$AX:$AX=D13), (Lists!$AV:$AV),0) -> 340-010-100500 | L13: Raking Ceilings INT | N13: m2 | O13: =IF('Main Details'!D32="brick veneer",U15,"") -> 54.84165 | P13: m2 | Q13: R2.0 Wall Batts
B14: WESTERN POWER PIT CONNECTION | D14: =_xlfn.XLOOKUP(B14,Lists!AW:AW,Lists!AX:AX,"") -> FOR METER RELOCATION | E14: 340-010-100600 | L14: E/O Flat Ceilings INT | N14: m2 | P14: m2 | Q14: Additional Wall Height -E/O for Batts | T14: m2
G15: No | L15: Raking (13mm) EXT | N15: m2 | O15: =IF(T15="YES",('Main Details'!D42*V16)-'Lintels.windows '!K43,"") ->  | P15: m2 | Q15: R2.5 Wall Batts to perimeter | T15: NO | U15: =U16-U17 -> 54.84165
B16: LIGHTING BATTEN HOLDER CEILING | D16: =_xlfn.XLOOKUP(B16,Lists!AW:AW,Lists!AX:AX,"") -> CLIPSAL 530-WE | E16: =_xlfn.XLOOKUP(1, (Lists!$AW:$AW=B16)* (Lists!$AX:$AX=D16), (Lists!$AV:$AV),0) -> 340-200-200100 | G16: No | L16: Flat (13mm) EXT | N16: m2 | P16: m2 | U16: =('Fascia-Roof Hardware'!S7*V16)-'INT-EXT DOORS & int walls'!V35-'Lintels.windows '!K43+O14-V17 -> 54.84165 | V16: ='Main Details'!D53 -> 2.4 | X16: INTERNAL WALL PAINTING
B17: LIGHTING BATTEN HOLDER W/PROOF | D17: =_xlfn.XLOOKUP(B17,Lists!AW:AW,Lists!AX:AX,"") -> CLIPSAL 530-WE + 530AWP | E17: =_xlfn.XLOOKUP(1, (Lists!$AW:$AW=B17)* (Lists!$AX:$AX=D17), (Lists!$AV:$AV),0) -> 340-200-200300 | G17: No | L17: Flat (10mm) EXT | N17: m2 | U17: =IF(T15="YES",('Main Details'!D42*V16)-'Lintels.windows '!K43,0) -> 0 | V17: ='Main Details'!D55*'Main Details'!D56 -> 0 | X17: DRYLINE WALL PREP COAT ONLY
B18: LIGHTING LED DOWNLIGHT 7W | D18: =_xlfn.XLOOKUP(B18,Lists!AW:AW,Lists!AX:AX,"") -> CLITPDL1C3- WHITE | E18: =_xlfn.XLOOKUP(1, (Lists!$AW:$AW=B18)* (Lists!$AX:$AX=D18), (Lists!$AV:$AV),0) -> 340-210-200057 | G18: No | L18: Duralux Plus EXT | N18: m2 | U18: Required | X18: DRYLINE WALL 3 COATS
B19: LIGHT SHADES AND GLOBES | D19: =_xlfn.XLOOKUP(B19,Lists!AW:AW,Lists!AX:AX,"") ->  | E19: =_xlfn.XLOOKUP(1, (Lists!$AW:$AW=B19)* (Lists!$AX:$AX=D19), (Lists!$AV:$AV),0) -> 340-240-100100 | G19: No | L19: Insulation to FLAT Ceilings | O19: CEILING/WALL PAINTING EXTRAS | U19: No | X19: PLASTERED WALLS 3 COATS
B20: LIGHTING BATTEN DIFFUSED LED | D20: =_xlfn.XLOOKUP(B20,Lists!AW:AW,Lists!AX:AX,"") -> CLIPSAL CLITPDB2 | E20: =_xlfn.XLOOKUP(1, (Lists!$AW:$AW=B20)* (Lists!$AX:$AX=D20), (Lists!$AV:$AV),0) -> 340-240-150150 | G20: No | L20: Garage Area | M20: ='Main Details'!D37 -> 57.855 | N20: m2 | O20: ='Main Details'!D40-'Main Details'!D36-'Main Details'!D39-M17 -> -70.601 | P20: l/m | Q20: FIBRE CEMENT LINING
B21: BEACON SENTINEL 2 UP/DOWN | D21: =_xlfn.XLOOKUP(B21,Lists!AW:AW,Lists!AX:AX,"") -> LIGHT WHITE 23952 | E21: =_xlfn.XLOOKUP(1, (Lists!$AW:$AW=B21)* (Lists!$AX:$AX=D21), (Lists!$AV:$AV),0) -> 340-220-200060 | G21: No | L21: P/board Porch | N21: m2 | Q21: E/O FEATURE WALLS | T21: each | X21: FLAT CEILINGS 2 COATS
B22: PLUG BASE | D22: =_xlfn.XLOOKUP(B22,Lists!AW:AW,Lists!AX:AX,"") -> CLIPSAL 413-WE | E22: =_xlfn.XLOOKUP(1, (Lists!$AW:$AW=B22)* (Lists!$AX:$AX=D22), (Lists!$AV:$AV),0) -> 340-211-100100 | G22: No | L22: Durasheet Porch | N22: m2 | Q22: E/O HIGH CEILINGS ABOVE 3M | T22: m2 | U22: Roof - Chose Type | X22: FLAT CEILINGS 3 COATS
B23: MOTION SENSOR PIR | D23: =_xlfn.XLOOKUP(B23,Lists!AW:AW,Lists!AX:AX,"") -> CLIPSAL 750WPR5 | E23: =_xlfn.XLOOKUP(1, (Lists!$AW:$AW=B23)* (Lists!$AX:$AX=D23), (Lists!$AV:$AV),0) -> 340-225-200710 | G23: No | L23: P/board Alfresco | N23: m2 | Q23: HEBEL / REDIFIX MOULD | T23: LM | U23: Steel | X23: DURALUX PLUS CEILING PAINTING
L24: Duralux Plus Ceiling | M24: 0 | N24: m2 | U24: Timber | X24: RAKING CEILINGS 2 COATS
B25: GPO SINGLE 3015VW 10AMP | D25: =_xlfn.XLOOKUP(B25,Lists!AW:AW,Lists!AX:AX,"") -> ICONIC VIVID WHITE | E25: =_xlfn.XLOOKUP(1, (Lists!$AW:$AW=B25)* (Lists!$AX:$AX=D25), (Lists!$AV:$AV),0) -> 340-300-200100 | G25: No | L25: House Nett | M25: =M26-M23-M21-M20-M24 -> 296.601 | N25: m2 | X25: RAKING CEILINGS 3 COATS
B26: GPO DOUBLE 3025VW 10AMP | D26: =_xlfn.XLOOKUP(B26,Lists!AW:AW,Lists!AX:AX,"") -> ICONIC VIVID WHITE | E26: =_xlfn.XLOOKUP(1, (Lists!$AW:$AW=B26)* (Lists!$AX:$AX=D26), (Lists!$AV:$AV),0) -> 340-300-200200 | G26: No | L26: Gross Insulation Area | M26: =(('Main Details'!$D$36+'Main Details'!$D$37)+M14+M15+M16+M18) -> 354.456 | N26: m2 | X26: E/O HIGH CEILINGS ABOVE 3M
B27: GPO QUAD 3015/4VW 10AMP | D27: =_xlfn.XLOOKUP(B27,Lists!AW:AW,Lists!AX:AX,"") -> ICONIC VIVID WHITE | E27: =_xlfn.XLOOKUP(1, (Lists!$AW:$AW=B27)* (Lists!$AX:$AX=D27), (Lists!$AV:$AV),0) -> 340-300-200500 | G27: No | L27: Ddt Garage if Separate | N27: m2
B28: WEATHERPROOF GPO SINGLE 10AMP | D28: =_xlfn.XLOOKUP(B28,Lists!AW:AW,Lists!AX:AX,"") -> CLIPSAL ICONIC | E28: =_xlfn.XLOOKUP(1, (Lists!$AW:$AW=B28)* (Lists!$AX:$AX=D28), (Lists!$AV:$AV),0) -> 340-310-200150 | G28: No | L28: Total Nett Insulation | M28: =SUM(M26-M27)+M22-O12 -> 354.456 | N28: m2 | U28: =IF(M28<90,1,0) -> 0 | V28: 415-100-100150
B29: WEATHERPROOF GPO DOUBLE 10AMP | D29: =_xlfn.XLOOKUP(B29,Lists!AW:AW,Lists!AX:AX,"") -> CLIPSAL ICONIC | E29: =_xlfn.XLOOKUP(1, (Lists!$AW:$AW=B29)* (Lists!$AX:$AX=D29), (Lists!$AV:$AV),0) -> 340-310-200250 | G29: No | V29: UP TO 15 COURSES
B30: GPO DOUBLE WITH DUAL USB | D30: =_xlfn.XLOOKUP(B30,Lists!AW:AW,Lists!AX:AX,"") -> 3025USB2-VW ICONIC VIVID WHITE | E30: =_xlfn.XLOOKUP(1, (Lists!$AW:$AW=B30)* (Lists!$AX:$AX=D30), (Lists!$AV:$AV),0) -> 340-400-100060 | G30: No | U30: ='Main Details'!D32 -> Brick veneer
M31: PLASTERING
B32: TWO WAY SWITCH | D32: =_xlfn.XLOOKUP(B32,Lists!AW:AW,Lists!AX:AX,"") -> ICONIC VIVID WHITE | E32: =_xlfn.XLOOKUP(1, (Lists!$AW:$AW=B32)* (Lists!$AX:$AX=D32), (Lists!$AV:$AV),0) -> 340-205-100150 | G32: No
B33: THREE WAY SWITCH CLI40MI | D33: =_xlfn.XLOOKUP(B33,Lists!AW:AW,Lists!AX:AX,"") -> ICONIC VIVID WHITE | E33: =_xlfn.XLOOKUP(1, (Lists!$AW:$AW=B33)* (Lists!$AX:$AX=D33), (Lists!$AV:$AV),0) -> 340-205-100100 | G33: No
B34: DIMMER ROTARY LED MODULE | D34: =_xlfn.XLOOKUP(B34,Lists!AW:AW,Lists!AX:AX,"") -> ICONIC 42ELEDM2-VW | E34: =_xlfn.XLOOKUP(1, (Lists!$AW:$AW=B34)* (Lists!$AX:$AX=D34), (Lists!$AV:$AV),0) -> 340-205-100200 | G34: No | U34: =('Main Details'!D42+'Main Details'!D43*2)*'Main Details'!D53-('Summary Sheet'!C55-'Summary Sheet'!C56-'Summary Sheet'!C57) -> 136.48332
M35: FLOAT AND SET | P35: = | Q35: =V36 -> 0 | R35: m2
B36: EXHAUST FAN CEF40N-WE | D36: STD EXHAUST | E36: =_xlfn.XLOOKUP(B36,Lists!AW:AW,Lists!AV:AV,0) -> 340-600-200510 | G36: No | M36: E/O Std Height Plaster | P36: = | R36: m2 | U36: GROUND FLOOR UP TO 31C | V36: =IF(U30="DOUBLE BRICK",U34,0) -> 0
B37: EXHAUST FAN 6600ADS-WE | D37: 2LT/FAN/HEATER | E37: =_xlfn.XLOOKUP(B37,Lists!AW:AW,Lists!AV:AV,0) -> 340-610-200055 | G37: No | M37: TOTAL INTERNAL PLASTER | Q37: =Q35+Q36 -> 0 | R37: m2 | U37: GROUND FLOOR OVER 31C
B38: EXHAUST FAN 6500ADS-WE | D38: 4LT/FAN/HEATER | E38: =_xlfn.XLOOKUP(B38,Lists!AW:AW,Lists!AV:AV,0) -> 340-610-200065 | G38: No
B39: =Lists!AW1614 -> RUN ON TIMER TO EXHAUST FAN 1A | E39: =_xlfn.XLOOKUP(B39,Lists!AW:AW,Lists!AV:AV,0) -> 340-610-200080 | G39: No | M39: DRYLINE WALL 3 COATS | P39: = | Q39: =U34-Tiling!A36+Q40 -> 136.48332 | R39: m2
M40: E/O Std Height | Q40: =O14 -> 0 | R40: m2
B41: CEILING FAN P3HS1200AL-WE | D41: =_xlfn.XLOOKUP(B41,Lists!AW:AW,Lists!AX:AX,"") -> WHITE ELECTRIC | E41: =_xlfn.XLOOKUP(B41,Lists!AW:AW,Lists!AV:AV,0) -> 340-620-100300 | G41: No | U41: MINIMUM CHARGE UP TO 55m2 | V41: =IF(Q42<55, 1,0) -> 0
B42: WIRING ONLY FUTURE SWEEP FAN | D42: =_xlfn.XLOOKUP(B42,Lists!AW:AW,Lists!AX:AX,"") -> WALL BOX TO LOCATION | E42: =_xlfn.XLOOKUP(B42,Lists!AW:AW,Lists!AV:AV,0) -> 340-620-100200 | G42: No | M42: SAND FINISH RENDER | P42: = | Q42: ='Summary Sheet'!C49+Q44 -> 68.754 | R42: m2 | U42: GROUND FLOOR OVER 55m2 | V42: =IF(Q42>55,Q42,0) -> 68.754
M43: =IF(M42="ACRYLIC BASE COAT",U50,U49) -> RENDER E/O DETACHED PIERS | Q43: ='Brick Final Sheet '!N64 -> 0 | R43: ea
B44: SMOKE ALARM PHOTOELECTRIC | D44: =_xlfn.XLOOKUP(B44,Lists!AW:AW,Lists!AX:AX,"") -> CLIPSAL 755PSMA4 | E44: =_xlfn.XLOOKUP(B44,Lists!AW:AW,Lists!AV:AV,0) -> 340-250-200100 | G44: No | M44: RENDER ADJUSTMENT
B45: =IF(B7="WESCO","SMOKE ALARM INTERCONNECTION",0) -> 0 | D45: =_xlfn.XLOOKUP(B45,Lists!AW:AW,Lists!AX:AX,"") ->  | E45: =_xlfn.XLOOKUP(B45,Lists!AW:AW,Lists!AV:AV,0) -> 0 | G45: No | P45: = | U45: Acyrlic V Sand Finish Calculation for upload
M46: External Band / Corbel | P46: = | R46: L/m | U46: ACRYLIC BASE COAT | V46: =IF(M42="ACRYLIC BASE COAT",Z46,"") ->  | X46: =IF(V46=1,U46,"") ->  | Z46: 1
B47: ELECTRIC OVEN CONNECTION 15AMP | D47: =_xlfn.XLOOKUP(B47,Lists!AW:AW,Lists!AX:AX,"") ->  | E47: =_xlfn.XLOOKUP(B47,Lists!AW:AW,Lists!AV:AV,0) -> 340-100-300200 | G47: No | M47: BEAD ALLOWANCE | P47: = | Q47: =Q35 -> 0 | R47: m2 | U47: SAND FINISH RENDER | V47: =IF(M42="SAND FINISH RENDER",Z46,"") -> 1 | X47: =IF(V47=1,U47,"") -> SAND FINISH RENDER
B48: INDUCTION HOTPLATE CONNECTION | D48: =_xlfn.XLOOKUP(B48,Lists!AW:AW,Lists!AX:AX,"") ->  | E48: =_xlfn.XLOOKUP(B48,Lists!AW:AW,Lists!AV:AV,0) -> 340-100-300500 | G48: No | M48: PLASTIC BEADS | P48: = | Q48: ='Summary Sheet'!C54 -> 21 | R48: No | U48: Acrylic v Sand detached piers Calculation for upload
B49: HEAT PUMP CONNECTION | D49: =_xlfn.XLOOKUP(B49,Lists!AW:AW,Lists!AX:AX,"") -> RHEEM MODELS | E49: =_xlfn.XLOOKUP(B49,Lists!AW:AW,Lists!AV:AV,0) -> 340-650-300600 | G49: No | M49: Int Plaster Sand | P49: = | Q49: =SUM(Q35)*0.02 -> 0 | R49: m3 | U49: RENDER E/O DETACHED PIERS | V49: =IF($M$43="RENDER E/O DETACHED PIERS",$Z$49,"") -> 0 | X49: =IF(V49=1,U49,U50) -> ACRYLIC E/O DETACHED PIER | Z49: =Q43 -> 0
U50: ACRYLIC E/O DETACHED PIER | V50: =IF($M$43="ACRYLIC E/O DETACHED PIER",$Z$49,"") -> 
B51: 20mm CONDUIT | D51: CONDUIT ONLY | E51: =_xlfn.XLOOKUP(B51,Lists!AW:AW,Lists!AV:AV,0) -> 340-500-100900 | G51: No | M51: Ext Plaster Sand | P51: = | Q51: =ROUNDUP(Q42*0.02,0) -> 2 | R51: m3
B52: 25mm CONDUIT | D52: CONDUIT ONLY | E52: =_xlfn.XLOOKUP(B52,Lists!AW:AW,Lists!AV:AV,0) -> 340-500-101000 | G52: No | U52: CEMENT RENDER | V52: =IF(V47=1,Q42,0) -> 68.754
B53: 25mm CONDUIT CLI3040VW | D53: =_xlfn.XLOOKUP(B53,Lists!AW:AW,Lists!AX:AX,"") -> ICONIC VIVID WHITE | E53: =_xlfn.XLOOKUP(B53,Lists!AW:AW,Lists!AV:AV,0) -> 340-500-100710 | G53: No
B55: TELEPHONE LINE CONDUIT P20 | D55: SHARED TRENCH UP TO 10m | E55: =_xlfn.XLOOKUP(1, (Lists!$AW:$AW=B55)* (Lists!$AX:$AX=D55), (Lists!$AV:$AV),0) -> 340-500-100200 | G55: Ea | M55: ACRYLIC TEXTURE EXTRAS | U55: MINIMUM CHARGE UP TO 25m2 | V55: =IF(Q58>0, 1,0) -> 0
B56: TELEPHONE LINE CONDUIT P20 | D56: SHARED TRENCH OVER 10m | E56: =_xlfn.XLOOKUP(1, (Lists!$AW:$AW=B56)* (Lists!$AX:$AX=D56), (Lists!$AV:$AV),0) -> 340-500-100300 | G56: L/m | U56: GROUND FLOOR OVER 25m2 | V56: =IF($Q$58>25,$Q$58-25,0) -> 0
B57: TELEPHONE LINE CONDUIT P20 | D57: SEPARATE TRENCH | E57: =_xlfn.XLOOKUP(1, (Lists!$AW:$AW=B57)* (Lists!$AX:$AX=D57), (Lists!$AV:$AV),0) -> 340-500-100400 | G57: L/m
H58: SUBMAINS IN HOUSE SINGLE PHASE | M58: ACRYLIC TOP COAT | R58: m2
B59: =IF(B9="SINGLE PHASE","SUBMAINS IN HOUSE SINGLE PHASE","SUBMAINS IN HOUSE THREE PHASE") -> SUBMAINS IN HOUSE SINGLE PHASE | D59: =_xlfn.XLOOKUP(B59,Lists!AW:AW,Lists!AX:AX,"") -> WITHIN 10m OF METERBOX | E59: =_xlfn.XLOOKUP(1, (Lists!$AW:$AW=B59)* (Lists!$AX:$AX=D59), (Lists!$AV:$AV),0) -> 340-100-200200 | G59: Ea | H59: SUBMAINS IN HOUSE THREE PHASE | M59: E/O FOR ATTACHED PIERS | R59: ea
B60: SUBMAINS REMOTE METER | D60: =_xlfn.XLOOKUP(B60,Lists!AW:AW,Lists!AX:AX,"") ->  | E60: =_xlfn.XLOOKUP(1, (Lists!$AW:$AW=B60)* (Lists!$AX:$AX=D60), (Lists!$AV:$AV),0) -> 340-100-200300 | G60: Ea
B62: =IF(B7="WESCO",Lists!AW1519,"") ->  | D62: =_xlfn.XLOOKUP(B62,Lists!AW:AW,Lists!AX:AX,"") ->  | E62: =_xlfn.XLOOKUP(1, (Lists!$AW:$AW=B62)* (Lists!$AX:$AX=D62), (Lists!$AV:$AV),0) -> 0 | G62: No
B63: =IF(B7="WESCO",Lists!AW1520,"") ->  | D63: =_xlfn.XLOOKUP(B63,Lists!AW:AW,Lists!AX:AX,"") ->  | E63: =_xlfn.XLOOKUP(1, (Lists!$AW:$AW=B63)* (Lists!$AX:$AX=D63), (Lists!$AV:$AV),0) -> 0 | G63: No
B64: =IF(B7="WESCO",Lists!AW1521,"") ->  | D64: =_xlfn.XLOOKUP(B64,Lists!AW:AW,Lists!AX:AX,"") ->  | E64: =_xlfn.XLOOKUP(1, (Lists!$AW:$AW=B64)* (Lists!$AX:$AX=D64), (Lists!$AV:$AV),0) -> 0 | G64: No
B66: Intelligent Homes Items
B67: 3 POINT PACK | D67: =_xlfn.XLOOKUP(B67,Lists!AW:AW,Lists!AX:AX,"") -> SINGLE STOREY | E67: =_xlfn.XLOOKUP(B67,Lists!AW:AW,Lists!AV:AV,0) -> 342-100-100100 | G67: No
B68: TV ANTENNA | D68: =_xlfn.XLOOKUP(E68,Lists!AV:AV,Lists!AX:AX,"") -> SINGLE STOREY | E68: 342-400-100300 | G68: No
B69: =_xlfn.XLOOKUP(E69,Lists!AV:AV,Lists!AW:AW,0) -> TV SPLITTER | D69: =_xlfn.XLOOKUP(E69,Lists!AV:AV,Lists!AX:AX,"") -> FOR UP TO 3 TV POINTS | E69: 342-300-100500 | G69: No
B70: =_xlfn.XLOOKUP(E70,Lists!AV:AV,Lists!AW:AW,0) -> TV BOOSTER | D70: =_xlfn.XLOOKUP(E70,Lists!AV:AV,Lists!AX:AX,"") -> FOR 4 x C1 POINTS | E70: 342-300-100600 | G70: No
B71: =_xlfn.XLOOKUP(E71,Lists!AV:AV,Lists!AW:AW,0) -> D1 DATA POINT | D71: =_xlfn.XLOOKUP(E71,Lists!AV:AV,Lists!AX:AX,"") ->  | E71: 342-300-100100 | G71: No
B72: C1 TV POINT | D72: =_xlfn.XLOOKUP(E72,Lists!AV:AV,Lists!AX:AX,"") ->  | E72: 342-300-100200 | G72: No
B82: ELECTRICIAN
B83: ADCO
B84: WESCO
B85: IDEAL

Sheet FIxing Carpentry & Moulding
B2: ='Main Details'!B2 -> QUANTITY SHEET FOR EASY START HOMES | AR2: PG 11
B3: ='Main Details'!D6 -> 0
B4: INTERNAL MOULDINGS | AC4: SHELVING
AW5: VINYL ROBE | AX5: MIRROR/VINYL ROBE | AY5: MIRRORED ROBE | AZ5: COLOURBACK ROBE | BA5: BRIGHTBACK ROBE | BG5: ROD COUNT | BW5: ENTRANCE SET
B6: ROOM: | L6: 175x30 | O6: 19x19 | R6: 105/80x19 | U6: 30mm Design | X6: HARDWARE ITEMS | AC6: ROOM | AD6: STD | AE6: 450mm | AF6: 450mm 16mm | AG6: 600mm 16mm | AI6: 300mm 16mm | AK6: 67x18mm | AN6: 40x18mm | AQ6: 19mm Chrome | AW6: 2 DOOR 1200x2400mm | AX6: 2 DOOR 1200x2400mm | AY6: 2 DOOR 1200x2400mm | AZ6: 2 DOOR - 1200mm W x 2400mm H | BA6: 2 DOOR 1800x2400mm | BG6: 0.9 | BH6: 1.2 | BI6: 1.8 | BJ6: 2.4 | BK6: 2.7 | BL6: 3.6 | BO6: ENTRANCE SET | BR6: COLOUR | BS6: ='INT-EXT DOORS & int walls'!C42-BS9 -> 0 | BW6: BELA DOUBLE CYLINDER | BX6: BELA - SQUARE ROSE | CA6: COLOUR
D7: SKIRTING | F7: NOSING | I7: SCOTIA | L7: CAPPING | O7: SQ BEAD | R7: G/batten | U7: Pine Scotia | AD7: Melamine | AE7: Melamine | AF7: Melamine | AG7: Melamine | AI7: Melamine | AK7: MDF | AN7: MDF Batten | AQ7: Rail | AW7: 2 DOOR 1500x2400mm | AX7: 2 DOOR 1500x2400mm | AY7: 2 DOOR 1500x2400mm | AZ7: 2 DOOR - 1500mm W x 2400mm H | BA7: 2 DOOR 2100x2400mm | BG7: ROD-STEEL 19mm 900 LONG CHROME | BH7: ROD-STEEL 19mm 1200LONG CHROME | BI7: ROD-STEEL 19mm 1800LONG CHROME | BJ7: ROD-STEEL 19mm 2400LONG CHROME | BK7: ROD-STEEL 19mm 2700LONG CHROME | BL7: ROD-STEEL 19mm 3600LONG CHROME | BO7: Deadlock | BS7: ='INT-EXT DOORS & int walls'!C42-BS9 -> 0 | BW7: ADEL - DOUBLE CYLINDER | CA7: ENTRY SET - SATIN CHROME
C8: =D8*E8 -> 0 | E8: 0.9 | F8: =IF(G8=" "," ",1) ->  | G8: =IF(#REF!="Y",((INT(((#REF!*100)+30)/30)*30)/100)," ") ->  | H8: =IF(G8=" "," ",F8*G8) ->  | I8: =IF(F8>0,F8," ") ->  | J8: =IF(G8>0,G8," ") ->  | K8: =IF(AND(G8=" ")," ",I8*J8) ->  | M8: 0.9 | N8: =L8*M8 -> 0 | O8: =IF(L8>0,L8*2," ") ->  | P8: =IF(M8>0,M8," ") -> 0.9 | Q8: =IF(AND(L8>0,M8>0),O8*P8," ") ->  | T8: =R8*S8 -> 0 | U8: =IF(AND(B8>0,ROUNDUP(B8/V8,0)-B8/V8<=1),ROUNDUP(B8/V8,0)+1,ROUNDUP(B8/V8,0)) -> 0 | V8: 5.4 | W8: =U8*V8 -> 0 | X8: Trico Roller Catch | AA8: No | AC8: PANTRY | AD8: 3600 | AM8: =AK8*AL8 -> 0 | AP8: =AN8*AO8 -> 0 | AS8: =AQ8*AR8 -> 0 | AW8: 2 DOOR 1800x2400mm | AX8: 2 DOOR 1800x2400mm | AY8: 2 DOOR 1800x2400mm | AZ8: 2 DOOR - 1800mm W x 2400mm H | BA8: 2 DOOR 2400x2400mm | BG8: =IF($AR$8,AND($AR$8>0,$AR$8<1),"0") -> 0 | BH8: =IF(AR8,AND(AR8>1,AR8<1.3),"0") -> 0 | BI8: =IF(AR8,AND(AR8>1.2,AR8<1.9),"0") -> 0 | BJ8: =IF(AR8,AND(AR8>1.8,AR8<2.5),"0") -> 0 | BK8: =IF(AR8,AND(AR8>2.4,AR8<2.8),"0") -> 0 | BL8: =IF(AR8,AND(AR8>2.7,AR8<3.7),"0") -> 0 | CA8: ENTRY SET - BRIGHT CHROME
C9: =D9*E9 -> 0 | E9: 1.2 | F9: =IF(G9=" "," ",1) ->  | G9: =IF(#REF!="Y",((INT(((#REF!*100)+30)/30)*30)/100)," ") ->  | I9: =IF(F9>0,F9," ") ->  | J9: =IF(G9>0,G9," ") ->  | M9: 1.2 | N9: =L9*M9 -> 0 | O9: =IF(L9>0,L9*2," ") ->  | P9: 1.2 | Q9: =IF(AND(L9>0,M9>0),O9*P9," ") ->  | T9: 0 | W9: =U9*V9 -> 0 | AD9: 2400 | AM9: =AK9*AL9 -> 0 | AP9: =AN9*AO9 -> 0 | AS9: 0 | AW9: 2 DOOR 2100x2400mm | AX9: 2 DOOR 2100x2400mm | AY9: 2 DOOR 2100x2400mm | AZ9: 2 DOOR - 2100mm W x 2400mm H | BA9: 3 DOOR 3000x2400mm | BG9: =IF(AR9,AND(AR9>0,AR9<1),"0") -> 0 | BH9: =IF(AR9,AND(AR9>1,AR9<1.3),"0") -> 0 | BI9: =IF(AR9,AND(AR9>1.2,AR9<1.9),"0") -> 0 | BJ9: =IF(AR9,AND(AR9>1.8,AR9<2.5),"0") -> 0 | BK9: =IF(AR9,AND(AR9>2.4,AR9<2.8),"0") -> 0 | BL9: =IF(AR9,AND(AR9>2.7,AR9<3.7),"0") -> 0 | BO9: Trilock | CA9: ENTRY SET - MATT BLACK
C10: =D10*E10 -> 0 | E10: 1.5 | G10: =IF(#REF!="Y",((INT(((#REF!*100)+30)/30)*30)/100)," ") ->  | I10: =IF(F10>0,F10," ") ->  | J10: =IF(G10>0,G10," ") ->  | M10: 1.5 | N10: =L10*L10 -> 0 | O10: =IF(L10>0,L10*2," ") ->  | P10: 1.5 | Q10: =IF(AND(L10>0,M10>0),O10*P10," ") ->  | T10: =R10*S10 -> 0 | W10: =U10*V10 -> 0 | X10: PELMETS | AA10: No | AC10: nett l/m shelving = | AD10: 1800 | AM10: =AK10*AL10 -> 0 | AP10: =AN10*AO10 -> 0 | AS10: 0 | AW10: 2 DOOR 2400x2400mm | AX10: 2 DOOR 2400x2400mm | AY10: 2 DOOR 2400x2400mm | AZ10: 3 DOOR - 2700mm W x 2400mm H | BA10: 3 DOOR 3600x2400mm | BG10: =IF(AR10,AND(AR10>0,AR10<1),"0") -> 0 | BH10: 0 | BI10: 0 | BJ10: 0 | BK10: 0 | BL10: 0
C11: =D11*E11 -> 0 | E11: 1.8 | G11: =IF(#REF!="Y",((INT(((#REF!*100)+30)/30)*30)/100)," ") ->  | M11: 1.8 | N11: =L11*M11 -> 0 | P11: 1.8 | Q11: =IF(AND(L11>0,M11>0),O11*P11," ") ->  | T11: 0 | W11: 0 | X11: Floor Guide | AA11: No | AM11: 0 | AP11: 0 | AS11: 0 | AW11: 3 DOOR 2400x2400mm | AX11: 2 DOOR 1200x2700mm | AY11: 2 DOOR- 2400mm W x 2700mm H | AZ11: 3 DOOR - 3600mm W x 2400mm H | BA11: 4 DOOR 4500x2400mm | BG11: 0 | BH11: 0 | BI11: 0 | BJ11: 0 | BK11: 0 | BL11: 0 | BO11: Passge Set | BS11: ='INT-EXT DOORS & int walls'!C15+'INT-EXT DOORS & int walls'!C35 -> 0
C12: 0 | E12: 2.1 | G12: =IF(#REF!="Y",((INT(((#REF!*100)+30)/30)*30)/100)," ") ->  | M12: 2.1 | N12: 0 | P12: 2.1 | T12: 0 | W12: 0 | X12: Track | AA12: No | AC12: LINEN | AD12: 3600 | AM12: 0 | AP12: 0 | AS12: 0 | AW12: 3 DOOR 2700x2400mm | AX12: 2 DOOR 1500x2700mm | AY12: 3 DOOR 2400x2400mm | BG12: 0 | BH12: 0 | BI12: 0 | BJ12: 0 | BK12: 0 | BL12: 0
C13: 0 | E13: 2.4 | G13: =IF(#REF!="Y",((INT(((#REF!*100)+30)/30)*30)/100)," ") ->  | M13: 2.4 | N13: 0 | P13: 2.4 | T13: 0 | W13: 0 | AD13: 2400 | AM13: 0 | AP13: 0 | AS13: 0 | AW13: 3 DOOR 3000x2400mm | AX13: 2 DOOR 1800x2700mm | AY13: 3 DOOR 2700x2400mm | BG13: 0 | BH13: 0 | BI13: 0 | BJ13: 0 | BK13: 0 | BL13: 0 | BO13: Privacy | BS13: ='INT-EXT DOORS & int walls'!C21 -> 0
C14: 0 | E14: 2.7 | G14: =IF(#REF!="Y",((INT(((#REF!*100)+30)/30)*30)/100)," ") ->  | M14: 2.7 | N14: 0 | P14: 2.7 | R14: L/M | S14: =SUM(T8:T13) -> 0 | U14: L/M | V14: =SUM(W8:W13) -> 0 | AC14: nett l/m shelving = | AD14: 1800 | AM14: 0 | AP14: 0 | AS14: 0 | AW14: 3 DOOR 3300x2400mm | AX14: 2 DOOR 2100x2700mm | AY14: 3 DOOR 3000x2400mm | BG14: 0 | BH14: 0 | BI14: 0 | BJ14: 0 | BK14: 0 | BL14: 0
C15: 0 | E15: 3 | G15: =IF(#REF!="Y",((INT(((#REF!*100)+30)/30)*30)/100)," ") ->  | M15: 3 | N15: 0 | P15: 3 | R15: 13x13 | U15: 42 x 18 | AM15: 0 | AP15: 0 | AS15: 0 | AW15: 3 DOOR 3600x2400mm | AX15: 2 DOOR 2400x2700mm | AY15: 3 DOOR 3300x2400mm | BG15: 0 | BH15: 0 | BI15: 0 | BJ15: 0 | BK15: 0 | BL15: 0 | BO15: Sliding | BS15: ='INT-EXT DOORS & int walls'!C27 -> 0
C16: 0 | E16: 3.3 | G16: =IF(#REF!="Y",((INT(((#REF!*100)+30)/30)*30)/100)," ") ->  | M16: 3.3 | N16: 0 | P16: 3.3 | R16: Jh Quad | U16: DBN Arch. | X16: Ball Bearing Hinges | AA16: No | AC16: BROOM | AD16: 3600 | AM16: 0 | AP16: 0 | AS16: 0 | AU16: QUAD - JARRAH 13Fmm | AW16: 4 DOOR 3600x2400mm | AX16: 4 DOOR - 4200mm W x 2700mm H | AY16: 4 DOOR 3600x2400mm | BG16: 0 | BH16: 0 | BI16: 0 | BJ16: 0 | BK16: 0 | BL16: 0
C17: 0 | E17: 3.6 | G17: =IF(#REF!="Y",((INT(((#REF!*100)+30)/30)*30)/100)," ") ->  | M17: 3.6 | N17: 0 | P17: 3.6 | R17: 2 | S17: 1.2 | T17: =R17*S17 -> 2.4 | V17: 5.4 | W17: =U17*V17 -> 0 | AD17: 2400 | AM17: 0 | AP17: 0 | AS17: 0 | AW17: 4 DOOR 3900x2400mm | AY17: 4 DOOR 4200x2400mm | BG17: 0 | BH17: 0 | BI17: 0 | BJ17: 0 | BK17: 0 | BL17: 0
C18: 0 | E18: 3.9 | G18: =IF(#REF!="Y",((INT(((#REF!*100)+30)/30)*30)/100)," ") ->  | M18: 3.9 | N18: 0 | P18: 3.9 | R18: 4 | S18: 2.4 | T18: =R18*S18 -> 9.6 | W18: =U18*V18 -> 0 | AC18: nett l/m shelving = | AD18: 1800 | AM18: 0 | AP18: 0 | AS18: 0 | AW18: 4 DOOR 4200x2400mm | AY18: 4 DOOR 4500x2400mm | BG18: 0 | BH18: 0 | BI18: 0 | BJ18: 0 | BK18: 0 | BL18: 0
C19: 0 | E19: 4.2 | G19: =IF(#REF!="Y",((INT(((#REF!*100)+30)/30)*30)/100)," ") ->  | M19: 4.2 | N19: 0 | P19: 4.2 | T19: =R19*S19 -> 0 | W19: =U19*V19 -> 0 | X19: Finial (select) | AA19: No | AM19: 0 | AP19: 0 | AS19: 0 | AW19: 4 DOOR 4500x2400mm | AY19: 2 DOOR 1200x2700mm | BG19: 0 | BH19: 0 | BI19: 0 | BJ19: 0 | BK19: 0 | BL19: 0
C20: 0 | E20: 4.5 | G20: =IF(#REF!="Y",((INT(((#REF!*100)+30)/30)*30)/100)," ") ->  | M20: 4.5 | N20: 0 | P20: 4.5 | T20: =R20*S20 -> 0 | W20: =U20*V20 -> 0 | X20: SKIRTING - MDF 87x18mm | AA20: No | AC20: BED 1 | AD20: 3600 | AM20: 0 | AP20: 0 | AS20: 0 | AU20: =IF(R17>1,_xlfn.CONCAT(R17,"/",S17),"") -> 2/1.2 | AW20: 4 DOOR 4800x2400mm | AY20: 2 DOOR 1500x2700mm | BG20: 0 | BH20: 0 | BI20: 0 | BJ20: 0 | BK20: 0 | BL20: 0
C21: 0 | E21: 4.8 | G21: =IF(#REF!="Y",((INT(((#REF!*100)+30)/30)*30)/100)," ") ->  | M21: 4.8 | N21: 0 | P21: 4.8 | R21: L/M | S21: =SUM(T17:T20) -> 12 | U21: L/M | V21: =SUM(W17:W210) -> 0 | X21: SQUARE - LENGTHS 5.4m | AD21: 2400 | AM21: 0 | AP21: 0 | AS21: 0 | AU21: =IF(R18>1,_xlfn.CONCAT(R18,"/",S18),"") -> 4/2.4 | AW21: 2 DOOR 1200x2700mm | AY21: 2 DOOR 1800x2700mm | BG21: 0 | BH21: 0 | BI21: 0 | BJ21: 0 | BK21: 0 | BL21: 0
C22: 0 | E22: 5.1 | G22: =IF(#REF!="Y",((INT(((#REF!*100)+30)/30)*30)/100)," ") ->  | M22: 5.1 | N22: 0 | P22: 5.1 | R22: Mdf D/Arch | U22: Pine Arch | AC22: nett l/m shelving = | AD22: 1800 | AM22: 0 | AP22: 0 | AS22: 0 | AW22: 2 DOOR 1500x2700mm | AY22: 2 DOOR 2100x2700mm | BG22: 0 | BH22: 0 | BI22: 0 | BJ22: 0 | BK22: 0 | BL22: 0
C23: 0 | E23: 5.4 | G23: =IF(#REF!="Y",((INT(((#REF!*100)+30)/30)*30)/100)," ") ->  | M23: 5.4 | N23: 0 | P23: 5.4 | AM23: 0 | AP23: 0 | AS23: 0 | AW23: 2 DOOR 1800x2700mm | AY23: 3 DOOR 2400x2700mm | BG23: 0 | BH23: 0 | BI23: 0 | BJ23: 0 | BK23: 0 | BL23: 0
C24: 0 | E24: 5.7 | F24: =IF(G24=" "," ",1) ->  | G24: =IF(#REF!="Y",((INT(((#REF!*100)+30)/30)*30)/100)," ") ->  | M24: 5.7 | N24: 0 | P24: 5.7 | S24: 5.4 | T24: =R24*S24 -> 0 | V24: 5.4 | W24: =U24*V24 -> 0 | AC24: BED 2 | AD24: 3600 | AM24: 0 | AP24: 0 | AS24: 0 | AW24: 2 DOOR 2100x2700mm | AY24: 3 DOOR 2700x2700mm | BG24: 0 | BH24: 0 | BI24: 0 | BJ24: 0 | BK24: 0 | BL24: 0
